Workbook

Sheet S&P 500 $ 87-16
A1: S&P 500 price $ | E1: DatumMin | G1: 1987-01-01 | N1: Ø EK-Preis in $/#
A2: Intraday seit 87 | E2: Anf-Kap | G2: 20000 | H2: $ | J2: Teinz | K2: 200 | L2: $/Mon | N2: SJ | O2: Sp | P2: mSp | AV2: Vertikale Position der Kurven
A3: (yahoo) | E3: prozRK3 | G3: 50 | H3: % | J3: Terhoehung | K3: =72/30 -> 2.4 | L3: %/a br | N3: =J15/I15 -> 696.2139035 | O3: =(AH101-$G$2*prozRK3%)/AI15 -> 805.7429176 | P3: =(AP101-$G$2*prozRK3%)/AQ15 -> 699.1301575 | AV3: 2400 | AW3: =AV3/20*0 -> 0 | AX3: =AV3/20 -> 120
E4: Zins | G4: 2 | H4: %/a nt | J4: dKfixKauf | K4: -5 | L4: % | AV4: Faktoren für Transaktions-Strichlängen
E5: Dividende | G5: =1.6*(1-KESt%) -> 1.178 | H5: %/a nt | J5: dKkauf | K5: =dKfixKauf -> -5 | L5: % | N5: Nur Werte in hellblau hinterlegten Felder verändern! | AV5: =AV3/Teinz /100 -> 0.12 | AW5: =AV5 -> 0.12 | AX5: =AW5 -> 0.12
A6: Gesamtbilanz in $ nt | E6: KESt | G6: =25*1.055*1 -> 26.375 | H6: % | J6: dKfixVerk | K6: 60 | L6: %
A7: SJ - Sp | B7: =ROUND($AT$101, 0) -> 4368 | E7: Tag (MonAnf) | G7: 15 | J7: dKverk | K7: =dKfixVerk/2 -> 30 | L7: %
A8: SJ - mSp | B8: =ROUND($AU$101, 0) -> 19497
A11: Verkauf | H11: Kauf | O11: Schnäppchenjagd-Depot | U11: Kursdaten | AD11: Sparplan-Depot | AH11: Kauf | AL11: modifiziertes Sparplan-Depot | AP11: Kauf | AT11: Ges (SJ-Sp) | AU11: Ges (SJ-mSp) | AV11: SJ Verk ↑ | AW11: SJ Käufe ↓ | AX11: mSp Käufe ↓ | AZ11: normierte Kursdaten
A12: Tverk | B12: # | C12: Tverk | D12: j/n | E12: Limit | F12: dK | G12: T | H12: S Tkauf | I12: # | J12: Tkauf | K12: j/n | L12: Limit | M12: dK | N12: T | O12: Ges | P12: Cash | Q12: Aktien | R12: # | T12: Teinz | U12: MonAnf | V12: DoM | X12: Kurse | AD12: Ges | AE12: Cash | AF12: Aktien | AG12: # | AH12: S Tkauf | AI12: # | AJ12: j/n | AL12: Ges | AM12: Cash | AN12: Aktien | AO12: # | AP12: S Tkauf | AQ12: # | AR12: j/n | AT12: $ netto | AU12: $ netto | AZ12: 1.2.93 := 100
A13: $ netto | C13: $ br | E13: $ | F13: % | G13: $ | H13: $ brutto | J13: $ | L13: $ | M13: % | N13: $ | O13: $ netto | P13: $ netto | Q13: $ netto | T13: $ | U13: 1/0 | AD13: $ netto | AE13: $ netto | AF13: $ netto | AH13: $ brutto | AL13: $ netto | AM13: $ netto | AN13: $ netto | AP13: $ brutto | AZ13: S&P 500 $
A14: S | B14: S | C14: S | D14: S | I14: S | J14: S | K14: S | R14: Anf | U14: =SUM(U100:U8160) -> 362 | V14: 21 | X14: Datum | Y14: Open | Z14: High | AA14: Low | AB14: Close → | AI14: S K | AJ14: S K | AQ14: S K | AR14: S K | AT14: =MIN(AT100:AT2080) -> -262.8408905 | AU14: =MIN(AU100:AU2080) -> -798.7384905
A15: =SUM(A101:A7700) -> 0 | B15: =SUM(B101:B7700) -> 0 | C15: =SUM(C101:C7700) -> 0 | D15: =SUM(D101:D7700) -> 0 | I15: =SUM(I101:I7700) -> 64.3061882 | J15: =SUM(J101:J7700) -> 44770.8623 | K15: =SUM(K101:K7700) -> 41 | R15: =$R$7701 -> 41.2933067 | U15: Mon | V15: d/Mon | X15: €/Anteil | AI15: =SUM(AI101:AI7700) -> 65.57563729 | AJ15: =SUM(AJ101:AJ7700) -> 362 | AQ15: =SUM(AQ101:AQ7700) -> 48.46449899 | AR15: =SUM(AR101:AR7700) -> 116 | AT15: =MAX(AT100:AT2080) -> 4558.402746 | AU15: =MAX(AU100:AU2080) -> 19497.01172
A101: =C101 - B101*(E101-$AB$7701)*KESt% -> 0 | B101: =C101/E101 -> 0 | C101: =D101 * ($O102*prozRK3%*(1-prozRK3%)*-dKverk%) -> 0 | D101: =IF($Z101>=E101, 1, 0) -> 0 | E101: =IF(OR($U101=1, D102=1), ROUND($AB102*(1+F101%), 2), E102) -> 2690.91 | F101: =IF(OR($U101=1, D102=1), ((($O102 -$Q102 -$G101)*prozRK3%/(1-prozRK3%) -$G101) / $Q102 -1)*100, F102) -> 17.3759499 | G101: =IF(OR($U101=1, D102=1), O102*prozRK3%*(1-prozRK3%)*-dKfixVerk%, G102) -> -48329.42615 | H101: =H102 + J101 -> 54770.8623 | I101: =J101/L101 -> 0 | J101: =K101 * ($O102*prozRK3%*(1-prozRK3%)*-dKkauf%) -> 0 | K101: =IF($AA101<=L101, 1, 0) -> 0 | L101: =IF(OR($U101=1, K102=1), ROUND($AB102*(1+M101%), 2), L102) -> 1445.05 | M101: =IF(OR($U101=1, K102=1), ((($O102 -$Q102 -$N101)*prozRK3%/(1-prozRK3%) -$N101) / $Q102 -1)*100, M102) -> -36.96803758 | N101: =IF(OR($U101=1, K102=1), O102*prozRK3%*(1-prozRK3%)*-dKfixKauf%, N102) -> 4027.45218 | O101: =P101+Q101 -> 328736.5269 | P101: =P102*(1+Zins%)^(DAYS360($X102,$X101)/360) +$T101 -J101 +-A101 +$U101*Q102*Dividende%/12 -> 130235.6351 | Q101: =R101*AB101 - (R101*AB101-H101)*KESt% -> 198500.8917 | R101: =R102 + I101 + B101 -> 105.5994949 | T101: =U101 * Teinz*(1+Terhoehung%)^(DAYS360(DatumMin, $X101)/360) -> 0 | U101: =IF(V101=1, 1, 0) -> 0 | V101: =V102+1 +IF(V102=$V$14, -$V$14, 0) -> 13 | W101: =DATE(YEAR(X101),MONTH(X101),DAY(X101)) -> 42790 | X101: 2017-02-24 | Y101: 2355.72998 | Z101: 2367.340088 | AA101: 2352.870117 | AB101: 2367.340088 | AD101: =AE101+AF101 -> 324368.8843 | AE101: =AE102*(1+Zins%)^(DAYS360($X102,$X101)/360) +$T101*(1-prozRK3%) +$U101*AF102*Dividende%/12 -> 121527.9295 | AF101: =$AB101*AG101 - ($AB101*AG101 -AH101)*KESt% -> 202840.9549 | AG101: =AG102 + AI101 -> 106.868944 | AH101: =AH102 + $T101*prozRK3% -> 62837.10531 | AI101: =$T101*prozRK3% / $Y101 -> 0 | AJ101: =$U101 -> 0 | AL101: =AM101+AN101 -> 309239.5151 | AM101: =AM102*(1+Zins%)^(DAYS360($X102,$X101)/360) + $T101 -AR101*$T101 +$U101*AN102*Dividende%/12 -> 141221.6368 | AN101: =$AB101*AO101 - ($AB101*AO101 -AP101)*KESt% -> 168017.8784 | AO101: =AO102 + AQ101 -> 89.75780569 | AP101: =AP102 + AR101*T101 -> 43882.99281 | AQ101: =T101 * AR101 / Y101 -> 0 | AR101: =$U101 * IF($AL102*prozRK3%>$AN102, 1, 0) -> 0 | AT101: =O101-AD101 -> 4367.64254 | AU101: =O101-AL101 -> 19497.01172 | AV101: =$AV$3-- $C101*$AV$5 -> 2400 | AW101: =$AW$3 + $J101*$AW$5 -> 0 | AX101: =$AX$3 + AR101 * T101 * $AX$5 -> 120 | AZ101: =$X101 -> 2017-02-24 | BA101: =$AB101/$AB$6162 *100 -> 534.9679442
A102: 0 | B102: 0 | C102: 0 | D102: 0 | E102: 2690.91 | F102: 17.3759499 | G102: -48329.42615 | H102: =H103 + J102 -> 54770.8623 | I102: 0 | J102: 0 | K102: 0 | L102: 1445.05 | M102: -36.96803758 | N102: 4027.45218 | O102: 328454.9118 | P102: 130228.4714 | Q102: 198226.4403 | R102: 105.5994949 | T102: 0 | U102: 0 | V102: 12 | W102: =DATE(YEAR(X102),MONTH(X102),DAY(X102)) -> 42789 | X102: 2017-02-23 | Y102: 2367.5 | Z102: 2368.26001 | AA102: 2355.090088 | AB102: 2363.810059 | AD102: 324084.4489 | AE102: 121521.2447 | AF102: 202563.2042 | AG102: =AG103 + AI102 -> 106.868944 | AH102: 62837.10531 | AI102: 0 | AJ102: =$U102 -> 0 | AL102: 308998.468 | AM102: 141213.8688 | AN102: =AB102*AO102 - (AB102*AO102 -AP102)*KESt% -> 167784.5993 | AO102: =AO103 + AQ102 -> 89.75780569 | AP102: =AP103 + AR102*T102 -> 43882.99281 | AQ102: 0 | AR102: 0 | AT102: 4370.462843 | AU102: 19456.44372 | AV102: 2400 | AW102: 0 | AX102: =$AX$3 + AR102 * T102 * $AX$5 -> 120 | AZ102: =$X102 -> 2017-02-23 | BA102: =$AB102/$AB$6162 *100 -> 534.1702336
A103: 0 | B103: 0 | C103: 0 | D103: 0 | E103: 2690.91 | F103: 17.3759499 | G103: -48329.42615 | H103: 54770.8623 | I103: 0 | J103: 0 | K103: 0 | L103: 1445.05 | M103: -36.96803758 | N103: 4027.45218 | O103: 328370.779 | P103: 130221.3081 | Q103: 198149.4709 | R103: 105.5994949 | T103: 0 | U103: 0 | V103: 11 | W103: 42788 | X103: 2017-02-22 | Y103: 2361.110107 | Z103: 2365.129883 | AA103: 2358.340088 | AB103: 2362.820068 | AD103: 323999.8698 | AE103: 121514.5603 | AF103: 202485.3095 | AG103: 106.868944 | AH103: 62837.10531 | AI103: 0 | AJ103: 0 | AL103: 308925.2777 | AM103: 141206.1012 | AN103: 167719.1765 | AO103: 89.75780569 | AP103: 43882.99281 | AQ103: 0 | AR103: 0 | AT103: 4370.909172 | AU103: 19445.50127 | AV103: 2400 | AW103: 0 | AX103: 120 | AZ103: 2017-02-22 | BA103: 533.9465169
A104: 0 | B104: 0 | C104: 0 | D104: 0 | E104: 2690.91 | F104: 17.3759499 | G104: -48329.42615 | H104: 54770.8623 | I104: 0 | J104: 0 | K104: 0 | L104: 1445.05 | M104: -36.96803758 | N104: 4027.45218 | O104: 328562.6356 | P104: 130214.1452 | Q104: 198348.4904 | R104: 105.5994949 | T104: 0 | U104: 0 | V104: 10 | W104: 42787 | X104: 2017-02-21 | Y104: 2354.909912 | Z104: 2366.709961 | AA104: 2354.909912 | AB104: 2365.379883 | AD104: 324194.5978 | AE104: 121507.8763 | AF104: 202686.7215 | AG104: 106.868944 | AH104: 62837.10531 | AI104: 0 | AJ104: 0 | AL104: 309086.6738 | AM104: 141198.334 | AN104: 167888.3398 | AO104: 89.75780569 | AP104: 43882.99281 | AQ104: 0 | AR104: 0 | AT104: 4368.037766 | AU104: 19475.96176 | AV104: 2400 | AW104: 0 | AX104: 120 | AZ104: 2017-02-21 | BA104: 534.5249801
A105: 0 | B105: 0 | C105: 0 | D105: 0 | E105: 2690.91 | F105: 17.3759499 | G105: -48329.42615 | H105: 54770.8623 | I105: 0 | J105: 0 | K105: 0 | L105: 1445.05 | M105: -36.96803758 | N105: 4027.45218 | O105: 327428.4188 | P105: 130185.4974 | Q105: 197242.9214 | R105: 105.5994949 | T105: 0 | U105: 0 | V105: 9 | W105: 42783 | X105: 2017-02-17 | Y105: 2343.01001 | Z105: 2351.159912 | AA105: 2339.580078 | AB105: 2351.159912 | AD105: 323049.006 | AE105: 121481.144 | AF105: 201567.862 | AG105: 106.868944 | AH105: 62837.10531 | AI105: 0 | AJ105: 0 | AL105: 308115.8943 | AM105: 141167.2697 | AN105: 166948.6246 | AO105: 89.75780569 | AP105: 43882.99281 | AQ105: 0 | AR105: 0 | AT105: 4379.412782 | AU105: 19312.5245 | AV105: 2400 | AW105: 0 | AX105: 120 | AZ105: 2017-02-17 | BA105: 531.3115725
A106: 0 | B106: 0 | C106: 0 | D106: 0 | E106: 2690.91 | F106: 17.3759499 | G106: -48329.42615 | H106: 54770.8623 | I106: 0 | J106: 0 | K106: 0 | L106: 1445.05 | M106: -36.96803758 | N106: 4027.45218 | O106: 327114.9368 | P106: 130178.3365 | Q106: 196936.6003 | R106: 105.5994949 | T106: 0 | U106: 0 | V106: 8 | W106: 42782 | X106: 2017-02-16 | Y106: 2349.639893 | Z106: 2351.310059 | AA106: 2338.870117 | AB106: 2347.219971 | AD106: 322732.3204 | AE106: 121474.4618 | AF106: 201257.8586 | AG106: 106.868944 | AH106: 62837.10531 | AI106: 0 | AJ106: 0 | AL106: 307847.7615 | AM106: 141159.5047 | AN106: 166688.2568 | AO106: 89.75780569 | AP106: 43882.99281 | AQ106: 0 | AR106: 0 | AT106: 4382.616387 | AU106: 19267.17528 | AV106: 2400 | AW106: 0 | AX106: 120 | AZ106: 2017-02-16 | BA106: 530.4212305
A107: 0 | B107: 0 | C107: 0 | D107: 0 | E107: 2690.91 | F107: 17.3759499 | G107: -48329.42615 | H107: 54770.8623 | I107: 0 | J107: 0 | K107: 0 | L107: 1445.05 | M107: -36.96803758 | N107: 4027.45218 | O107: 327265.6062 | P107: 130171.1759 | Q107: 197094.4303 | R107: 105.5994949 | T107: 0 | U107: 0 | V107: 7 | W107: 42781 | X107: 2017-02-15 | Y107: 2335.580078 | Z107: 2351.300049 | AA107: 2334.810059 | AB107: 2349.25 | AD107: 322885.3659 | AE107: 121467.78 | AF107: 201417.5858 | AG107: 106.868944 | AH107: 62837.10531 | AI107: 0 | AJ107: 0 | AL107: 307974.1497 | AM107: 141151.7401 | AN107: 166822.4096 | AO107: 89.75780569 | AP107: 43882.99281 | AQ107: 0 | AR107: 0 | AT107: 4380.240293 | AU107: 19291.45644 | AV107: 2400 | AW107: 0 | AX107: 120 | AZ107: 2017-02-15 | BA107: 530.8799734
A108: 0 | B108: 0 | C108: 0 | D108: 0 | E108: 2690.91 | F108: 17.3759499 | G108: -48329.42615 | H108: 54770.8623 | I108: 0 | J108: 0 | K108: 0 | L108: 1445.05 | M108: -36.96803758 | N108: 4027.45218 | O108: 326351.1373 | P108: 130164.0157 | Q108: 196187.1215 | R108: 105.5994949 | T108: 0 | U108: 0 | V108: 6 | W108: 42780 | X108: 2017-02-14 | Y108: 2326.120117 | Z108: 2337.580078 | AA108: 2322.169922 | AB108: 2337.580078 | AD108: 321960.4686 | AE108: 121461.0986 | AF108: 200499.37 | AG108: 106.868944 | AH108: 62837.10531 | AI108: 0 | AJ108: 0 | AL108: 307195.1883 | AM108: 141143.9759 | AN108: 166051.2124 | AO108: 89.75780569 | AP108: 43882.99281 | AQ108: 0 | AR108: 0 | AT108: 4390.668637 | AU108: 19155.94896 | AV108: 2400 | AW108: 0 | AX108: 120 | AZ108: 2017-02-14 | BA108: 528.242822
A109: 0 | B109: 0 | C109: 0 | D109: 0 | E109: 2690.91 | F109: 17.3759499 | G109: -48329.42615 | H109: 54770.8623 | I109: 0 | J109: 0 | K109: 0 | L109: 1445.05 | M109: -36.96803758 | N109: 4027.45218 | O109: 325618.586 | P109: 130156.856 | Q109: 195461.7301 | R109: 105.5994949 | T109: 0 | U109: 0 | V109: 5 | W109: 42779 | X109: 2017-02-13 | Y109: 2321.719971 | Z109: 2331.580078 | AA109: 2321.419922 | AB109: 2328.25 | AD109: 321219.6759 | AE109: 121454.4175 | AF109: 199765.2584 | AG109: 106.868944 | AH109: 62837.10531 | AI109: 0 | AJ109: 0 | AL109: 306570.854 | AM109: 141136.2122 | AN109: 165434.6418 | AO109: 89.75780569 | AP109: 43882.99281 | AQ109: 0 | AR109: 0 | AT109: 4398.910115 | AU109: 19047.73208 | AV109: 2400 | AW109: 0 | AX109: 120 | AZ109: 2017-02-13 | BA109: 526.1344251
A110: 0 | B110: 0 | C110: 0 | D110: 0 | E110: 2690.91 | F110: 17.3759499 | G110: -48329.42615 | H110: 54770.8623 | I110: 0 | J110: 0 | K110: 0 | L110: 1445.05 | M110: -36.96803758 | N110: 4027.45218 | O110: 324652.483 | P110: 130135.379 | Q110: 194517.104 | R110: 105.5994949 | T110: 0 | U110: 0 | V110: 4 | W110: 42776 | X110: 2017-02-10 | Y110: 2312.27002 | Z110: 2319.22998 | AA110: 2311.100098 | AB110: 2316.100098 | AD110: 320243.6532 | AE110: 121434.3766 | AF110: 198809.2766 | AG110: 106.868944 | AH110: 62837.10531 | AI110: 0 | AJ110: 0 | AL110: 305744.649 | AM110: 141112.9236 | AN110: 164631.7254 | AO110: 89.75780569 | AP110: 43882.99281 | AQ110: 0 | AR110: 0 | AT110: 4408.829827 | AU110: 18907.83407 | AV110: 2400 | AW110: 0 | AX110: 120 | AZ110: 2017-02-10 | BA110: 523.3888085
A111: 0 | B111: 0 | C111: 0 | D111: 0 | E111: 2690.91 | F111: 17.3759499 | G111: -48329.42615 | H111: 54770.8623 | I111: 0 | J111: 0 | K111: 0 | L111: 1445.05 | M111: -36.96803758 | N111: 4027.45218 | O111: 324005.4633 | P111: 130128.2208 | Q111: 193877.2425 | R111: 105.5994949 | T111: 0 | U111: 0 | V111: 3 | W111: 42775 | X111: 2017-02-09 | Y111: 2296.699951 | Z111: 2311.080078 | AA111: 2296.610107 | AB111: 2307.870117 | AD111: 319589.4201 | AE111: 121427.697 | AF111: 198161.7231 | AG111: 106.868944 | AH111: 62837.10531 | AI111: 0 | AJ111: 0 | AL111: 305193.0154 | AM111: 141105.1615 | AN111: 164087.8538 | AO111: 89.75780569 | AP111: 43882.99281 | AQ111: 0 | AR111: 0 | AT111: 4416.043224 | AU111: 18812.44797 | AV111: 2400 | AW111: 0 | AX111: 120 | AZ111: 2017-02-09 | BA111: 521.5290098
A112: 0 | B112: 0 | C112: 0 | D112: 0 | E112: 2690.91 | F112: 17.3759499 | G112: -48329.42615 | H112: 54770.8623 | I112: 0 | J112: 0 | K112: 0 | L112: 1445.05 | M112: -36.96803758 | N112: 4027.45218 | O112: 322972.0217 | P112: 130121.063 | Q112: 192850.9587 | R112: 105.5994949 | T112: 0 | U112: 0 | V112: 2 | W112: 42774 | X112: 2017-02-08 | Y112: 2289.550049 | Z112: 2295.909912 | AA112: 2285.379883 | AB112: 2294.669922 | AD112: 318544.1197 | AE112: 121421.0177 | AF112: 197123.102 | AG112: 106.868944 | AH112: 62837.10531 | AI112: 0 | AJ112: 0 | AL112: 304312.9296 | AM112: 141097.3999 | AN112: 163215.5297 | AO112: 89.75780569 | AP112: 43882.99281 | AQ112: 0 | AR112: 0 | AT112: 4427.901968 | AU112: 18659.09204 | AV112: 2400 | AW112: 0 | AX112: 120 | AZ112: 2017-02-08 | BA112: 518.5460497
A113: 0 | B113: 0 | C113: 0 | D113: 0 | E113: 2690.91 | F113: 17.3759499 | G113: -48329.42615 | H113: 54770.8623 | I113: 0 | J113: 0 | K113: 0 | L113: 1445.05 | M113: -36.96803758 | N113: 4027.45218 | O113: 322841.2577 | P113: 130113.9056 | Q113: 192727.3521 | R113: 105.5994949 | T113: 408.3745703 | U113: 1 | V113: 1 | W113: 42773 | X113: 2017-02-07 | Y113: 2295.870117 | Z113: 2299.399902 | AA113: 2290.159912 | AB113: 2293.080078 | AD113: 318412.3483 | AE113: 121414.3389 | AF113: 196998.0094 | AG113: 106.868944 | AH113: 62837.10531 | AI113: 0.08893677549 | AJ113: 1 | AL113: 304200.1049 | AM113: 141089.6388 | AN113: 163110.4662 | AO113: 89.75780569 | AP113: 43882.99281 | AQ113: 0 | AR113: 0 | AT113: 4428.909334 | AU113: 18641.15274 | AV113: 2400 | AW113: 0 | AX113: 120 | AZ113: 2017-02-07 | BA113: 518.1867791
A114: 0 | B114: 0 | C114: 0 | D114: 0 | E114: 2669.68 | F114: 17.65905673 | G114: -47932.33746 | H114: 54770.8623 | I114: 0 | J114: 0 | K114: 0 | L114: 1435.01 | M114: -36.75570745 | N114: 3994.361455 | O114: 322196.1744 | P114: 129509.2525 | Q114: 192686.9218 | R114: 105.5994949 | T114: 0 | U114: 0 | V114: 21 | W114: 42772 | X114: 2017-02-06 | Y114: 2294.280029 | Z114: 2296.179932 | AA114: 2288.570068 | AB114: 2292.560059 | AD114: 317763.4716 | AE114: 121010.349 | AF114: 196753.1226 | AG114: 106.7800072 | AH114: 62632.91803 | AI114: 0 | AJ114: 0 | AL114: 303589.5495 | AM114: 140513.4483 | AN114: 163076.1011 | AO114: 89.75780569 | AP114: 43882.99281 | AQ114: 0 | AR114: 0 | AT114: 4432.702758 | AU114: 18606.6249 | AV114: 2400 | AW114: 0 | AX114: 120 | AZ114: 2017-02-06 | BA114: 518.069266
A115: 0 | B115: 0 | C115: 0 | D115: 0 | E115: 2669.68 | F115: 17.65905673 | G115: -47932.33746 | H115: 54770.8623 | I115: 0 | J115: 0 | K115: 0 | L115: 1435.01 | M115: -36.75570745 | N115: 3994.361455 | O115: 322552.6471 | P115: 129487.8824 | Q115: 193064.7647 | R115: 105.5994949 | T115: 0 | U115: 0 | V115: 20 | W115: 42769 | X115: 2017-02-03 | Y115: 2288.540039 | Z115: 2298.310059 | AA115: 2287.879883 | AB115: 2297.419922 | AD115: 318125.5707 | AE115: 120990.3813 | AF115: 197135.1894 | AG115: 106.7800072 | AH115: 62632.91803 | AI115: 0 | AJ115: 0 | AL115: 303887.5237 | AM115: 140490.2625 | AN115: 163397.2612 | AO115: 89.75780569 | AP115: 43882.99281 | AQ115: 0 | AR115: 0 | AT115: 4427.076408 | AU115: 18665.12343 | AV115: 2400 | AW115: 0 | AX115: 120 | AZ115: 2017-02-03 | BA115: 519.1674905
A116: 0 | B116: 0 | C116: 0 | D116: 0 | E116: 2669.68 | F116: 17.65905673 | G116: -47932.33746 | H116: 54770.8623 | I116: 0 | J116: 0 | K116: 0 | L116: 1435.01 | M116: -36.75570745 | N116: 3994.361455 | O116: 321257.26 | P116: 129480.7598 | Q116: 191776.5001 | R116: 105.5994949 | T116: 0 | U116: 0 | V116: 19 | W116: 42768 | X116: 2017-02-02 | Y116: 2276.689941 | Z116: 2283.969971 | AA116: 2271.649902 | AB116: 2280.850098 | AD116: 316816.2493 | AE116: 120983.7261 | AF116: 195832.5232 | AG116: 106.7800072 | AH116: 62632.91803 | AI116: 0 | AJ116: 0 | AL116: 302784.7926 | AM116: 140482.5347 | AN116: 162302.2579 | AO116: 89.75780569 | AP116: 43882.99281 | AQ116: 0 | AR116: 0 | AT116: 4441.010695 | AU116: 18472.46741 | AV116: 2400 | AW116: 0 | AX116: 120 | AZ116: 2017-02-02 | BA116: 515.4230667
A117: 0 | B117: 0 | C117: 0 | D117: 0 | E117: 2669.68 | F117: 17.65905673 | G117: -47932.33746 | H117: 54770.8623 | I117: 0 | J117: 0 | K117: 0 | L117: 1435.01 | M117: -36.75570745 | N117: 3994.361455 | O117: 321149.0621 | P117: 129473.6377 | Q117: 191675.4244 | R117: 105.5994949 | T117: 0 | U117: 0 | V117: 18 | W117: 42767 | X117: 2017-02-01 | Y117: 2285.590088 | Z117: 2289.139893 | AA117: 2272.439941 | AB117: 2279.550049 | AD117: 316707.3888 | AE117: 120977.0713 | AF117: 195730.3175 | AG117: 106.7800072 | AH117: 62632.91803 | AI117: 0 | AJ117: 0 | AL117: 302691.1526 | AM117: 140474.8073 | AN117: 162216.3452 | AO117: 89.75780569 | AP117: 43882.99281 | AQ117: 0 | AR117: 0 | AT117: 4441.673249 | AU117: 18457.90952 | AV117: 2400 | AW117: 0 | AX117: 120 | AZ117: 2017-02-01 | BA117: 515.1292836
A118: 0 | B118: 0 | C118: 0 | D118: 0 | E118: 2669.68 | F118: 17.65905673 | G118: -47932.33746 | H118: 54770.8623 | I118: 0 | J118: 0 | K118: 0 | L118: 1435.01 | M118: -36.75570745 | N118: 3994.361455 | O118: 321089.0772 | P118: 129466.5159 | Q118: 191622.5613 | R118: 105.5994949 | T118: 0 | U118: 0 | V118: 17 | W118: 42766 | X118: 2017-01-31 | Y118: 2274.02002 | Z118: 2279.090088 | AA118: 2267.209961 | AB118: 2278.870117 | AD118: 316647.2803 | AE118: 120970.4169 | AF118: 195676.8635 | AG118: 106.7800072 | AH118: 62632.91803 | AI118: 0 | AJ118: 0 | AL118: 302638.4929 | AM118: 140467.0804 | AN118: 162171.4125 | AO118: 89.75780569 | AP118: 43882.99281 | AQ118: 0 | AR118: 0 | AT118: 4441.796853 | AU118: 18450.5843 | AV118: 2400 | AW118: 0 | AX118: 120 | AZ118: 2017-01-31 | BA118: 514.9756336
A119: 0 | B119: 0 | C119: 0 | D119: 0 | E119: 2669.68 | F119: 17.65905673 | G119: -47932.33746 | H119: 54770.8623 | I119: 0 | J119: 0 | K119: 0 | L119: 1435.01 | M119: -36.75570745 | N119: 3994.361455 | O119: 321246.8881 | P119: 129466.5159 | Q119: 191780.3723 | R119: 105.5994949 | T119: 0 | U119: 0 | V119: 16 | W119: 42765 | X119: 2017-01-30 | Y119: 2286.01001 | Z119: 2286.01001 | AA119: 2268.040039 | AB119: 2280.899902 | AD119: 316806.8555 | AE119: 120970.4169 | AF119: 195836.4386 | AG119: 106.7800072 | AH119: 62632.91803 | AI119: 0 | AJ119: 0 | AL119: 302772.6296 | AM119: 140467.0804 | AN119: 162305.5492 | AO119: 89.75780569 | AP119: 43882.99281 | AQ119: 0 | AR119: 0 | AT119: 4440.032661 | AU119: 18474.25859 | AV119: 2400 | AW119: 0 | AX119: 120 | AZ119: 2017-01-30 | BA119: 515.4343213
A120: 0 | B120: 0 | C120: 0 | D120: 0 | E120: 2669.68 | F120: 17.65905673 | G120: -47932.33746 | H120: 54770.8623 | I120: 0 | J120: 0 | K120: 0 | L120: 1435.01 | M120: -36.75570745 | N120: 3994.361455 | O120: 322297.6679 | P120: 129445.1528 | Q120: 192852.5151 | R120: 105.5994949 | T120: 0 | U120: 0 | V120: 15 | W120: 42762 | X120: 2017-01-27 | Y120: 2299.02002 | Z120: 2299.02002 | AA120: 2291.620117 | AB120: 2294.689941 | AD120: 317871.0228 | AE120: 120950.4557 | AF120: 196920.5671 | AG120: 106.7800072 | AH120: 62632.91803 | AI120: 0 | AJ120: 0 | AL120: 303660.7548 | AM120: 140443.9022 | AN120: 163216.8526 | AO120: 89.75780569 | AP120: 43882.99281 | AQ120: 0 | AR120: 0 | AT120: 4426.645092 | AU120: 18636.91311 | AV120: 2400 | AW120: 0 | AX120: 120 | AZ120: 2017-01-27 | BA120: 518.5505735
A121: 0 | B121: 0 | C121: 0 | D121: 0 | E121: 2669.68 | F121: 17.65905673 | G121: -47932.33746 | H121: 54770.8623 | I121: 0 | J121: 0 | K121: 0 | L121: 1435.01 | M121: -36.75570745 | N121: 3994.361455 | O121: 322445.2648 | P121: 129438.0326 | Q121: 193007.2322 | R121: 105.5994949 | T121: 0 | U121: 0 | V121: 14 | W121: 42761 | X121: 2017-01-26 | Y121: 2298.629883 | Z121: 2300.98999 | AA121: 2294.080078 | AB121: 2296.679932 | AD121: 318020.8165 | AE121: 120943.8028 | AF121: 197077.0138 | AG121: 106.7800072 | AH121: 62632.91803 | AI121: 0 | AJ121: 0 | AL121: 303784.5365 | AM121: 140436.1769 | AN121: 163348.3596 | AO121: 89.75780569 | AP121: 43882.99281 | AQ121: 0 | AR121: 0 | AT121: 4424.44823 | AU121: 18660.72826 | AV121: 2400 | AW121: 0 | AX121: 120 | AZ121: 2017-01-26 | BA121: 519.0002687
A122: 0 | B122: 0 | C122: 0 | D122: 0 | E122: 2669.68 | F122: 17.65905673 | G122: -47932.33746 | H122: 54770.8623 | I122: 0 | J122: 0 | K122: 0 | L122: 1435.01 | M122: -36.75570745 | N122: 3994.361455 | O122: 322569.5528 | P122: 129430.9127 | Q122: 193138.6401 | R122: 105.5994949 | T122: 0 | U122: 0 | V122: 13 | W122: 42760 | X122: 2017-01-25 | Y122: 2288.879883 | Z122: 2299.550049 | AA122: 2288.879883 | AB122: 2298.370117 | AD122: 318147.0408 | AE122: 120937.1502 | AF122: 197209.8907 | AG122: 106.7800072 | AH122: 62632.91803 | AI122: 0 | AJ122: 0 | AL122: 303888.5062 | AM122: 140428.4521 | AN122: 163460.0541 | AO122: 89.75780569 | AP122: 43882.99281 | AQ122: 0 | AR122: 0 | AT122: 4422.51197 | AU122: 18681.0466 | AV122: 2400 | AW122: 0 | AX122: 120 | AZ122: 2017-01-25 | BA122: 519.3822142
A123: 0 | B123: 0 | C123: 0 | D123: 0 | E123: 2669.68 | F123: 17.65905673 | G123: -47932.33746 | H123: 54770.8623 | I123: 0 | J123: 0 | K123: 0 | L123: 1435.01 | M123: -36.75570745 | N123: 3994.361455 | O123: 321139.648 | P123: 129423.7933 | Q123: 191715.8547 | R123: 105.5994949 | T123: 0 | U123: 0 | V123: 12 | W123: 42759 | X123: 2017-01-24 | Y123: 2267.879883 | Z123: 2284.629883 | AA123: 2266.679932 | AB123: 2280.070068 | AD123: 316701.6977 | AE123: 120930.4979 | AF123: 195771.1997 | AG123: 106.7800072 | AH123: 62632.91803 | AI123: 0 | AJ123: 0 | AL123: 302671.438 | AM123: 140420.7278 | AN123: 162250.7103 | AO123: 89.75780569 | AP123: 43882.99281 | AQ123: 0 | AR123: 0 | AT123: 4437.950291 | AU123: 18468.20993 | AV123: 2400 | AW123: 0 | AX123: 120 | AZ123: 2017-01-24 | BA123: 515.2467967
A124: 0 | B124: 0 | C124: 0 | D124: 0 | E124: 2669.68 | F124: 17.65905673 | G124: -47932.33746 | H124: 54770.8623 | I124: 0 | J124: 0 | K124: 0 | L124: 1435.01 | M124: -36.75570745 | N124: 3994.361455 | O124: 319976.4126 | P124: 129416.6742 | Q124: 190559.7383 | R124: 105.5994949 | T124: 0 | U124: 0 | V124: 11 | W124: 42758 | X124: 2017-01-23 | Y124: 2267.780029 | Z124: 2271.780029 | AA124: 2257.02002 | AB124: 2265.199951 | AD124: 315526.0051 | AE124: 120923.846 | AF124: 194602.159 | AG124: 106.7800072 | AH124: 62632.91803 | AI124: 0 | AJ124: 0 | AL124: 301681.0345 | AM124: 140413.0038 | AN124: 161268.0307 | AO124: 89.75780569 | AP124: 43882.99281 | AQ124: 0 | AR124: 0 | AT124: 4450.407506 | AU124: 18295.37806 | AV124: 2400 | AW124: 0 | AX124: 120 | AZ124: 2017-01-23 | BA124: 511.8864701
A125: 0 | B125: 0 | C125: 0 | D125: 0 | E125: 2669.68 | F125: 17.65905673 | G125: -47932.33746 | H125: 54770.8623 | I125: 0 | J125: 0 | K125: 0 | L125: 1435.01 | M125: -36.75570745 | N125: 3994.361455 | O125: 320430.1041 | P125: 129395.3194 | Q125: 191034.7847 | R125: 105.5994949 | T125: 0 | U125: 0 | V125: 10 | W125: 42755 | X125: 2017-01-20 | Y125: 2269.959961 | Z125: 2276.959961 | AA125: 2265.01001 | AB125: 2271.310059 | AD125: 315986.4086 | AE125: 120903.8926 | AF125: 195082.516 | AG125: 106.7800072 | AH125: 62632.91803 | AI125: 0 | AJ125: 0 | AL125: 302061.6467 | AM125: 140389.8345 | AN125: 161671.8122 | AO125: 89.75780569 | AP125: 43882.99281 | AQ125: 0 | AR125: 0 | AT125: 4443.695505 | AU125: 18368.45744 | AV125: 2400 | AW125: 0 | AX125: 120 | AZ125: 2017-01-20 | BA125: 513.2672231
A126: 0 | B126: 0 | C126: 0 | D126: 0 | E126: 2669.68 | F126: 17.65905673 | G126: -47932.33746 | H126: 54770.8623 | I126: 0 | J126: 0 | K126: 0 | L126: 1435.01 | M126: -36.75570745 | N126: 3994.361455 | O126: 319830.5406 | P126: 129388.2019 | Q126: 190442.3386 | R126: 105.5994949 | T126: 0 | U126: 0 | V126: 9 | W126: 42754 | X126: 2017-01-19 | Y126: 2271.899902 | Z126: 2274.330078 | AA126: 2258.409912 | AB126: 2263.689941 | AD126: 315380.6891 | AE126: 120897.2422 | AF126: 194483.4469 | AG126: 106.7800072 | AH126: 62632.91803 | AI126: 0 | AJ126: 0 | AL126: 301550.3552 | AM126: 140382.1122 | AN126: 161168.2429 | AO126: 89.75780569 | AP126: 43882.99281 | AQ126: 0 | AR126: 0 | AT126: 4449.85147 | AU126: 18280.18539 | AV126: 2400 | AW126: 0 | AX126: 120 | AZ126: 2017-01-19 | BA126: 511.5452403
A127: 0 | B127: 0 | C127: 0 | D127: 0 | E127: 2669.68 | F127: 17.65905673 | G127: -47932.33746 | H127: 54770.8623 | I127: 0 | J127: 0 | K127: 0 | L127: 1435.01 | M127: -36.75570745 | N127: 3994.361455 | O127: 320460.9503 | P127: 129381.0848 | Q127: 191079.8655 | R127: 105.5994949 | T127: 0 | U127: 0 | V127: 8 | W127: 42753 | X127: 2017-01-18 | Y127: 2269.139893 | Z127: 2272.01001 | AA127: 2263.350098 | AB127: 2271.889893 | AD127: 316018.6929 | AE127: 120890.5921 | AF127: 195128.1007 | AG127: 106.7800072 | AH127: 62632.91803 | AI127: 0 | AJ127: 0 | AL127: 302084.5205 | AM127: 140374.3904 | AN127: 161710.1301 | AO127: 89.75780569 | AP127: 43882.99281 | AQ127: 0 | AR127: 0 | AT127: 4442.257411 | AU127: 18376.42979 | AV127: 2400 | AW127: 0 | AX127: 120 | AZ127: 2017-01-18 | BA127: 513.3982531
A128: 0 | B128: 0 | C128: 0 | D128: 0 | E128: 2669.68 | F128: 17.65905673 | G128: -47932.33746 | H128: 54770.8623 | I128: 0 | J128: 0 | K128: 0 | L128: 1435.01 | M128: -36.75570745 | N128: 3994.361455 | O128: 320142.8431 | P128: 129373.9681 | Q128: 190768.8749 | R128: 105.5994949 | T128: 0 | U128: 0 | V128: 7 | W128: 42752 | X128: 2017-01-17 | Y128: 2269.139893 | Z128: 2272.080078 | AA128: 2262.810059 | AB128: 2267.889893 | AD128: 315697.5761 | AE128: 120883.9425 | AF128: 194813.6336 | AG128: 106.7800072 | AH128: 62632.91803 | AI128: 0 | AJ128: 0 | AL128: 301812.4623 | AM128: 140366.669 | AN128: 161445.7933 | AO128: 89.75780569 | AP128: 43882.99281 | AQ128: 0 | AR128: 0 | AT128: 4445.266994 | AU128: 18330.38071 | AV128: 2400 | AW128: 0 | AX128: 120 | AZ128: 2017-01-17 | BA128: 512.4943391
A129: 0 | B129: 0 | C129: 0 | D129: 0 | E129: 2669.68 | F129: 17.65905673 | G129: -47932.33746 | H129: 54770.8623 | I129: 0 | J129: 0 | K129: 0 | L129: 1435.01 | M129: -36.75570745 | N129: 3994.361455 | O129: 320639.1766 | P129: 129345.5052 | Q129: 191293.6714 | R129: 105.5994949 | T129: 0 | U129: 0 | V129: 6 | W129: 42748 | X129: 2017-01-13 | Y129: 2272.73999 | Z129: 2278.679932 | AA129: 2271.51001 | AB129: 2274.639893 | AD129: 316201.6443 | AE129: 120857.3474 | AF129: 195344.2969 | AG129: 106.7800072 | AH129: 62632.91803 | AI129: 0 | AJ129: 0 | AL129: 302227.6492 | AM129: 140335.7876 | AN129: 161891.8616 | AO129: 89.75780569 | AP129: 43882.99281 | AQ129: 0 | AR129: 0 | AT129: 4437.532369 | AU129: 18411.52741 | AV129: 2400 | AW129: 0 | AX129: 120 | AZ129: 2017-01-13 | BA129: 514.0196939
A130: 0 | B130: 0 | C130: 0 | D130: 0 | E130: 2669.68 | F130: 17.65905673 | G130: -47932.33746 | H130: 54770.8623 | I130: 0 | J130: 0 | K130: 0 | L130: 1435.01 | M130: -36.75570745 | N130: 3994.361455 | O130: 320305.5256 | P130: 129338.3904 | Q130: 190967.1351 | R130: 105.5994949 | T130: 0 | U130: 0 | V130: 5 | W130: 42747 | X130: 2017-01-12 | Y130: 2271.139893 | Z130: 2271.780029 | AA130: 2254.25 | AB130: 2270.439941 | AD130: 315864.8097 | AE130: 120850.6995 | AF130: 195014.1102 | AG130: 106.7800072 | AH130: 62632.91803 | AI130: 0 | AJ130: 0 | AL130: 301942.3795 | AM130: 140328.0684 | AN130: 161614.3112 | AO130: 89.75780569 | AP130: 43882.99281 | AQ130: 0 | AR130: 0 | AT130: 4440.715868 | AU130: 18363.14603 | AV130: 2400 | AW130: 0 | AX130: 120 | AZ130: 2017-01-12 | BA130: 513.0705951
A131: 0 | B131: 0 | C131: 0 | D131: 0 | E131: 2669.68 | F131: 17.65905673 | G131: -47932.33746 | H131: 54770.8623 | I131: 0 | J131: 0 | K131: 0 | L131: 1435.01 | M131: -36.75570745 | N131: 3994.361455 | O131: 320677.8295 | P131: 129331.2761 | Q131: 191346.5534 | R131: 105.5994949 | T131: 0 | U131: 0 | V131: 4 | W131: 42746 | X131: 2017-01-11 | Y131: 2268.600098 | Z131: 2275.320068 | AA131: 2260.830078 | AB131: 2275.320068 | AD131: 316241.8221 | AE131: 120844.052 | AF131: 195397.77 | AG131: 106.7800072 | AH131: 62632.91803 | AI131: 0 | AJ131: 0 | AL131: 302257.1599 | AM131: 140320.3495 | AN131: 161936.8104 | AO131: 89.75780569 | AP131: 43882.99281 | AQ131: 0 | AR131: 0 | AT131: 4436.007423 | AU131: 18420.66962 | AV131: 2400 | AW131: 0 | AX131: 120 | AZ131: 2017-01-11 | BA131: 514.1733988
A132: 0 | B132: 0 | C132: 0 | D132: 0 | E132: 2669.68 | F132: 17.65905673 | G132: -47932.33746 | H132: 54770.8623 | I132: 0 | J132: 0 | K132: 0 | L132: 1435.01 | M132: -36.75570745 | N132: 3994.361455 | O132: 320171.5629 | P132: 129324.1621 | Q132: 190847.4008 | R132: 105.5994949 | T132: 0 | U132: 0 | V132: 3 | W132: 42745 | X132: 2017-01-10 | Y132: 2269.719971 | Z132: 2279.27002 | AA132: 2265.27002 | AB132: 2268.899902 | AD132: 315730.4422 | AE132: 120837.4049 | AF132: 194893.0373 | AG132: 106.7800072 | AH132: 62632.91803 | AI132: 0 | AJ132: 0 | AL132: 301825.17 | AM132: 140312.6311 | AN132: 161512.5389 | AO132: 89.75780569 | AP132: 43882.99281 | AQ132: 0 | AR132: 0 | AT132: 4441.120678 | AU132: 18346.39283 | AV132: 2400 | AW132: 0 | AX132: 120 | AZ132: 2017-01-10 | BA132: 512.7225794
A133: 0 | B133: 0 | C133: 0 | D133: 0 | E133: 2669.68 | F133: 17.65905673 | G133: -47932.33746 | H133: 54770.8623 | I133: 0 | J133: 0 | K133: 0 | L133: 1435.01 | M133: -36.75570745 | N133: 3994.361455 | O133: 320164.4493 | P133: 129317.0485 | Q133: 190847.4008 | R133: 105.5994949 | T133: 0 | U133: 0 | V133: 2 | W133: 42744 | X133: 2017-01-09 | Y133: 2273.590088 | Z133: 2275.48999 | AA133: 2268.899902 | AB133: 2268.899902 | AD133: 315723.7954 | AE133: 120830.7582 | AF133: 194893.0373 | AG133: 106.7800072 | AH133: 62632.91803 | AI133: 0 | AJ133: 0 | AL133: 301817.452 | AM133: 140304.9131 | AN133: 161512.5389 | AO133: 89.75780569 | AP133: 43882.99281 | AQ133: 0 | AR133: 0 | AT133: 4440.653857 | AU133: =O133-AL133 -> 18346.99726 | AV133: 2400 | AW133: 0 | AX133: 120 | AZ133: 2017-01-09 | BA133: 512.7225794
A134: 0 | B134: 0 | C134: 0 | D134: 0 | E134: 2669.68 | F134: 17.65905673 | G134: -47932.33746 | H134: 54770.8623 | I134: 0 | J134: 0 | K134: 0 | L134: 1435.01 | M134: -36.75570745 | N134: 3994.361455 | O134: 320771.3178 | P134: 129295.7102 | Q134: 191475.6077 | R134: 105.5994949 | T134: 407.5414158 | U134: 1 | V134: 1 | W134: 42741 | X134: 2017-01-06 | Y134: 2271.139893 | Z134: 2282.100098 | AA134: 2264.060059 | AB134: 2276.97998 | AD134: 316339.0871 | AE134: 120810.8201 | AF134: 195528.267 | AG134: 106.7800072 | AH134: 62632.91803 | AI134: 0.08972177738 | AJ134: 1 | AL134: 302328.2659 | AM134: 140281.7616 | AN134: 162046.5043 | AO134: 89.75780569 | AP134: 43882.99281 | AQ134: 0 | AR134: 0 | AT134: 4432.230732 | AU134: 18443.05189 | AV134: 2400 | AW134: 0 | AX134: 120 | AZ134: 2017-01-06 | BA134: 514.5485033
A135: 0 | B135: 0 | C135: 0 | D135: 0 | E135: 2633.66 | F135: 19.45602727 | G135: -47062.37504 | H135: 54770.8623 | I135: 0 | J135: 0 | K135: 0 | L135: 1424.07 | M135: -35.40797954 | N135: 3921.864586 | O135: 319548.9164 | P135: 128693.7333 | Q135: 190855.1831 | R135: 105.5994949 | T135: 0 | U135: 0 | V135: 21 | W135: 42740 | X135: 2017-01-05 | Y135: 2268.179932 | Z135: 2271.5 | AA135: 2260.449951 | AB135: 2269 | AD135: 315106.5753 | AE135: 120409.298 | AF135: 194697.2773 | AG135: 106.6902854 | AH135: 62429.14732 | AI135: 0 | AJ135: 0 | AL135: 301227.1309 | AM135: 139707.977 | AN135: 161519.1538 | AO135: 89.75780569 | AP135: 43882.99281 | AQ135: 0 | AR135: 0 | AT135: 4442.341131 | AU135: 18321.78552 | AV135: 2400 | AW135: 0 | AX135: 120 | AZ135: 2017-01-05 | BA135: 512.7451994
A136: 0 | B136: 0 | C136: 0 | D136: 0 | E136: 2633.66 | F136: 19.45602727 | G136: -47062.37504 | H136: 54770.8623 | I136: 0 | J136: 0 | K136: 0 | L136: 1424.07 | M136: -35.40797954 | N136: 3921.864586 | O136: 319677.8959 | P136: 128686.6544 | Q136: 190991.2415 | R136: 105.5994949 | T136: 0 | U136: 0 | V136: 20 | W136: 42739 | X136: 2017-01-04 | Y136: 2261.600098 | Z136: 2272.820068 | AA136: 2261.600098 | AB136: 2270.75 | AD136: 315237.4158 | AE136: 120402.6748 | AF136: 194834.7411 | AG136: 106.6902854 | AH136: 62429.14732 | AI136: 0 | AJ136: 0 | AL136: 301335.0935 | AM136: 139700.2923 | AN136: 161634.8012 | AO136: 89.75780569 | AP136: 43882.99281 | AQ136: 0 | AR136: 0 | AT136: 4440.480024 | AU136: 18342.80239 | AV136: 2400 | AW136: 0 | AX136: 120 | AZ136: 2017-01-04 | BA136: 513.1406618
A137: 0 | B137: 0 | C137: 0 | D137: 0 | E137: 2633.66 | F137: 19.45602727 | G137: -47062.37504 | H137: 54770.8623 | I137: 0 | J137: 0 | K137: 0 | L137: 1424.07 | M137: -35.40797954 | N137: 3921.864586 | O137: 318666.3241 | P137: 128679.5759 | Q137: 189986.7482 | R137: 105.5994949 | T137: 0 | U137: 0 | V137: 19 | W137: 42738 | X137: 2017-01-03 | Y137: 2251.570068 | Z137: 2263.879883 | AA137: 2245.129883 | AB137: 2257.830078 | AD137: 314215.9238 | AE137: 120396.0519 | AF137: 193819.8718 | AG137: 106.6902854 | AH137: 62429.14732 | AI137: 0 | AJ137: 0 | AL137: 300473.6066 | AM137: 139692.608 | AN137: 160780.9987 | AO137: 89.75780569 | AP137: 43882.99281 | AQ137: 0 | AR137: 0 | AT137: 4450.400276 | AU137: 18192.71742 | AV137: 2400 | AW137: 0 | AX137: 120 | AZ137: 2017-01-03 | BA137: 510.2210373
A138: 0 | B138: 0 | C138: 0 | D138: 0 | E138: 2633.66 | F138: 19.45602727 | G138: -47062.37504 | H138: 54770.8623 | I138: 0 | J138: 0 | K138: 0 | L138: 1424.07 | M138: -35.40797954 | N138: 3921.864586 | O138: 317167.8859 | P138: 128658.3427 | Q138: 188509.5433 | R138: 105.5994949 | T138: 0 | U138: 0 | V138: 18 | W138: 42734 | X138: 2016-12-30 | Y138: 2251.610107 | Z138: 2253.580078 | AA138: 2233.620117 | AB138: 2238.830078 | AD138: 312703.5937 | AE138: 120376.1856 | AF138: 192327.4081 | AG138: 106.6902854 | AH138: 62429.14732 | AI138: 0 | AJ138: 0 | AL138: 299194.9567 | AM138: 139669.5575 | AN138: 159525.3992 | AO138: 89.75780569 | AP138: 43882.99281 | AQ138: 0 | AR138: 0 | AT138: 4464.292222 | AU138: 17972.92923 | AV138: 2400 | AW138: 0 | AX138: 120 | AZ138: 2016-12-30 | BA138: 505.9274459
A139: 0 | B139: 0 | C139: 0 | D139: 0 | E139: 2633.66 | F139: 19.45602727 | G139: -47062.37504 | H139: 54770.8623 | I139: 0 | J139: 0 | K139: 0 | L139: 1424.07 | M139: -35.40797954 | N139: 3921.864586 | O139: 317971.7114 | P139: 128651.2657 | Q139: 189320.4457 | R139: 105.5994949 | T139: 0 | U139: 0 | V139: 17 | W139: 42733 | X139: 2016-12-29 | Y139: 2249.5 | Z139: 2254.51001 | AA139: 2244.560059 | AB139: 2249.26001 | AD139: 313516.251 | AE139: 120369.5642 | AF139: 193146.6868 | AG139: 106.6902854 | AH139: 62429.14732 | AI139: 0 | AJ139: 0 | AL139: 299876.5276 | AM139: 139661.8749 | AN139: 160214.6527 | AO139: 89.75780569 | AP139: 43882.99281 | AQ139: 0 | AR139: 0 | AT139: 4455.460434 | AU139: 18095.18384 | AV139: 2400 | AW139: 0 | AX139: 120 | AZ139: 2016-12-29 | BA139: 508.2843862
A140: 0 | B140: 0 | C140: 0 | D140: 0 | E140: 2633.66 | F140: 19.45602727 | G140: -47062.37504 | H140: 54770.8623 | I140: 0 | J140: 0 | K140: 0 | L140: 1424.07 | M140: -35.40797954 | N140: 3921.864586 | O140: 318015.9415 | P140: 128644.1892 | Q140: 189371.7523 | R140: 105.5994949 | T140: 0 | U140: 0 | V140: 16 | W140: 42732 | X140: 2016-12-28 | Y140: 2270.22998 | Z140: 2271.310059 | AA140: 2249.110107 | AB140: 2249.919922 | AD140: 313561.4666 | AE140: 120362.9432 | AF140: 193198.5234 | AG140: 106.6902854 | AH140: 62429.14732 | AI140: 0 | AJ140: 0 | AL140: 299912.4551 | AM140: 139654.1927 | AN140: 160258.2624 | AO140: 89.75780569 | AP140: 43882.99281 | AQ140: 0 | AR140: 0 | AT140: 4454.474921 | AU140: 18103.48633 | AV140: 2400 | AW140: 0 | AX140: 120 | AZ140: 2016-12-28 | BA140: 508.4335121
A141: 0 | B141: 0 | C141: 0 | D141: 0 | E141: 2633.66 | F141: 19.45602727 | G141: -47062.37504 | H141: 54770.8623 | I141: 0 | J141: 0 | K141: 0 | L141: 1424.07 | M141: -35.40797954 | N141: 3921.864586 | O141: 319482.9573 | P141: 128637.113 | Q141: 190845.8443 | R141: 105.5994949 | T141: 0 | U141: 0 | V141: 15 | W141: 42731 | X141: 2016-12-27 | Y141: 2266.22998 | Z141: 2273.820068 | AA141: 2266.149902 | AB141: 2268.879883 | AD141: 315044.1645 | AE141: 120356.3225 | AF141: 194687.842 | AG141: 106.6902854 | AH141: 62429.14732 | AI141: 0 | AJ141: 0 | AL141: 301157.7269 | AM141: 139646.5109 | AN141: 161511.216 | AO141: 89.75780569 | AP141: 43882.99281 | AQ141: 0 | AR141: 0 | AT141: 4438.792763 | AU141: 18325.23038 | AV141: 2400 | AW141: 0 | AX141: 120 | AZ141: 2016-12-27 | BA141: 512.7180555
A142: 0 | B142: 0 | C142: 0 | D142: 0 | E142: 2633.66 | F142: 19.45602727 | G142: -47062.37504 | H142: 54770.8623 | I142: 0 | J142: 0 | K142: 0 | L142: 1424.07 | M142: -35.40797954 | N142: 3921.864586 | O142: 319058.9332 | P142: 128608.8122 | Q142: 190450.121 | R142: 105.5994949 | T142: 0 | U142: 0 | V142: 14 | W142: 42727 | X142: 2016-12-23 | Y142: 2260.25 | Z142: 2263.790039 | AA142: 2258.840088 | AB142: 2263.790039 | AD142: 314617.8746 | AE142: 120329.8435 | AF142: 194288.0311 | AG142: 106.6902854 | AH142: 62429.14732 | AI142: 0 | AJ142: 0 | AL142: 300790.6458 | AM142: 139615.788 | AN142: 161174.8578 | AO142: 89.75780569 | AP142: 43882.99281 | AQ142: 0 | AR142: 0 | AT142: 4441.058574 | AU142: 18268.2874 | AV142: 2400 | AW142: 0 | AX142: 120 | AZ142: 2016-12-23 | BA142: 511.5678603
A143: 0 | B143: 0 | C143: 0 | D143: 0 | E143: 2633.66 | F143: 19.45602727 | G143: -47062.37504 | H143: 54770.8623 | I143: 0 | J143: 0 | K143: 0 | L143: 1424.07 | M143: -35.40797954 | N143: 3921.864586 | O143: 318831.8271 | P143: 128601.7379 | Q143: 190230.0892 | R143: 105.5994949 | T143: 0 | U143: 0 | V143: 13 | W143: 42726 | X143: 2016-12-22 | Y143: 2262.929932 | Z143: 2263.179932 | AA143: 2256.080078 | AB143: 2260.959961 | AD143: 314388.9511 | AE143: 120323.2247 | AF143: 194065.7264 | AG143: 106.6902854 | AH143: 62429.14732 | AI143: 0 | AJ143: 0 | AL143: 300595.9427 | AM143: 139608.1083 | AN143: 160987.8344 | AO143: 89.75780569 | AP143: 43882.99281 | AQ143: 0 | AR143: 0 | AT143: 4442.876003 | AU143: 18235.88439 | AV143: 2400 | AW143: 0 | AX143: 120 | AZ143: 2016-12-22 | BA143: 510.9283235
A144: 0 | B144: 0 | C144: 0 | D144: 0 | E144: 2633.66 | F144: 19.45602727 | G144: -47062.37504 | H144: 54770.8623 | I144: 0 | J144: 0 | K144: 0 | L144: 1424.07 | M144: -35.40797954 | N144: 3921.864586 | O144: 319152.846 | P144: 128594.6641 | Q144: 190558.1819 | R144: 105.5994949 | T144: 0 | U144: 0 | V144: 12 | W144: 42725 | X144: 2016-12-21 | Y144: 2270.540039 | Z144: 2271.22998 | AA144: 2265.149902 | AB144: 2265.179932 | AD144: 314713.8144 | AE144: 120316.6062 | AF144: 194397.2082 | AG144: 106.6902854 | AH144: 62429.14732 | AI144: 0 | AJ144: 0 | AL144: 300867.1368 | AM144: 139600.429 | AN144: 161266.7078 | AO144: 89.75780569 | AP144: 43882.99281 | AQ144: 0 | AR144: 0 | AT144: 4439.031601 | AU144: 18285.7092 | AV144: 2400 | AW144: 0 | AX144: 120 | AZ144: 2016-12-21 | BA144: 511.8819462
A145: 0 | B145: 0 | C145: 0 | D145: 0 | E145: 2633.66 | F145: 19.45602727 | G145: -47062.37504 | H145: 54770.8623 | I145: 0 | J145: 0 | K145: 0 | L145: 1424.07 | M145: -35.40797954 | N145: 3921.864586 | O145: 319579.6104 | P145: 128587.5907 | Q145: 190992.0197 | R145: 105.5994949 | T145: 0 | U145: 0 | V145: 11 | W145: 42724 | X145: 2016-12-20 | Y145: 2266.5 | Z145: 2272.560059 | AA145: 2266.139893 | AB145: 2270.76001 | AD145: 315145.5155 | AE145: 120309.9881 | AF145: 194835.5273 | AG145: 106.6902854 | AH145: 62429.14732 | AI145: 0 | AJ145: 0 | AL145: 301228.2129 | AM145: 139592.7502 | AN145: 161635.4627 | AO145: 89.75780569 | AP145: 43882.99281 | AQ145: 0 | AR145: 0 | AT145: 4434.09493 | AU145: 18351.3975 | AV145: 2400 | AW145: 0 | AX145: 120 | AZ145: 2016-12-20 | BA145: 513.1429238
A146: 0 | B146: 0 | C146: 0 | D146: 0 | E146: 2633.66 | F146: 19.45602727 | G146: -47062.37504 | H146: 54770.8623 | I146: 0 | J146: 0 | K146: 0 | L146: 1424.07 | M146: -35.40797954 | N146: 3921.864586 | O146: 318932.6758 | P146: 128580.5176 | Q146: 190352.1582 | R146: 105.5994949 | T146: 0 | U146: 0 | V146: 10 | W146: 42723 | X146: 2016-12-19 | Y146: 2259.23999 | Z146: 2267.469971 | AA146: 2258.209961 | AB146: 2262.530029 | AD146: 314492.4268 | AE146: 120303.3704 | AF146: 194189.0564 | AG146: 106.6902854 | AH146: 62429.14732 | AI146: 0 | AJ146: 0 | AL146: 300676.6629 | AM146: 139585.0718 | AN146: 161091.5911 | AO146: 89.75780569 | AP146: 43882.99281 | AQ146: 0 | AR146: 0 | AT146: 4440.249067 | AU146: 18256.01293 | AV146: 2400 | AW146: 0 | AX146: 120 | AZ146: 2016-12-19 | BA146: 511.2831251
A147: 0 | B147: 0 | C147: 0 | D147: 0 | E147: 2633.66 | F147: 19.45602727 | G147: -47062.37504 | H147: 54770.8623 | I147: 0 | J147: 0 | K147: 0 | L147: 1424.07 | M147: -35.40797954 | N147: 3921.864586 | O147: 318564.7076 | P147: 128559.3007 | Q147: 190005.4068 | R147: 105.5994949 | T147: 0 | U147: 0 | V147: 9 | W147: 42720 | X147: 2016-12-16 | Y147: 2266.810059 | Z147: 2268.050049 | AA147: 2254.23999 | AB147: 2258.070068 | AD147: 314122.2425 | AE147: 120283.5193 | AF147: 193838.7232 | AG147: 106.6902854 | AH147: 62429.14732 | AI147: 0 | AJ147: 0 | AL147: 300358.8973 | AM147: 139562.0391 | AN147: 160796.8582 | AO147: 89.75780569 | AP147: 43882.99281 | AQ147: 0 | AR147: 0 | AT147: 4442.465039 | AU147: 18205.81027 | AV147: 2400 | AW147: 0 | AX147: 120 | AZ147: 2016-12-16 | BA147: 510.2752698
A148: 0 | B148: 0 | C148: 0 | D148: 0 | E148: 2633.66 | F148: 19.45602727 | G148: -47062.37504 | H148: 54770.8623 | I148: 0 | J148: 0 | K148: 0 | L148: 1424.07 | M148: -35.40797954 | N148: 3921.864586 | O148: 318865.5137 | P148: 128552.2292 | Q148: 190313.2844 | R148: 105.5994949 | T148: 0 | U148: 0 | V148: 8 | W148: 42719 | X148: 2016-12-15 | Y148: 2253.77002 | Z148: 2272.120117 | AA148: 2253.77002 | AB148: 2262.030029 | AD148: 314426.6841 | AE148: 120276.903 | AF148: 194149.781 | AG148: 106.6902854 | AH148: 62429.14732 | AI148: 0 | AJ148: 0 | AL148: 300612.9114 | AM148: 139554.3624 | AN148: 161058.549 | AO148: 89.75780569 | AP148: 43882.99281 | AQ148: 0 | AR148: 0 | AT148: 4438.829601 | AU148: 18252.60227 | AV148: 2400 | AW148: 0 | AX148: 120 | AZ148: 2016-12-15 | BA148: 511.1701359
A149: 0 | B149: 0 | C149: 0 | D149: 0 | E149: 2633.66 | F149: 19.45602727 | G149: -47062.37504 | H149: 54770.8623 | I149: 0 | J149: 0 | K149: 0 | L149: 1424.07 | M149: -35.40797954 | N149: 3921.864586 | O149: 318178.1508 | P149: 128545.1581 | Q149: 189632.9927 | R149: 105.5994949 | T149: 0 | U149: 0 | V149: 7 | W149: 42718 | X149: 2016-12-14 | Y149: 2268.350098 | Z149: 2276.199951 | AA149: 2248.439941 | AB149: 2253.280029 | AD149: 313732.7493 | AE149: 120270.2871 | AF149: 193462.4622 | AG149: 106.6902854 | AH149: 62429.14732 | AI149: 0 | AJ149: 0 | AL149: 300026.9985 | AM149: 139546.6861 | AN149: 160480.3124 | AO149: 89.75780569 | AP149: 43882.99281 | AQ149: 0 | AR149: 0 | AT149: 4445.401487 | AU149: 18151.15232 | AV149: 2400 | AW149: 0 | AX149: 120 | AZ149: 2016-12-14 | BA149: 509.1928241
A150: 0 | B150: 0 | C150: 0 | D150: 0 | E150: 2633.66 | F150: 19.45602727 | G150: -47062.37504 | H150: 54770.8623 | I150: 0 | J150: 0 | K150: 0 | L150: 1424.07 | M150: -35.40797954 | N150: 3921.864586 | O150: 319604.7418 | P150: 128538.0874 | Q150: 191066.6544 | R150: 105.5994949 | T150: 0 | U150: 0 | V150: 6 | W150: 42717 | X150: 2016-12-13 | Y150: 2263.320068 | Z150: 2277.530029 | AA150: 2263.320068 | AB150: 2271.719971 | AD150: 315174.6045 | AE150: 120263.6715 | AF150: 194910.933 | AG150: 106.6902854 | AH150: 62429.14732 | AI150: 0 | AJ150: 0 | AL150: 301237.9111 | AM150: 139539.0102 | AN150: 161698.9009 | AO150: 89.75780569 | AP150: 43882.99281 | AQ150: 0 | AR150: 0 | AT150: 4430.137304 | AU150: 18366.83069 | AV150: 2400 | AW150: 0 | AX150: 120 | AZ150: 2016-12-13 | BA150: 513.3598543
A151: 0 | B151: 0 | C151: 0 | D151: 0 | E151: 2633.66 | F151: 19.45602727 | G151: -47062.37504 | H151: 54770.8623 | I151: 0 | J151: 0 | K151: 0 | L151: 1424.07 | M151: -35.40797954 | N151: 3921.864586 | O151: 318450.1157 | P151: 128531.0171 | Q151: 189919.0987 | R151: 105.5994949 | T151: 0 | U151: 0 | V151: 5 | W151: 42716 | X151: 2016-12-12 | Y151: 2258.830078 | Z151: 2264.030029 | AA151: 2252.370117 | AB151: 2256.959961 | AD151: 314008.5799 | AE151: 120257.0563 | AF151: 193751.5235 | AG151: 106.6902854 | AH151: 62429.14732 | AI151: 0 | AJ151: 0 | AL151: 300254.8325 | AM151: 139531.3348 | AN151: 160723.4977 | AO151: 89.75780569 | AP151: 43882.99281 | AQ151: 0 | AR151: 0 | AT151: 4441.535847 | AU151: 18195.28326 | AV151: 2400 | AW151: 0 | AX151: 120 | AZ151: 2016-12-12 | BA151: 510.0244095
A152: 0 | B152: 0 | C152: 0 | D152: 0 | E152: 2633.66 | F152: 19.45602727 | G152: -47062.37504 | H152: 54770.8623 | I152: 0 | J152: 0 | K152: 0 | L152: 1424.07 | M152: -35.40797954 | N152: 3921.864586 | O152: 318628.7237 | P152: 128509.8084 | Q152: 190118.9153 | R152: 105.5994949 | T152: 0 | U152: 0 | V152: 4 | W152: 42713 | X152: 2016-12-09 | Y152: 2249.72998 | Z152: 2259.800049 | AA152: 2249.22998 | AB152: 2259.530029 | AD152: 314190.6172 | AE152: 120237.2129 | AF152: 193953.4042 | AG152: 106.6902854 | AH152: 62429.14732 | AI152: 0 | AJ152: 0 | AL152: 300401.6495 | AM152: 139508.3109 | AN152: 160893.3385 | AO152: 89.75780569 | AP152: 43882.99281 | AQ152: 0 | AR152: 0 | AT152: 4438.106567 | AU152: 18227.07424 | AV152: 2400 | AW152: 0 | AX152: 120 | AZ152: 2016-12-09 | BA152: 510.6051896
A153: 0 | B153: 0 | C153: 0 | D153: 0 | E153: 2633.66 | F153: 19.45602727 | G153: -47062.37504 | H153: 54770.8623 | I153: 0 | J153: 0 | K153: 0 | L153: 1424.07 | M153: -35.40797954 | N153: 3921.864586 | O153: 317584.4947 | P153: 128502.7396 | Q153: 189081.7551 | R153: 105.5994949 | T153: 0 | U153: 0 | V153: 3 | W153: 42712 | X153: 2016-12-08 | Y153: 2241.129883 | Z153: 2251.689941 | AA153: 2237.570068 | AB153: 2246.189941 | AD153: 313136.1299 | AE153: 120230.5992 | AF153: 192905.5307 | AG153: 106.6902854 | AH153: 62429.14732 | AI153: 0 | AJ153: 0 | AL153: 299512.4069 | AM153: 139500.6372 | AN153: 160011.7697 | AO153: 89.75780569 | AP153: 43882.99281 | AQ153: 0 | AR153: 0 | AT153: 4448.364879 | AU153: 18072.08786 | AV153: 2400 | AW153: 0 | AX153: 120 | AZ153: 2016-12-08 | BA153: 507.5906167
A154: 0 | B154: 0 | C154: 0 | D154: 0 | E154: 2633.66 | F154: 19.45602727 | G154: -47062.37504 | H154: 54770.8623 | I154: 0 | J154: 0 | K154: 0 | L154: 1424.07 | M154: -35.40797954 | N154: 3921.864586 | O154: 317201.14 | P154: 128495.6712 | Q154: 188705.4688 | R154: 105.5994949 | T154: 0 | U154: 0 | V154: 2 | W154: 42711 | X154: 2016-12-07 | Y154: 2210.719971 | Z154: 2241.629883 | AA154: 2208.929932 | AB154: 2241.350098 | AD154: 312749.3433 | AE154: 120223.9858 | AF154: 192525.3575 | AG154: 106.6902854 | AH154: 62429.14732 | AI154: 0 | AJ154: 0 | AL154: 299184.8965 | AM154: 139492.9638 | AN154: 159691.9326 | AO154: 89.75780569 | AP154: 43882.99281 | AQ154: 0 | AR154: 0 | AT154: 4451.796714 | AU154: 18016.24357 | AV154: 2400 | AW154: 0 | AX154: 120 | AZ154: 2016-12-07 | BA154: 506.4969162
A155: 0 | B155: 0 | C155: 0 | D155: 0 | E155: 2633.66 | F155: 19.45602727 | G155: -47062.37504 | H155: 54770.8623 | I155: 0 | J155: 0 | K155: 0 | L155: 1424.07 | M155: -35.40797954 | N155: 3921.864586 | O155: 314930.0519 | P155: 128488.6032 | Q155: 186441.4487 | R155: 105.5994949 | T155: 406.7367556 | U155: 1 | V155: 1 | W155: 42710 | X155: 2016-12-06 | Y155: 2207.26001 | Z155: 2212.780029 | AA155: 2202.209961 | AB155: 2212.22998 | AD155: 310455.324 | AE155: 120217.3728 | AF155: 190237.9512 | AG155: 106.6902854 | AH155: 62429.14732 | AI155: 0.09213612211 | AJ155: 1 | AL155: 297252.8443 | AM155: 139485.2909 | AN155: 157767.5534 | AO155: 89.75780569 | AP155: 43882.99281 | AQ155: 0 | AR155: 0 | AT155: 4474.727931 | AU155: 17677.20763 | AV155: 2400 | AW155: 0 | AX155: 120 | AZ155: 2016-12-06 | BA155: 499.9163959
A156: 0 | B156: 0 | C156: 0 | D156: 0 | E156: 2578.01 | F156: 23.42901623 | G156: -45588.32818 | H156: 54770.8623 | I156: 0 | J156: 0 | K156: 0 | L156: 1411.34 | M156: -32.42823783 | N156: 3799.027348 | O156: 313749.1669 | P156: 127892.3818 | Q156: 185856.7851 | R156: 105.5994949 | T156: 0 | U156: 0 | V156: 21 | W156: 42709 | X156: 2016-12-05 | Y156: 2200.649902 | Z156: 2209.419922 | AA156: 2199.969971 | AB156: 2204.709961 | AD156: 309265.4951 | AE156: 119821.4423 | AF156: 189444.0529 | AG156: 106.5981493 | AH156: 62225.77894 | AI156: 0 | AJ156: 0 | AL156: 296187.1243 | AM156: 138916.5252 | AN156: 157270.599 | AO156: 89.75780569 | AP156: 43882.99281 | AQ156: 0 | AR156: 0 | AT156: 4483.671763 | AU156: 17562.04263 | AV156: 2400 | AW156: 0 | AX156: 120 | AZ156: 2016-12-05 | BA156: 498.2170333
A157: 0 | B157: 0 | C157: 0 | D157: 0 | E157: 2578.01 | F157: 23.42901623 | G157: -45588.32818 | H157: 54770.8623 | I157: 0 | J157: 0 | K157: 0 | L157: 1411.34 | M157: -32.42823783 | N157: 3799.027348 | O157: 312736.0031 | P157: 127871.2785 | Q157: 184864.7246 | R157: 105.5994949 | T157: 0 | U157: 0 | V157: 20 | W157: 42706 | X157: 2016-12-02 | Y157: 2191.120117 | Z157: 2197.949951 | AA157: 2188.370117 | AB157: 2191.949951 | AD157: 308244.2812 | AE157: 119801.6707 | AF157: 188442.6104 | AG157: 106.5981493 | AH157: 62225.77894 | AI157: 0 | AJ157: 0 | AL157: 295320.967 | AM157: 138893.6028 | AN157: 156427.3642 | AO157: 89.75780569 | AP157: 43882.99281 | AQ157: 0 | AR157: 0 | AT157: 4491.721907 | AU157: 17415.03605 | AV157: 2400 | AW157: 0 | AX157: 120 | AZ157: 2016-12-02 | BA157: 495.3335455
A158: 0 | B158: 0 | C158: 0 | D158: 0 | E158: 2578.01 | F158: 23.42901623 | G158: -45588.32818 | H158: 54770.8623 | I158: 0 | J158: 0 | K158: 0 | L158: 1411.34 | M158: -32.42823783 | N158: 3799.027348 | O158: 312661.3389 | P158: 127864.2449 | Q158: 184797.094 | R158: 105.5994949 | T158: 0 | U158: 0 | V158: 19 | W158: 42705 | X158: 2016-12-01 | Y158: 2200.169922 | Z158: 2202.600098 | AA158: 2187.439941 | AB158: 2191.080078 | AD158: 308169.4213 | AE158: 119795.081 | AF158: 188374.3403 | AG158: 106.5981493 | AH158: 62225.77894 | AI158: 0 | AJ158: 0 | AL158: 295255.8422 | AM158: 138885.9629 | AN158: 156369.8793 | AO158: 89.75780569 | AP158: 43882.99281 | AQ158: 0 | AR158: 0 | AT158: 4491.917614 | AU158: 17405.49663 | AV158: 2400 | AW158: 0 | AX158: 120 | AZ158: 2016-12-01 | BA158: 495.1369729
A159: 0 | B159: 0 | C159: 0 | D159: 0 | E159: 2578.01 | F159: 23.42901623 | G159: -45588.32818 | H159: 54770.8623 | I159: 0 | J159: 0 | K159: 0 | L159: 1411.34 | M159: -32.42823783 | N159: 3799.027348 | O159: 313255.2933 | P159: 127857.2116 | Q159: 185398.0817 | R159: 105.5994949 | T159: 0 | U159: 0 | V159: 18 | W159: 42704 | X159: 2016-11-30 | Y159: 2204.969971 | Z159: 2214.100098 | AA159: 2198.810059 | AB159: 2198.810059 | AD159: 308769.5031 | AE159: 119788.4915 | AF159: 188981.0115 | AG159: 106.5981493 | AH159: 62225.77894 | AI159: 0 | AJ159: 0 | AL159: 295759.0322 | AM159: 138878.3234 | AN159: 156880.7088 | AO159: 89.75780569 | AP159: 43882.99281 | AQ159: 0 | AR159: 0 | AT159: 4485.790223 | AU159: 17496.26108 | AV159: 2400 | AW159: 0 | AX159: 120 | AZ159: 2016-11-30 | BA159: 496.8837824
A160: 0 | B160: 0 | C160: 0 | D160: 0 | E160: 2578.01 | F160: 23.42901623 | G160: -45588.32818 | H160: 54770.8623 | I160: 0 | J160: 0 | K160: 0 | L160: 1411.34 | M160: -32.42823783 | N160: 3799.027348 | O160: 313703.0726 | P160: 127850.1787 | Q160: 185852.8939 | R160: 105.5994949 | T160: 0 | U160: 0 | V160: 17 | W160: 42703 | X160: 2016-11-29 | Y160: 2200.76001 | Z160: 2210.459961 | AA160: 2198.149902 | AB160: 2204.659912 | AD160: 309222.0274 | AE160: 119781.9025 | AF160: 189440.1249 | AG160: 106.5981493 | AH160: 62225.77894 | AI160: 0 | AJ160: 0 | AL160: 296137.9759 | AM160: 138870.6843 | AN160: 157267.2916 | AO160: 89.75780569 | AP160: 43882.99281 | AQ160: 0 | AR160: 0 | AT160: 4481.045238 | AU160: 17565.09674 | AV160: 2400 | AW160: 0 | AX160: 120 | AZ160: 2016-11-29 | BA160: 498.2057233
A161: 0 | B161: 0 | C161: 0 | D161: 0 | E161: 2578.01 | F161: 23.42901623 | G161: -45588.32818 | H161: 54770.8623 | I161: 0 | J161: 0 | K161: 0 | L161: 1411.34 | M161: -32.42823783 | N161: 3799.027348 | O161: 313467.4667 | P161: 127843.1462 | Q161: 185624.3205 | R161: 105.5994949 | T161: 0 | U161: 0 | V161: 16 | W161: 42702 | X161: 2016-11-28 | Y161: 2210.209961 | Z161: 2211.139893 | AA161: 2200.360107 | AB161: 2201.719971 | AD161: 308984.7036 | AE161: 119775.3138 | AF161: 189209.3898 | AG161: 106.5981493 | AH161: 62225.77894 | AI161: 0 | AJ161: 0 | AL161: 295936.0536 | AM161: 138863.0456 | AN161: 157073.008 | AO161: 89.75780569 | AP161: 43882.99281 | AQ161: 0 | AR161: 0 | AT161: 4482.763055 | AU161: 17531.41309 | AV161: 2400 | AW161: 0 | AX161: 120 | AZ161: 2016-11-28 | BA161: 497.5413599
A162: 0 | B162: 0 | C162: 0 | D162: 0 | E162: 2578.01 | F162: 23.42901623 | G162: -45588.32818 | H162: 54770.8623 | I162: 0 | J162: 0 | K162: 0 | L162: 1411.34 | M162: -32.42823783 | N162: 3799.027348 | O162: 314350.5863 | P162: 127822.051 | Q162: 186528.5352 | R162: 105.5994949 | T162: 0 | U162: 0 | V162: 15 | W162: 42699 | X162: 2016-11-25 | Y162: 2206.27002 | Z162: 2213.350098 | AA162: 2206.27002 | AB162: 2213.350098 | AD162: 309877.7056 | AE162: 119755.5499 | AF162: 190122.1558 | AG162: 106.5981493 | AH162: 62225.77894 | AI162: 0 | AJ162: 0 | AL162: 296681.7075 | AM162: 138840.132 | AN162: 157841.5755 | AO162: 89.75780569 | AP162: 43882.99281 | AQ162: 0 | AR162: 0 | AT162: 4472.880637 | AU162: 17668.8788 | AV162: 2400 | AW162: 0 | AX162: 120 | AZ162: 2016-11-25 | BA162: 500.1695184
A163: 0 | B163: 0 | C163: 0 | D163: 0 | E163: 2578.01 | F163: 23.42901623 | G163: -45588.32818 | H163: 54770.8623 | I163: 0 | J163: 0 | K163: 0 | L163: 1411.34 | M163: -32.42823783 | N163: 3799.027348 | O163: 313665.5528 | P163: 127807.9895 | Q163: 185857.5633 | R163: 105.5994949 | T163: 0 | U163: 0 | V163: 14 | W163: 42697 | X163: 2016-11-23 | Y163: 2198.550049 | Z163: 2204.719971 | AA163: 2194.51001 | AB163: 2204.719971 | AD163: 309187.2142 | AE163: 119742.3757 | AF163: 189444.8385 | AG163: 106.5981493 | AH163: 62225.77894 | AI163: 0 | AJ163: 0 | AL163: 296096.119 | AM163: 138824.8584 | AN163: 157271.2606 | AO163: 89.75780569 | AP163: 43882.99281 | AQ163: 0 | AR163: 0 | AT163: 4478.338634 | AU163: 17569.43388 | AV163: 2400 | AW163: 0 | AX163: 120 | AZ163: 2016-11-23 | BA163: 498.2192954
A164: 0 | B164: 0 | C164: 0 | D164: 0 | E164: 2578.01 | F164: 23.42901623 | G164: -45588.32818 | H164: 54770.8623 | I164: 0 | J164: 0 | K164: 0 | L164: 1411.34 | M164: -32.42823783 | N164: 3799.027348 | O164: 313520.1296 | P164: 127800.9593 | Q164: 185719.1702 | R164: 105.5994949 | T164: 0 | U164: 0 | V164: 13 | W164: 42696 | X164: 2016-11-22 | Y164: 2201.560059 | Z164: 2204.800049 | AA164: 2194.51001 | AB164: 2202.939941 | AD164: 309040.9258 | AE164: 119735.7892 | AF164: 189305.1366 | AG164: 106.5981493 | AH164: 62225.77894 | AI164: 0 | AJ164: 0 | AL164: 295970.851 | AM164: 138817.2222 | AN164: 157153.6287 | AO164: 89.75780569 | AP164: 43882.99281 | AQ164: 0 | AR164: 0 | AT164: 4479.203762 | AU164: 17549.27859 | AV164: 2400 | AW164: 0 | AX164: 120 | AZ164: 2016-11-22 | BA164: 497.8170469
A165: =C165 - B165*(E165-$AB$7701)*KESt% -> 0 | B165: =C165/E165 -> 0 | C165: =D165 * ($O166*prozRK3%*(1-prozRK3%)*-dKverk%) -> 0 | D165: =IF($Z165>=E165, 1, 0) -> 0 | E165: =IF(OR($U165=1, D166=1), ROUND($AB166*(1+F165%), 2), E166) -> 2578.01 | F165: =IF(OR($U165=1, D166=1), ((($O166 -$Q166 -$G165)*prozRK3%/(1-prozRK3%) -$G165) / $Q166 -1)*100, F166) -> 23.42901623 | G165: =IF(OR($U165=1, D166=1), O166*prozRK3%*(1-prozRK3%)*-dKfixVerk%, G166) -> -45588.32818 | H165: 54770.8623 | I165: =J165/L165 -> 0 | J165: =K165 * ($O166*prozRK3%*(1-prozRK3%)*-dKkauf%) -> 0 | K165: =IF($AA165<=L165, 1, 0) -> 0 | L165: =IF(OR($U165=1, K166=1), ROUND($AB166*(1+M165%), 2), L166) -> 1411.34 | M165: =IF(OR($U165=1, K166=1), ((($O166 -$Q166 -$N165)*prozRK3%/(1-prozRK3%) -$N165) / $Q166 -1)*100, M166) -> -32.42823783 | N165: =IF(OR($U165=1, K166=1), O166*prozRK3%*(1-prozRK3%)*-dKfixKauf%, N166) -> 3799.027348 | O165: =P165+Q165 -> 313143.0204 | P165: =P166*(1+Zins%)^(DAYS360($X166,$X165)/360) +$T165 -J165 +-A165 +$U165*Q166*Dividende%/12 -> 127793.9295 | Q165: =R165*AB165 - (R165*AB165-H165)*KESt% -> 185349.0908 | R165: =R166 + I165 + B165 -> 105.5994949 | T165: =U165 * Teinz*(1+Terhoehung%)^(DAYS360(DatumMin, $X165)/360) -> 0 | U165: =IF(V165=1, 1, 0) -> 0 | V165: =V166+1 +IF(V166=$V$14, -$V$14, 0) -> 12 | W165: 42695 | X165: 2016-11-21 | Y165: 2186.429932 | Z165: 2198.699951 | AA165: 2186.429932 | AB165: 2198.179932 | AD165: =AE165+AF165 -> 308660.7604 | AE165: =AE166*(1+Zins%)^(DAYS360($X166,$X165)/360) +$T165*(1-prozRK3%) +$U165*AF166*Dividende%/12 -> 119729.203 | AF165: =$AB165*AG165 - ($AB165*AG165 -AH165)*KESt% -> 188931.5573 | AG165: 106.5981493 | AH165: =AH166 + $T165*prozRK3% -> 62225.77894 | AI165: =$T165*prozRK3% / $Y165 -> 0 | AJ165: 0 | AL165: =AM165+AN165 -> 295648.6539 | AM165: =AM166*(1+Zins%)^(DAYS360($X166,$X165)/360) + $T165 -AR165*$T165 +$U165*AN166*Dividende%/12 -> 138809.5865 | AN165: =AB165*AO165 - (AB165*AO165 -AP165)*KESt% -> 156839.0674 | AO165: 89.75780569 | AP165: 43882.99281 | AQ165: =T165 * AR165 / Y165 -> 0 | AR165: =$U165 * IF($AL166*prozRK3%>$AN166, 1, 0) -> 0 | AT165: =O165-AD165 -> 4482.259972 | AU165: =O165-AL165 -> 17494.36645 | AV165: =$AV$3-- $C165*$AV$5 -> 2400 | AW165: =$AW$3 + $J165*$AW$5 -> 0 | AX165: 120 | AZ165: 2016-11-21 | BA165: 496.7413872
A166: 0 | B166: 0 | C166: 0 | D166: 0 | E166: 2578.01 | F166: 23.42901623 | G166: -45588.32818 | H166: =H167 + J166 -> 54770.8623 | I166: 0 | J166: 0 | K166: 0 | L166: 1411.34 | M166: -32.42823783 | N166: 3799.027348 | O166: 311856.1996 | P166: 127772.8425 | Q166: 184083.3571 | R166: 105.5994949 | T166: 0 | U166: 0 | V166: 11 | W166: =DATE(YEAR(X166),MONTH(X166),DAY(X166)) -> 42692 | X166: 2016-11-18 | Y166: 2186.850098 | Z166: 2189.889893 | AA166: 2180.379883 | AB166: 2181.899902 | AD166: 307363.3003 | AE166: 119709.4467 | AF166: 187653.8536 | AG166: =AG167 + AI166 -> 106.5981493 | AH166: 62225.77894 | AI166: 0 | AJ166: =$U166 -> 0 | AL166: 294549.8967 | AM166: 138786.6818 | AN166: 155763.2149 | AO166: =AO167 + AQ166 -> 89.75780569 | AP166: =AP167 + AR166*T166 -> 43882.99281 | AQ166: 0 | AR166: 0 | AT166: 4492.899269 | AU166: 17306.30292 | AV166: 2400 | AW166: 0 | AX166: =$AX$3 + AR166 * T166 * $AX$5 -> 120 | AZ166: =$X166 -> 2016-11-18 | BA166: =$AB166/$AB$6162 *100 -> 493.0624506
A167: 0 | B167: 0 | C167: 0 | D167: 0 | E167: 2578.01 | F167: 23.42901623 | G167: -45588.32818 | H167: 54770.8623 | I167: 0 | J167: 0 | K167: 0 | L167: 1411.34 | M167: -32.42823783 | N167: 3799.027348 | O167: 312255.0307 | P167: 127765.8142 | Q167: 184489.2164 | R167: 105.5994949 | T167: 0 | U167: 0 | V167: 10 | W167: 42691 | X167: 2016-11-17 | Y167: 2178.610107 | Z167: 2188.060059 | AA167: 2176.649902 | AB167: 2187.120117 | AD167: 307766.4131 | AE167: 119702.862 | AF167: 188063.5511 | AG167: 106.5981493 | AH167: 62225.77894 | AI167: 0 | AJ167: 0 | AL167: 294887.2362 | AM167: 138779.0477 | AN167: 156108.1886 | AO167: 89.75780569 | AP167: 43882.99281 | AQ167: 0 | AR167: 0 | AT167: 4488.617524 | AU167: 17367.79442 | AV167: 2400 | AW167: 0 | AX167: 120 | AZ167: 2016-11-17 | BA167: 494.2421069
A168: 0 | B168: 0 | C168: 0 | D168: 0 | E168: 2578.01 | F168: 23.42901623 | G168: -45588.32818 | H168: 54770.8623 | I168: 0 | J168: 0 | K168: 0 | L168: 1411.34 | M168: -32.42823783 | N168: 3799.027348 | O168: 311456.5183 | P168: 127758.7864 | Q168: 183697.7319 | R168: 105.5994949 | T168: 0 | U168: 0 | V168: 9 | W168: 42690 | X168: 2016-11-16 | Y168: 2177.530029 | Z168: 2179.219971 | AA168: 2172.199951 | AB168: 2176.939941 | AD168: 306960.8592 | AE168: 119696.2777 | AF168: 187264.5815 | AG168: 106.5981493 | AH168: 62225.77894 | AI168: 0 | AJ168: 0 | AL168: 294206.854 | AM168: 138771.414 | AN168: 155435.4399 | AO168: 89.75780569 | AP168: 43882.99281 | AQ168: 0 | AR168: 0 | AT168: 4495.659084 | AU168: 17249.66431 | AV168: 2400 | AW168: 0 | AX168: 120 | AZ168: 2016-11-16 | BA168: 491.9416061
A169: 0 | B169: 0 | C169: 0 | D169: 0 | E169: 2578.01 | F169: 23.42901623 | G169: -45588.32818 | H169: 54770.8623 | I169: 0 | J169: 0 | K169: 0 | L169: 1411.34 | M169: -32.42823783 | N169: 3799.027348 | O169: 311717.7164 | P169: 127751.7589 | Q169: 183965.9575 | R169: 105.5994949 | T169: 0 | U169: 0 | V169: 8 | W169: 42689 | X169: 2016-11-15 | Y169: 2168.290039 | Z169: 2180.840088 | AA169: 2166.379883 | AB169: 2180.389893 | AD169: 307225.0374 | AE169: 119689.6937 | AF169: 187535.3437 | AG169: 106.5981493 | AH169: 62225.77894 | AI169: 0 | AJ169: 0 | AL169: 294427.208 | AM169: 138763.7808 | AN169: 155663.4272 | AO169: 89.75780569 | AP169: 43882.99281 | AQ169: 0 | AR169: 0 | AT169: 4492.67899 | AU169: 17290.50839 | AV169: 2400 | AW169: 0 | AX169: 120 | AZ169: 2016-11-15 | BA169: 492.721221
A170: 0 | B170: 0 | C170: 0 | D170: 0 | E170: 2578.01 | F170: 23.42901623 | G170: -45588.32818 | H170: 54770.8623 | I170: 0 | J170: 0 | K170: 0 | L170: 1411.34 | M170: -32.42823783 | N170: 3799.027348 | O170: 310451.9597 | P170: 127744.7318 | Q170: 182707.2279 | R170: 105.5994949 | T170: 0 | U170: 0 | V170: 7 | W170: 42688 | X170: 2016-11-14 | Y170: 2165.639893 | Z170: 2171.360107 | AA170: 2156.080078 | AB170: 2164.199951 | AD170: 305947.8204 | AE170: 119683.11 | AF170: 186264.7103 | AG170: 106.5981493 | AH170: 62225.77894 | AI170: 0 | AJ170: 0 | AL170: 293349.6761 | AM170: 138756.148 | AN170: 154593.5281 | AO170: 89.75780569 | AP170: 43882.99281 | AQ170: 0 | AR170: 0 | AT170: 4504.139335 | AU170: 17102.28363 | AV170: 2400 | AW170: 0 | AX170: 120 | AZ170: 2016-11-14 | BA170: 489.0626423
A171: 0 | B171: 0 | C171: 0 | D171: 0 | E171: 2578.01 | F171: 23.42901623 | G171: -45588.32818 | H171: 54770.8623 | I171: 0 | J171: 0 | K171: 0 | L171: 1411.34 | M171: -32.42823783 | N171: 3799.027348 | O171: 310450.3177 | P171: 127723.6529 | Q171: 182726.6648 | R171: 105.5994949 | T171: 0 | U171: 0 | V171: 6 | W171: 42685 | X171: 2016-11-11 | Y171: 2162.709961 | Z171: 2165.919922 | AA171: 2152.48999 | AB171: 2164.449951 | AD171: 305947.6924 | AE171: 119663.3613 | AF171: 186284.331 | AG171: 106.5981493 | AH171: 62225.77894 | AI171: 0 | AJ171: 0 | AL171: 293343.3012 | AM171: 138733.2521 | AN171: 154610.0491 | AO171: 89.75780569 | AP171: 43882.99281 | AQ171: 0 | AR171: 0 | AT171: 4502.625286 | AU171: 17107.01647 | AV171: 2400 | AW171: 0 | AX171: 120 | AZ171: 2016-11-11 | BA171: 489.1191369
A172: 0 | B172: 0 | C172: 0 | D172: 0 | E172: 2578.01 | F172: 23.42901623 | G172: -45588.32818 | H172: 54770.8623 | I172: 0 | J172: 0 | K172: 0 | L172: 1411.34 | M172: -32.42823783 | N172: 3799.027348 | O172: 310678.8697 | P172: 127716.6273 | Q172: 182962.2424 | R172: 105.5994949 | T172: 0 | U172: 0 | V172: 5 | W172: 42684 | X172: 2016-11-10 | Y172: 2167.48999 | Z172: 2182.300049 | AA172: 2151.169922 | AB172: 2167.47998 | AD172: 306178.9156 | AE172: 119656.7792 | AF172: 186522.1365 | AG172: 106.5981493 | AH172: 62225.77894 | AI172: 0 | AJ172: 0 | AL172: 293535.9071 | AM172: 138725.621 | AN172: 154810.2861 | AO172: 89.75780569 | AP172: 43882.99281 | AQ172: 0 | AR172: 0 | AT172: 4499.954066 | AU172: 17142.96263 | AV172: 2400 | AW172: 0 | AX172: 120 | AZ172: 2016-11-10 | BA172: 489.8038583
A173: 0 | B173: 0 | C173: 0 | D173: 0 | E173: 2578.01 | F173: 23.42901623 | G173: -45588.32818 | H173: 54770.8623 | I173: 0 | J173: 0 | K173: 0 | L173: 1411.34 | M173: -32.42823783 | N173: 3799.027348 | O173: 310343.7519 | P173: 127709.6022 | Q173: 182634.1497 | R173: 105.5994949 | T173: 0 | U173: 0 | V173: 4 | W173: 42683 | X173: 2016-11-09 | Y173: 2131.560059 | Z173: 2170.100098 | AA173: 2125.350098 | AB173: 2163.26001 | AD173: 305841.1384 | AE173: 119650.1974 | AF173: 186190.941 | AG173: 106.5981493 | AH173: 62225.77894 | AI173: 0 | AJ173: 0 | AL173: 293249.4031 | AM173: 138717.9902 | AN173: 154531.4128 | AO173: 89.75780569 | AP173: 43882.99281 | AQ173: 0 | AR173: 0 | AT173: 4502.6135 | AU173: 17094.34881 | AV173: 2400 | AW173: 0 | AX173: 120 | AZ173: 2016-11-09 | BA173: 488.8502359
A174: 0 | B174: 0 | C174: 0 | D174: 0 | E174: 2578.01 | F174: 23.42901623 | G174: -45588.32818 | H174: 54770.8623 | I174: 0 | J174: 0 | K174: 0 | L174: 1411.34 | M174: -32.42823783 | N174: 3799.027348 | O174: 308494.1121 | P174: 127702.5774 | Q174: 180791.5347 | R174: 105.5994949 | T174: 0 | U174: 0 | V174: 3 | W174: 42682 | X174: 2016-11-08 | Y174: 2129.919922 | Z174: 2146.870117 | AA174: 2123.560059 | AB174: 2139.560059 | AD174: 303974.5164 | AE174: 119643.6159 | AF174: 184330.9005 | AG174: 106.5981493 | AH174: 62225.77894 | AI174: 0 | AJ174: 0 | AL174: 291675.5809 | AM174: 138710.3599 | AN174: 152965.2209 | AO174: 89.75780569 | AP174: 43882.99281 | AQ174: 0 | AR174: 0 | AT174: 4519.595796 | AU174: 16818.53129 | AV174: 2400 | AW174: 0 | AX174: 120 | AZ174: 2016-11-08 | BA174: 483.4945567
A175: 0 | B175: 0 | C175: 0 | D175: 0 | E175: 2578.01 | F175: 23.42901623 | G175: -45588.32818 | H175: 54770.8623 | I175: 0 | J175: 0 | K175: 0 | L175: 1411.34 | M175: -32.42823783 | N175: 3799.027348 | O175: 307861.9938 | P175: 127695.553 | Q175: 180166.4408 | R175: 105.5994949 | T175: 0 | U175: 0 | V175: 2 | W175: 42681 | X175: 2016-11-07 | Y175: 2100.590088 | Z175: 2132 | AA175: 2100.590088 | AB175: 2131.52002 | AD175: 303336.9298 | AE175: 119637.0348 | AF175: 183699.895 | AG175: 106.5981493 | AH175: 62225.77894 | AI175: 0 | AJ175: 0 | AL175: 291136.6316 | AM175: 138702.7301 | AN175: 152433.9015 | AO175: 89.75780569 | AP175: 43882.99281 | AQ175: 0 | AR175: 0 | AT175: 4525.06402 | AU175: 16725.36224 | AV175: 2400 | AW175: 0 | AX175: 120 | AZ175: 2016-11-07 | BA175: 481.6776808
A176: 0 | B176: 0 | C176: 0 | D176: 0 | E176: 2578.01 | F176: 23.42901623 | G176: -45588.32818 | H176: 54770.8623 | I176: 0 | J176: 0 | K176: 0 | L176: 1411.34 | M176: -32.42823783 | N176: 3799.027348 | O176: 304238.0911 | P176: 127674.4822 | Q176: 176563.6088 | R176: 105.5994949 | T176: 405.8802025 | U176: 1 | V176: 1 | W176: 42678 | X176: 2016-11-04 | Y176: 2083.790039 | Z176: 2099.070068 | AA176: 2083.790039 | AB176: 2085.179932 | AD176: 299680.2848 | AE176: 119617.2937 | AF176: 180062.9911 | AG176: 106.5981493 | AH176: 62225.77894 | AI176: 0.09738989891 | AJ176: 1 | AL176: 288051.3975 | AM176: 138679.843 | AN176: 149371.5546 | AO176: 89.75780569 | AP176: 43882.99281 | AQ176: 0 | AR176: 0 | AT176: 4557.806279 | AU176: 16186.69351 | AV176: 2400 | AW176: 0 | AX176: 120 | AZ176: 2016-11-04 | BA176: 471.2058176
A177: 0 | B177: 0 | C177: 0 | D177: 0 | E177: 2592.48 | F177: 20.03729044 | G177: -46299.15449 | H177: 54770.8623 | I177: 0 | J177: 0 | K177: 0 | L177: 1404.43 | M177: -34.97203217 | N177: 3858.262874 | O177: 303922.1879 | P177: 127088.0188 | Q177: 176834.169 | R177: 105.5994949 | T177: 0 | U177: 0 | V177: 21 | W177: 42677 | X177: 2016-11-03 | Y177: 2098.800049 | Z177: 2102.560059 | AA177: 2085.22998 | AB177: 2088.659912 | AD177: 299363.7851 | AE177: 119230.9645 | AF177: 180132.8207 | AG177: 106.5007594 | AH177: 62022.83884 | AI177: 0 | AJ177: 0 | AL177: 287721.0324 | AM177: 138119.5062 | AN177: 149601.5262 | AO177: 89.75780569 | AP177: 43882.99281 | AQ177: 0 | AR177: 0 | AT177: 4558.402746 | AU177: 16201.15551 | AV177: 2400 | AW177: 0 | AX177: 120 | AZ177: 2016-11-03 | BA177: 471.9922182
A178: 0 | B178: 0 | C178: 0 | D178: 0 | E178: 2592.48 | F178: 20.03729044 | G178: -46299.15449 | H178: 54770.8623 | I178: 0 | J178: 0 | K178: 0 | L178: 1404.43 | M178: -34.97203217 | N178: 3858.262874 | O178: 304636.6975 | P178: 127081.0283 | Q178: 177555.6693 | R178: 105.5994949 | T178: 0 | U178: 0 | V178: 20 | W178: 42676 | X178: 2016-11-02 | Y178: 2109.429932 | Z178: 2111.76001 | AA178: 2094 | AB178: 2097.939941 | AD178: 300084.8848 | AE178: 119224.4061 | AF178: 180860.4787 | AG178: 106.5007594 | AH178: 62022.83884 | AI178: 0 | AJ178: 0 | AL178: 288326.6981 | AM178: 138111.9088 | AN178: 150214.7894 | AO178: 89.75780569 | AP178: 43882.99281 | AQ178: 0 | AR178: 0 | AT178: 4551.812744 | AU178: 16309.9994 | AV178: 2400 | AW178: 0 | AX178: 120 | AZ178: 2016-11-02 | BA178: 474.0893052
A179: 0 | B179: 0 | C179: 0 | D179: 0 | E179: 2592.48 | F179: 20.03729044 | G179: -46299.15449 | H179: 54770.8623 | I179: 0 | J179: 0 | K179: 0 | L179: 1404.43 | M179: -34.97203217 | N179: 3858.262874 | O179: 305701.072 | P179: 127074.0381 | Q179: 178627.0339 | R179: 105.5994949 | T179: 0 | U179: 0 | V179: 19 | W179: 42675 | X179: 2016-11-01 | Y179: 2128.679932 | Z179: 2131.449951 | AA179: 2097.850098 | AB179: 2111.719971 | AD179: 301158.8352 | AE179: 119217.848 | AF179: 181940.9872 | AG179: 106.5007594 | AH179: 62022.83884 | AI179: 0 | AJ179: 0 | AL179: 289229.7432 | AM179: 138104.3118 | AN179: 151125.4314 | AO179: 89.75780569 | AP179: 43882.99281 | AQ179: 0 | AR179: 0 | AT179: 4542.236763 | AU179: 16471.32877 | AV179: 2400 | AW179: 0 | AX179: 120 | AZ179: 2016-11-01 | BA179: 477.2032956
A180: 0 | B180: 0 | C180: 0 | D180: 0 | E180: 2592.48 | F180: 20.03729044 | G180: -46299.15449 | H180: 54770.8623 | I180: 0 | J180: 0 | K180: 0 | L180: 1404.43 | M180: -34.97203217 | N180: 3858.262874 | O180: 306815.9751 | P180: 127067.0483 | Q180: 179748.9268 | R180: 105.5994949 | T180: 0 | U180: 0 | V180: 18 | W180: 42674 | X180: 2016-10-31 | Y180: 2129.780029 | Z180: 2133.25 | AA180: 2125.530029 | AB180: 2126.149902 | AD180: 302283.7455 | AE180: 119211.2904 | AF180: 183072.4552 | AG180: 106.5007594 | AH180: 62022.83884 | AI180: 0 | AJ180: 0 | AL180: 290175.7369 | AM180: 138096.7153 | AN180: 152079.0216 | AO180: 89.75780569 | AP180: 43882.99281 | AQ180: 0 | AR180: 0 | AT180: 4532.22956 | AU180: 16640.23819 | AV180: 2400 | AW180: 0 | AX180: 120 | AZ180: 2016-10-31 | BA180: 480.4641496
A181: 0 | B181: 0 | C181: 0 | D181: 0 | E181: 2592.48 | F181: 20.03729044 | G181: -46299.15449 | H181: 54770.8623 | I181: 0 | J181: 0 | K181: 0 | L181: 1404.43 | M181: -34.97203217 | N181: 3858.262874 | O181: 306815.2231 | P181: 127046.0811 | Q181: 179769.142 | R181: 105.5994949 | T181: 0 | U181: 0 | V181: 17 | W181: 42671 | X181: 2016-10-28 | Y181: 2132.22998 | Z181: 2140.719971 | AA181: 2119.360107 | AB181: 2126.409912 | AD181: 302284.4624 | AE181: 119191.6195 | AF181: 183092.8429 | AG181: 106.5007594 | AH181: 62022.83884 | AI181: 0 | AJ181: 0 | AL181: 290170.1324 | AM181: 138073.9282 | AN181: 152096.2042 | AO181: 89.75780569 | AP181: 43882.99281 | AQ181: 0 | AR181: 0 | AT181: 4530.760764 | AU181: 16645.09078 | AV181: 2400 | AW181: 0 | AX181: 120 | AZ181: 2016-10-28 | BA181: 480.5229063
A182: 0 | B182: 0 | C182: 0 | D182: 0 | E182: 2592.48 | F182: 20.03729044 | G182: -46299.15449 | H182: 54770.8623 | I182: 0 | J182: 0 | K182: 0 | L182: 1404.43 | M182: -34.97203217 | N182: 3858.262874 | O182: 307323.7115 | P182: 127039.0929 | Q182: 180284.6186 | R182: 105.5994949 | T182: 0 | U182: 0 | V182: 16 | W182: 42670 | X182: 2016-10-27 | Y182: 2144.060059 | Z182: 2147.129883 | AA182: 2132.52002 | AB182: 2133.040039 | AD182: 302797.7823 | AE182: 119185.0633 | AF182: 183612.719 | AG182: 106.5007594 | AH182: 62022.83884 | AI182: 0 | AJ182: 0 | AL182: 290600.684 | AM182: 138066.3333 | AN182: 152534.3507 | AO182: 89.75780569 | AP182: 43882.99281 | AQ182: 0 | AR182: 0 | AT182: 4525.929262 | AU182: 16723.02749 | AV182: 2400 | AW182: 0 | AX182: 120 | AZ182: 2016-10-27 | BA182: 482.0211724
A183: 0 | B183: 0 | C183: 0 | D183: 0 | E183: 2592.48 | F183: 20.03729044 | G183: -46299.15449 | H183: 54770.8623 | I183: 0 | J183: 0 | K183: 0 | L183: 1404.43 | M183: -34.97203217 | N183: 3858.262874 | O183: 307813.5227 | P183: 127032.105 | Q183: 180781.4177 | R183: 105.5994949 | T183: 0 | U183: 0 | V183: 15 | W183: 42669 | X183: 2016-10-26 | Y183: 2136.969971 | Z183: 2145.72998 | AA183: 2131.590088 | AB183: 2139.429932 | AD183: 303292.2655 | AE183: 119178.5074 | AF183: 184113.758 | AG183: 106.5007594 | AH183: 62022.83884 | AI183: 0 | AJ183: 0 | AL183: 291015.3604 | AM183: 138058.7389 | AN183: 152956.6216 | AO183: 89.75780569 | AP183: 43882.99281 | AQ183: 0 | AR183: 0 | AT183: 4521.257193 | AU183: 16798.16221 | AV183: 2400 | AW183: 0 | AX183: 120 | AZ183: 2016-10-26 | BA183: 483.4651508
A184: 0 | B184: 0 | C184: 0 | D184: 0 | E184: 2592.48 | F184: 20.03729044 | G184: -46299.15449 | H184: 54770.8623 | I184: 0 | J184: 0 | K184: 0 | L184: 1404.43 | M184: -34.97203217 | N184: 3858.262874 | O184: 308096.5323 | P184: 127025.1175 | Q184: 181071.4148 | R184: 105.5994949 | T184: 0 | U184: 0 | V184: 14 | W184: 42668 | X184: 2016-10-25 | Y184: 2149.719971 | Z184: 2151.439941 | AA184: 2141.929932 | AB184: 2143.159912 | AD184: 303578.1821 | AE184: 119171.9519 | AF184: 184406.2302 | AG184: 106.5007594 | AH184: 62022.83884 | AI184: 0 | AJ184: 0 | AL184: 291254.2591 | AM184: 138051.1448 | AN184: 153203.1143 | AO184: 89.75780569 | AP184: 43882.99281 | AQ184: 0 | AR184: 0 | AT184: 4518.350149 | AU184: 16842.27315 | AV184: 2400 | AW184: 0 | AX184: 120 | AZ184: 2016-10-25 | BA184: 484.308046
A185: 0 | B185: 0 | C185: 0 | D185: 0 | E185: 2592.48 | F185: 20.03729044 | G185: -46299.15449 | H185: 54770.8623 | I185: 0 | J185: 0 | K185: 0 | L185: 1404.43 | M185: -34.97203217 | N185: 3858.262874 | O185: 308724.7562 | P185: 127018.1304 | Q185: 181706.6258 | R185: 105.5994949 | T185: 0 | U185: 0 | V185: 13 | W185: 42667 | X185: 2016-10-24 | Y185: 2148.5 | Z185: 2154.790039 | AA185: 2146.909912 | AB185: 2151.330078 | AD185: 304212.2594 | AE185: 119165.3968 | AF185: 185046.8626 | AG185: 106.5007594 | AH185: 62022.83884 | AI185: 0 | AJ185: 0 | AL185: 291786.5843 | AM185: 138043.5512 | AN185: 153743.033 | AO185: 89.75780569 | AP185: 43882.99281 | AQ185: 0 | AR185: 0 | AT185: 4512.496817 | AU185: 16938.17192 | AV185: 2400 | AW185: 0 | AX185: 120 | AZ185: 2016-10-24 | BA185: 486.1543278
A186: 0 | B186: 0 | C186: 0 | D186: 0 | E186: 2592.48 | F186: 20.03729044 | G186: -46299.15449 | H186: 54770.8623 | I186: 0 | J186: 0 | K186: 0 | L186: 1404.43 | M186: -34.97203217 | N186: 3858.262874 | O186: 307913.0908 | P186: 126997.1713 | Q186: 180915.9195 | R186: 105.5994949 | T186: 0 | U186: 0 | V186: 12 | W186: 42664 | X186: 2016-10-21 | Y186: 2139.429932 | Z186: 2142.629883 | AA186: 2130.090088 | AB186: 2141.159912 | AD186: 303395.1413 | AE186: 119145.7335 | AF186: 184249.4078 | AG186: 106.5007594 | AH186: 62022.83884 | AI186: 0 | AJ186: 0 | AL186: 291091.7188 | AM186: 138020.7729 | AN186: 153070.9459 | AO186: 89.75780569 | AP186: 43882.99281 | AQ186: 0 | AR186: 0 | AT186: 4517.949526 | AU186: 16821.37205 | AV186: 2400 | AW186: 0 | AX186: 120 | AZ186: 2016-10-21 | BA186: 483.856089
A187: 0 | B187: 0 | C187: 0 | D187: 0 | E187: 2592.48 | F187: 20.03729044 | G187: -46299.15449 | H187: 54770.8623 | I187: 0 | J187: 0 | K187: 0 | L187: 1404.43 | M187: -34.97203217 | N187: 3858.262874 | O187: 307920.1135 | P187: 126990.1857 | Q187: 180929.9278 | R187: 105.5994949 | T187: 0 | U187: 0 | V187: 11 | W187: 42663 | X187: 2016-10-20 | Y187: 2142.51001 | Z187: 2147.179932 | AA187: 2133.439941 | AB187: 2141.340088 | AD187: 303402.7154 | AE187: 119139.1798 | AF187: 184263.5356 | AG187: 106.5007594 | AH187: 62022.83884 | AI187: 0 | AJ187: 0 | AL187: 291096.0336 | AM187: 138013.181 | AN187: 153082.8527 | AO187: 89.75780569 | AP187: 43882.99281 | AQ187: 0 | AR187: 0 | AT187: 4517.398094 | AU187: 16824.07988 | AV187: 2400 | AW187: 0 | AX187: 120 | AZ187: 2016-10-20 | BA187: 483.8968049
A188: 0 | B188: 0 | C188: 0 | D188: 0 | E188: 2592.48 | F188: 20.03729044 | G188: -46299.15449 | H188: 54770.8623 | I188: 0 | J188: 0 | K188: 0 | L188: 1404.43 | M188: -34.97203217 | N188: 3858.262874 | O188: 308142.48 | P188: 126983.2006 | Q188: 181159.2795 | R188: 105.5994949 | T188: 0 | U188: 0 | V188: 10 | W188: 42662 | X188: 2016-10-19 | Y188: 2140.810059 | Z188: 2148.439941 | AA188: 2138.149902 | AB188: 2144.290039 | AD188: 303627.4712 | AE188: 119132.6264 | AF188: 184494.8448 | AG188: 106.5007594 | AH188: 62022.83884 | AI188: 0 | AJ188: 0 | AL188: 291283.3872 | AM188: 138005.5894 | AN188: 153277.7978 | AO188: 89.75780569 | AP188: 43882.99281 | AQ188: 0 | AR188: 0 | AT188: 4515.008786 | AU188: 16859.0928 | AV188: 2400 | AW188: 0 | AX188: 120 | AZ188: 2016-10-19 | BA188: 484.5634304
A189: 0 | B189: 0 | C189: 0 | D189: 0 | E189: 2592.48 | F189: 20.03729044 | G189: -46299.15449 | H189: 54770.8623 | I189: 0 | J189: 0 | K189: 0 | L189: 1404.43 | M189: -34.97203217 | N189: 3858.262874 | O189: 307770.8634 | P189: 126976.2157 | Q189: 180794.6477 | R189: 105.5994949 | T189: 0 | U189: 0 | V189: 9 | W189: 42661 | X189: 2016-10-18 | Y189: 2138.310059 | Z189: 2144.379883 | AA189: 2135.48999 | AB189: 2139.600098 | AD189: 303253.1744 | AE189: 119126.0735 | AF189: 184127.101 | AG189: 106.5007594 | AH189: 62022.83884 | AI189: 0 | AJ189: 0 | AL189: 290965.8652 | AM189: 137997.9983 | AN189: 152967.8669 | AO189: 89.75780569 | AP189: 43882.99281 | AQ189: 0 | AR189: 0 | AT189: 4517.688997 | AU189: 16804.99823 | AV189: 2400 | AW189: 0 | AX189: 120 | AZ189: 2016-10-18 | BA189: 483.5036046
A190: 0 | B190: 0 | C190: 0 | D190: 0 | E190: 2592.48 | F190: 20.03729044 | G190: -46299.15449 | H190: 54770.8623 | I190: 0 | J190: 0 | K190: 0 | L190: 1404.43 | M190: -34.97203217 | N190: 3858.262874 | O190: 306745.3774 | P190: 126969.2313 | Q190: 179776.1461 | R190: 105.5994949 | T190: 0 | U190: 0 | V190: 8 | W190: 42660 | X190: 2016-10-17 | Y190: 2132.949951 | Z190: 2135.610107 | AA190: 2124.429932 | AB190: 2126.5 | AD190: 302219.4276 | AE190: 119119.5208 | AF190: 183099.9068 | AG190: 106.5007594 | AH190: 62022.83884 | AI190: 0 | AJ190: 0 | AL190: 290092.5652 | AM190: 137990.4076 | AN190: 152102.1576 | AO190: 89.75780569 | AP190: 43882.99281 | AQ190: 0 | AR190: 0 | AT190: 4525.949843 | AU190: 16652.81223 | AV190: 2400 | AW190: 0 | AX190: 120 | AZ190: 2016-10-17 | BA190: 480.5432642
A191: 0 | B191: 0 | C191: 0 | D191: 0 | E191: 2592.48 | F191: 20.03729044 | G191: -46299.15449 | H191: 54770.8623 | I191: 0 | J191: 0 | K191: 0 | L191: 1404.43 | M191: -34.97203217 | N191: 3858.262874 | O191: 307228.2295 | P191: 126948.2803 | Q191: 180279.9492 | R191: 105.5994949 | T191: 0 | U191: 0 | V191: 7 | W191: 42657 | X191: 2016-10-14 | Y191: 2139.679932 | Z191: 2149.189941 | AA191: 2132.97998 | AB191: 2132.97998 | AD191: 302707.8748 | AE191: 119099.8651 | AF191: 183608.0097 | AG191: 106.5007594 | AH191: 62022.83884 | AI191: 0 | AJ191: 0 | AL191: 290498.0198 | AM191: 137967.6381 | AN191: 152530.3818 | AO191: 89.75780569 | AP191: 43882.99281 | AQ191: 0 | AR191: 0 | AT191: 4520.354746 | AU191: 16730.2097 | AV191: 2400 | AW191: 0 | AX191: 120 | AZ191: 2016-10-14 | BA191: 482.0076003
A192: 0 | B192: 0 | C192: 0 | D192: 0 | E192: 2592.48 | F192: 20.03729044 | G192: -46299.15449 | H192: 54770.8623 | I192: 0 | J192: 0 | K192: 0 | L192: 1404.43 | M192: -34.97203217 | N192: 3858.262874 | O192: 307187.8205 | P192: 126941.2975 | Q192: 180246.5231 | R192: 105.5994949 | T192: 0 | U192: 0 | V192: 6 | W192: 42656 | X192: 2016-10-13 | Y192: 2130.26001 | Z192: 2138.189941 | AA192: 2114.719971 | AB192: 2132.550049 | AD192: 302667.6122 | AE192: 119093.3139 | AF192: 183574.2983 | AG192: 106.5007594 | AH192: 62022.83884 | AI192: 0 | AJ192: 0 | AL192: 290462.0192 | AM192: 137960.0491 | AN192: 152501.9701 | AO192: 89.75780569 | AP192: 43882.99281 | AQ192: 0 | AR192: 0 | AT192: 4520.208321 | AU192: 16725.80135 | AV192: 2400 | AW192: 0 | AX192: 120 | AZ192: 2016-10-13 | BA192: 481.9104452
A193: 0 | B193: 0 | C193: 0 | D193: 0 | E193: 2592.48 | F193: 20.03729044 | G193: -46299.15449 | H193: 54770.8623 | I193: 0 | J193: 0 | K193: 0 | L193: 1404.43 | M193: -34.97203217 | N193: 3858.262874 | O193: 307696.2957 | P193: 126934.3149 | Q193: 180761.9808 | R193: 105.5994949 | T193: 0 | U193: 0 | V193: 5 | W193: 42655 | X193: 2016-10-12 | Y193: 2137.669922 | Z193: 2145.360107 | AA193: 2132.77002 | AB193: 2139.179932 | AD193: 303180.9184 | AE193: 119086.7631 | AF193: 184094.1552 | AG193: 106.5007594 | AH193: 62022.83884 | AI193: 0 | AJ193: 0 | AL193: 290892.561 | AM193: 137952.4605 | AN193: 152940.1005 | AO193: 89.75780569 | AP193: 43882.99281 | AQ193: 0 | AR193: 0 | AT193: 4515.377338 | AU193: 16803.73472 | AV193: 2400 | AW193: 0 | AX193: 120 | AZ193: 2016-10-12 | BA193: 483.4086561
A194: 0 | B194: 0 | C194: 0 | D194: 0 | E194: 2592.48 | F194: 20.03729044 | G194: -46299.15449 | H194: 54770.8623 | I194: 0 | J194: 0 | K194: 0 | L194: 1404.43 | M194: -34.97203217 | N194: 3858.262874 | O194: 307498.8356 | P194: 126927.3328 | Q194: 180571.5028 | R194: 105.5994949 | T194: 0 | U194: 0 | V194: 4 | W194: 42654 | X194: 2016-10-11 | Y194: 2161.350098 | Z194: 2161.560059 | AA194: 2128.840088 | AB194: 2136.72998 | AD194: 302982.2643 | AE194: 119080.2127 | AF194: 183902.0516 | AG194: 106.5007594 | AH194: 62022.83884 | AI194: 0 | AJ194: 0 | AL194: 290723.0697 | AM194: 137944.8723 | AN194: 152778.1974 | AO194: 89.75780569 | AP194: 43882.99281 | AQ194: 0 | AR194: 0 | AT194: 4516.571358 | AU194: 16775.7659 | AV194: 2400 | AW194: 0 | AX194: 120 | AZ194: 2016-10-11 | BA194: 482.8550197
A195: 0 | B195: 0 | C195: 0 | D195: 0 | E195: 2592.48 | F195: 20.03729044 | G195: -46299.15449 | H195: 54770.8623 | I195: 0 | J195: 0 | K195: 0 | L195: 1404.43 | M195: -34.97203217 | N195: 3858.262874 | O195: 309585.5922 | P195: 126920.3511 | Q195: 182665.2411 | R195: 105.5994949 | T195: 0 | U195: 0 | V195: 3 | W195: 42653 | X195: 2016-10-10 | Y195: 2160.389893 | Z195: 2169.600098 | AA195: 2160.389893 | AB195: 2163.659912 | AD195: 305087.322 | AE195: 119073.6626 | AF195: 186013.6595 | AG195: 106.5007594 | AH195: 62022.83884 | AI195: 0 | AJ195: 0 | AL195: 292495.1246 | AM195: 137937.2845 | AN195: 154557.84 | AO195: 89.75780569 | AP195: 43882.99281 | AQ195: 0 | AR195: 0 | AT195: 4498.270203 | AU195: 17090.46767 | AV195: 2400 | AW195: 0 | AX195: 120 | AZ195: 2016-10-10 | BA195: 488.9406051
A196: 0 | B196: 0 | C196: 0 | D196: 0 | E196: 2592.48 | F196: 20.03729044 | G196: -46299.15449 | H196: 54770.8623 | I196: 0 | J196: 0 | K196: 0 | L196: 1404.43 | M196: -34.97203217 | N196: 3858.262874 | O196: 308793.3989 | P196: 126899.4082 | Q196: 181893.9907 | R196: 105.5994949 | T196: 0 | U196: 0 | V196: 2 | W196: 42650 | X196: 2016-10-07 | Y196: 2164.189941 | Z196: 2165.860107 | AA196: 2144.850098 | AB196: 2153.73999 | AD196: 304289.8411 | AE196: 119054.0144 | AF196: 185235.8266 | AG196: 106.5007594 | AH196: 62022.83884 | AI196: 0 | AJ196: 0 | AL196: 291816.8138 | AM196: 137914.5237 | AN196: 153902.2901 | AO196: 89.75780569 | AP196: 43882.99281 | AQ196: 0 | AR196: 0 | AT196: 4503.557858 | AU196: 16976.58511 | AV196: 2400 | AW196: 0 | AX196: 120 | AZ196: 2016-10-07 | BA196: 486.6989161
A197: 0 | B197: 0 | C197: 0 | D197: 0 | E197: 2592.48 | F197: 20.03729044 | G197: -46299.15449 | H197: 54770.8623 | I197: 0 | J197: 0 | K197: 0 | L197: 1404.43 | M197: -34.97203217 | N197: 3858.262874 | O197: 309332.9869 | P197: 126892.428 | Q197: 182440.5589 | R197: 105.5994949 | T197: 405.1321984 | U197: 1 | V197: 1 | W197: 42649 | X197: 2016-10-06 | Y197: 2158.219971 | Z197: 2162.929932 | AA197: 2150.280029 | AB197: 2160.77002 | AD197: 304834.5254 | AE197: 119047.4658 | AF197: 185787.0596 | AG197: 106.5007594 | AH197: 62022.83884 | AI197: 0.09385794864 | AJ197: 1 | AL197: 292273.8015 | AM197: 137906.9376 | AN197: 154366.8639 | AO197: 89.75780569 | AP197: 43882.99281 | AQ197: 0 | AR197: 0 | AT197: 4498.461497 | AU197: 17059.18536 | AV197: 2400 | AW197: 0 | AX197: 120 | AZ197: 2016-10-06 | BA197: 488.2875517
A198: 0 | B198: 0 | C198: 0 | D198: 0 | E198: 2590.27 | F198: 18.46752772 | G198: -46493.11161 | H198: 54770.8623 | I198: 0 | J198: 0 | K198: 0 | L198: 1396.08 | M198: -36.14935421 | N198: 3874.425968 | O198: 308661.0299 | P198: 126301.3317 | Q198: 182359.6983 | R198: 105.5994949 | T198: 0 | U198: 0 | V198: 21 | W198: 42648 | X198: 2016-10-05 | Y198: 2155.149902 | Z198: 2163.949951 | AA198: 2155.149902 | AB198: 2159.72998 | AD198: 304159.109 | AE198: 118656.2706 | AF198: 185502.8384 | AG198: 106.4069015 | AH198: 61820.27274 | AI198: 0 | AJ198: 0 | AL198: 291640.9147 | AM198: 137342.781 | AN198: 154298.1337 | AO198: 89.75780569 | AP198: 43882.99281 | AQ198: 0 | AR198: 0 | AT198: 4501.920938 | AU198: 17020.11519 | AV198: 2400 | AW198: 0 | AX198: 120 | AZ198: 2016-10-05 | BA198: 488.052525
A199: 0 | B199: 0 | C199: 0 | D199: 0 | E199: 2590.27 | F199: 18.46752772 | G199: -46493.11161 | H199: 54770.8623 | I199: 0 | J199: 0 | K199: 0 | L199: 1396.08 | M199: -36.14935421 | N199: 3874.425968 | O199: 307935.6953 | P199: 126294.3844 | Q199: 181641.3109 | R199: 105.5994949 | T199: 0 | U199: 0 | V199: 20 | W199: 42647 | X199: 2016-10-04 | Y199: 2163.370117 | Z199: 2165.459961 | AA199: 2144.01001 | AB199: 2150.48999 | AD199: 303428.7021 | AE199: 118649.7438 | AF199: 184778.9584 | AG199: 106.4069015 | AH199: 61820.27274 | AI199: 0 | AJ199: 0 | AL199: 291022.7429 | AM199: 137335.2264 | AN199: 153687.5165 | AO199: 89.75780569 | AP199: 43882.99281 | AQ199: 0 | AR199: 0 | AT199: 4506.993156 | AU199: 16912.95243 | AV199: 2400 | AW199: 0 | AX199: 120 | AZ199: 2016-10-04 | BA199: 485.964486
A200: 0 | B200: 0 | C200: 0 | D200: 0 | E200: 2590.27 | F200: 18.46752772 | G200: -46493.11161 | H200: 54770.8623 | I200: 0 | J200: 0 | K200: 0 | L200: 1396.08 | M200: -36.14935421 | N200: 3874.425968 | O200: 308761.4224 | P200: 126287.4374 | Q200: 182473.985 | R200: 105.5994949 | T200: 0 | U200: 0 | V200: 19 | W200: 42646 | X200: 2016-10-03 | Y200: 2164.330078 | Z200: 2164.409912 | AA200: 2154.77002 | AB200: 2161.199951 | AD200: 304261.2164 | AE200: 118643.2174 | AF200: 185617.999 | AG200: 106.4069015 | AH200: 61820.27274 | AI200: 0 | AJ200: 0 | AL200: 291722.9477 | AM200: 137327.6722 | AN200: 154395.2755 | AO200: 89.75780569 | AP200: 43882.99281 | AQ200: 0 | AR200: 0 | AT200: 4500.206087 | AU200: 17038.47477 | AV200: 2400 | AW200: 0 | AX200: 120 | AZ200: 2016-10-03 | BA200: 488.3847068
A201: 0 | B201: 0 | C201: 0 | D201: 0 | E201: 2590.27 | F201: 18.46752772 | G201: -46493.11161 | H201: 54770.8623 | I201: 0 | J201: 0 | K201: 0 | L201: 1396.08 | M201: -36.14935421 | N201: 3874.425968 | O201: 309290.2651 | P201: 126266.599 | Q201: 183023.6661 | R201: 105.5994949 | T201: 0 | U201: 0 | V201: 18 | W201: 42643 | X201: 2016-09-30 | Y201: 2156.51001 | Z201: 2175.300049 | AA201: 2156.51001 | AB201: 2168.27002 | AD201: 304795.5232 | AE201: 118623.6403 | AF201: 186171.8829 | AG201: 106.4069015 | AH201: 61820.27274 | AI201: 0 | AJ201: 0 | AL201: 292167.5072 | AM201: 137305.012 | AN201: 154862.4953 | AO201: 89.75780569 | AP201: 43882.99281 | AQ201: 0 | AR201: 0 | AT201: 4494.741904 | AU201: 17122.75785 | AV201: 2400 | AW201: 0 | AX201: 120 | AZ201: 2016-09-30 | BA201: 489.9823904
A202: 0 | B202: 0 | C202: 0 | D202: 0 | E202: 2590.27 | F202: 18.46752772 | G202: -46493.11161 | H202: 54770.8623 | I202: 0 | J202: 0 | K202: 0 | L202: 1396.08 | M202: -36.14935421 | N202: 3874.425968 | O202: 307950.7147 | P202: 126259.6536 | Q202: 181691.0611 | R202: 105.5994949 | T202: 0 | U202: 0 | V202: 17 | W202: 42642 | X202: 2016-09-29 | Y202: 2168.899902 | Z202: 2172.669922 | AA202: 2145.199951 | AB202: 2151.129883 | AD202: 303446.2042 | AE202: 118617.1153 | AF202: 184829.0889 | AG202: 106.4069015 | AH202: 61820.27274 | AI202: 0 | AJ202: 0 | AL202: 291027.2627 | AM202: 137297.4594 | AN202: 153729.8033 | AO202: 89.75780569 | AP202: 43882.99281 | AQ202: 0 | AR202: 0 | AT202: 4504.510504 | AU202: 16923.452 | AV202: 2400 | AW202: 0 | AX202: 120 | AZ202: 2016-09-29 | BA202: 486.1090881
A203: 0 | B203: 0 | C203: 0 | D203: 0 | E203: 2590.27 | F203: 18.46752772 | G203: -46493.11161 | H203: 54770.8623 | I203: 0 | J203: 0 | K203: 0 | L203: 1396.08 | M203: -36.14935421 | N203: 3874.425968 | O203: 309517.3998 | P203: 126252.7086 | Q203: 183264.6913 | R203: 105.5994949 | T203: 0 | U203: 0 | V203: 16 | W203: 42641 | X203: 2016-09-28 | Y203: 2161.850098 | Z203: 2172.399902 | AA203: 2151.790039 | AB203: 2171.370117 | AD203: 305025.3416 | AE203: 118610.5906 | AF203: 186414.751 | AG203: 106.4069015 | AH203: 61820.27274 | AI203: 0 | AJ203: 0 | AL203: 292357.2699 | AM203: 137289.9072 | AN203: 155067.3626 | AO203: 89.75780569 | AP203: 43882.99281 | AQ203: 0 | AR203: 0 | AT203: 4492.058251 | AU203: 17160.12997 | AV203: 2400 | AW203: 0 | AX203: 120 | AZ203: 2016-09-28 | BA203: 490.6829456
A204: 0 | B204: 0 | C204: 0 | D204: 0 | E204: 2590.27 | F204: 18.46752772 | G204: -46493.11161 | H204: 54770.8623 | I204: 0 | J204: 0 | K204: 0 | L204: 1396.08 | M204: -36.14935421 | N204: 3874.425968 | O204: 308621.008 | P204: 126245.7639 | Q204: 182375.244 | R204: 105.5994949 | T204: 0 | U204: 0 | V204: 15 | W204: 42640 | X204: 2016-09-27 | Y204: 2146.040039 | Z204: 2161.129883 | AA204: 2141.550049 | AB204: 2159.929932 | AD204: 304122.5694 | AE204: 118604.0664 | AF204: 185518.5031 | AG204: 106.4069015 | AH204: 61820.27274 | AI204: 0 | AJ204: 0 | AL204: 291593.7028 | AM204: 137282.3555 | AN204: 154311.3474 | AO204: 89.75780569 | AP204: 43882.99281 | AQ204: 0 | AR204: 0 | AT204: 4498.438543 | AU204: 17027.30513 | AV204: 2400 | AW204: 0 | AX204: 120 | AZ204: 2016-09-27 | BA204: 488.0977099
A205: 0 | B205: 0 | C205: 0 | D205: 0 | E205: 2590.27 | F205: 18.46752772 | G205: -46493.11161 | H205: 54770.8623 | I205: 0 | J205: 0 | K205: 0 | L205: 1396.08 | M205: -36.14935421 | N205: 3874.425968 | O205: 307538.8269 | P205: 126238.8197 | Q205: 181300.0073 | R205: 105.5994949 | T205: 0 | U205: 0 | V205: 14 | W205: 42639 | X205: 2016-09-26 | Y205: 2158.540039 | Z205: 2158.540039 | AA205: 2145.040039 | AB205: 2146.100098 | AD205: 303032.5875 | AE205: 118597.5425 | AF205: 184435.0451 | AG205: 106.4069015 | AH205: 61820.27274 | AI205: 0 | AJ205: 0 | AL205: 290672.2182 | AM205: 137274.8042 | AN205: 153397.4141 | AO205: 89.75780569 | AP205: 43882.99281 | AQ205: 0 | AR205: 0 | AT205: 4506.239393 | AU205: 16866.60872 | AV205: 2400 | AW205: 0 | AX205: 120 | AZ205: 2016-09-26 | BA205: 484.9724648
A206: 0 | B206: 0 | C206: 0 | D206: 0 | E206: 2590.27 | F206: 18.46752772 | G206: -46493.11161 | H206: 54770.8623 | I206: 0 | J206: 0 | K206: 0 | L206: 1396.08 | M206: -36.14935421 | N206: 3874.425968 | O206: 308963.3127 | P206: 126217.9892 | Q206: 182745.3235 | R206: 105.5994949 | T206: 0 | U206: 0 | V206: 13 | W206: 42636 | X206: 2016-09-23 | Y206: 2173.290039 | Z206: 2173.75 | AA206: 2163.969971 | AB206: 2164.689941 | AD206: 304469.385 | AE206: 118577.9729 | AF206: 185891.4121 | AG206: 106.4069015 | AH206: 61820.27274 | AI206: 0 | AJ206: 0 | AL206: 291878.0614 | AM206: 137252.1527 | AN206: 154625.9087 | AO206: 89.75780569 | AP206: 43882.99281 | AQ206: 0 | AR206: 0 | AT206: 4493.927729 | AU206: 17085.25133 | AV206: 2400 | AW206: 0 | AX206: 120 | AZ206: 2016-09-23 | BA206: 489.1733695
A207: 0 | B207: 0 | C207: 0 | D207: 0 | E207: 2590.27 | F207: 18.46752772 | G207: -46493.11161 | H207: 54770.8623 | I207: 0 | J207: 0 | K207: 0 | L207: 1396.08 | M207: -36.14935421 | N207: 3874.425968 | O207: 309927.4371 | P207: 126211.0465 | Q207: 183716.3906 | R207: 105.5994949 | T207: 0 | U207: 0 | V207: 12 | W207: 42635 | X207: 2016-09-22 | Y207: 2170.939941 | Z207: 2179.98999 | AA207: 2170.939941 | AB207: 2177.179932 | AD207: 305441.3544 | AE207: 118571.4504 | AF207: 186869.904 | AG207: 106.4069015 | AH207: 61820.27274 | AI207: 0 | AJ207: 0 | AL207: 292695.9026 | AM207: 137244.603 | AN207: 155451.2995 | AO207: 89.75780569 | AP207: 43882.99281 | AQ207: 0 | AR207: 0 | AT207: 4486.082771 | AU207: 17231.53458 | AV207: 2400 | AW207: 0 | AX207: 120 | AZ207: 2016-09-22 | BA207: 491.9958389
A208: 0 | B208: 0 | C208: 0 | D208: 0 | E208: 2590.27 | F208: 18.46752772 | G208: -46493.11161 | H208: 54770.8623 | I208: 0 | J208: 0 | K208: 0 | L208: 1396.08 | M208: -36.14935421 | N208: 3874.425968 | O208: 308827.3775 | P208: 126204.1042 | Q208: 182623.2734 | R208: 105.5994949 | T208: 0 | U208: 0 | V208: 11 | W208: 42634 | X208: 2016-09-21 | Y208: 2144.580078 | Z208: 2165.110107 | AA208: 2139.570068 | AB208: 2163.120117 | AD208: 304333.3571 | AE208: 118564.9283 | AF208: 185768.4288 | AG208: 106.4069015 | AH208: 61820.27274 | AI208: 0 | AJ208: 0 | AL208: 291759.2219 | AM208: 137237.0538 | AN208: 154522.1681 | AO208: 89.75780569 | AP208: 43882.99281 | AQ208: 0 | AR208: 0 | AT208: 4494.020449 | AU208: 17068.15563 | AV208: 2400 | AW208: 0 | AX208: 120 | AZ208: 2016-09-21 | BA208: 488.8186231
A209: 0 | B209: 0 | C209: 0 | D209: 0 | E209: 2590.27 | F209: 18.46752772 | G209: -46493.11161 | H209: 54770.8623 | I209: 0 | J209: 0 | K209: 0 | L209: 1396.08 | M209: -36.14935421 | N209: 3874.425968 | O209: 307004.2427 | P209: 126197.1622 | Q209: 180807.0805 | R209: 105.5994949 | T209: 0 | U209: 0 | V209: 10 | W209: 42633 | X209: 2016-09-20 | Y209: 2145.939941 | Z209: 2150.800049 | AA209: 2139.169922 | AB209: 2139.76001 | AD209: 302496.7559 | AE209: 118558.4065 | AF209: 183938.3494 | AG209: 106.4069015 | AH209: 61820.27274 | AI209: 0 | AJ209: 0 | AL209: 290207.9395 | AM209: 137229.5049 | AN209: 152978.4345 | AO209: 89.75780569 | AP209: 43882.99281 | AQ209: 0 | AR209: 0 | AT209: 4507.486738 | AU209: 16796.30322 | AV209: 2400 | AW209: 0 | AX209: 120 | AZ209: 2016-09-20 | BA209: 483.5397413
A210: 0 | B210: 0 | C210: 0 | D210: 0 | E210: 2590.27 | F210: 18.46752772 | G210: -46493.11161 | H210: 54770.8623 | I210: 0 | J210: 0 | K210: 0 | L210: 1396.08 | M210: -36.14935421 | N210: 3874.425968 | O210: 306947.5509 | P210: 126190.2206 | Q210: 180757.3303 | R210: 105.5994949 | T210: 0 | U210: 0 | V210: 9 | W210: 42632 | X210: 2016-09-19 | Y210: 2143.98999 | Z210: 2153.610107 | AA210: 2135.909912 | AB210: 2139.120117 | AD210: 302440.104 | AE210: 118551.8851 | AF210: 183888.2188 | AG210: 106.4069015 | AH210: 61820.27274 | AI210: 0 | AJ210: 0 | AL210: 290158.1042 | AM210: 137221.9565 | AN210: 152936.1477 | AO210: 89.75780569 | AP210: 43882.99281 | AQ210: 0 | AR210: 0 | AT210: 4507.446948 | AU210: 16789.4467 | AV210: 2400 | AW210: 0 | AX210: 120 | AZ210: 2016-09-19 | BA210: 483.3951392
A211: 0 | B211: 0 | C211: 0 | D211: 0 | E211: 2590.27 | F211: 18.46752772 | G211: -46493.11161 | H211: 54770.8623 | I211: 0 | J211: 0 | K211: 0 | L211: 1396.08 | M211: -36.14935421 | N211: 3874.425968 | O211: 306929.8225 | P211: 126169.3982 | Q211: 180760.4243 | R211: 105.5994949 | T211: 0 | U211: 0 | V211: 8 | W211: 42629 | X211: 2016-09-16 | Y211: 2146.47998 | Z211: 2146.47998 | AA211: 2131.199951 | AB211: 2139.159912 | AD211: 302423.6596 | AE211: 118532.3231 | AF211: 183891.3365 | AG211: 106.4069015 | AH211: 61820.27274 | AI211: 0 | AJ211: 0 | AL211: 290138.0913 | AM211: 137199.3138 | AN211: 152938.7775 | AO211: 89.75780569 | AP211: 43882.99281 | AQ211: 0 | AR211: 0 | AT211: 4506.162904 | AU211: 16791.73118 | AV211: 2400 | AW211: 0 | AX211: 120 | AZ211: 2016-09-16 | BA211: 483.4041321
A212: 0 | B212: 0 | C212: 0 | D212: 0 | E212: 2590.27 | F212: 18.46752772 | G212: -46493.11161 | H212: 54770.8623 | I212: 0 | J212: 0 | K212: 0 | L212: 1396.08 | M212: -36.14935421 | N212: 3874.425968 | O212: 307552.6458 | P212: 126162.4582 | Q212: 181390.1877 | R212: 105.5994949 | T212: 0 | U212: 0 | V212: 7 | W212: 42628 | X212: 2016-09-15 | Y212: 2125.360107 | Z212: 2151.310059 | AA212: 2122.360107 | AB212: 2147.26001 | AD212: 303051.7181 | AE212: 118525.8031 | AF212: 184525.915 | AG212: 106.4069015 | AH212: 61820.27274 | AI212: 0 | AJ212: 0 | AL212: 290665.8329 | AM212: 137191.767 | AN212: 153474.0659 | AO212: 89.75780569 | AP212: 43882.99281 | AQ212: 0 | AR212: 0 | AT212: 4500.927692 | AU212: 16886.81292 | AV212: 2400 | AW212: 0 | AX212: 120 | AZ212: 2016-09-15 | BA212: 485.23458
A213: 0 | B213: 0 | C213: 0 | D213: 0 | E213: 2590.27 | F213: 18.46752772 | G213: -46493.11161 | H213: 54770.8623 | I213: 0 | J213: 0 | K213: 0 | L213: 1396.08 | M213: -36.14935421 | N213: 3874.425968 | O213: 305874.9104 | P213: 126155.5185 | Q213: 179719.3919 | R213: 105.5994949 | T213: 0 | U213: 0 | V213: 6 | W213: 42627 | X213: 2016-09-14 | Y213: 2127.860107 | Z213: 2141.330078 | AA213: 2119.899902 | AB213: 2125.77002 | AD213: 301361.628 | AE213: 118519.2835 | AF213: 182842.3445 | AG213: 106.4069015 | AH213: 61820.27274 | AI213: 0 | AJ213: 0 | AL213: 289238.1381 | AM213: 137184.2207 | AN213: 152053.9174 | AO213: 89.75780569 | AP213: 43882.99281 | AQ213: 0 | AR213: 0 | AT213: 4513.282423 | AU213: 16636.77231 | AV213: 2400 | AW213: 0 | AX213: 120 | AZ213: 2016-09-14 | BA213: 480.3783044
A214: 0 | B214: 0 | C214: 0 | D214: 0 | E214: 2590.27 | F214: 18.46752772 | G214: -46493.11161 | H214: 54770.8623 | I214: 0 | J214: 0 | K214: 0 | L214: 1396.08 | M214: -36.14935421 | N214: 3874.425968 | O214: 305965.1557 | P214: 126148.5792 | Q214: 179816.5764 | R214: 105.5994949 | T214: 0 | U214: 0 | V214: 5 | W214: 42626 | X214: 2016-09-13 | Y214: 2150.469971 | Z214: 2150.469971 | AA214: 2120.27002 | AB214: 2127.02002 | AD214: 301453.0363 | AE214: 118512.7643 | AF214: 182940.2721 | AG214: 106.4069015 | AH214: 61820.27274 | AI214: 0 | AJ214: 0 | AL214: 289313.1974 | AM214: 137176.6747 | AN214: 152136.5227 | AO214: 89.75780569 | AP214: 43882.99281 | AQ214: 0 | AR214: 0 | AT214: 4512.119319 | AU214: 16651.95826 | AV214: 2400 | AW214: 0 | AX214: 120 | AZ214: 2016-09-13 | BA214: 480.6607776
A215: 0 | B215: 0 | C215: 0 | D215: 0 | E215: 2590.27 | F215: 18.46752772 | G215: -46493.11161 | H215: 54770.8623 | I215: 0 | J215: 0 | K215: 0 | L215: 1396.08 | M215: -36.14935421 | N215: 3874.425968 | O215: 308447.6973 | P215: 126141.6403 | Q215: 182306.057 | R215: 105.5994949 | T215: 0 | U215: 0 | V215: 4 | W215: 42625 | X215: 2016-09-12 | Y215: 2120.860107 | Z215: 2163.300049 | AA215: 2119.120117 | AB215: 2159.040039 | AD215: 303955.0324 | AE215: 118506.2454 | AF215: 185448.787 | AG215: 106.4069015 | AH215: 61820.27274 | AI215: 0 | AJ215: 0 | AL215: 291421.6687 | AM215: 137169.1292 | AN215: 154252.5395 | AO215: 89.75780569 | AP215: 43882.99281 | AQ215: 0 | AR215: 0 | AT215: 4492.664906 | AU215: 17026.02855 | AV215: 2400 | AW215: 0 | AX215: 120 | AZ215: 2016-09-12 | BA215: 487.8966132
A216: 0 | B216: 0 | C216: 0 | D216: 0 | E216: 2590.27 | F216: 18.46752772 | G216: -46493.11161 | H216: 54770.8623 | I216: 0 | J216: 0 | K216: 0 | L216: 1396.08 | M216: -36.14935421 | N216: 3874.425968 | O216: 305998.826 | P216: 126120.8259 | Q216: 179878.0001 | R216: 105.5994949 | T216: 0 | U216: 0 | V216: 3 | W216: 42622 | X216: 2016-09-09 | Y216: 2169.080078 | Z216: 2169.080078 | AA216: 2127.810059 | AB216: 2127.810059 | AD216: 301488.8562 | AE216: 118486.6909 | AF216: 183002.1654 | AG216: 106.4069015 | AH216: 61820.27274 | AI216: 0 | AJ216: 0 | AL216: 289335.2269 | AM216: 137146.4952 | AN216: 152188.7317 | AO216: 89.75780569 | AP216: 43882.99281 | AQ216: 0 | AR216: 0 | AT216: 4509.969761 | AU216: 16663.59907 | AV216: 2400 | AW216: 0 | AX216: 120 | AZ216: 2016-09-09 | BA216: 480.8393094
A217: 0 | B217: 0 | C217: 0 | D217: 0 | E217: 2590.27 | F217: 18.46752772 | G217: -46493.11161 | H217: 54770.8623 | I217: 0 | J217: 0 | K217: 0 | L217: 1396.08 | M217: -36.14935421 | N217: 3874.425968 | O217: 310150.6085 | P217: 126113.8885 | Q217: 184036.72 | R217: 105.5994949 | T217: 0 | U217: 0 | V217: 2 | W217: 42621 | X217: 2016-09-08 | Y217: 2182.76001 | Z217: 2184.939941 | AA217: 2177.48999 | AB217: 2181.300049 | AD217: 305672.8559 | AE217: 118480.1734 | AF217: 187192.6825 | AG217: 106.4069015 | AH217: 61820.27274 | AI217: 0 | AJ217: 0 | AL217: 292862.5254 | AM217: 137138.9513 | AN217: 155723.5741 | AO217: 89.75780569 | AP217: 43882.99281 | AQ217: 0 | AR217: 0 | AT217: 4477.75255 | AU217: 17288.08303 | AV217: 2400 | AW217: 0 | AX217: 120 | AZ217: 2016-09-08 | BA217: 492.9268967
A218: 0 | B218: 0 | C218: 0 | D218: 0 | E218: 2590.27 | F218: 18.46752772 | G218: -46493.11161 | H218: 54770.8623 | I218: 0 | J218: 0 | K218: 0 | L218: 1396.08 | M218: -36.14935421 | N218: 3874.425968 | O218: 310521.5143 | P218: 126106.9515 | Q218: 184414.5628 | R218: 105.5994949 | T218: 404.358933 | U218: 1 | V218: 1 | W218: 42620 | X218: 2016-09-07 | Y218: 2185.169922 | Z218: 2187.870117 | AA218: 2179.070068 | AB218: 2186.159912 | AD218: 306047.0706 | AE218: 118473.6563 | AF218: 187573.4143 | AG218: 106.4069015 | AH218: 61820.27274 | AI218: 0.09252345297 | AJ218: 1 | AL218: 293176.1421 | AM218: 137131.4079 | AN218: 156044.7342 | AO218: 89.75780569 | AP218: 43882.99281 | AQ218: 0 | AR218: 0 | AT218: 4474.443691 | AU218: 17345.37221 | AV218: 2400 | AW218: 0 | AX218: 120 | AZ218: 2016-09-07 | BA218: 494.0251212
A219: 0 | B219: 0 | C219: 0 | D219: 0 | E219: 2576.64 | F219: 18.03894823 | G219: -46331.29461 | H219: 54770.8623 | I219: 0 | J219: 0 | K219: 0 | L219: 1386.76 | M219: -36.47078883 | N219: 3860.941218 | O219: 309954.0774 | P219: 125514.6301 | Q219: 184439.4473 | R219: 105.5994949 | T219: 0 | U219: 0 | V219: 21 | W219: 42619 | X219: 2016-09-06 | Y219: 2181.610107 | Z219: 2186.570068 | AA219: 2175.100098 | AB219: 2186.47998 | AD219: 305477.2411 | AE219: 118081.0208 | AF219: 187396.2204 | AG219: 106.314378 | AH219: 61618.09328 | AI219: 0 | AJ219: 0 | AL219: 292632.2176 | AM219: 136566.3319 | AN219: 156065.8856 | AO219: 89.75780569 | AP219: 43882.99281 | AQ219: 0 | AR219: 0 | AT219: 4476.836318 | AU219: 17321.85987 | AV219: 2400 | AW219: 0 | AX219: 120 | AZ219: 2016-09-06 | BA219: 494.0974497
A220: 0 | B220: 0 | C220: 0 | D220: 0 | E220: 2576.64 | F220: 18.03894823 | G220: -46331.29461 | H220: 54770.8623 | I220: 0 | J220: 0 | K220: 0 | L220: 1386.76 | M220: -36.47078883 | N220: 3860.941218 | O220: 309421.104 | P220: 125487.0163 | Q220: 183934.0877 | R220: 105.5994949 | T220: 0 | U220: 0 | V220: 20 | W220: 42615 | X220: 2016-09-02 | Y220: 2177.48999 | Z220: 2184.870117 | AA220: 2173.590088 | AB220: 2179.97998 | AD220: 304942.482 | AE220: 118055.0423 | AF220: 186887.4396 | AG220: 106.314378 | AH220: 61618.09328 | AI220: 0 | AJ220: 0 | AL220: 292172.6251 | AM220: 136536.2867 | AN220: 155636.3384 | AO220: 89.75780569 | AP220: 43882.99281 | AQ220: 0 | AR220: 0 | AT220: 4478.62205 | AU220: 17248.47891 | AV220: 2400 | AW220: 0 | AX220: 120 | AZ220: 2016-09-02 | BA220: 492.6285895
A221: 0 | B221: 0 | C221: 0 | D221: 0 | E221: 2576.64 | F221: 18.03894823 | G221: -46331.29461 | H221: 54770.8623 | I221: 0 | J221: 0 | K221: 0 | L221: 1386.76 | M221: -36.47078883 | N221: 3860.941218 | O221: 308705.153 | P221: 125480.1138 | Q221: 183225.0392 | R221: 105.5994949 | T221: 0 | U221: 0 | V221: 19 | W221: 42614 | X221: 2016-09-01 | Y221: 2171.330078 | Z221: 2173.560059 | AA221: 2157.090088 | AB221: 2170.860107 | AD221: 304222.1397 | AE221: 118048.5486 | AF221: 186173.591 | AG221: 106.314378 | AH221: 61618.09328 | AI221: 0 | AJ221: 0 | AL221: 291562.4354 | AM221: 136528.7764 | AN221: 155033.6591 | AO221: 89.75780569 | AP221: 43882.99281 | AQ221: 0 | AR221: 0 | AT221: 4483.013336 | AU221: 17142.71756 | AV221: 2400 | AW221: 0 | AX221: 120 | AZ221: 2016-09-01 | BA221: 490.5676943
A222: 0 | B222: 0 | C222: 0 | D222: 0 | E222: 2576.64 | F222: 18.03894823 | G222: -46331.29461 | H222: 54770.8623 | I222: 0 | J222: 0 | K222: 0 | L222: 1386.76 | M222: -36.47078883 | N222: 3860.941218 | O222: 308705.236 | P222: 125473.2116 | Q222: 183232.0244 | R222: 105.5994949 | T222: 0 | U222: 0 | V222: 18 | W222: 42613 | X222: 2016-08-31 | Y222: 2173.560059 | Z222: 2173.790039 | AA222: 2161.350098 | AB222: 2170.949951 | AD222: 304222.6788 | AE222: 118042.0553 | AF222: 186180.6235 | AG222: 106.314378 | AH222: 61618.09328 | AI222: 0 | AJ222: 0 | AL222: 291560.8628 | AM222: 136521.2665 | AN222: 155039.5963 | AO222: 89.75780569 | AP222: 43882.99281 | AQ222: 0 | AR222: 0 | AT222: 4482.557269 | AU222: 17144.37319 | AV222: 2400 | AW222: 0 | AX222: 120 | AZ222: 2016-08-31 | BA222: 490.5879971
A223: 0 | B223: 0 | C223: 0 | D223: 0 | E223: 2576.64 | F223: 18.03894823 | G223: -46331.29461 | H223: 54770.8623 | I223: 0 | J223: 0 | K223: 0 | L223: 1386.76 | M223: -36.47078883 | N223: 3860.941218 | O223: 309107.2042 | P223: 125473.2116 | Q223: 183633.9925 | R223: 105.5994949 | T223: 0 | U223: 0 | V223: 17 | W223: 42612 | X223: 2016-08-30 | Y223: 2179.449951 | Z223: 2182.27002 | AA223: 2170.409912 | AB223: 2176.120117 | AD223: 304627.3681 | AE223: 118042.0553 | AF223: 186585.3129 | AG223: 106.314378 | AH223: 61618.09328 | AI223: 0 | AJ223: 0 | AL223: 291902.529 | AM223: 136521.2665 | AN223: 155381.2625 | AO223: 89.75780569 | AP223: 43882.99281 | AQ223: 0 | AR223: 0 | AT223: 4479.836041 | AU223: 17204.67513 | AV223: 2400 | AW223: 0 | AX223: 120 | AZ223: 2016-08-30 | BA223: 491.7563435
A224: 0 | B224: 0 | C224: 0 | D224: 0 | E224: 2576.64 | F224: 18.03894823 | G224: -46331.29461 | H224: 54770.8623 | I224: 0 | J224: 0 | K224: 0 | L224: 1386.76 | M224: -36.47078883 | N224: 3860.941218 | O224: 309431.4891 | P224: 125466.3099 | Q224: 183965.1792 | R224: 105.5994949 | T224: 0 | U224: 0 | V224: 16 | W224: 42611 | X224: 2016-08-29 | Y224: 2170.189941 | Z224: 2183.47998 | AA224: 2170.189941 | AB224: 2180.379883 | AD224: 304954.3039 | AE224: 118035.5623 | AF224: 186918.7416 | AG224: 106.314378 | AH224: 61618.09328 | AI224: 0 | AJ224: 0 | AL224: 292176.5227 | AM224: 136513.7571 | AN224: 155662.7657 | AO224: 89.75780569 | AP224: 43882.99281 | AQ224: 0 | AR224: 0 | AT224: 4477.185231 | AU224: 17254.96638 | AV224: 2400 | AW224: 0 | AX224: 120 | AZ224: 2016-08-29 | BA224: 492.718959
A225: 0 | B225: 0 | C225: 0 | D225: 0 | E225: 2576.64 | F225: 18.03894823 | G225: -46331.29461 | H225: 54770.8623 | I225: 0 | J225: 0 | K225: 0 | L225: 1386.76 | M225: -36.47078883 | N225: 3860.941218 | O225: 308529.1402 | P225: 125445.6069 | Q225: 183083.5333 | R225: 105.5994949 | T225: 0 | U225: 0 | V225: 15 | W225: 42608 | X225: 2016-08-26 | Y225: 2175.100098 | Z225: 2187.939941 | AA225: 2160.389893 | AB225: 2169.040039 | AD225: 304047.2125 | AE225: 118016.0854 | AF225: 186031.1271 | AG225: 106.314378 | AH225: 61618.09328 | AI225: 0 | AJ225: 0 | AL225: 291404.6125 | AM225: 136491.2312 | AN225: 154913.3813 | AO225: 89.75780569 | AP225: 43882.99281 | AQ225: 0 | AR225: 0 | AT225: 4481.927626 | AU225: 17124.52767 | AV225: 2400 | AW225: 0 | AX225: 120 | AZ225: 2016-08-26 | BA225: 490.1563981
A226: 0 | B226: 0 | C226: 0 | D226: 0 | E226: 2576.64 | F226: 18.03894823 | G226: -46331.29461 | H226: 54770.8623 | I226: 0 | J226: 0 | K226: 0 | L226: 1386.76 | M226: -36.47078883 | N226: 3860.941218 | O226: 308788.909 | P226: 125438.7067 | Q226: 183350.2023 | R226: 105.5994949 | T226: 0 | U226: 0 | V226: 14 | W226: 42607 | X226: 2016-08-25 | Y226: 2173.290039 | Z226: 2179 | AA226: 2169.73999 | AB226: 2172.469971 | AD226: 304309.1953 | AE226: 118009.5939 | AF226: 186299.6015 | AG226: 106.314378 | AH226: 61618.09328 | AI226: 0 | AJ226: 0 | AL226: 291623.7689 | AM226: 136483.7233 | AN226: 155140.0456 | AO226: 89.75780569 | AP226: 43882.99281 | AQ226: 0 | AR226: 0 | AT226: 4479.713674 | AU226: 17165.14006 | AV226: 2400 | AW226: 0 | AX226: 120 | AZ226: 2016-08-25 | BA226: 490.931489
A227: 0 | B227: 0 | C227: 0 | D227: 0 | E227: 2576.64 | F227: 18.03894823 | G227: -46331.29461 | H227: 54770.8623 | I227: 0 | J227: 0 | K227: 0 | L227: 1386.76 | M227: -36.47078883 | N227: 3860.941218 | O227: 309012.9173 | P227: 125431.8068 | Q227: 183581.1105 | R227: 105.5994949 | T227: 0 | U227: 0 | V227: 13 | W227: 42606 | X227: 2016-08-24 | Y227: 2185.090088 | Z227: 2186.659912 | AA227: 2171.25 | AB227: 2175.439941 | AD227: 304535.1754 | AE227: 118003.1027 | AF227: 186532.0728 | AG227: 106.314378 | AH227: 61618.09328 | AI227: 0 | AJ227: 0 | AL227: 291812.5296 | AM227: 136476.216 | AN227: 155336.3136 | AO227: 89.75780569 | AP227: 43882.99281 | AQ227: 0 | AR227: 0 | AT227: 4477.741838 | AU227: 17200.38768 | AV227: 2400 | AW227: 0 | AX227: 120 | AZ227: 2016-08-24 | BA227: 491.6026383
A228: 0 | B228: 0 | C228: 0 | D228: 0 | E228: 2576.64 | F228: 18.03894823 | G228: -46331.29461 | H228: 54770.8623 | I228: 0 | J228: 0 | K228: 0 | L228: 1386.76 | M228: -36.47078883 | N228: 3860.941218 | O228: 309897.0026 | P228: 125424.9073 | Q228: 184472.0952 | R228: 105.5994949 | T228: 0 | U228: 0 | V228: 12 | W228: 42605 | X228: 2016-08-23 | Y228: 2187.810059 | Z228: 2193.419922 | AA228: 2186.800049 | AB228: 2186.899902 | AD228: 305425.7011 | AE228: 117996.6118 | AF228: 187429.0893 | AG228: 106.314378 | AH228: 61618.09328 | AI228: 0 | AJ228: 0 | AL228: 292562.3448 | AM228: 136468.709 | AN228: 156093.6358 | AO228: 89.75780569 | AP228: 43882.99281 | AQ228: 0 | AR228: 0 | AT228: 4471.301464 | AU228: 17334.65779 | AV228: 2400 | AW228: 0 | AX228: 120 | AZ228: 2016-08-23 | BA228: 494.192343
A229: =C229 - B229*(E229-$AB$7701)*KESt% -> 0 | B229: =C229/E229 -> 0 | C229: =D229 * ($O230*prozRK3%*(1-prozRK3%)*-dKverk%) -> 0 | D229: =IF($Z229>=E229, 1, 0) -> 0 | E229: =IF(OR($U229=1, D230=1), ROUND($AB230*(1+F229%), 2), E230) -> 2576.64 | F229: =IF(OR($U229=1, D230=1), ((($O230 -$Q230 -$G229)*prozRK3%/(1-prozRK3%) -$G229) / $Q230 -1)*100, F230) -> 18.03894823 | G229: =IF(OR($U229=1, D230=1), O230*prozRK3%*(1-prozRK3%)*-dKfixVerk%, G230) -> -46331.29461 | H229: 54770.8623 | I229: =J229/L229 -> 0 | J229: =K229 * ($O230*prozRK3%*(1-prozRK3%)*-dKkauf%) -> 0 | K229: =IF($AA229<=L229, 1, 0) -> 0 | L229: =IF(OR($U229=1, K230=1), ROUND($AB230*(1+M229%), 2), L230) -> 1386.76 | M229: =IF(OR($U229=1, K230=1), ((($O230 -$Q230 -$N229)*prozRK3%/(1-prozRK3%) -$N229) / $Q230 -1)*100, M230) -> -36.47078883 | N229: =IF(OR($U229=1, K230=1), O230*prozRK3%*(1-prozRK3%)*-dKfixKauf%, N230) -> 3860.941218 | O229: =P229+Q229 -> 309558.8979 | P229: =P230*(1+Zins%)^(DAYS360($X230,$X229)/360) +$T229 -J229 +-A229 +$U229*Q230*Dividende%/12 -> 125418.0082 | Q229: =R229*AB229 - (R229*AB229-H229)*KESt% -> 184140.8896 | R229: =R230 + I229 + B229 -> 105.5994949 | T229: =U229 * Teinz*(1+Terhoehung%)^(DAYS360(DatumMin, $X229)/360) -> 0 | U229: =IF(V229=1, 1, 0) -> 0 | V229: =V230+1 +IF(V230=$V$14, -$V$14, 0) -> 11 | W229: 42604 | X229: 2016-08-22 | Y229: 2181.580078 | Z229: 2185.149902 | AA229: 2175.959961 | AB229: 2182.639893 | AD229: =AE229+AF229 -> 305085.7628 | AE229: =AE230*(1+Zins%)^(DAYS360($X230,$X229)/360) +$T229*(1-prozRK3%) +$U229*AF230*Dividende%/12 -> 117990.1213 | AF229: =$AB229*AG229 - ($AB229*AG229 -AH229)*KESt% -> 187095.6415 | AG229: 106.314378 | AH229: =AH230 + $T229*prozRK3% -> 61618.09328 | AI229: =$T229*prozRK3% / $Y229 -> 0 | AJ229: 0 | AL229: =AM229+AN229 -> 292273.319 | AM229: =AM230*(1+Zins%)^(DAYS360($X230,$X229)/360) + $T229 -AR229*$T229 +$U229*AN230*Dividende%/12 -> 136461.2024 | AN229: =AB229*AO229 - (AB229*AO229 -AP229)*KESt% -> 155812.1166 | AO229: 89.75780569 | AP229: 43882.99281 | AQ229: =T229 * AR229 / Y229 -> 0 | AR229: =$U229 * IF($AL230*prozRK3%>$AN230, 1, 0) -> 0 | AT229: =O229-AD229 -> 4473.135047 | AU229: =O229-AL229 -> 17285.57889 | AV229: =$AV$3-- $C229*$AV$5 -> 2400 | AW229: =$AW$3 + $J229*$AW$5 -> 0 | AX229: 120 | AZ229: 2016-08-22 | BA229: 493.2296726
A230: 0 | B230: 0 | C230: 0 | D230: 0 | E230: 2576.64 | F230: 18.03894823 | G230: -46331.29461 | H230: =H231 + J230 -> 54770.8623 | I230: 0 | J230: 0 | K230: 0 | L230: 1386.76 | M230: -36.47078883 | N230: 3860.941218 | O230: 309633.8499 | P230: 125397.3132 | Q230: 184236.5366 | R230: 105.5994949 | T230: 0 | U230: 0 | V230: 10 | W230: =DATE(YEAR(X230),MONTH(X230),DAY(X230)) -> 42601 | X230: 2016-08-19 | Y230: 2184.23999 | Z230: 2185 | AA230: 2175.129883 | AB230: 2183.870117 | AD230: 305162.588 | AE230: 117970.652 | AF230: 187191.936 | AG230: =AG231 + AI230 -> 106.314378 | AH230: 61618.09328 | AI230: 0 | AJ230: =$U230 -> 0 | AL230: 292332.1001 | AM230: 136438.6852 | AN230: 155893.415 | AO230: =AO231 + AQ230 -> 89.75780569 | AP230: =AP231 + AR230*T230 -> 43882.99281 | AQ230: 0 | AR230: 0 | AT230: 4471.261877 | AU230: 17301.74976 | AV230: 2400 | AW230: 0 | AX230: =$AX$3 + AR230 * T230 * $AX$5 -> 120 | AZ230: =$X230 -> 2016-08-19 | BA230: =$AB230/$AB$6162 *100 -> 493.5076768
A231: 0 | B231: 0 | C231: 0 | D231: 0 | E231: 2576.64 | F231: 18.03894823 | G231: -46331.29461 | H231: 54770.8623 | I231: 0 | J231: 0 | K231: 0 | L231: 1386.76 | M231: -36.47078883 | N231: 3860.941218 | O231: 309871.8498 | P231: 125390.4157 | Q231: 184481.4341 | R231: 105.5994949 | T231: 0 | U231: 0 | V231: 9 | W231: 42600 | X231: 2016-08-18 | Y231: 2181.899902 | Z231: 2187.030029 | AA231: 2180.459961 | AB231: 2187.02002 | AD231: 305402.6543 | AE231: 117964.1629 | AF231: 187438.4914 | AG231: 106.314378 | AH231: 61618.09328 | AI231: 0 | AJ231: 0 | AL231: 292532.754 | AM231: 136431.1803 | AN231: 156101.5737 | AO231: 89.75780569 | AP231: 43882.99281 | AQ231: 0 | AR231: 0 | AT231: 4469.195471 | AU231: 17339.09581 | AV231: 2400 | AW231: 0 | AX231: 120 | AZ231: 2016-08-18 | BA231: 494.2194871
A232: 0 | B232: 0 | C232: 0 | D232: 0 | E232: 2576.64 | F232: 18.03894823 | G232: -46331.29461 | H232: 54770.8623 | I232: 0 | J232: 0 | K232: 0 | L232: 1386.76 | M232: -36.47078883 | N232: 3860.941218 | O232: 309491.7602 | P232: 125383.5185 | Q232: 184108.2417 | R232: 105.5994949 | T232: 0 | U232: 0 | V232: 8 | W232: 42599 | X232: 2016-08-17 | Y232: 2177.840088 | Z232: 2183.080078 | AA232: 2168.5 | AB232: 2182.219971 | AD232: 305020.4468 | AE232: 117957.6742 | AF232: 187062.7726 | AG232: 106.314378 | AH232: 61618.09328 | AI232: 0 | AJ232: 0 | AL232: 292208.0422 | AM232: 136423.6758 | AN232: 155784.3664 | AO232: 89.75780569 | AP232: 43882.99281 | AQ232: 0 | AR232: 0 | AT232: 4471.313406 | AU232: 17283.71802 | AV232: 2400 | AW232: 0 | AX232: 120 | AZ232: 2016-08-17 | BA232: 493.1347793
A233: 0 | B233: 0 | C233: 0 | D233: 0 | E233: 2576.64 | F233: 18.03894823 | G233: -46331.29461 | H233: 54770.8623 | I233: 0 | J233: 0 | K233: 0 | L233: 1386.76 | M233: -36.47078883 | N233: 3860.941218 | O233: 309168.4251 | P233: 125376.6216 | Q233: 183791.8035 | R233: 105.5994949 | T233: 0 | U233: 0 | V233: 7 | W233: 42598 | X233: 2016-08-16 | Y233: 2186.23999 | Z233: 2186.23999 | AA233: 2178.139893 | AB233: 2178.149902 | AD233: 304695.378 | AE233: 117951.1858 | AF233: 186744.1922 | AG233: 106.314378 | AH233: 61618.09328 | AI233: 0 | AJ233: 0 | AL233: 291931.5709 | AM233: 136416.1717 | AN233: 155515.3992 | AO233: 89.75780569 | AP233: 43882.99281 | AQ233: 0 | AR233: 0 | AT233: 4473.047152 | AU233: 17236.85427 | AV233: 2400 | AW233: 0 | AX233: 120 | AZ233: 2016-08-16 | BA233: 492.2150312
A234: 0 | B234: 0 | C234: 0 | D234: 0 | E234: 2576.64 | F234: 18.03894823 | G234: -46331.29461 | H234: 54770.8623 | I234: 0 | J234: 0 | K234: 0 | L234: 1386.76 | M234: -36.47078883 | N234: 3860.941218 | O234: 310094.5002 | P234: 125369.7252 | Q234: 184724.775 | R234: 105.5994949 | T234: 0 | U234: 0 | V234: 6 | W234: 42597 | X234: 2016-08-15 | Y234: 2186.080078 | Z234: 2193.810059 | AA234: 2186.080078 | AB234: 2190.149902 | AD234: 305628.1775 | AE234: 117944.6978 | AF234: 187683.4797 | AG234: 106.314378 | AH234: 61618.09328 | AI234: 0 | AJ234: 0 | AL234: 292717.0774 | AM234: 136408.668 | AN234: 156308.4094 | AO234: 89.75780569 | AP234: 43882.99281 | AQ234: 0 | AR234: 0 | AT234: 4466.322718 | AU234: 17377.42283 | AV234: 2400 | AW234: 0 | AX234: 120 | AZ234: 2016-08-15 | BA234: 494.9267731
A235: 0 | B235: 0 | C235: 0 | D235: 0 | E235: 2576.64 | F235: 18.03894823 | G235: -46331.29461 | H235: 54770.8623 | I235: 0 | J235: 0 | K235: 0 | L235: 1386.76 | M235: -36.47078883 | N235: 3860.941218 | O235: 309599.5641 | P235: 125349.0382 | Q235: 184250.5259 | R235: 105.5994949 | T235: 0 | U235: 0 | V235: 5 | W235: 42594 | X235: 2016-08-12 | Y235: 2183.73999 | Z235: 2186.280029 | AA235: 2179.419922 | AB235: 2184.050049 | AD235: 305131.256 | AE235: 117925.236 | AF235: 187206.02 | AG235: 106.314378 | AH235: 61618.09328 | AI235: 0 | AJ235: 0 | AL235: 292291.465 | AM235: 136386.1594 | AN235: 155905.3056 | AO235: 89.75780569 | AP235: 43882.99281 | AQ235: 0 | AR235: 0 | AT235: 4468.308079 | AU235: 17308.09906 | AV235: 2400 | AW235: 0 | AX235: 120 | AZ235: 2016-08-12 | BA235: 493.5483375
A236: 0 | B236: 0 | C236: 0 | D236: 0 | E236: 2576.64 | F236: 18.03894823 | G236: -46331.29461 | H236: 54770.8623 | I236: 0 | J236: 0 | K236: 0 | L236: 1386.76 | M236: -36.47078883 | N236: 3860.941218 | O236: 309727.9493 | P236: 125342.1432 | Q236: 184385.806 | R236: 105.5994949 | T236: 0 | U236: 0 | V236: 4 | W236: 42593 | X236: 2016-08-11 | Y236: 2177.969971 | Z236: 2188.449951 | AA236: 2177.969971 | AB236: 2185.790039 | AD236: 305260.9654 | AE236: 117918.7494 | AF236: 187342.2159 | AG236: 106.314378 | AH236: 61618.09328 | AI236: 0 | AJ236: 0 | AL236: 292398.9488 | AM236: 136378.6574 | AN236: 156020.2914 | AO236: 89.75780569 | AP236: 43882.99281 | AQ236: 0 | AR236: 0 | AT236: 4466.983914 | AU236: 17329.00044 | AV236: 2400 | AW236: 0 | AX236: 120 | AZ236: 2016-08-11 | BA236: 493.9415379
A237: 0 | B237: 0 | C237: 0 | D237: 0 | E237: 2576.64 | F237: 18.03894823 | G237: -46331.29461 | H237: 54770.8623 | I237: 0 | J237: 0 | K237: 0 | L237: 1386.76 | M237: -36.47078883 | N237: 3860.941218 | O237: 308920.2503 | P237: 125335.2487 | Q237: 183585.0017 | R237: 105.5994949 | T237: 0 | U237: 0 | V237: 3 | W237: 42592 | X237: 2016-08-10 | Y237: 2182.810059 | Z237: 2183.409912 | AA237: 2172 | AB237: 2175.48999 | AD237: 304448.2535 | AE237: 117912.2632 | AF237: 186535.9903 | AG237: 106.314378 | AH237: 61618.09328 | AI237: 0 | AJ237: 0 | AL237: 291710.7769 | AM237: 136371.1558 | AN237: 155339.6211 | AO237: 89.75780569 | AP237: 43882.99281 | AQ237: 0 | AR237: 0 | AT237: 4471.996836 | AU237: 17209.47347 | AV237: 2400 | AW237: 0 | AX237: 120 | AZ237: 2016-08-10 | BA237: 491.6139483
A238: 0 | B238: 0 | C238: 0 | D238: 0 | E238: 2576.64 | F238: 18.03894823 | G238: -46331.29461 | H238: 54770.8623 | I238: 0 | J238: 0 | K238: 0 | L238: 1386.76 | M238: -36.47078883 | N238: 3860.941218 | O238: 309399.2789 | P238: 125328.3545 | Q238: 184070.9243 | R238: 105.5994949 | T238: 0 | U238: 0 | V238: 2 | W238: 42591 | X238: 2016-08-09 | Y238: 2182.23999 | Z238: 2187.659912 | AA238: 2178.610107 | AB238: 2181.73999 | AD238: 304930.9799 | AE238: 117905.7773 | AF238: 187025.2026 | AG238: 106.314378 | AH238: 61618.09328 | AI238: 0 | AJ238: 0 | AL238: 292116.3018 | AM238: 136363.6546 | AN238: 155752.6472 | AO238: 89.75780569 | AP238: 43882.99281 | AQ238: 0 | AR238: 0 | AT238: 4468.29895 | AU238: 17282.97703 | AV238: 2400 | AW238: 0 | AX238: 120 | AZ238: 2016-08-09 | BA238: 493.0263139
A239: 0 | B239: 0 | C239: 0 | D239: 0 | E239: 2576.64 | F239: 18.03894823 | G239: -46331.29461 | H239: 54770.8623 | I239: 0 | J239: 0 | K239: 0 | L239: 1386.76 | M239: -36.47078883 | N239: 3860.941218 | O239: 309326.292 | P239: 125321.4607 | Q239: 184004.8313 | R239: 105.5994949 | T239: 403.5871436 | U239: 1 | V239: 1 | W239: 42590 | X239: 2016-08-08 | Y239: 2183.76001 | Z239: 2185.439941 | AA239: 2177.850098 | AB239: 2180.889893 | AD239: 304857.9539 | AE239: 117899.2918 | AF239: 186958.6621 | AG239: 106.314378 | AH239: 61618.09328 | AI239: 0.09240647822 | AJ239: 1 | AL239: 292052.6231 | AM239: 136356.1538 | AN239: 155696.4693 | AO239: 89.75780569 | AP239: 43882.99281 | AQ239: 0 | AR239: 0 | AT239: 4468.338099 | AU239: 17273.66898 | AV239: 2400 | AW239: 0 | AX239: 120 | AZ239: 2016-08-08 | BA239: 492.8342103
A240: 0 | B240: 0 | C240: 0 | D240: 0 | E240: 2533.25 | F240: 20.75158821 | G240: -45225.01016 | H240: 54770.8623 | I240: 0 | J240: 0 | K240: 0 | L240: 1375.46 | M240: -34.43630884 | N240: 3768.750846 | O240: 308875.2974 | P240: 124716.5084 | Q240: 184158.789 | R240: 105.5994949 | T240: 0 | U240: 0 | V240: 21 | W240: 42587 | X240: 2016-08-05 | Y240: 2168.790039 | Z240: 2182.870117 | AA240: 2168.790039 | AB240: 2182.870117 | AD240: 304406.5513 | AE240: 117494.6223 | AF240: 186911.9291 | AG240: 106.2219715 | AH240: 61416.2997 | AI240: 0 | AJ240: 0 | AL240: 291604.5189 | AM240: 135777.1881 | AN240: 155827.3308 | AO240: 89.75780569 | AP240: 43882.99281 | AQ240: 0 | AR240: 0 | AT240: 4468.746097 | AU240: 17270.77857 | AV240: 2400 | AW240: 0 | AX240: 120 | AZ240: 2016-08-05 | BA240: 493.2816983
A241: 0 | B241: 0 | C241: 0 | D241: 0 | E241: 2533.25 | F241: 20.75158821 | G241: -45225.01016 | H241: 54770.8623 | I241: 0 | J241: 0 | K241: 0 | L241: 1375.46 | M241: -34.43630884 | N241: 3768.750846 | O241: 307420.7674 | P241: 124709.6483 | Q241: 182711.1191 | R241: 105.5994949 | T241: 0 | U241: 0 | V241: 20 | W241: 42586 | X241: 2016-08-04 | Y241: 2163.51001 | Z241: 2168.189941 | AA241: 2159.070068 | AB241: 2164.25 | AD241: 302943.8849 | AE241: 117488.1594 | AF241: 185455.7256 | AG241: 106.2219715 | AH241: 61416.2997 | AI241: 0 | AJ241: 0 | AL241: 290366.5551 | AM241: 135769.7196 | AN241: 154596.8355 | AO241: 89.75780569 | AP241: 43882.99281 | AQ241: 0 | AR241: 0 | AT241: 4476.882422 | AU241: 17054.21228 | AV241: 2400 | AW241: 0 | AX241: 120 | AZ241: 2016-08-04 | BA241: 489.0739523
A242: 0 | B242: 0 | C242: 0 | D242: 0 | E242: 2533.25 | F242: 20.75158821 | G242: -45225.01016 | H242: 54770.8623 | I242: 0 | J242: 0 | K242: 0 | L242: 1375.46 | M242: -34.43630884 | N242: 3768.750846 | O242: 307378.1467 | P242: 124702.7885 | Q242: 182675.3582 | R242: 105.5994949 | T242: 0 | U242: 0 | V242: 19 | W242: 42585 | X242: 2016-08-03 | Y242: 2156.810059 | Z242: 2163.790039 | AA242: 2152.560059 | AB242: 2163.790039 | AD242: 302901.4507 | AE242: 117481.6969 | AF242: 185419.7539 | AG242: 106.2219715 | AH242: 61416.2997 | AI242: 0 | AJ242: 0 | AL242: 290328.6908 | AM242: 135762.2514 | AN242: 154566.4394 | AO242: 89.75780569 | AP242: 43882.99281 | AQ242: 0 | AR242: 0 | AT242: 4476.695998 | AU242: 17049.45592 | AV242: 2400 | AW242: 0 | AX242: 120 | AZ242: 2016-08-03 | BA242: 488.970011
A243: 0 | B243: 0 | C243: 0 | D243: 0 | E243: 2533.25 | F243: 20.75158821 | G243: -45225.01016 | H243: 54770.8623 | I243: 0 | J243: 0 | K243: 0 | L243: 1375.46 | M243: -34.43630884 | N243: 3768.750846 | O243: 306845.7126 | P243: 124695.9291 | Q243: 182149.7835 | R243: 105.5994949 | T243: 0 | U243: 0 | V243: 18 | W243: 42584 | X243: 2016-08-02 | Y243: 2169.939941 | Z243: 2170.199951 | AA243: 2147.580078 | AB243: 2157.030029 | AD243: 302366.3157 | AE243: 117475.2347 | AF243: 184891.081 | AG243: 106.2219715 | AH243: 61416.2997 | AI243: 0 | AJ243: 0 | AL243: 289874.4934 | AM243: 135754.7837 | AN243: 154119.7096 | AO243: 89.75780569 | AP243: 43882.99281 | AQ243: 0 | AR243: 0 | AT243: 4479.396898 | AU243: 16971.21926 | AV243: 2400 | AW243: 0 | AX243: 120 | AZ243: 2016-08-02 | BA243: 487.4423942
A244: 0 | B244: 0 | C244: 0 | D244: 0 | E244: 2533.25 | F244: 20.75158821 | G244: -45225.01016 | H244: 54770.8623 | I244: 0 | J244: 0 | K244: 0 | L244: 1375.46 | M244: -34.43630884 | N244: 3768.750846 | O244: 307912.553 | P244: 124689.0702 | Q244: 183223.4828 | R244: 105.5994949 | T244: 0 | U244: 0 | V244: 17 | W244: 42583 | X244: 2016-08-01 | Y244: 2173.149902 | Z244: 2178.290039 | AA244: 2166.209961 | AB244: 2170.840088 | AD244: 303439.8824 | AE244: 117468.7729 | AF244: 185971.1095 | AG244: 106.2219715 | AH244: 61416.2997 | AI244: 0 | AJ244: 0 | AL244: 290779.6525 | AM244: 135747.3164 | AN244: 155032.3361 | AO244: 89.75780569 | AP244: 43882.99281 | AQ244: 0 | AR244: 0 | AT244: 4472.67059 | AU244: 17132.90041 | AV244: 2400 | AW244: 0 | AX244: 120 | AZ244: 2016-08-01 | BA244: 490.5631705
A245: 0 | B245: 0 | C245: 0 | D245: 0 | E245: 2533.25 | F245: 20.75158821 | G245: -45225.01016 | H245: 54770.8623 | I245: 0 | J245: 0 | K245: 0 | L245: 1375.46 | M245: -34.43630884 | N245: 3768.750846 | O245: 308113.4203 | P245: 124675.3533 | Q245: 183438.067 | R245: 105.5994949 | T245: 0 | U245: 0 | V245: 16 | W245: 42580 | X245: 2016-07-29 | Y245: 2168.830078 | Z245: 2177.090088 | AA245: 2163.48999 | AB245: 2173.600098 | AD245: 303642.8089 | AE245: 117455.8503 | AF245: 186186.9586 | AG245: 106.2219715 | AH245: 61416.2997 | AI245: 0 | AJ245: 0 | AL245: 290947.1122 | AM245: 135732.3831 | AN245: 155214.7291 | AO245: 89.75780569 | AP245: 43882.99281 | AQ245: 0 | AR245: 0 | AT245: 4470.611387 | AU245: 17166.30813 | AV245: 2400 | AW245: 0 | AX245: 120 | AZ245: 2016-07-29 | BA245: 491.1868734
A246: 0 | B246: 0 | C246: 0 | D246: 0 | E246: 2533.25 | F246: 20.75158821 | G246: -45225.01016 | H246: 54770.8623 | I246: 0 | J246: 0 | K246: 0 | L246: 1375.46 | M246: -34.43630884 | N246: 3768.750846 | O246: 307831.3328 | P246: 124668.4954 | Q246: 183162.8374 | R246: 105.5994949 | T246: 0 | U246: 0 | V246: 15 | W246: 42579 | X246: 2016-07-28 | Y246: 2166.050049 | Z246: 2172.850098 | AA246: 2159.73999 | AB246: 2170.060059 | AD246: 303359.4961 | AE246: 117449.3895 | AF246: 185910.1066 | AG246: 106.2219715 | AH246: 61416.2997 | AI246: 0 | AJ246: 0 | AL246: 290705.7055 | AM246: 135724.917 | AN246: 154980.7885 | AO246: 89.75780569 | AP246: 43882.99281 | AQ246: 0 | AR246: 0 | AT246: 4471.836667 | AU246: 17125.62728 | AV246: 2400 | AW246: 0 | AX246: 120 | AZ246: 2016-07-28 | BA246: 490.3869007
A247: 0 | B247: 0 | C247: 0 | D247: 0 | E247: 2533.25 | F247: 20.75158821 | G247: -45225.01016 | H247: 54770.8623 | I247: 0 | J247: 0 | K247: 0 | L247: 1375.46 | M247: -34.43630884 | N247: 3768.750846 | O247: 307553.9151 | P247: 124661.6379 | Q247: 182892.2771 | R247: 105.5994949 | T247: 0 | U247: 0 | V247: 14 | W247: 42578 | X247: 2016-07-27 | Y247: 2169.810059 | Z247: 2174.97998 | AA247: 2159.070068 | AB247: 2166.580078 | AD247: 303080.8806 | AE247: 117442.9292 | AF247: 185637.9515 | AG247: 106.2219715 | AH247: 61416.2997 | AI247: 0 | AJ247: 0 | AL247: 290468.2682 | AM247: 135717.4513 | AN247: 154750.8168 | AO247: 89.75780569 | AP247: 43882.99281 | AQ247: 0 | AR247: 0 | AT247: 4473.034444 | AU247: 17085.64689 | AV247: 2400 | AW247: 0 | AX247: 120 | AZ247: 2016-07-27 | BA247: 489.6004998
A248: 0 | B248: 0 | C248: 0 | D248: 0 | E248: 2533.25 | F248: 20.75158821 | G248: -45225.01016 | H248: 54770.8623 | I248: 0 | J248: 0 | K248: 0 | L248: 1375.46 | M248: -34.43630884 | N248: 3768.750846 | O248: 307749.1904 | P248: 124654.7808 | Q248: 183094.4096 | R248: 105.5994949 | T248: 0 | U248: 0 | V248: 13 | W248: 42577 | X248: 2016-07-26 | Y248: 2168.969971 | Z248: 2173.540039 | AA248: 2160.179932 | AB248: 2169.179932 | AD248: 303277.7446 | AE248: 117436.4691 | AF248: 185841.2755 | AG248: 106.2219715 | AH248: 61416.2997 | AI248: 0 | AJ248: 0 | AL248: 290632.6122 | AM248: 135709.9861 | AN248: 154922.6261 | AO248: 89.75780569 | AP248: 43882.99281 | AQ248: 0 | AR248: 0 | AT248: 4471.445864 | AU248: 17116.57827 | AV248: 2400 | AW248: 0 | AX248: 120 | AZ248: 2016-07-26 | BA248: 490.1880109
A249: 0 | B249: 0 | C249: 0 | D249: 0 | E249: 2533.25 | F249: 20.75158821 | G249: -45225.01016 | H249: 54770.8623 | I249: 0 | J249: 0 | K249: 0 | L249: 1375.46 | M249: -34.43630884 | N249: 3768.750846 | O249: 307687.9141 | P249: 124647.9241 | Q249: 183039.99 | R249: 105.5994949 | T249: 0 | U249: 0 | V249: 12 | W249: 42576 | X249: 2016-07-25 | Y249: 2173.709961 | Z249: 2173.709961 | AA249: 2161.949951 | AB249: 2168.47998 | AD249: 303216.5445 | AE249: 117430.0094 | AF249: 185786.5351 | AG249: 106.2219715 | AH249: 61416.2997 | AI249: 0 | AJ249: 0 | AL249: 290578.8916 | AM249: 135702.5213 | AN249: 154876.3703 | AO249: 89.75780569 | AP249: 43882.99281 | AQ249: 0 | AR249: 0 | AT249: 4471.369602 | AU249: 17109.02252 | AV249: 2400 | AW249: 0 | AX249: 120 | AZ249: 2016-07-25 | BA249: 490.0298368
A250: 0 | B250: 0 | C250: 0 | D250: 0 | E250: 2533.25 | F250: 20.75158821 | G250: -45225.01016 | H250: 54770.8623 | I250: 0 | J250: 0 | K250: 0 | L250: 1375.46 | M250: -34.43630884 | N250: 3768.750846 | O250: 308176.5969 | P250: 124627.3561 | Q250: 183549.2408 | R250: 105.5994949 | T250: 0 | U250: 0 | V250: 11 | W250: 42573 | X250: 2016-07-22 | Y250: 2166.469971 | Z250: 2175.110107 | AA250: 2163.23999 | AB250: 2175.030029 | AD250: 303709.4202 | AE250: 117410.6325 | AF250: 186298.7877 | AG250: 106.2219715 | AH250: 61416.2997 | AI250: 0 | AJ250: 0 | AL250: 290989.3542 | AM250: 135680.1292 | AN250: 155309.2249 | AO250: 89.75780569 | AP250: 43882.99281 | AQ250: 0 | AR250: 0 | AT250: 4467.17671 | AU250: 17187.24275 | AV250: 2400 | AW250: 0 | AX250: 120 | AZ250: 2016-07-22 | BA250: 491.510007
A251: 0 | B251: 0 | C251: 0 | D251: 0 | E251: 2533.25 | F251: 20.75158821 | G251: -45225.01016 | H251: 54770.8623 | I251: 0 | J251: 0 | K251: 0 | L251: 1375.46 | M251: -34.43630884 | N251: 3768.750846 | O251: 307403.1418 | P251: 124620.5009 | Q251: 182782.6408 | R251: 105.5994949 | T251: 0 | U251: 0 | V251: 10 | W251: 42572 | X251: 2016-07-21 | Y251: 2172.909912 | Z251: 2174.560059 | AA251: 2159.75 | AB251: 2165.169922 | AD251: 302931.8431 | AE251: 117404.1742 | AF251: 185527.6689 | AG251: 106.2219715 | AH251: 61416.2997 | AI251: 0 | AJ251: 0 | AL251: 290330.2939 | AM251: 135672.666 | AN251: 154657.6278 | AO251: 89.75780569 | AP251: 43882.99281 | AQ251: 0 | AR251: 0 | AT251: 4471.29862 | AU251: 17072.84791 | AV251: 2400 | AW251: 0 | AX251: 120 | AZ251: 2016-07-21 | BA251: 489.2818349
A252: 0 | B252: 0 | C252: 0 | D252: 0 | E252: 2533.25 | F252: 20.75158821 | G252: -45225.01016 | H252: 54770.8623 | I252: 0 | J252: 0 | K252: 0 | L252: 1375.46 | M252: -34.43630884 | N252: 3768.750846 | O252: 308006.6134 | P252: 124613.6461 | Q252: 183392.9673 | R252: 105.5994949 | T252: 0 | U252: 0 | V252: 9 | W252: 42571 | X252: 2016-07-20 | Y252: 2166.100098 | Z252: 2175.629883 | AA252: 2164.889893 | AB252: 2173.02002 | AD252: 303539.3094 | AE252: 117397.7163 | AF252: 186141.5931 | AG252: 106.2219715 | AH252: 61416.2997 | AI252: 0 | AJ252: 0 | AL252: 290841.5984 | AM252: 135665.2033 | AN252: 155176.3951 | AO252: 89.75780569 | AP252: 43882.99281 | AQ252: 0 | AR252: 0 | AT252: 4467.303992 | AU252: 17165.01502 | AV252: 2400 | AW252: 0 | AX252: 120 | AZ252: 2016-07-20 | BA252: 491.0557882
A253: 0 | B253: 0 | C253: 0 | D253: 0 | E253: 2533.25 | F253: 20.75158821 | G253: -45225.01016 | H253: 54770.8623 | I253: 0 | J253: 0 | K253: 0 | L253: 1375.46 | M253: -34.43630884 | N253: 3768.750846 | O253: 307281.3716 | P253: 124606.7916 | Q253: 182674.58 | R253: 105.5994949 | T253: 0 | U253: 0 | V253: 8 | W253: 42570 | X253: 2016-07-19 | Y253: 2163.790039 | Z253: 2164.629883 | AA253: 2159.01001 | AB253: 2163.780029 | AD253: 302810.2298 | AE253: 117391.2588 | AF253: 185418.971 | AG253: 106.2219715 | AH253: 61416.2997 | AI253: 0 | AJ253: 0 | AL253: 290223.5188 | AM253: 135657.7409 | AN253: 154565.7779 | AO253: 89.75780569 | AP253: 43882.99281 | AQ253: 0 | AR253: 0 | AT253: 4471.141748 | AU253: 17057.85281 | AV253: 2400 | AW253: 0 | AX253: 120 | AZ253: 2016-07-19 | BA253: 488.967749
A254: 0 | B254: 0 | C254: 0 | D254: 0 | E254: 2533.25 | F254: 20.75158821 | G254: -45225.01016 | H254: 54770.8623 | I254: 0 | J254: 0 | K254: 0 | L254: 1375.46 | M254: -34.43630884 | N254: 3768.750846 | O254: 307516.302 | P254: 124599.9375 | Q254: 182916.3645 | R254: 105.5994949 | T254: 0 | U254: 0 | V254: 7 | W254: 42569 | X254: 2016-07-18 | Y254: 2162.040039 | Z254: 2168.350098 | AA254: 2159.629883 | AB254: 2166.889893 | AD254: 303046.9824 | AE254: 117384.8016 | AF254: 185662.1808 | AG254: 106.2219715 | AH254: 61416.2997 | AI254: 0 | AJ254: 0 | AL254: 290421.5696 | AM254: 135650.2789 | AN254: 154771.2907 | AO254: 89.75780569 | AP254: 43882.99281 | AQ254: 0 | AR254: 0 | AT254: 4469.319606 | AU254: 17094.7324 | AV254: 2400 | AW254: 0 | AX254: 120 | AZ254: 2016-07-18 | BA254: 489.6705114
A255: 0 | B255: 0 | C255: 0 | D255: 0 | E255: 2533.25 | F255: 20.75158821 | G255: -45225.01016 | H255: 54770.8623 | I255: 0 | J255: 0 | K255: 0 | L255: 1375.46 | M255: -34.43630884 | N255: 3768.750846 | O255: 307095.3493 | P255: 124579.3775 | Q255: 182515.9718 | R255: 105.5994949 | T255: 0 | U255: 0 | V255: 6 | W255: 42566 | X255: 2016-07-15 | Y255: 2165.129883 | Z255: 2169.050049 | AA255: 2155.790039 | AB255: 2161.73999 | AD255: 302624.86 | AE255: 117365.4321 | AF255: 185259.4279 | AG255: 106.2219715 | AH255: 61416.2997 | AI255: 0 | AJ255: 0 | AL255: 290058.8591 | AM255: 135627.8955 | AN255: 154430.9636 | AO255: 89.75780569 | AP255: 43882.99281 | AQ255: 0 | AR255: 0 | AT255: 4470.489241 | AU255: 17036.49019 | AV255: 2400 | AW255: 0 | AX255: 120 | AZ255: 2016-07-15 | BA255: 488.506744
A256: 0 | B256: 0 | C256: 0 | D256: 0 | E256: 2533.25 | F256: 20.75158821 | G256: -45225.01016 | H256: 54770.8623 | I256: 0 | J256: 0 | K256: 0 | L256: 1375.46 | M256: -34.43630884 | N256: 3768.750846 | O256: 307244.7702 | P256: 124572.5249 | Q256: 182672.2453 | R256: 105.5994949 | T256: 0 | U256: 0 | V256: 5 | W256: 42565 | X256: 2016-07-14 | Y256: 2157.879883 | Z256: 2168.98999 | AA256: 2157.879883 | AB256: 2163.75 | AD256: 302775.5989 | AE256: 117358.9763 | AF256: 185416.6226 | AG256: 106.2219715 | AH256: 61416.2997 | AI256: 0 | AJ256: 0 | AL256: 290184.2286 | AM256: 135620.4352 | AN256: 154563.7934 | AO256: 89.75780569 | AP256: 43882.99281 | AQ256: 0 | AR256: 0 | AT256: 4469.171248 | AU256: 17060.54156 | AV256: 2400 | AW256: 0 | AX256: 120 | AZ256: 2016-07-14 | BA256: 488.9609631
A257: 0 | B257: 0 | C257: 0 | D257: 0 | E257: 2533.25 | F257: 20.75158821 | G257: -45225.01016 | H257: 54770.8623 | I257: 0 | J257: 0 | K257: 0 | L257: 1375.46 | M257: -34.43630884 | N257: 3768.750846 | O257: 306357.8095 | P257: 124565.6727 | Q257: 181792.1368 | R257: 105.5994949 | T257: 0 | U257: 0 | V257: 4 | W257: 42564 | X257: 2016-07-13 | Y257: 2153.810059 | Z257: 2156.449951 | AA257: 2146.209961 | AB257: 2152.429932 | AD257: 301883.8471 | AE257: 117352.5209 | AF257: 184531.3262 | AG257: 106.2219715 | AH257: 61416.2997 | AI257: 0 | AJ257: 0 | AL257: 289428.6912 | AM257: 135612.9753 | AN257: 153815.716 | AO257: 89.75780569 | AP257: 43882.99281 | AQ257: 0 | AR257: 0 | AT257: 4473.96243 | AU257: 16929.11829 | AV257: 2400 | AW257: 0 | AX257: 120 | AZ257: 2016-07-13 | BA257: 486.4028712
A258: 0 | B258: 0 | C258: 0 | D258: 0 | E258: 2533.25 | F258: 20.75158821 | G258: -45225.01016 | H258: 54770.8623 | I258: 0 | J258: 0 | K258: 0 | L258: 1375.46 | M258: -34.43630884 | N258: 3768.750846 | O258: 306328.4079 | P258: 124558.8209 | Q258: 181769.587 | R258: 105.5994949 | T258: 0 | U258: 0 | V258: 3 | W258: 42563 | X258: 2016-07-12 | Y258: 2139.5 | Z258: 2155.399902 | AA258: 2139.5 | AB258: 2152.139893 | AD258: 301854.7093 | AE258: 117346.0658 | AF258: 184508.6434 | AG258: 106.2219715 | AH258: 61416.2997 | AI258: 0 | AJ258: 0 | AL258: 289402.0648 | AM258: 135605.5158 | AN258: 153796.549 | AO258: 89.75780569 | AP258: 43882.99281 | AQ258: 0 | AR258: 0 | AT258: 4473.69859 | AU258: 16926.3431 | AV258: 2400 | AW258: 0 | AX258: 120 | AZ258: 2016-07-12 | BA258: 486.3373286
A259: 0 | B259: 0 | C259: 0 | D259: 0 | E259: 2533.25 | F259: 20.75158821 | G259: -45225.01016 | H259: 54770.8623 | I259: 0 | J259: 0 | K259: 0 | L259: 1375.46 | M259: -34.43630884 | N259: 3768.750846 | O259: 305156.8984 | P259: 124551.9694 | Q259: 180604.929 | R259: 105.5994949 | T259: 0 | U259: 0 | V259: 2 | W259: 42562 | X259: 2016-07-11 | Y259: 2131.719971 | Z259: 2143.159912 | AA259: 2131.719971 | AB259: 2137.159912 | AD259: 300676.7313 | AE259: 117339.6111 | AF259: 183337.1201 | AG259: 106.2219715 | AH259: 61416.2997 | AI259: 0 | AJ259: 0 | AL259: 288404.6658 | AM259: 135598.0567 | AN259: 152806.6092 | AO259: 89.75780569 | AP259: 43882.99281 | AQ259: 0 | AR259: 0 | AT259: 4480.167148 | AU259: 16752.23257 | AV259: 2400 | AW259: 0 | AX259: 120 | AZ259: 2016-07-11 | BA259: 482.9521751
A260: 0 | B260: 0 | C260: 0 | D260: 0 | E260: 2533.25 | F260: 20.75158821 | G260: -45225.01016 | H260: 54770.8623 | I260: 0 | J260: 0 | K260: 0 | L260: 1375.46 | M260: -34.43630884 | N260: 3768.750846 | O260: 304571.8977 | P260: 124531.4173 | Q260: 180040.4804 | R260: 105.5994949 | T260: 402.7902909 | U260: 1 | V260: 1 | W260: 42559 | X260: 2016-07-08 | Y260: 2106.969971 | Z260: 2131.709961 | AA260: 2106.969971 | AB260: 2129.899902 | AD260: 300089.5934 | AE260: 117320.2491 | AF260: 182769.3443 | AG260: 106.2219715 | AH260: 61416.2997 | AI260: 0.0955851997 | AJ260: 1 | AL260: 287902.5192 | AM260: 135575.6819 | AN260: 152326.8373 | AO260: 89.75780569 | AP260: 43882.99281 | AQ260: 0 | AR260: 0 | AT260: 4482.3043 | AU260: 16669.37854 | AV260: 2400 | AW260: 0 | AX260: 120 | AZ260: 2016-07-08 | BA260: 481.311569
A261: 0 | B261: 0 | C261: 0 | D261: 0 | E261: 2526.55 | F261: 19.62079548 | G261: -45273.70446 | H261: 54770.8623 | I261: 0 | J261: 0 | K261: 0 | L261: 1366.88 | M261: -35.28440339 | N261: 3772.808705 | O261: 301500.0677 | P261: 123947.5114 | Q261: 177552.5563 | R261: 105.5994949 | T261: 0 | U261: 0 | V261: 21 | W261: 42558 | X261: 2016-07-07 | Y261: 2100.419922 | Z261: 2109.080078 | AA261: 2089.389893 | AB261: 2097.899902 | AD261: 297001.6545 | AE261: 116935.6567 | AF261: 180065.9978 | AG261: 106.1263863 | AH261: 61214.90456 | AI261: 0 | AJ261: 0 | AL261: 285230.1496 | AM261: 135018.0062 | AN261: 150212.1434 | AO261: 89.75780569 | AP261: 43882.99281 | AQ261: 0 | AR261: 0 | AT261: 4498.413195 | AU261: 16269.91815 | AV261: 2400 | AW261: 0 | AX261: 120 | AZ261: 2016-07-07 | BA261: 474.0802572
A262: 0 | B262: 0 | C262: 0 | D262: 0 | E262: 2526.55 | F262: 19.62079548 | G262: -45273.70446 | H262: 54770.8623 | I262: 0 | J262: 0 | K262: 0 | L262: 1366.88 | M262: -35.28440339 | N262: 3772.808705 | O262: 301635.5341 | P262: 123940.6935 | Q262: 177694.8406 | R262: 105.5994949 | T262: 0 | U262: 0 | V262: 20 | W262: 42557 | X262: 2016-07-06 | Y262: 2084.429932 | Z262: 2100.719971 | AA262: 2074.02002 | AB262: 2099.72998 | AD262: 297138.2165 | AE262: 116929.2246 | AF262: 180208.992 | AG262: 106.1263863 | AH262: 61214.90456 | AI262: 0 | AJ262: 0 | AL262: 285343.662 | AM262: 135010.5794 | AN262: 150333.0826 | AO262: 89.75780569 | AP262: 43882.99281 | AQ262: 0 | AR262: 0 | AT262: 4497.317572 | AU262: 16291.8721 | AV262: 2400 | AW262: 0 | AX262: 120 | AZ262: 2016-07-06 | BA262: 474.4938155
A263: 0 | B263: 0 | C263: 0 | D263: 0 | E263: 2526.55 | F263: 19.62079548 | G263: -45273.70446 | H263: 54770.8623 | I263: 0 | J263: 0 | K263: 0 | L263: 1366.88 | M263: -35.28440339 | N263: 3772.808705 | O263: 300759.5035 | P263: 123933.8761 | Q263: 176825.6274 | R263: 105.5994949 | T263: 0 | U263: 0 | V263: 19 | W263: 42556 | X263: 2016-07-05 | Y263: 2095.050049 | Z263: 2095.050049 | AA263: 2080.860107 | AB263: 2088.550049 | AD263: 296258.2347 | AE263: 116922.7928 | AF263: 179335.4419 | AG263: 106.1263863 | AH263: 61214.90456 | AI263: 0 | AJ263: 0 | AL263: 284597.419 | AM263: 135003.153 | AN263: 149594.266 | AO263: 89.75780569 | AP263: 43882.99281 | AQ263: 0 | AR263: 0 | AT263: 4501.268862 | AU263: 16162.08451 | AV263: 2400 | AW263: 0 | AX263: 120 | AZ263: 2016-07-05 | BA263: 471.9673915
A264: 0 | B264: 0 | C264: 0 | D264: 0 | E264: 2526.55 | F264: 19.62079548 | G264: -45273.70446 | H264: 54770.8623 | I264: 0 | J264: 0 | K264: 0 | L264: 1366.88 | M264: -35.28440339 | N264: 3772.808705 | O264: 301851.7957 | P264: 123906.61 | Q264: 177945.1857 | R264: 105.5994949 | T264: 0 | U264: 0 | V264: 18 | W264: 42552 | X264: 2016-07-01 | Y264: 2099.340088 | Z264: 2108.709961 | AA264: 2097.899902 | AB264: 2102.949951 | AD264: 297357.6554 | AE264: 116897.0692 | AF264: 180460.5862 | AG264: 106.1263863 | AH264: 61214.90456 | AI264: 0 | AJ264: 0 | AL264: 285519.3234 | AM264: 134973.4517 | AN264: 150545.8718 | AO264: 89.75780569 | AP264: 43882.99281 | AQ264: 0 | AR264: 0 | AT264: 4494.140324 | AU264: 16332.47226 | AV264: 2400 | AW264: 0 | AX264: 120 | AZ264: 2016-07-01 | BA264: 475.2214597
A265: 0 | B265: 0 | C265: 0 | D265: 0 | E265: 2526.55 | F265: 19.62079548 | G265: -45273.70446 | H265: 54770.8623 | I265: 0 | J265: 0 | K265: 0 | L265: 1366.88 | M265: -35.28440339 | N265: 3772.808705 | O265: 301527.0044 | P265: 123899.7944 | Q265: 177627.21 | R265: 105.5994949 | T265: 0 | U265: 0 | V265: 17 | W265: 42551 | X265: 2016-06-30 | Y265: 2073.169922 | Z265: 2098.939941 | AA265: 2070 | AB265: 2098.860107 | AD265: 297031.6631 | AE265: 116890.6392 | AF265: 180141.024 | AG265: 106.1263863 | AH265: 61214.90456 | AI265: 0 | AJ265: 0 | AL265: 285241.6251 | AM265: 134966.0273 | AN265: 150275.5978 | AO265: 89.75780569 | AP265: 43882.99281 | AQ265: 0 | AR265: 0 | AT265: 4495.341306 | AU265: 16285.37933 | AV265: 2400 | AW265: 0 | AX265: 120 | AZ265: 2016-06-30 | BA265: 474.2972429
A266: 0 | B266: 0 | C266: 0 | D266: 0 | E266: 2526.55 | F266: 19.62079548 | G266: -45273.70446 | H266: 54770.8623 | I266: 0 | J266: 0 | K266: 0 | L266: 1366.88 | M266: -35.28440339 | N266: 3772.808705 | O266: 299336.2516 | P266: 123892.9792 | Q266: 175443.2724 | R266: 105.5994949 | T266: 0 | U266: 0 | V266: 16 | W266: 42550 | X266: 2016-06-29 | Y266: 2042.689941 | Z266: 2073.129883 | AA266: 2042.689941 | AB266: 2070.77002 | AD266: 294830.399 | AE266: 116884.2095 | AF266: 177946.1895 | AG266: 106.1263863 | AH266: 61214.90456 | AI266: 0 | AJ266: 0 | AL266: 283377.8907 | AM266: 134958.6034 | AN266: 148419.2873 | AO266: 89.75780569 | AP266: 43882.99281 | AQ266: 0 | AR266: 0 | AT266: 4505.852576 | AU266: 15958.36089 | AV266: 2400 | AW266: 0 | AX266: 120 | AZ266: 2016-06-29 | BA266: 467.9494874
A267: 0 | B267: 0 | C267: 0 | D267: 0 | E267: 2526.55 | F267: 19.62079548 | G267: -45273.70446 | H267: 54770.8623 | I267: 0 | J267: 0 | K267: 0 | L267: 1366.88 | M267: -35.28440339 | N267: 3772.808705 | O267: 296633.1448 | P267: 123886.1644 | Q267: 172746.9804 | R267: 105.5994949 | T267: 0 | U267: 0 | V267: 15 | W267: 42549 | X267: 2016-06-28 | Y267: 2006.670044 | Z267: 2036.089966 | AA267: 2006.670044 | AB267: 2036.089966 | AD267: 292114.2246 | AE267: 116877.7802 | AF267: 175236.4444 | AG267: 106.1263863 | AH267: 61214.90456 | AI267: 0 | AJ267: 0 | AL267: 281078.6641 | AM267: 134951.1799 | AN267: 146127.4842 | AO267: 89.75780569 | AP267: 43882.99281 | AQ267: 0 | AR267: 0 | AT267: 4518.920272 | AU267: 15554.48071 | AV267: 2400 | AW267: 0 | AX267: 120 | AZ267: 2016-06-28 | BA267: 460.112541
A268: 0 | B268: 0 | C268: 0 | D268: 0 | E268: 2526.55 | F268: 19.62079548 | G268: -45273.70446 | H268: 54770.8623 | I268: 0 | J268: 0 | K268: 0 | L268: 1366.88 | M268: -35.28440339 | N268: 3772.808705 | O268: 293862.4079 | P268: 123879.3499 | Q268: 169983.0579 | R268: 105.5994949 | T268: 0 | U268: 0 | V268: 14 | W268: 42548 | X268: 2016-06-27 | Y268: 2031.449951 | Z268: 2031.449951 | AA268: 1991.680054 | AB268: 2000.540039 | AD268: 289330.0824 | AE268: 116871.3512 | AF268: 172458.7312 | AG268: 106.1263863 | AH268: 61214.90456 | AI268: 0 | AJ268: 0 | AL268: 278721.9531 | AM268: 134943.7568 | AN268: 143778.1963 | AO268: 89.75780569 | AP268: 43882.99281 | AQ268: 0 | AR268: 0 | AT268: 4532.325434 | AU268: 15140.45478 | AV268: 2400 | AW268: 0 | AX268: 120 | AZ268: 2016-06-27 | BA268: 452.0790221
A269: 0 | B269: 0 | C269: 0 | D269: 0 | E269: 2526.55 | F269: 19.62079548 | G269: -45273.70446 | H269: 54770.8623 | I269: 0 | J269: 0 | K269: 0 | L269: 1366.88 | M269: -35.28440339 | N269: 3772.808705 | O269: 296708.5214 | P269: 123858.9088 | Q269: 172849.6126 | R269: 105.5994949 | T269: 0 | U269: 0 | V269: 13 | W269: 42545 | X269: 2016-06-24 | Y269: 2103.810059 | Z269: 2103.810059 | AA269: 2032.569946 | AB269: 2037.410034 | AD269: 292191.6551 | AE269: 116852.0665 | AF269: 175339.5886 | AG269: 106.1263863 | AH269: 61214.90456 | AI269: 0 | AJ269: 0 | AL269: 281136.2098 | AM269: 134921.49 | AN269: 146214.7198 | AO269: 89.75780569 | AP269: 43882.99281 | AQ269: 0 | AR269: 0 | AT269: 4516.866307 | AU269: 15572.3116 | AV269: 2400 | AW269: 0 | AX269: 120 | AZ269: 2016-06-24 | BA269: 460.410848
A270: 0 | B270: 0 | C270: 0 | D270: 0 | E270: 2526.55 | F270: 19.62079548 | G270: -45273.70446 | H270: 54770.8623 | I270: 0 | J270: 0 | K270: 0 | L270: 1366.88 | M270: -35.28440339 | N270: 3772.808705 | O270: 302603.5335 | P270: 123852.0959 | Q270: 178751.4377 | R270: 105.5994949 | T270: 0 | U270: 0 | V270: 12 | W270: 42544 | X270: 2016-06-23 | Y270: 2092.800049 | Z270: 2113.320068 | AA270: 2092.800049 | AB270: 2113.320068 | AD270: 298116.5 | AE270: 116845.639 | AF270: 181270.861 | AG270: 106.1263863 | AH270: 61214.90456 | AI270: 0 | AJ270: 0 | AL270: 286145.241 | AM270: 134914.0685 | AN270: 151231.1725 | AO270: 89.75780569 | AP270: 43882.99281 | AQ270: 0 | AR270: 0 | AT270: 4487.03358 | AU270: 16458.29252 | AV270: 2400 | AW270: 0 | AX270: 120 | AZ270: 2016-06-23 | BA270: 477.5648831
A271: 0 | B271: 0 | C271: 0 | D271: 0 | E271: 2526.55 | F271: 19.62079548 | G271: -45273.70446 | H271: 54770.8623 | I271: 0 | J271: 0 | K271: 0 | L271: 1366.88 | M271: -35.28440339 | N271: 3772.808705 | O271: 300429.8855 | P271: 123845.2833 | Q271: 176584.6022 | R271: 105.5994949 | T271: 0 | U271: 0 | V271: 11 | W271: 42543 | X271: 2016-06-22 | Y271: 2089.75 | Z271: 2099.709961 | AA271: 2084.360107 | AB271: 2085.449951 | AD271: 295932.4258 | AE271: 116839.2118 | AF271: 179093.214 | AG271: 106.1263863 | AH271: 61214.90456 | AI271: 0 | AJ271: 0 | AL271: 284296.046 | AM271: 134906.6475 | AN271: 149389.3986 | AO271: 89.75780569 | AP271: 43882.99281 | AQ271: 0 | AR271: 0 | AT271: 4497.459666 | AU271: 16133.83945 | AV271: 2400 | AW271: 0 | AX271: 120 | AZ271: 2016-06-22 | BA271: 471.266836
A272: 0 | B272: 0 | C272: 0 | D272: 0 | E272: 2526.55 | F272: 19.62079548 | G272: -45273.70446 | H272: 54770.8623 | I272: 0 | J272: 0 | K272: 0 | L272: 1366.88 | M272: -35.28440339 | N272: 3772.808705 | O272: 300691.2988 | P272: 123838.4711 | Q272: 176852.8277 | R272: 105.5994949 | T272: 0 | U272: 0 | V272: 10 | W272: 42542 | X272: 2016-06-21 | Y272: 2085.189941 | Z272: 2093.659912 | AA272: 2083.02002 | AB272: 2088.899902 | AD272: 296195.5628 | AE272: 116832.7849 | AF272: 179362.7779 | AG272: 106.1263863 | AH272: 61214.90456 | AI272: 0 | AJ272: 0 | AL272: 284516.6126 | AM272: 134899.2268 | AN272: 149617.3857 | AO272: 89.75780569 | AP272: 43882.99281 | AQ272: 0 | AR272: 0 | AT272: 4495.735974 | AU272: 16174.6862 | AV272: 2400 | AW272: 0 | AX272: 120 | AZ272: 2016-06-21 | BA272: 472.0464508
A273: 0 | B273: 0 | C273: 0 | D273: 0 | E273: 2526.55 | F273: 19.62079548 | G273: -45273.70446 | H273: 54770.8623 | I273: 0 | J273: 0 | K273: 0 | L273: 1366.88 | M273: -35.28440339 | N273: 3772.808705 | O273: 300245.2205 | P273: 123831.6593 | Q273: 176413.5612 | R273: 105.5994949 | T273: 0 | U273: 0 | V273: 9 | W273: 42541 | X273: 2016-06-20 | Y273: 2075.580078 | Z273: 2100.659912 | AA273: 2075.580078 | AB273: 2083.25 | AD273: 295747.6781 | AE273: 116826.3585 | AF273: 178921.3196 | AG273: 106.1263863 | AH273: 61214.90456 | AI273: 0 | AJ273: 0 | AL273: 284135.8232 | AM273: 134891.8066 | AN273: 149244.0166 | AO273: 89.75780569 | AP273: 43882.99281 | AQ273: 0 | AR273: 0 | AT273: 4497.542352 | AU273: 16109.39729 | AV273: 2400 | AW273: 0 | AX273: 120 | AZ273: 2016-06-20 | BA273: 470.7696944
A274: 0 | B274: 0 | C274: 0 | D274: 0 | E274: 2526.55 | F274: 19.62079548 | G274: -45273.70446 | H274: 54770.8623 | I274: 0 | J274: 0 | K274: 0 | L274: 1366.88 | M274: -35.28440339 | N274: 3772.808705 | O274: 299289.481 | P274: 123811.226 | Q274: 175478.255 | R274: 105.5994949 | T274: 0 | U274: 0 | V274: 8 | W274: 42538 | X274: 2016-06-17 | Y274: 2078.199951 | Z274: 2078.199951 | AA274: 2062.840088 | AB274: 2071.219971 | AD274: 294788.4278 | AE274: 116807.0811 | AF274: 177981.3467 | AG274: 106.1263863 | AH274: 61214.90456 | AI274: 0 | AJ274: 0 | AL274: 283318.5703 | AM274: 134869.5483 | AN274: 148449.0219 | AO274: 89.75780569 | AP274: 43882.99281 | AQ274: 0 | AR274: 0 | AT274: 4501.053154 | AU274: 15970.91074 | AV274: 2400 | AW274: 0 | AX274: 120 | AZ274: 2016-06-17 | BA274: 468.0511666
A275: 0 | B275: 0 | C275: 0 | D275: 0 | E275: 2526.55 | F275: 19.62079548 | G275: -45273.70446 | H275: 54770.8623 | I275: 0 | J275: 0 | K275: 0 | L275: 1366.88 | M275: -35.28440339 | N275: 3772.808705 | O275: 299809.0236 | P275: 123804.4157 | Q275: 176004.6079 | R275: 105.5994949 | T275: 0 | U275: 0 | V275: 7 | W275: 42537 | X275: 2016-06-16 | Y275: 2066.360107 | Z275: 2079.620117 | AA275: 2050.370117 | AB275: 2077.98999 | AD275: 295310.9819 | AE275: 116800.6561 | AF275: 178510.3259 | AG275: 106.1263863 | AH275: 61214.90456 | AI275: 0 | AJ275: 0 | AL275: 283758.5428 | AM275: 134862.1297 | AN275: 148896.4131 | AO275: 89.75780569 | AP275: 43882.99281 | AQ275: 0 | AR275: 0 | AT275: 4498.041634 | AU275: 16050.48075 | AV275: 2400 | AW275: 0 | AX275: 120 | AZ275: 2016-06-16 | BA275: 469.5810453
A276: 0 | B276: 0 | C276: 0 | D276: 0 | E276: 2526.55 | F276: 19.62079548 | G276: -45273.70446 | H276: 54770.8623 | I276: 0 | J276: 0 | K276: 0 | L276: 1366.88 | M276: -35.28440339 | N276: 3772.808705 | O276: 299297.6323 | P276: 123797.6057 | Q276: 175500.0266 | R276: 105.5994949 | T276: 0 | U276: 0 | V276: 6 | W276: 42536 | X276: 2016-06-15 | Y276: 2077.600098 | Z276: 2085.649902 | AA276: 2069.800049 | AB276: 2071.5 | AD276: 294797.4583 | AE276: 116794.2314 | AF276: 178003.2269 | AG276: 106.1263863 | AH276: 61214.90456 | AI276: 0 | AJ276: 0 | AL276: 283322.2389 | AM276: 134854.7115 | AN276: 148467.5274 | AO276: 89.75780569 | AP276: 43882.99281 | AQ276: 0 | AR276: 0 | AT276: 4500.174008 | AU276: 15975.39335 | AV276: 2400 | AW276: 0 | AX276: 120 | AZ276: 2016-06-15 | BA276: 468.1144471
A277: 0 | B277: 0 | C277: 0 | D277: 0 | E277: 2526.55 | F277: 19.62079548 | G277: -45273.70446 | H277: 54770.8623 | I277: 0 | J277: 0 | K277: 0 | L277: 1366.88 | M277: -35.28440339 | N277: 3772.808705 | O277: 299587.8239 | P277: 123790.7961 | Q277: 175797.0278 | R277: 105.5994949 | T277: 0 | U277: 0 | V277: 5 | W277: 42535 | X277: 2016-06-14 | Y277: 2076.649902 | Z277: 2081.300049 | AA277: 2064.100098 | AB277: 2075.320068 | AD277: 295089.517 | AE277: 116787.807 | AF277: 178301.71 | AG277: 106.1263863 | AH277: 61214.90456 | AI277: 0 | AJ277: 0 | AL277: 283567.2672 | AM277: 134847.2937 | AN277: 148719.9735 | AO277: 89.75780569 | AP277: 43882.99281 | AQ277: 0 | AR277: 0 | AT277: 4498.306887 | AU277: 16020.5567 | AV277: 2400 | AW277: 0 | AX277: 120 | AZ277: 2016-06-14 | BA277: 468.9777003
A278: 0 | B278: 0 | C278: 0 | D278: 0 | E278: 2526.55 | F278: 19.62079548 | G278: -45273.70446 | H278: 54770.8623 | I278: 0 | J278: 0 | K278: 0 | L278: 1366.88 | M278: -35.28440339 | N278: 3772.808705 | O278: 299871.7902 | P278: 123783.9869 | Q278: 176087.8032 | R278: 105.5994949 | T278: 0 | U278: 0 | V278: 4 | W278: 42534 | X278: 2016-06-13 | Y278: 2091.75 | Z278: 2098.120117 | AA278: 2078.459961 | AB278: 2079.060059 | AD278: 295375.3193 | AE278: 116781.383 | AF278: 178593.9363 | AG278: 106.1263863 | AH278: 61214.90456 | AI278: 0 | AJ278: 0 | AL278: 283807.0041 | AM278: 134839.8764 | AN278: 148967.1277 | AO278: 89.75780569 | AP278: 43882.99281 | AQ278: 0 | AR278: 0 | AT278: 4496.47085 | AU278: 16064.78605 | AV278: 2400 | AW278: 0 | AX278: 120 | AZ278: 2016-06-13 | BA278: 469.8228579
A279: 0 | B279: 0 | C279: 0 | D279: 0 | E279: 2526.55 | F279: 19.62079548 | G279: -45273.70446 | H279: 54770.8623 | I279: 0 | J279: 0 | K279: 0 | L279: 1366.88 | M279: -35.28440339 | N279: 3772.808705 | O279: 301173.8526 | P279: 123763.5615 | Q279: 177410.2911 | R279: 105.5994949 | T279: 0 | U279: 0 | V279: 3 | W279: 42531 | X279: 2016-06-10 | Y279: 2109.570068 | Z279: 2109.570068 | AA279: 2089.959961 | AB279: 2096.070068 | AD279: 296685.1358 | AE279: 116762.1131 | AF279: 179923.0227 | AG279: 106.1263863 | AH279: 61214.90456 | AI279: 0 | AJ279: 0 | AL279: 284908.847 | AM279: 134817.6267 | AN279: 150091.2203 | AO279: 89.75780569 | AP279: 43882.99281 | AQ279: 0 | AR279: 0 | AT279: 4488.716775 | AU279: 16265.00565 | AV279: 2400 | AW279: 0 | AX279: 120 | AZ279: 2016-06-10 | BA279: 473.6667541
A280: 0 | B280: 0 | C280: 0 | D280: 0 | E280: 2526.55 | F280: 19.62079548 | G280: -45273.70446 | H280: 54770.8623 | I280: 0 | J280: 0 | K280: 0 | L280: 1366.88 | M280: -35.28440339 | N280: 3772.808705 | O280: 302676.1195 | P280: 123756.7538 | Q280: 178919.3657 | R280: 105.5994949 | T280: 0 | U280: 0 | V280: 2 | W280: 42530 | X280: 2016-06-09 | Y280: 2115.649902 | Z280: 2117.639893 | AA280: 2107.72998 | AB280: 2115.47998 | AD280: 298195.3174 | AE280: 116755.6905 | AF280: 181439.6269 | AG280: 106.1263863 | AH280: 61214.90456 | AI280: 0 | AJ280: 0 | AL280: 286184.1194 | AM280: 134810.2109 | AN280: 151373.9085 | AO280: 89.75780569 | AP280: 43882.99281 | AQ280: 0 | AR280: 0 | AT280: 4480.802088 | AU280: 16492.0001 | AV280: 2400 | AW280: 0 | AX280: 120 | AZ280: 2016-06-09 | BA280: 478.0529767
A281: 0 | B281: 0 | C281: 0 | D281: 0 | E281: 2526.55 | F281: 19.62079548 | G281: -45273.70446 | H281: 54770.8623 | I281: 0 | J281: 0 | K281: 0 | L281: 1366.88 | M281: -35.28440339 | N281: 3772.808705 | O281: 302952.3242 | P281: 123749.9465 | Q281: 179202.3777 | R281: 105.5994949 | T281: 401.9950115 | U281: 1 | V281: 1 | W281: 42529 | X281: 2016-06-08 | Y281: 2112.709961 | Z281: 2120.550049 | AA281: 2112.709961 | AB281: 2119.120117 | AD281: 298473.3193 | AE281: 116749.2683 | AF281: 181724.051 | AG281: 106.1263863 | AH281: 61214.90456 | AI281: 0.09513729259 | AJ281: 1 | AL281: 286417.2596 | AM281: 134802.7956 | AN281: 151614.464 | AO281: 89.75780569 | AP281: 43882.99281 | AQ281: 0 | AR281: 0 | AT281: 4479.004893 | AU281: 16535.06464 | AV281: 2400 | AW281: 0 | AX281: 120 | AZ281: 2016-06-08 | BA281: 478.8755694
A282: 0 | B282: 0 | C282: 0 | D282: 0 | E282: 2493.87 | F282: 21.22988424 | G282: -44514.06381 | H282: 54770.8623 | I282: 0 | J282: 0 | K282: 0 | L282: 1356.12 | M282: -34.07758682 | N282: 3709.505318 | O282: 301824.6964 | P282: 123165.7928 | Q282: 178658.9036 | R282: 105.5994949 | T282: 0 | U282: 0 | V282: 21 | W282: 42528 | X282: 2016-06-07 | Y282: 2110.179932 | Z282: 2119.219971 | AA282: 2110.179932 | AB282: 2112.129883 | AD282: 297341.1191 | AE282: 116364.2107 | AF282: 180976.9084 | AG282: 106.031249 | AH282: 61013.90705 | AI282: 0 | AJ282: 0 | AL282: 285397.5546 | AM282: 134245.0345 | AN282: 151152.5201 | AO282: 89.75780569 | AP282: 43882.99281 | AQ282: 0 | AR282: 0 | AT282: 4483.577301 | AU282: 16427.14179 | AV282: 2400 | AW282: 0 | AX282: 120 | AZ282: 2016-06-07 | BA282: 477.2959269
A283: 0 | B283: 0 | C283: 0 | D283: 0 | E283: 2493.87 | F283: 21.22988424 | G283: -44514.06381 | H283: 54770.8623 | I283: 0 | J283: 0 | K283: 0 | L283: 1356.12 | M283: -34.07758682 | N283: 3709.505318 | O283: 301606.4503 | P283: 123159.0179 | Q283: 178447.4323 | R283: 105.5994949 | T283: 0 | U283: 0 | V283: 20 | W283: 42527 | X283: 2016-06-06 | Y283: 2100.830078 | Z283: 2113.360107 | AA283: 2100.830078 | AB283: 2109.409912 | AD283: 297122.3825 | AE283: 116357.81 | AF283: 180764.5725 | AG283: 106.031249 | AH283: 61013.90705 | AI283: 0 | AJ283: 0 | AL283: 285210.4233 | AM283: 134237.6502 | AN283: 150972.773 | AO283: 89.75780569 | AP283: 43882.99281 | AQ283: 0 | AR283: 0 | AT283: 4484.067796 | AU283: 16396.02698 | AV283: 2400 | AW283: 0 | AX283: 120 | AZ283: 2016-06-06 | BA283: 476.6812719
A284: 0 | B284: 0 | C284: 0 | D284: 0 | E284: 2493.87 | F284: 21.22988424 | G284: -44514.06381 | H284: 54770.8623 | I284: 0 | J284: 0 | K284: 0 | L284: 1356.12 | M284: -34.07758682 | N284: 3709.505318 | O284: 300786.8801 | P284: 123138.6957 | Q284: 177648.1844 | R284: 105.5994949 | T284: 0 | U284: 0 | V284: 19 | W284: 42524 | X284: 2016-06-03 | Y284: 2104.070068 | Z284: 2104.070068 | AA284: 2085.360107 | AB284: 2099.129883 | AD284: 296300.6668 | AE284: 116338.61 | AF284: 179962.0568 | AG284: 106.031249 | AH284: 61013.90705 | AI284: 0 | AJ284: 0 | AL284: 284508.9256 | AM284: 134215.4999 | AN284: 150293.4257 | AO284: 89.75780569 | AP284: 43882.99281 | AQ284: 0 | AR284: 0 | AT284: 4486.213346 | AU284: 16277.95451 | AV284: 2400 | AW284: 0 | AX284: 120 | AZ284: 2016-06-03 | BA284: 474.3582064
A285: 0 | B285: 0 | C285: 0 | D285: 0 | E285: 2493.87 | F285: 21.22988424 | G285: -44514.06381 | H285: 54770.8623 | I285: 0 | J285: 0 | K285: 0 | L285: 1356.12 | M285: -34.07758682 | N285: 3709.505318 | O285: 301256.7096 | P285: 123131.9223 | Q285: 178124.7873 | R285: 105.5994949 | T285: 0 | U285: 0 | V285: 18 | W285: 42523 | X285: 2016-06-02 | Y285: 2097.709961 | Z285: 2105.26001 | AA285: 2088.590088 | AB285: 2105.26001 | AD285: 296772.819 | AE285: 116332.2107 | AF285: 180440.6082 | AG285: 106.031249 | AH285: 61013.90705 | AI285: 0 | AJ285: 0 | AL285: 284906.6474 | AM285: 134208.1173 | AN285: 150698.5301 | AO285: 89.75780569 | AP285: 43882.99281 | AQ285: 0 | AR285: 0 | AT285: 4483.890663 | AU285: 16350.06219 | AV285: 2400 | AW285: 0 | AX285: 120 | AZ285: 2016-06-02 | BA285: 475.7434833
A286: 0 | B286: 0 | C286: 0 | D286: 0 | E286: 2493.87 | F286: 21.22988424 | G286: -44514.06381 | H286: 54770.8623 | I286: 0 | J286: 0 | K286: 0 | L286: 1356.12 | M286: -34.07758682 | N286: 3709.505318 | O286: 300788.8985 | P286: 123125.1494 | Q286: 177663.7491 | R286: 105.5994949 | T286: 0 | U286: 0 | V286: 17 | W286: 42522 | X286: 2016-06-01 | Y286: 2093.939941 | Z286: 2100.969971 | AA286: 2085.100098 | AB286: 2099.330078 | AD286: 296303.4969 | AE286: 116325.8118 | AF286: 179977.6851 | AG286: 106.031249 | AH286: 61013.90705 | AI286: 0 | AJ286: 0 | AL286: 284507.3905 | AM286: 134200.7351 | AN286: 150306.6554 | AO286: 89.75780569 | AP286: 43882.99281 | AQ286: 0 | AR286: 0 | AT286: 4485.40164 | AU286: 16281.50802 | AV286: 2400 | AW286: 0 | AX286: 120 | AZ286: 2016-06-01 | BA286: 474.4034462
A287: 0 | B287: 0 | C287: 0 | D287: 0 | E287: 2493.87 | F287: 21.22988424 | G287: -44514.06381 | H287: 54770.8623 | I287: 0 | J287: 0 | K287: 0 | L287: 1356.12 | M287: -34.07758682 | N287: 3709.505318 | O287: 300597.0767 | P287: 123118.3768 | Q287: 177478.6999 | R287: 105.5994949 | T287: 0 | U287: 0 | V287: 16 | W287: 42521 | X287: 2016-05-31 | Y287: 2100.129883 | Z287: 2103.47998 | AA287: 2088.659912 | AB287: 2096.949951 | AD287: 296111.2925 | AE287: 116319.4132 | AF287: 179791.8793 | AG287: 106.031249 | AH287: 61013.90705 | AI287: 0 | AJ287: 0 | AL287: 284342.7199 | AM287: 134193.3533 | AN287: 150149.3667 | AO287: 89.75780569 | AP287: 43882.99281 | AQ287: 0 | AR287: 0 | AT287: 4485.78423 | AU287: 16254.35676 | AV287: 2400 | AW287: 0 | AX287: 120 | AZ287: 2016-05-31 | BA287: 473.8655887
... 692 more rows

Sheet StoxxEurope 600 € 87-16
A1: Stoxx Eur 600 price € | E1: DatumMin | G1: 1987-01-01 | N1: Ø EK-Preis in €/#
A2: close 87-98 (yahoo) | E2: Anf-Kap | G2: 20000 | H2: € | J2: Teinz | K2: 200 | L2: €/Mon | N2: SJ | O2: Sp | P2: mSp | AV2: Vertikale Position der Kurven
A3: intraday 99 -16 (Comdir) | E3: prozRK3 | G3: 50 | H3: % | J3: Terhoehung | K3: =72/30 -> 2.4 | L3: %/a br | N3: =J15/I15 -> 182.2328707 | O3: =(AH101-$G$2*prozRK3%)/AI15 -> 197.2460909 | P3: =(AP101-$G$2*prozRK3%)/AQ15 -> 196.0747278 | AV3: 450 | AW3: =AV3/20*0 -> 0 | AX3: =AV3/20 -> 22.5
E4: Zins | G4: 2 | H4: %/a nt | J4: dKfixKauf | K4: -5 | L4: % | AV4: Faktoren für Transaktions-Strichlängen
E5: Dividende | G5: =3*(1-KESt%) -> 2.20875 | H5: %/a nt | J5: dKkauf | K5: =dKfixKauf -> -5 | L5: % | N5: Nur Werte in hellblau hinterlegten Felder verändern! | AV5: =AV3/Teinz /100 -> 0.0225 | AW5: =AV5 -> 0.0225 | AX5: =AW5 -> 0.0225
A6: Gesamtbilanz in € nt | E6: KESt | G6: =25*1.055*1 -> 26.375 | H6: % | J6: dKfixVerk | K6: 60 | L6: %
A7: SJ - Sp | B7: =ROUND($AT$101, 0) -> 15074 | E7: Tag (MonAnf) | G7: 15 | J7: dKverk | K7: =dKfixVerk/2 -> 30 | L7: %
A8: SJ - mSp | B8: =ROUND($AU$101, 0) -> 10287
A11: Verkauf | H11: Kauf | O11: Schnäppchenjagd-Depot | U11: Kursdaten | AD11: Sparplan-Depot | AH11: Kauf | AL11: modifiziertes Sparplan-Depot | AP11: Kauf | AT11: Ges (SJ-Sp) | AU11: Ges (SJ-mSp) | AV11: SJ Verk ↑ | AW11: SJ Käufe ↓ | AX11: mSp Käufe ↓ | AZ11: normierte Kursdaten
A12: Tverk | B12: # | C12: Tverk | D12: j/n | E12: Limit | F12: dK | G12: T | H12: S Tkauf | I12: # | J12: Tkauf | K12: j/n | L12: Limit | M12: dK | N12: T | O12: Ges | P12: Cash | Q12: Aktien | R12: # | T12: Teinz | U12: MonAnf | V12: DoM | X12: Kurse | AD12: Ges | AE12: Cash | AF12: Aktien | AG12: # | AH12: S Tkauf | AI12: # | AJ12: j/n | AL12: Ges | AM12: Cash | AN12: Aktien | AO12: # | AP12: S Tkauf | AQ12: # | AR12: j/n | AT12: € netto | AU12: € netto | AZ12: 1.2.93 := 100
A13: € netto | C13: € br | E13: € | F13: % | G13: € | H13: € brutto | J13: € | L13: € | M13: % | N13: € | O13: € netto | P13: € netto | Q13: € netto | T13: € | U13: 1/0 | AD13: € netto | AE13: € netto | AF13: € netto | AH13: € brutto | AL13: € netto | AM13: € netto | AN13: € netto | AP13: € brutto | AZ13: StoxxEurope 600 €
A14: S | B14: S | C14: S | D14: S | I14: S | J14: S | K14: S | R14: Anf | U14: =SUM(U100:U8276) -> 368 | V14: 21 | X14: Datum | Y14: Open | Z14: High | AA14: Low | AB14: Close → | AI14: S K | AJ14: S K | AQ14: S K | AR14: S K | AT14: =MIN(AT100:AT2080) -> 1211.9583 | AU14: =MIN(AU100:AU2080) -> -1134.865509
A15: =SUM(A101:A7816) -> 0 | B15: =SUM(B101:B7816) -> 0 | C15: =SUM(C101:C7816) -> 0 | D15: =SUM(D101:D7816) -> 0 | I15: =SUM(I101:I7816) -> 346.4055617 | J15: =SUM(J101:J7816) -> 63126.47992 | K15: =SUM(K101:K7816) -> 57 | R15: =$R$7817 -> 120.8313195 | U15: Mon | V15: d/Mon | X15: €/Anteil | AI15: =SUM(AI101:AI7816) -> 271.6575298 | AJ15: =SUM(AJ101:AJ7816) -> 368 | AQ15: =SUM(AQ101:AQ7816) -> 305.0932908 | AR15: =SUM(AR101:AR7816) -> 194 | AT15: =MAX(AT100:AT2080) -> 16437.67513 | AU15: =MAX(AU100:AU2080) -> 10941.43451
A101: =C101 - B101*(E101-$AB$7817)*KESt% -> 0 | B101: =C101/E101 -> 0 | C101: =D101 * ($O102*prozRK3%*(1-prozRK3%)*-dKverk%) -> 0 | D101: =IF($Z101>=E101, 1, 0) -> 0 | E101: =IF(OR($U101=1, D102=1), ROUND($AB102*(1+F101%), 2), E102) -> 537.03 | F101: =IF(OR($U101=1, D102=1), ((($O102 -$Q102 -$G101)*prozRK3%/(1-prozRK3%) -$G101) / $Q102 -1)*100, F102) -> 48.9777207 | G101: =IF(OR($U101=1, D102=1), O102*prozRK3%*(1-prozRK3%)*-dKfixVerk%, G102) -> -41165.60267 | H101: =H102 + J101 -> 73126.47992 | I101: =J101/L101 -> 0 | J101: =K101 * ($O102*prozRK3%*(1-prozRK3%)*-dKkauf%) -> 0 | K101: =IF($AA101<=L101, 1, 0) -> 0 | L101: =IF(OR($U101=1, K102=1), ROUND($AB102*(1+M101%), 2), L102) -> 312.66 | M101: =IF(OR($U101=1, K102=1), ((($O102 -$Q102 -$N101)*prozRK3%/(1-prozRK3%) -$N101) / $Q102 -1)*100, M102) -> -13.26670947 | N101: =IF(OR($U101=1, K102=1), O102*prozRK3%*(1-prozRK3%)*-dKfixKauf%, N102) -> 3430.466889 | O101: =P101+Q101 -> 275453.5073 | P101: =P102*(1+Zins%)^(DAYS360($X102,$X101)/360) +$T101 -J101 +-A101 +$U101*Q102*Dividende%/12 -> 131836.7784 | Q101: =R101*AB101 - (R101*AB101-H101)*KESt% -> 143616.7289 | R101: =R102 + I101 + B101 -> 467.2368811 | T101: =U101 * Teinz*(1+Terhoehung%)^(DAYS360(DatumMin, $X101)/360) -> 0 | U101: =IF(V101=1, 1, 0) -> 0 | V101: =V102+1 +IF(V102=$V$14, -$V$14, 0) -> 3 | W101: =DATE(YEAR(X101),MONTH(X101),DAY(X101)) -> 42734 | X101: 2016-12-30 | Y101: 360.22 | Z101: 361.66 | AA101: 358.83 | AB101: 361.42 | AD101: =AE101+AF101 -> 260379.3214 | AE101: =AE102*(1+Zins%)^(DAYS360($X102,$X101)/360) +$T101*(1-prozRK3%) +$U101*AF102*Dividende%/12 -> 139169.6966 | AF101: =$AB101*AG101 - ($AB101*AG101 -AH101)*KESt% -> 121209.6248 | AG101: =AG102 + AI101 -> 392.4888493 | AH101: =AH102 + $T101*prozRK3% -> 63583.3858 | AI101: =$T101*prozRK3% / $Y101 -> 0 | AJ101: =$U101 -> 0 | AL101: =AM101+AN101 -> 265166.0714 | AM101: =AM102*(1+Zins%)^(DAYS360($X102,$X101)/360) + $T101 -AR101*$T101 +$U101*AN102*Dividende%/12 -> 133414.149 | AN101: =$AB101*AO101 - ($AB101*AO101 -AP101)*KESt% -> 131751.9224 | AO101: =AO102 + AQ101 -> 425.9246103 | AP101: =AP102 + AR101*T101 -> 69821.08394 | AQ101: =T101 * AR101 / Y101 -> 0 | AR101: =$U101 * IF($AL102*prozRK3%>$AN102, 1, 0) -> 0 | AT101: =O101-AD101 -> 15074.186 | AU101: =O101-AL101 -> 10287.43594 | AV101: =$AV$3-- $C101*$AV$5 -> 450 | AW101: =$AW$3 + $J101*$AW$5 -> 0 | AX101: =$AX$3 + AR101 * T101 * $AX$5 -> 22.5 | AZ101: =$X101 -> 2016-12-30 | BA101: =$AB101/$AB$6231 *100 -> 352.9147544
A102: 0 | B102: 0 | C102: 0 | D102: 0 | E102: 537.03 | F102: 48.9777207 | G102: -41165.60267 | H102: =H103 + J102 -> 73126.47992 | I102: 0 | J102: 0 | K102: 0 | L102: 312.66 | M102: -13.26670947 | N102: 3430.466889 | O102: 275047.2119 | P102: 131829.5267 | Q102: 143217.6852 | R102: 467.2368811 | T102: 0 | U102: 0 | V102: 2 | W102: =DATE(YEAR(X102),MONTH(X102),DAY(X102)) -> 42733 | X102: 2016-12-29 | Y102: 360.42 | Z102: 360.88 | AA102: 359.39 | AB102: 360.26 | AD102: =AE102+AF102 -> 260036.4611 | AE102: 139162.0414 | AF102: 120874.4197 | AG102: =AG103 + AI102 -> 392.4888493 | AH102: 63583.3858 | AI102: 0 | AJ102: =$U102 -> 0 | AL102: 264794.9719 | AM102: 133406.8105 | AN102: =AB102*AO102 - (AB102*AO102 -AP102)*KESt% -> 131388.1615 | AO102: =AO103 + AQ102 -> 425.9246103 | AP102: =AP103 + AR102*T102 -> 69821.08394 | AQ102: 0 | AR102: 0 | AT102: 15010.7508 | AU102: 10252.23996 | AV102: 450 | AW102: 0 | AX102: =$AX$3 + AR102 * T102 * $AX$5 -> 22.5 | AZ102: =$X102 -> 2016-12-29 | BA102: =$AB102/$AB$6231 *100 -> 351.7820525
A103: 0 | B103: 0 | C103: 0 | D103: 0 | E103: 537.03 | F103: 48.9777207 | G103: -41165.60267 | H103: 73126.47992 | I103: 0 | J103: 0 | K103: 0 | L103: 312.66 | M103: -13.26670947 | N103: 3430.466889 | O103: 275476.8445 | P103: 131822.2753 | Q103: 143654.5693 | R103: 467.2368811 | T103: 407.3266842 | U103: 1 | V103: 1 | W103: 42732 | X103: 2016-12-28 | Y103: 360.52 | Z103: 361.53 | AA103: 360.34 | AB103: 361.53 | AD103: 260395.7982 | AE103: 139154.3867 | AF103: 121241.4115 | AG103: 392.4888493 | AH103: 63583.3858 | AI103: 0.5649155167 | AJ103: 1 | AL103: 265185.8893 | AM103: 133399.4723 | AN103: 131786.4169 | AO103: 425.9246103 | AP103: 69821.08394 | AQ103: 1.129831033 | AR103: 1 | AT103: 15081.04634 | AU103: 10290.95524 | AV103: 450 | AW103: 0 | AX103: 31.66485039 | AZ103: 2016-12-28 | BA103: 353.0221658
A104: 0 | B104: 0 | C104: 0 | D104: 0 | E104: 525.72 | F104: 53.51721851 | G104: -40101.83796 | H104: 73126.47992 | I104: 0 | J104: 0 | K104: 0 | L104: 308.68 | M104: -9.862086114 | N104: 3341.81983 | O104: 274437.3511 | P104: 131143.9852 | Q104: 143293.3659 | R104: 467.2368811 | T104: 0 | U104: 0 | V104: 21 | W104: 42731 | X104: 2016-12-27 | Y104: 360.26 | Z104: 360.8 | AA104: 360.26 | AB104: 360.48 | AD104: 259455.2122 | AE104: 138720.8658 | AF104: 120734.3464 | AG104: 391.9239337 | AH104: 63379.72246 | AI104: 0 | AJ104: 0 | AL104: 264200.7914 | AM104: 133150.9342 | AN104: 131049.8572 | AO104: 424.7947792 | AP104: 69413.75726 | AQ104: 0 | AR104: 0 | AT104: 14982.1389 | AU104: 10236.55969 | AV104: 450 | AW104: 0 | AX104: 22.5 | AZ104: 2016-12-27 | BA104: 351.9968753
A105: 0 | B105: 0 | C105: 0 | D105: 0 | E105: 525.72 | F105: 53.51721851 | G105: -40101.83796 | H105: 73126.47992 | I105: 0 | J105: 0 | K105: 0 | L105: 308.68 | M105: -9.862086114 | N105: 3341.81983 | O105: 274236.4972 | P105: 131115.1328 | Q105: 143121.3644 | R105: 467.2368811 | T105: 0 | U105: 0 | V105: 20 | W105: 42727 | X105: 2016-12-23 | Y105: 359.89 | Z105: 360.4 | AA105: 359.48 | AB105: 359.98 | AD105: 259280.4159 | AE105: 138690.3466 | AF105: 120590.0694 | AG105: 391.9239337 | AH105: 63379.72246 | AI105: 0 | AJ105: 0 | AL105: 264015.12 | AM105: 133121.6404 | AN105: 130893.4796 | AO105: 424.7947792 | AP105: 69413.75726 | AQ105: 0 | AR105: 0 | AT105: 14956.08127 | AU105: 10221.37723 | AV105: 450 | AW105: 0 | AX105: 22.5 | AZ105: 2016-12-23 | BA105: 351.5086417
A106: 0 | B106: 0 | C106: 0 | D106: 0 | E106: 525.72 | F106: 53.51721851 | G106: -40101.83796 | H106: 73126.47992 | I106: 0 | J106: 0 | K106: 0 | L106: 308.68 | M106: -9.862086114 | N106: 3341.81983 | O106: 274174.2446 | P106: 131107.9207 | Q106: 143066.3239 | R106: 467.2368811 | T106: 0 | U106: 0 | V106: 19 | W106: 42726 | X106: 2016-12-22 | Y106: 360.09 | Z106: 360.42 | AA106: 358.72 | AB106: 359.82 | AD106: 259226.6185 | AE106: 138682.7178 | AF106: 120543.9007 | AG106: 391.9239337 | AH106: 63379.72246 | AI106: 0 | AJ106: 0 | AL106: 263957.7567 | AM106: 133114.3179 | AN106: 130843.4388 | AO106: 424.7947792 | AP106: 69413.75726 | AQ106: 0 | AR106: 0 | AT106: 14947.62609 | AU106: 10216.48792 | AV106: 450 | AW106: 0 | AX106: 22.5 | AZ106: 2016-12-22 | BA106: 351.352407
A107: 0 | B107: 0 | C107: 0 | D107: 0 | E107: 525.72 | F107: 53.51721851 | G107: -40101.83796 | H107: 73126.47992 | I107: 0 | J107: 0 | K107: 0 | L107: 308.68 | M107: -9.862086114 | N107: 3341.81983 | O107: 274421.5952 | P107: 131100.709 | Q107: 143320.8862 | R107: 467.2368811 | T107: 0 | U107: 0 | V107: 18 | W107: 42725 | X107: 2016-12-21 | Y107: 360.66 | Z107: 361.32 | AA107: 359.93 | AB107: 360.56 | AD107: 259432.5201 | AE107: 138675.0894 | AF107: 120757.4307 | AG107: 391.9239337 | AH107: 63379.72246 | AI107: 0 | AJ107: 0 | AL107: 264181.8734 | AM107: 133106.9958 | AN107: 131074.8776 | AO107: 424.7947792 | AP107: 69413.75726 | AQ107: 0 | AR107: 0 | AT107: 14989.07512 | AU107: 10239.7218 | AV107: 450 | AW107: 0 | AX107: 22.5 | AZ107: 2016-12-21 | BA107: 352.0749927
A108: 0 | B108: 0 | C108: 0 | D108: 0 | E108: 525.72 | F108: 53.51721851 | G108: -40101.83796 | H108: 73126.47992 | I108: 0 | J108: 0 | K108: 0 | L108: 308.68 | M108: -9.862086114 | N108: 3341.81983 | O108: 274675.8263 | P108: 131093.4977 | Q108: 143582.3286 | R108: 467.2368811 | T108: 0 | U108: 0 | V108: 17 | W108: 42724 | X108: 2016-12-20 | Y108: 359.78 | Z108: 361.32 | AA108: 359.42 | AB108: 361.32 | AD108: 259644.1932 | AE108: 138667.4615 | AF108: 120976.7317 | AG108: 391.9239337 | AH108: 63379.72246 | AI108: 0 | AJ108: 0 | AL108: 264412.2457 | AM108: 133099.6742 | AN108: 131312.5715 | AO108: 424.7947792 | AP108: 69413.75726 | AQ108: 0 | AR108: 0 | AT108: 15031.63312 | AU108: 10263.58064 | AV108: 450 | AW108: 0 | AX108: 22.5 | AZ108: 2016-12-20 | BA108: 352.8171077
A109: 0 | B109: 0 | C109: 0 | D109: 0 | E109: 525.72 | F109: 53.51721851 | G109: -40101.83796 | H109: 73126.47992 | I109: 0 | J109: 0 | K109: 0 | L109: 308.68 | M109: -9.862086114 | N109: 3341.81983 | O109: 274073.49 | P109: 131086.2868 | Q109: 142987.2031 | R109: 467.2368811 | T109: 0 | U109: 0 | V109: 16 | W109: 42723 | X109: 2016-12-19 | Y109: 359.86 | Z109: 360 | AA109: 358.95 | AB109: 359.59 | AD109: 259137.3673 | AE109: 138659.834 | AF109: 120477.5333 | AG109: 391.9239337 | AH109: 63379.72246 | AI109: 0 | AJ109: 0 | AL109: 263863.858 | AM109: 133092.3529 | AN109: 130771.5051 | AO109: 424.7947792 | AP109: 69413.75726 | AQ109: 0 | AR109: 0 | AT109: 14936.12269 | AU109: 10209.63195 | AV109: 450 | AW109: 0 | AX109: 22.5 | AZ109: 2016-12-19 | BA109: 351.1278195
A110: 0 | B110: 0 | C110: 0 | D110: 0 | E110: 525.72 | F110: 53.51721851 | G110: -40101.83796 | H110: 73126.47992 | I110: 0 | J110: 0 | K110: 0 | L110: 308.68 | M110: -9.862086114 | N110: 3341.81983 | O110: 274199.781 | P110: 131064.6565 | Q110: 143135.1245 | R110: 467.2368811 | T110: 0 | U110: 0 | V110: 15 | W110: 42720 | X110: 2016-12-16 | Y110: 358.63 | Z110: 360.57 | AA110: 357.84 | AB110: 360.02 | AD110: 259238.5655 | AE110: 138636.954 | AF110: 120601.6115 | AG110: 391.9239337 | AH110: 63379.72246 | AI110: 0 | AJ110: 0 | AL110: 263976.3814 | AM110: 133070.3916 | AN110: 130905.9898 | AO110: 424.7947792 | AP110: 69413.75726 | AQ110: 0 | AR110: 0 | AT110: 14961.21552 | AU110: 10223.39961 | AV110: 450 | AW110: 0 | AX110: 22.5 | AZ110: 2016-12-16 | BA110: 351.5477004
A111: 0 | B111: 0 | C111: 0 | D111: 0 | E111: 525.72 | F111: 53.51721851 | G111: -40101.83796 | H111: 73126.47992 | I111: 0 | J111: 0 | K111: 0 | L111: 308.68 | M111: -9.862086114 | N111: 3341.81983 | O111: 273769.4478 | P111: 131057.4472 | Q111: 142712.0006 | R111: 467.2368811 | T111: 0 | U111: 0 | V111: 14 | W111: 42719 | X111: 2016-12-15 | Y111: 356.11 | Z111: 359.38 | AA111: 355.81 | AB111: 358.79 | AD111: 258876.0182 | AE111: 138629.3281 | AF111: 120246.6901 | AG111: 391.9239337 | AH111: 63379.72246 | AI111: 0 | AJ111: 0 | AL111: 263584.3729 | AM111: 133063.072 | AN111: 130521.301 | AO111: 424.7947792 | AP111: 69413.75726 | AQ111: 0 | AR111: 0 | AT111: 14893.42958 | AU111: 10185.0749 | AV111: 450 | AW111: 0 | AX111: 22.5 | AZ111: 2016-12-15 | BA111: 350.3466458
A112: 0 | B112: 0 | C112: 0 | D112: 0 | E112: 525.72 | F112: 53.51721851 | G112: -40101.83796 | H112: 73126.47992 | I112: 0 | J112: 0 | K112: 0 | L112: 308.68 | M112: -9.862086114 | N112: 3341.81983 | O112: 272706.1492 | P112: 131050.2383 | Q112: 141655.9109 | R112: 467.2368811 | T112: 0 | U112: 0 | V112: 13 | W112: 42718 | X112: 2016-12-14 | Y112: 356.64 | Z112: 357.05 | AA112: 355.45 | AB112: 355.72 | AD112: 257982.5321 | AE112: 138621.7027 | AF112: 119360.8293 | AG112: 391.9239337 | AH112: 63379.72246 | AI112: 0 | AJ112: 0 | AL112: 262616.8954 | AM112: 133055.7527 | AN112: 129561.1426 | AO112: 424.7947792 | AP112: 69413.75726 | AQ112: 0 | AR112: 0 | AT112: 14723.61716 | AU112: 10089.25387 | AV112: 450 | AW112: 0 | AX112: 22.5 | AZ112: 2016-12-14 | BA112: 347.3488917
A113: 0 | B113: 0 | C113: 0 | D113: 0 | E113: 525.72 | F113: 53.51721851 | G113: -40101.83796 | H113: 73126.47992 | I113: 0 | J113: 0 | K113: 0 | L113: 308.68 | M113: -9.862086114 | N113: 3341.81983 | O113: 273311.2663 | P113: 131043.0298 | Q113: 142268.2365 | R113: 467.2368811 | T113: 0 | U113: 0 | V113: 12 | W113: 42717 | X113: 2016-12-13 | Y113: 353.42 | Z113: 357.68 | AA113: 352.86 | AB113: 357.5 | AD113: 258488.5332 | AE113: 138614.0777 | AF113: 119874.4554 | AG113: 391.9239337 | AH113: 63379.72246 | AI113: 0 | AJ113: 0 | AL113: 263166.2807 | AM113: 133048.4339 | AN113: 130117.8468 | AO113: 424.7947792 | AP113: 69413.75726 | AQ113: 0 | AR113: 0 | AT113: 14822.73314 | AU113: 10144.98562 | AV113: 450 | AW113: 0 | AX113: 22.5 | AZ113: 2016-12-13 | BA113: 349.0870032
A114: 0 | B114: 0 | C114: 0 | D114: 0 | E114: 525.72 | F114: 53.51721851 | G114: -40101.83796 | H114: 73126.47992 | I114: 0 | J114: 0 | K114: 0 | L114: 308.68 | M114: -9.862086114 | N114: 3341.81983 | O114: 272010.6063 | P114: 131035.8216 | Q114: 140974.7847 | R114: 467.2368811 | T114: 0 | U114: 0 | V114: 11 | W114: 42716 | X114: 2016-12-12 | Y114: 355.25 | Z114: 355.96 | AA114: 353.15 | AB114: 353.74 | AD114: 257395.9456 | AE114: 138606.4532 | AF114: 118789.4924 | AG114: 391.9239337 | AH114: 63379.72246 | AI114: 0 | AJ114: 0 | AL114: 261983.0029 | AM114: 133041.1154 | AN114: 128941.8874 | AO114: 424.7947792 | AP114: 69413.75726 | AQ114: 0 | AR114: 0 | AT114: 14614.66076 | AU114: 10027.60346 | AV114: 450 | AW114: 0 | AX114: 22.5 | AZ114: 2016-12-12 | BA114: 345.4154868
A115: 0 | B115: 0 | C115: 0 | D115: 0 | E115: 525.72 | F115: 53.51721851 | G115: -40101.83796 | H115: 73126.47992 | I115: 0 | J115: 0 | K115: 0 | L115: 308.68 | M115: -9.862086114 | N115: 3341.81983 | O115: 272553.1495 | P115: 131014.1997 | Q115: 141538.9499 | R115: 467.2368811 | T115: 0 | U115: 0 | V115: 10 | W115: 42713 | X115: 2016-12-09 | Y115: 352.04 | Z115: 355.86 | AA115: 352.04 | AB115: 355.38 | AD115: 257846.3029 | AE115: 138583.5819 | AF115: 119262.721 | AG115: 391.9239337 | AH115: 63379.72246 | AI115: 0 | AJ115: 0 | AL115: 262473.9684 | AM115: 133019.1626 | AN115: 129454.8059 | AO115: 424.7947792 | AP115: 69413.75726 | AQ115: 0 | AR115: 0 | AT115: 14706.84659 | AU115: 10079.18106 | AV115: 450 | AW115: 0 | AX115: 22.5 | AZ115: 2016-12-09 | BA115: 347.0168929
A116: 0 | B116: 0 | C116: 0 | D116: 0 | E116: 525.72 | F116: 53.51721851 | G116: -40101.83796 | H116: 73126.47992 | I116: 0 | J116: 0 | K116: 0 | L116: 308.68 | M116: -9.862086114 | N116: 3341.81983 | O116: 271369.4522 | P116: 131006.9931 | Q116: 140362.4591 | R116: 467.2368811 | T116: 0 | U116: 0 | V116: 9 | W116: 42712 | X116: 2016-12-08 | Y116: 348.46 | Z116: 352.15 | AA116: 347.27 | AB116: 351.96 | AD116: 256851.8253 | AE116: 138575.959 | AF116: 118275.8663 | AG116: 391.9239337 | AH116: 63379.72246 | AI116: 0 | AJ116: 0 | AL116: 261397.029 | AM116: 133011.8457 | AN116: 128385.1833 | AO116: 424.7947792 | AP116: 69413.75726 | AQ116: 0 | AR116: 0 | AT116: 14517.62683 | AU116: 9972.423195 | AV116: 450 | AW116: 0 | AX116: 22.5 | AZ116: 2016-12-08 | BA116: 343.6773753
A117: 0 | B117: 0 | C117: 0 | D117: 0 | E117: 525.72 | F117: 53.51721851 | G117: -40101.83796 | H117: 73126.47992 | I117: 0 | J117: 0 | K117: 0 | L117: 308.68 | M117: -9.862086114 | N117: 3341.81983 | O117: 269896.7926 | P117: 130999.787 | Q117: 138897.0056 | R117: 467.2368811 | T117: 0 | U117: 0 | V117: 8 | W117: 42711 | X117: 2016-12-07 | Y117: 345.46 | Z117: 347.7 | AA117: 345.46 | AB117: 347.7 | AD117: 255614.9628 | AE117: 138568.3366 | AF117: 117046.6263 | AG117: 391.9239337 | AH117: 63379.72246 | AI117: 0 | AJ117: 0 | AL117: 260057.3756 | AM117: 133004.5293 | AN117: 127052.8463 | AO117: 424.7947792 | AP117: 69413.75726 | AQ117: 0 | AR117: 0 | AT117: 14281.82976 | AU117: 9839.417004 | AV117: 450 | AW117: 0 | AX117: 22.5 | AZ117: 2016-12-07 | BA117: 339.5176252
A118: 0 | B118: 0 | C118: 0 | D118: 0 | E118: 525.72 | F118: 53.51721851 | G118: -40101.83796 | H118: 73126.47992 | I118: 0 | J118: 0 | K118: 0 | L118: 308.68 | M118: -9.862086114 | N118: 3341.81983 | O118: 268812.857 | P118: 130992.5812 | Q118: 137820.2758 | R118: 467.2368811 | T118: 0 | U118: 0 | V118: 7 | W118: 42710 | X118: 2016-12-06 | Y118: 341.54 | Z118: 344.57 | AA118: 340.38 | AB118: 344.57 | AD118: 254704.1668 | AE118: 138560.7145 | AF118: 116143.4523 | AG118: 391.9239337 | AH118: 63379.72246 | AI118: 0 | AJ118: 0 | AL118: 259071.1359 | AM118: 132997.2133 | AN118: 126073.9226 | AO118: 424.7947792 | AP118: 69413.75726 | AQ118: 0 | AR118: 0 | AT118: 14108.69021 | AU118: 9741.721044 | AV118: 450 | AW118: 0 | AX118: 22.5 | AZ118: 2016-12-06 | BA118: 336.4612831
A119: 0 | B119: 0 | C119: 0 | D119: 0 | E119: 525.72 | F119: 53.51721851 | G119: -40101.83796 | H119: 73126.47992 | I119: 0 | J119: 0 | K119: 0 | L119: 308.68 | M119: -9.862086114 | N119: 3341.81983 | O119: 267670.4412 | P119: 130985.3759 | Q119: 136685.0654 | R119: 467.2368811 | T119: 0 | U119: 0 | V119: 6 | W119: 42709 | X119: 2016-12-05 | Y119: 339.88 | Z119: 344.79 | AA119: 338.97 | AB119: 341.27 | AD119: 253744.3169 | AE119: 138553.0929 | AF119: 115191.2241 | AG119: 391.9239337 | AH119: 63379.72246 | AI119: 0 | AJ119: 0 | AL119: 258031.7283 | AM119: 132989.8977 | AN119: 125041.8306 | AO119: 424.7947792 | AP119: 69413.75726 | AQ119: 0 | AR119: 0 | AT119: 13926.12428 | AU119: 9638.712919 | AV119: 450 | AW119: 0 | AX119: 22.5 | AZ119: 2016-12-05 | BA119: 333.2389415
A120: 0 | B120: 0 | C120: 0 | D120: 0 | E120: 525.72 | F120: 53.51721851 | G120: -40101.83796 | H120: 73126.47992 | I120: 0 | J120: 0 | K120: 0 | L120: 308.68 | M120: -9.862086114 | N120: 3341.81983 | O120: 266991.7815 | P120: 130963.7622 | Q120: 136028.0193 | R120: 467.2368811 | T120: 0 | U120: 0 | V120: 5 | W120: 42706 | X120: 2016-12-02 | Y120: 338.89 | Z120: 340.19 | AA120: 336.36 | AB120: 339.36 | AD120: 253170.3164 | AE120: 138530.2305 | AF120: 114640.086 | AG120: 391.9239337 | AH120: 63379.72246 | AI120: 0 | AJ120: 0 | AL120: 257412.4215 | AM120: 132967.9532 | AN120: 124444.4683 | AO120: 424.7947792 | AP120: 69413.75726 | AQ120: 0 | AR120: 0 | AT120: 13821.46513 | AU120: 9579.360006 | AV120: 450 | AW120: 0 | AX120: 22.5 | AZ120: 2016-12-02 | BA120: 331.3738893
A121: 0 | B121: 0 | C121: 0 | D121: 0 | E121: 525.72 | F121: 53.51721851 | G121: -40101.83796 | H121: 73126.47992 | I121: 0 | J121: 0 | K121: 0 | L121: 308.68 | M121: -9.862086114 | N121: 3341.81983 | O121: 267500.5825 | P121: 130956.5584 | Q121: 136544.0241 | R121: 467.2368811 | T121: 0 | U121: 0 | V121: 4 | W121: 42705 | X121: 2016-12-01 | Y121: 342.12 | Z121: 342.37 | AA121: 339.56 | AB121: 340.86 | AD121: 253595.5274 | AE121: 138522.6105 | AF121: 115072.917 | AG121: 391.9239337 | AH121: 63379.72246 | AI121: 0 | AJ121: 0 | AL121: 257874.2403 | AM121: 132960.6392 | AN121: 124913.601 | AO121: 424.7947792 | AP121: 69413.75726 | AQ121: 0 | AR121: 0 | AT121: 13905.05506 | AU121: 9626.342245 | AV121: 450 | AW121: 0 | AX121: 22.5 | AZ121: 2016-12-01 | BA121: 332.83859
A122: 0 | B122: 0 | C122: 0 | D122: 0 | E122: 525.72 | F122: 53.51721851 | G122: -40101.83796 | H122: 73126.47992 | I122: 0 | J122: 0 | K122: 0 | L122: 308.68 | M122: -9.862086114 | N122: 3341.81983 | O122: 267882.1027 | P122: 130949.3551 | Q122: 136932.7476 | R122: 467.2368811 | T122: 0 | U122: 0 | V122: 3 | W122: 42704 | X122: 2016-11-30 | Y122: 340.52 | Z122: 343.34 | AA122: 340.25 | AB122: 341.99 | AD122: 253913.9739 | AE122: 138514.9909 | AF122: 115398.983 | AG122: 391.9239337 | AH122: 63379.72246 | AI122: 0 | AJ122: 0 | AL122: 258220.34 | AM122: 132953.3256 | AN122: 125267.0143 | AO122: 424.7947792 | AP122: 69413.75726 | AQ122: 0 | AR122: 0 | AT122: 13968.12879 | AU122: 9661.762718 | AV122: 450 | AW122: 0 | AX122: 22.5 | AZ122: 2016-11-30 | BA122: 333.9419979
A123: 0 | B123: 0 | C123: 0 | D123: 0 | E123: 525.72 | F123: 53.51721851 | G123: -40101.83796 | H123: 73126.47992 | I123: 0 | J123: 0 | K123: 0 | L123: 308.68 | M123: -9.862086114 | N123: 3341.81983 | O123: 267517.1364 | P123: 130942.1521 | Q123: 136574.9843 | R123: 467.2368811 | T123: 0 | U123: 0 | V123: 2 | W123: 42703 | X123: 2016-11-29 | Y123: 339.26 | Z123: 341.07 | AA123: 338.12 | AB123: 340.95 | AD123: 253606.2586 | AE123: 138507.3718 | AF123: 115098.8868 | AG123: 391.9239337 | AH123: 63379.72246 | AI123: 0 | AJ123: 0 | AL123: 257887.7614 | AM123: 132946.0124 | AN123: 124941.749 | AO123: 424.7947792 | AP123: 69413.75726 | AQ123: 0 | AR123: 0 | AT123: 13910.87782 | AU123: 9629.375031 | AV123: 450 | AW123: 0 | AX123: 22.5 | AZ123: 2016-11-29 | BA123: 332.926472
A124: 0 | B124: 0 | C124: 0 | D124: 0 | E124: 525.72 | F124: 53.51721851 | G124: -40101.83796 | H124: 73126.47992 | I124: 0 | J124: 0 | K124: 0 | L124: 308.68 | M124: -9.862086114 | N124: 3341.81983 | O124: 267124.6503 | P124: 130934.9495 | Q124: 136189.7008 | R124: 467.2368811 | T124: 406.522448 | U124: 1 | V124: 1 | W124: 42702 | X124: 2016-11-28 | Y124: 341.87 | Z124: 341.87 | AA124: 339.01 | AB124: 339.83 | AD124: 253275.4594 | AE124: 138499.7531 | AF124: 114775.7063 | AG124: 391.9239337 | AH124: 63379.72246 | AI124: 0.5945570656 | AJ124: 1 | AL124: 257530.1628 | AM124: 132938.6996 | AN124: 124591.4632 | AO124: 424.7947792 | AP124: 69413.75726 | AQ124: 1.189114131 | AR124: 1 | AT124: 13849.19089 | AU124: 9594.487497 | AV124: 450 | AW124: 0 | AX124: 31.64675508 | AZ124: 2016-11-28 | BA124: 331.8328288
A125: 0 | B125: 0 | C125: 0 | D125: 0 | E125: 522.56 | F125: 52.9250606 | G125: -39933.87868 | H125: 73126.47992 | I125: 0 | J125: 0 | K125: 0 | L125: 306.49 | M125: -10.30620455 | N125: 3327.823224 | O125: 267345.5864 | P125: 130254.5973 | Q125: 137090.9891 | R125: 467.2368811 | T125: 0 | U125: 0 | V125: 21 | W125: 42699 | X125: 2016-11-25 | Y125: 341.52 | Z125: 342.56 | AA125: 340.71 | AB125: 342.45 | AD125: 253389.6336 | AE125: 138061.4309 | AF125: 115328.2027 | AG125: 391.3293767 | AH125: 63176.46124 | AI125: 0 | AJ125: 0 | AL125: 257690.5679 | AM125: 132686.7164 | AN125: 125003.8515 | AO125: 423.6056651 | AP125: 69007.23481 | AQ125: 0 | AR125: 0 | AT125: 13955.95285 | AU125: 9655.018531 | AV125: 450 | AW125: 0 | AX125: 22.5 | AZ125: 2016-11-25 | BA125: 334.3911727
A126: 0 | B126: 0 | C126: 0 | D126: 0 | E126: 522.56 | F126: 52.9250606 | G126: -39933.87868 | H126: 73126.47992 | I126: 0 | J126: 0 | K126: 0 | L126: 306.49 | M126: -10.30620455 | N126: 3327.823224 | O126: 267128.5797 | P126: 130247.4326 | Q126: 136881.1472 | R126: 467.2368811 | T126: 0 | U126: 0 | V126: 20 | W126: 42698 | X126: 2016-11-24 | Y126: 341.17 | Z126: 342.11 | AA126: 340.17 | AB126: 341.84 | AD126: 253206.2885 | AE126: 138053.8367 | AF126: 115152.4518 | AG126: 391.3293767 | AH126: 63176.46124 | AI126: 0 | AJ126: 0 | AL126: 257493.0227 | AM126: 132679.4179 | AN126: 124813.6049 | AO126: 423.6056651 | AP126: 69007.23481 | AQ126: 0 | AR126: 0 | AT126: 13922.29126 | AU126: 9635.556987 | AV126: 450 | AW126: 0 | AX126: 22.5 | AZ126: 2016-11-24 | BA126: 333.7955278
A127: 0 | B127: 0 | C127: 0 | D127: 0 | E127: 522.56 | F127: 52.9250606 | G127: -39933.87868 | H127: 73126.47992 | I127: 0 | J127: 0 | K127: 0 | L127: 306.49 | M127: -10.30620455 | N127: 3327.823224 | O127: 266753.332 | P127: 130240.2682 | Q127: 136513.0638 | R127: 467.2368811 | T127: 0 | U127: 0 | V127: 19 | W127: 42697 | X127: 2016-11-23 | Y127: 340.77 | Z127: 341.81 | AA127: 338.95 | AB127: 340.77 | AD127: 252890.4103 | AE127: 138046.2429 | AF127: 114844.1674 | AG127: 391.3293767 | AH127: 63176.46124 | AI127: 0 | AJ127: 0 | AL127: 257152.0134 | AM127: 132672.1197 | AN127: 124479.8936 | AO127: 423.6056651 | AP127: 69007.23481 | AQ127: 0 | AR127: 0 | AT127: 13862.92168 | AU127: 9601.318633 | AV127: 450 | AW127: 0 | AX127: 22.5 | AZ127: 2016-11-23 | BA127: 332.7507079
A128: 0 | B128: 0 | C128: 0 | D128: 0 | E128: 522.56 | F128: 52.9250606 | G128: -39933.87868 | H128: 73126.47992 | I128: 0 | J128: 0 | K128: 0 | L128: 306.49 | M128: -10.30620455 | N128: 3327.823224 | O128: 266832.1688 | P128: 130233.1043 | Q128: 136599.0646 | R128: 467.2368811 | T128: 0 | U128: 0 | V128: 18 | W128: 42696 | X128: 2016-11-22 | Y128: 341.39 | Z128: 342.61 | AA128: 340.96 | AB128: 341.02 | AD128: 252954.846 | AE128: 138038.6496 | AF128: 114916.1964 | AG128: 391.3293767 | AH128: 63176.46124 | AI128: 0 | AJ128: 0 | AL128: 257222.6855 | AM128: 132664.822 | AN128: 124557.8636 | AO128: 423.6056651 | AP128: 69007.23481 | AQ128: 0 | AR128: 0 | AT128: 13877.32278 | AU128: 9609.48327 | AV128: 450 | AW128: 0 | AX128: 22.5 | AZ128: 2016-11-22 | BA128: 332.9948247
A129: 0 | B129: 0 | C129: 0 | D129: 0 | E129: 522.56 | F129: 52.9250606 | G129: -39933.87868 | H129: 73126.47992 | I129: 0 | J129: 0 | K129: 0 | L129: 306.49 | M129: -10.30620455 | N129: 3327.823224 | O129: 266553.2428 | P129: 130225.9407 | Q129: 136327.3021 | R129: 467.2368811 | T129: 0 | U129: 0 | V129: 17 | W129: 42695 | X129: 2016-11-21 | Y129: 339.42 | Z129: 340.84 | AA129: 336.67 | AB129: 340.23 | AD129: 252719.6413 | AE129: 138031.0567 | AF129: 114688.5846 | AG129: 391.3293767 | AH129: 63176.46124 | AI129: 0 | AJ129: 0 | AL129: 256969.0033 | AM129: 132657.5247 | AN129: 124311.4786 | AO129: 423.6056651 | AP129: 69007.23481 | AQ129: 0 | AR129: 0 | AT129: 13833.60148 | AU129: 9584.239477 | AV129: 450 | AW129: 0 | AX129: 22.5 | AZ129: 2016-11-21 | BA129: 332.2234157
A130: 0 | B130: 0 | C130: 0 | D130: 0 | E130: 522.56 | F130: 52.9250606 | G130: -39933.87868 | H130: 73126.47992 | I130: 0 | J130: 0 | K130: 0 | L130: 306.49 | M130: -10.30620455 | N130: 3327.823224 | O130: 266242.7917 | P130: 130204.4523 | Q130: 136038.3394 | R130: 467.2368811 | T130: 0 | U130: 0 | V130: 16 | W130: 42692 | X130: 2016-11-18 | Y130: 341.26 | Z130: 342.08 | AA130: 339.08 | AB130: 339.39 | AD130: 252454.8474 | AE130: 138008.2804 | AF130: 114446.567 | AG130: 391.3293767 | AH130: 63176.46124 | AI130: 0 | AJ130: 0 | AL130: 256685.1348 | AM130: 132635.6351 | AN130: 124049.4997 | AO130: 423.6056651 | AP130: 69007.23481 | AQ130: 0 | AR130: 0 | AT130: 13787.94439 | AU130: 9557.656983 | AV130: 450 | AW130: 0 | AX130: 22.5 | AZ130: 2016-11-18 | BA130: 331.4031833
A131: 0 | B131: 0 | C131: 0 | D131: 0 | E131: 522.56 | F131: 52.9250606 | G131: -39933.87868 | H131: 73126.47992 | I131: 0 | J131: 0 | K131: 0 | L131: 306.49 | M131: -10.30620455 | N131: 3327.823224 | O131: 266651.8736 | P131: 130197.2903 | Q131: 136454.5832 | R131: 467.2368811 | T131: 0 | U131: 0 | V131: 15 | W131: 42691 | X131: 2016-11-17 | Y131: 338.11 | Z131: 340.81 | AA131: 337.54 | AB131: 340.6 | AD131: 252795.8768 | AE131: 138000.6892 | AF131: 114795.1876 | AG131: 391.3293767 | AH131: 63176.46124 | AI131: 0 | AJ131: 0 | AL131: 257055.2134 | AM131: 132628.3393 | AN131: 124426.8741 | AO131: 423.6056651 | AP131: 69007.23481 | AQ131: 0 | AR131: 0 | AT131: 13855.99679 | AU131: 9596.660126 | AV131: 450 | AW131: 0 | AX131: 22.5 | AZ131: 2016-11-17 | BA131: 332.5847085
A132: 0 | B132: 0 | C132: 0 | D132: 0 | E132: 522.56 | F132: 52.9250606 | G132: -39933.87868 | H132: 73126.47992 | I132: 0 | J132: 0 | K132: 0 | L132: 306.49 | M132: -10.30620455 | N132: 3327.823224 | O132: 265911.9852 | P132: 130190.1287 | Q132: 135721.8565 | R132: 467.2368811 | T132: 0 | U132: 0 | V132: 14 | W132: 42690 | X132: 2016-11-16 | Y132: 340.47 | Z132: 341.2 | AA132: 337.17 | AB132: 338.47 | AD132: 252174.5983 | AE132: 137993.0983 | AF132: 114181.5 | AG132: 391.3293767 | AH132: 63176.46124 | AI132: 0 | AJ132: 0 | AL132: 256383.6144 | AM132: 132621.044 | AN132: 123762.5704 | AO132: 423.6056651 | AP132: 69007.23481 | AQ132: 0 | AR132: 0 | AT132: 13737.38693 | AU132: 9528.37083 | AV132: 450 | AW132: 0 | AX132: 22.5 | AZ132: 2016-11-16 | BA132: 330.5048335
A133: 0 | B133: 0 | C133: 0 | D133: 0 | E133: 522.56 | F133: 52.9250606 | G133: -39933.87868 | H133: 73126.47992 | I133: 0 | J133: 0 | K133: 0 | L133: 306.49 | M133: -10.30620455 | N133: 3327.823224 | O133: 266142.1862 | P133: 130182.9675 | Q133: 135959.2187 | R133: 467.2368811 | T133: 0 | U133: 0 | V133: 13 | W133: 42689 | X133: 2016-11-15 | Y133: 337.8 | Z133: 339.76 | AA133: 337.23 | AB133: 339.16 | AD133: 252365.8081 | AE133: 137985.5079 | AF133: 114380.3002 | AG133: 391.3293767 | AH133: 63176.46124 | AI133: 0 | AJ133: 0 | AL133: 256591.5165 | AM133: 132613.7491 | AN133: 123977.7674 | AO133: 423.6056651 | AP133: 69007.23481 | AQ133: 0 | AR133: 0 | AT133: 13776.3781 | AU133: =O133-AL133 -> 9550.669747 | AV133: 450 | AW133: 0 | AX133: 22.5 | AZ133: 2016-11-15 | BA133: 331.1785958
A134: 0 | B134: 0 | C134: 0 | D134: 0 | E134: 522.56 | F134: 52.9250606 | G134: -39933.87868 | H134: 73126.47992 | I134: 0 | J134: 0 | K134: 0 | L134: 306.49 | M134: -10.30620455 | N134: 3327.823224 | O134: 265815.1025 | P134: 130175.8067 | Q134: 135639.2958 | R134: 467.2368811 | T134: 0 | U134: 0 | V134: 12 | W134: 42688 | X134: 2016-11-14 | Y134: 338.45 | Z134: 341.98 | AA134: 337.36 | AB134: 338.23 | AD134: 252090.27 | AE134: 137977.9179 | AF134: 114112.3521 | AG134: 391.3293767 | AH134: 63176.46124 | AI134: 0 | AJ134: 0 | AL134: 256294.1738 | AM134: 132606.4546 | AN134: 123687.7193 | AO134: 423.6056651 | AP134: 69007.23481 | AQ134: 0 | AR134: 0 | AT134: 13724.83246 | AU134: 9520.928615 | AV134: 450 | AW134: 0 | AX134: 22.5 | AZ134: 2016-11-14 | BA134: 330.2704814
A135: 0 | B135: 0 | C135: 0 | D135: 0 | E135: 522.56 | F135: 52.9250606 | G135: -39933.87868 | H135: 73126.47992 | I135: 0 | J135: 0 | K135: 0 | L135: 306.49 | M135: -10.30620455 | N135: 3327.823224 | O135: 265542.5001 | P135: 130154.3266 | Q135: 135388.1735 | R135: 467.2368811 | T135: 0 | U135: 0 | V135: 11 | W135: 42685 | X135: 2016-11-11 | Y135: 339.59 | Z135: 341.09 | AA135: 336.59 | AB135: 337.5 | AD135: 251857.1776 | AE135: 137955.1504 | AF135: 113902.0272 | AG135: 391.3293767 | AH135: 63176.46124 | AI135: 0 | AJ135: 0 | AL135: 256044.6205 | AM135: 132584.5734 | AN135: 123460.0471 | AO135: 423.6056651 | AP135: 69007.23481 | AQ135: 0 | AR135: 0 | AT135: 13685.32244 | AU135: 9497.87955 | AV135: 450 | AW135: 0 | AX135: 22.5 | AZ135: 2016-11-11 | BA135: 329.5576604
A136: 0 | B136: 0 | C136: 0 | D136: 0 | E136: 522.56 | F136: 52.9250606 | G136: -39933.87868 | H136: 73126.47992 | I136: 0 | J136: 0 | K136: 0 | L136: 306.49 | M136: -10.30620455 | N136: 3327.823224 | O136: 266010.0652 | P136: 130147.1674 | Q136: 135862.8978 | R136: 467.2368811 | T136: 0 | U136: 0 | V136: 10 | W136: 42684 | X136: 2016-11-10 | Y136: 341.22 | Z136: 344.3 | AA136: 337.48 | AB136: 338.88 | AD136: 252247.1897 | AE136: 137947.5621 | AF136: 114299.6277 | AG136: 391.3293767 | AH136: 63176.46124 | AI136: 0 | AJ136: 0 | AL136: 256467.7215 | AM136: 132577.2805 | AN136: 123890.4411 | AO136: 423.6056651 | AP136: 69007.23481 | AQ136: 0 | AR136: 0 | AT136: 13762.87545 | AU136: 9542.343634 | AV136: 450 | AW136: 0 | AX136: 22.5 | AZ136: 2016-11-10 | BA136: 330.905185
A137: 0 | B137: 0 | C137: 0 | D137: 0 | E137: 522.56 | F137: 52.9250606 | G137: -39933.87868 | H137: 73126.47992 | I137: 0 | J137: 0 | K137: 0 | L137: 306.49 | M137: -10.30620455 | N137: 3327.823224 | O137: 266322.8293 | P137: 130140.0085 | Q137: 136182.8208 | R137: 467.2368811 | T137: 0 | U137: 0 | V137: 9 | W137: 42683 | X137: 2016-11-09 | Y137: 330.35 | Z137: 339.9 | AA137: 327.02 | AB137: 339.81 | AD137: 252507.5499 | AE137: 137939.9742 | AF137: 114567.5758 | AG137: 391.3293767 | AH137: 63176.46124 | AI137: 0 | AJ137: 0 | AL137: 256750.4771 | AM137: 132569.988 | AN137: 124180.4892 | AO137: 423.6056651 | AP137: 69007.23481 | AQ137: 0 | AR137: 0 | AT137: 13815.27934 | AU137: 9572.352143 | AV137: 450 | AW137: 0 | AX137: 22.5 | AZ137: 2016-11-09 | BA137: 331.8132995
A138: 0 | B138: 0 | C138: 0 | D138: 0 | E138: 522.56 | F138: 52.9250606 | G138: -39933.87868 | H138: 73126.47992 | I138: 0 | J138: 0 | K138: 0 | L138: 306.49 | M138: -10.30620455 | N138: 3327.823224 | O138: 264630.0554 | P138: 130132.8501 | Q138: 134497.2053 | R138: 467.2368811 | T138: 0 | U138: 0 | V138: 8 | W138: 42682 | X138: 2016-11-08 | Y138: 334.06 | Z138: 335.08 | AA138: 333 | AB138: 334.91 | AD138: 251088.1928 | AE138: 137932.3867 | AF138: 113155.8061 | AG138: 391.3293767 | AH138: 63176.46124 | AI138: 0 | AJ138: 0 | AL138: 255214.9746 | AM138: 132562.6959 | AN138: 122652.2788 | AO138: 423.6056651 | AP138: 69007.23481 | AQ138: 0 | AR138: 0 | AT138: 13541.86257 | AU138: 9415.08074 | AV138: 450 | AW138: 0 | AX138: 22.5 | AZ138: 2016-11-08 | BA138: 327.0286105
A139: 0 | B139: 0 | C139: 0 | D139: 0 | E139: 522.56 | F139: 52.9250606 | G139: -39933.87868 | H139: 73126.47992 | I139: 0 | J139: 0 | K139: 0 | L139: 306.49 | M139: -10.30620455 | N139: 3327.823224 | O139: 264254.8139 | P139: 130125.692 | Q139: 134129.1219 | R139: 467.2368811 | T139: 0 | U139: 0 | V139: 7 | W139: 42681 | X139: 2016-11-07 | Y139: 329.65 | Z139: 333.84 | AA139: 329.65 | AB139: 333.84 | AD139: 250772.3213 | AE139: 137924.7996 | AF139: 112847.5217 | AG139: 391.3293767 | AH139: 63176.46124 | AI139: 0 | AJ139: 0 | AL139: 254873.9717 | AM139: 132555.4041 | AN139: 122318.5675 | AO139: 423.6056651 | AP139: 69007.23481 | AQ139: 0 | AR139: 0 | AT139: 13482.49261 | AU139: 9380.842269 | AV139: 450 | AW139: 0 | AX139: 22.5 | AZ139: 2016-11-07 | BA139: 325.9837906
A140: 0 | B140: 0 | C140: 0 | D140: 0 | E140: 522.56 | F140: 52.9250606 | G140: -39933.87868 | H140: 73126.47992 | I140: 0 | J140: 0 | K140: 0 | L140: 306.49 | M140: -10.30620455 | N140: 3327.823224 | O140: 262499.5662 | P140: 130104.2202 | Q140: 132395.346 | R140: 467.2368811 | T140: 0 | U140: 0 | V140: 6 | W140: 42678 | X140: 2016-11-04 | Y140: 330.89 | Z140: 330.89 | AA140: 327.75 | AB140: 328.8 | AD140: 249297.4567 | AE140: 137902.0408 | AF140: 111395.4158 | AG140: 391.3293767 | AH140: 63176.46124 | AI140: 0 | AJ140: 0 | AL140: 253280.2254 | AM140: 132533.5314 | AN140: 120746.694 | AO140: 423.6056651 | AP140: 69007.23481 | AQ140: 0 | AR140: 0 | AT140: 13202.10955 | AU140: 9219.340838 | AV140: 450 | AW140: 0 | AX140: 22.5 | AZ140: 2016-11-04 | BA140: 321.0623963
A141: 0 | B141: 0 | C141: 0 | D141: 0 | E141: 522.56 | F141: 52.9250606 | G141: -39933.87868 | H141: 73126.47992 | I141: 0 | J141: 0 | K141: 0 | L141: 306.49 | M141: -10.30620455 | N141: 3327.823224 | O141: 263441.8584 | P141: 130097.0637 | Q141: 133344.7947 | R141: 467.2368811 | T141: 0 | U141: 0 | V141: 5 | W141: 42677 | X141: 2016-11-03 | Y141: 331.63 | Z141: 334.05 | AA141: 330.97 | AB141: 331.56 | AD141: 250085.0721 | AE141: 137894.4554 | AF141: 112190.6167 | AG141: 391.3293767 | AH141: 63176.46124 | AI141: 0 | AJ141: 0 | AL141: 254133.7232 | AM141: 132526.2413 | AN141: 121607.4819 | AO141: 423.6056651 | AP141: 69007.23481 | AQ141: 0 | AR141: 0 | AT141: 13356.78632 | AU141: 9308.135277 | AV141: 450 | AW141: 0 | AX141: 22.5 | AZ141: 2016-11-03 | BA141: 323.7574456
A142: 0 | B142: 0 | C142: 0 | D142: 0 | E142: 522.56 | F142: 52.9250606 | G142: -39933.87868 | H142: 73126.47992 | I142: 0 | J142: 0 | K142: 0 | L142: 306.49 | M142: -10.30620455 | N142: 3327.823224 | O142: 263431.2623 | P142: 130089.9076 | Q142: 133341.3547 | R142: 467.2368811 | T142: 0 | U142: 0 | V142: 4 | W142: 42676 | X142: 2016-11-02 | Y142: 334.54 | Z142: 334.54 | AA142: 331.55 | AB142: 331.55 | AD142: 250074.606 | AE142: 137886.8704 | AF142: 112187.7355 | AG142: 391.3293767 | AH142: 63176.46124 | AI142: 0 | AJ142: 0 | AL142: 254123.3147 | AM142: 132518.9516 | AN142: 121604.3631 | AO142: 423.6056651 | AP142: 69007.23481 | AQ142: 0 | AR142: 0 | AT142: 13356.65635 | AU142: 9307.947661 | AV142: 450 | AW142: 0 | AX142: 22.5 | AZ142: 2016-11-02 | BA142: 323.7476809
A143: 0 | B143: 0 | C143: 0 | D143: 0 | E143: 522.56 | F143: 52.9250606 | G143: -39933.87868 | H143: 73126.47992 | I143: 0 | J143: 0 | K143: 0 | L143: 306.49 | M143: -10.30620455 | N143: 3327.823224 | O143: 264724.4385 | P143: 130082.7519 | Q143: 134641.6866 | R143: 467.2368811 | T143: 0 | U143: 0 | V143: 3 | W143: 42675 | X143: 2016-11-01 | Y143: 340.04 | Z143: 340.74 | AA143: 335.05 | AB143: 335.33 | AD143: 251156.1008 | AE143: 137879.2859 | AF143: 113276.815 | AG143: 391.3293767 | AH143: 63176.46124 | AI143: 0 | AJ143: 0 | AL143: 255294.9305 | AM143: 132511.6623 | AN143: 122783.2682 | AO143: 423.6056651 | AP143: 69007.23481 | AQ143: 0 | AR143: 0 | AT143: 13568.33771 | AU143: 9429.508038 | AV143: 450 | AW143: 0 | AX143: 22.5 | AZ143: 2016-11-01 | BA143: 327.4387267
A144: 0 | B144: 0 | C144: 0 | D144: 0 | E144: 522.56 | F144: 52.9250606 | G144: -39933.87868 | H144: 73126.47992 | I144: 0 | J144: 0 | K144: 0 | L144: 306.49 | M144: -10.30620455 | N144: 3327.823224 | O144: 265969.4547 | P144: 130075.5966 | Q144: 135893.8581 | R144: 467.2368811 | T144: 0 | U144: 0 | V144: 2 | W144: 42674 | X144: 2016-10-31 | Y144: 340.41 | Z144: 340.41 | AA144: 338.31 | AB144: 338.97 | AD144: 252197.2598 | AE144: 137871.7017 | AF144: 114325.5581 | AG144: 391.3293767 | AH144: 63176.46124 | AI144: 0 | AJ144: 0 | AL144: 256422.8836 | AM144: 132504.3734 | AN144: 123918.5102 | AO144: 423.6056651 | AP144: 69007.23481 | AQ144: 0 | AR144: 0 | AT144: 13772.19488 | AU144: 9546.571119 | AV144: 450 | AW144: 0 | AX144: 22.5 | AZ144: 2016-10-31 | BA144: 330.9930671
A145: 0 | B145: 0 | C145: 0 | D145: 0 | E145: 522.56 | F145: 52.9250606 | G145: -39933.87868 | H145: 73126.47992 | I145: 0 | J145: 0 | K145: 0 | L145: 306.49 | M145: -10.30620455 | N145: 3327.823224 | O145: 266577.5169 | P145: 130054.1331 | Q145: 136523.3839 | R145: 467.2368811 | T145: 405.7197997 | U145: 1 | V145: 1 | W145: 42671 | X145: 2016-10-28 | Y145: 340.77 | Z145: 341.11 | AA145: 338.3 | AB145: 340.8 | AD145: 252701.7626 | AE145: 137848.9517 | AF145: 114852.8109 | AG145: 391.3293767 | AH145: 63176.46124 | AI145: 0.5952985881 | AJ145: 1 | AL145: 256971.7591 | AM145: 132482.509 | AN145: 124489.25 | AO145: 423.6056651 | AP145: 69007.23481 | AQ145: 1.190597176 | AR145: 1 | AT145: 13875.75433 | AU145: 9605.757861 | AV145: 450 | AW145: 0 | AX145: 31.62869549 | AZ145: 2016-10-28 | BA145: 332.780002
A146: 0 | B146: 0 | C146: 0 | D146: 0 | E146: 520.16 | F146: 51.84122427 | G146: -39848.72149 | H146: 73126.47992 | I146: 0 | J146: 0 | K146: 0 | L146: 304.48 | M146: -11.11908179 | N146: 3320.726791 | O146: 266225.8579 | P146: 129389.4312 | Q146: 136836.4267 | R146: 467.2368811 | T146: 0 | U146: 0 | V146: 21 | W146: 42670 | X146: 2016-10-27 | Y146: 341.58 | Z146: 343.32 | AA146: 339.91 | AB146: 341.71 | AD146: 252338.7475 | AE146: 137427.0227 | AF146: 114911.7248 | AG146: 390.7340781 | AH146: 62973.60134 | AI146: 0 | AJ146: 0 | AL146: 256612.839 | AM146: 132246.3222 | AN146: 124366.5167 | AO146: 422.4150679 | AP146: 68601.51501 | AQ146: 0 | AR146: 0 | AT146: 13887.11038 | AU146: 9613.018939 | AV146: 450 | AW146: 0 | AX146: 22.5 | AZ146: 2016-10-27 | BA146: 333.6685871
A147: 0 | B147: 0 | C147: 0 | D147: 0 | E147: 520.16 | F147: 51.84122427 | G147: -39848.72149 | H147: 73126.47992 | I147: 0 | J147: 0 | K147: 0 | L147: 304.48 | M147: -11.11908179 | N147: 3320.726791 | O147: 266235.9409 | P147: 129382.314 | Q147: 136853.6269 | R147: 467.2368811 | T147: 0 | U147: 0 | V147: 20 | W147: 42669 | X147: 2016-10-26 | Y147: 342.8 | Z147: 342.8 | AA147: 339.83 | AB147: 341.76 | AD147: 252345.5721 | AE147: 137419.4635 | AF147: 114926.1087 | AG147: 390.7340781 | AH147: 62973.60134 | AI147: 0 | AJ147: 0 | AL147: 256621.1148 | AM147: 132239.0479 | AN147: 124382.0669 | AO147: 422.4150679 | AP147: 68601.51501 | AQ147: 0 | AR147: 0 | AT147: 13890.36876 | AU147: 9614.826088 | AV147: 450 | AW147: 0 | AX147: 22.5 | AZ147: 2016-10-26 | BA147: 333.7174104
A148: 0 | B148: 0 | C148: 0 | D148: 0 | E148: 520.16 | F148: 51.84122427 | G148: -39848.72149 | H148: 73126.47992 | I148: 0 | J148: 0 | K148: 0 | L148: 304.48 | M148: -11.11908179 | N148: 3320.726791 | O148: 266679.4682 | P148: 129375.1972 | Q148: 137304.271 | R148: 467.2368811 | T148: 0 | U148: 0 | V148: 19 | W148: 42668 | X148: 2016-10-25 | Y148: 344.61 | Z148: 345.65 | AA148: 342.58 | AB148: 343.07 | AD148: 252714.8714 | AE148: 137411.9046 | AF148: 115302.9668 | AG148: 390.7340781 | AH148: 62973.60134 | AI148: 0 | AJ148: 0 | AL148: 257021.2549 | AM148: 132231.774 | AN148: 124789.481 | AO148: 422.4150679 | AP148: 68601.51501 | AQ148: 0 | AR148: 0 | AT148: 13964.59684 | AU148: 9658.213303 | AV148: 450 | AW148: 0 | AX148: 22.5 | AZ148: 2016-10-25 | BA148: 334.9965824
A149: 0 | B149: 0 | C149: 0 | D149: 0 | E149: 520.16 | F149: 51.84122427 | G149: -39848.72149 | H149: 73126.47992 | I149: 0 | J149: 0 | K149: 0 | L149: 304.48 | M149: -11.11908179 | N149: 3320.726791 | O149: 267081.7156 | P149: 129368.0808 | Q149: 137713.6348 | R149: 467.2368811 | T149: 0 | U149: 0 | V149: 18 | W149: 42667 | X149: 2016-10-24 | Y149: 344.95 | Z149: 347.03 | AA149: 344.19 | AB149: 344.26 | AD149: 253049.6497 | AE149: 137404.3461 | AF149: 115645.3036 | AG149: 390.7340781 | AH149: 62973.60134 | AI149: 0 | AJ149: 0 | AL149: 257384.0751 | AM149: 132224.5005 | AN149: 125159.5746 | AO149: 422.4150679 | AP149: 68601.51501 | AQ149: 0 | AR149: 0 | AT149: 14032.06588 | AU149: 9697.640503 | AV149: 450 | AW149: 0 | AX149: 22.5 | AZ149: 2016-10-24 | BA149: 336.1585783
A150: 0 | B150: 0 | C150: 0 | D150: 0 | E150: 520.16 | F150: 51.84122427 | G150: -39848.72149 | H150: 73126.47992 | I150: 0 | J150: 0 | K150: 0 | L150: 304.48 | M150: -11.11908179 | N150: 3320.726791 | O150: 267070.6889 | P150: 129346.734 | Q150: 137723.9549 | R150: 467.2368811 | T150: 0 | U150: 0 | V150: 17 | W150: 42664 | X150: 2016-10-21 | Y150: 344.53 | Z150: 345.44 | AA150: 343.28 | AB150: 344.29 | AD150: 253035.6072 | AE150: 137381.6733 | AF150: 115653.9339 | AG150: 390.7340781 | AH150: 62973.60134 | AI150: 0 | AJ150: 0 | AL150: 257371.5871 | AM150: 132202.6823 | AN150: 125168.9047 | AO150: 422.4150679 | AP150: 68601.51501 | AQ150: 0 | AR150: 0 | AT150: 14035.08169 | AU150: 9699.101837 | AV150: 450 | AW150: 0 | AX150: 22.5 | AZ150: 2016-10-21 | BA150: 336.1878723
A151: 0 | B151: 0 | C151: 0 | D151: 0 | E151: 520.16 | F151: 51.84122427 | G151: -39848.72149 | H151: 73126.47992 | I151: 0 | J151: 0 | K151: 0 | L151: 304.48 | M151: -11.11908179 | N151: 3320.726791 | O151: 267063.5741 | P151: 129339.6192 | Q151: 137723.9549 | R151: 467.2368811 | T151: 0 | U151: 0 | V151: 16 | W151: 42663 | X151: 2016-10-20 | Y151: 343.69 | Z151: 344.96 | AA151: 340.76 | AB151: 344.29 | AD151: 253028.0504 | AE151: 137374.1165 | AF151: 115653.9339 | AG151: 390.7340781 | AH151: 62973.60134 | AI151: 0 | AJ151: 0 | AL151: 257364.3152 | AM151: 132195.4104 | AN151: 125168.9047 | AO151: 422.4150679 | AP151: 68601.51501 | AQ151: 0 | AR151: 0 | AT151: 14035.52366 | AU151: 9699.258931 | AV151: 450 | AW151: 0 | AX151: 22.5 | AZ151: 2016-10-20 | BA151: 336.1878723
A152: 0 | B152: 0 | C152: 0 | D152: 0 | E152: 520.16 | F152: 51.84122427 | G152: -39848.72149 | H152: 73126.47992 | I152: 0 | J152: 0 | K152: 0 | L152: 304.48 | M152: -11.11908179 | N152: 3320.726791 | O152: 266832.8576 | P152: 129332.5048 | Q152: 137500.3528 | R152: 467.2368811 | T152: 0 | U152: 0 | V152: 15 | W152: 42662 | X152: 2016-10-19 | Y152: 342.28 | Z152: 344.25 | AA152: 341.24 | AB152: 343.64 | AD152: 252833.5034 | AE152: 137366.5601 | AF152: 115466.9432 | AG152: 390.7340781 | AH152: 62973.60134 | AI152: 0 | AJ152: 0 | AL152: 257154.8916 | AM152: 132188.1389 | AN152: 124966.7527 | AO152: 422.4150679 | AP152: 68601.51501 | AQ152: 0 | AR152: 0 | AT152: 13999.35423 | AU152: 9677.965977 | AV152: 450 | AW152: 0 | AX152: 22.5 | AZ152: 2016-10-19 | BA152: 335.5531686
A153: 0 | B153: 0 | C153: 0 | D153: 0 | E153: 520.16 | F153: 51.84122427 | G153: -39848.72149 | H153: 73126.47992 | I153: 0 | J153: 0 | K153: 0 | L153: 304.48 | M153: -11.11908179 | N153: 3320.726791 | O153: 266426.6999 | P153: 129325.3907 | Q153: 137101.3092 | R153: 467.2368811 | T153: 0 | U153: 0 | V153: 14 | W153: 42661 | X153: 2016-10-18 | Y153: 338.65 | Z153: 342.76 | AA153: 338.65 | AB153: 342.48 | AD153: 252492.241 | AE153: 137359.0042 | AF153: 115133.2368 | AG153: 390.7340781 | AH153: 62973.60134 | AI153: 0 | AJ153: 0 | AL153: 256786.8569 | AM153: 132180.8678 | AN153: 124605.9891 | AO153: 422.4150679 | AP153: 68601.51501 | AQ153: 0 | AR153: 0 | AT153: 13934.45893 | AU153: 9639.842984 | AV153: 450 | AW153: 0 | AX153: 22.5 | AZ153: 2016-10-18 | BA153: 334.4204668
A154: 0 | B154: 0 | C154: 0 | D154: 0 | E154: 520.16 | F154: 51.84122427 | G154: -39848.72149 | H154: 73126.47992 | I154: 0 | J154: 0 | K154: 0 | L154: 304.48 | M154: -11.11908179 | N154: 3320.726791 | O154: 264678.9303 | P154: 129318.2771 | Q154: 135360.6532 | R154: 467.2368811 | T154: 0 | U154: 0 | V154: 13 | W154: 42660 | X154: 2016-10-17 | Y154: 339.57 | Z154: 339.88 | AA154: 337.22 | AB154: 337.42 | AD154: 251029.0349 | AE154: 137351.4486 | AF154: 113677.5863 | AG154: 390.7340781 | AH154: 62973.60134 | AI154: 0 | AJ154: 0 | AL154: 255205.9106 | AM154: 132173.5971 | AN154: 123032.3135 | AO154: 422.4150679 | AP154: 68601.51501 | AQ154: 0 | AR154: 0 | AT154: 13649.89537 | AU154: 9473.019748 | AV154: 450 | AW154: 0 | AX154: 22.5 | AZ154: 2016-10-17 | BA154: 329.479543
A155: 0 | B155: 0 | C155: 0 | D155: 0 | E155: 520.16 | F155: 51.84122427 | G155: -39848.72149 | H155: 73126.47992 | I155: 0 | J155: 0 | K155: 0 | L155: 304.48 | M155: -11.11908179 | N155: 3320.726791 | O155: 265527.9197 | P155: 129296.9385 | Q155: 136230.9812 | R155: 467.2368811 | T155: 0 | U155: 0 | V155: 12 | W155: 42657 | X155: 2016-10-14 | Y155: 336.27 | Z155: 341.36 | AA155: 336.27 | AB155: 339.95 | AD155: 251734.1961 | AE155: 137328.7845 | AF155: 114405.4116 | AG155: 390.7340781 | AH155: 62973.60134 | AI155: 0 | AJ155: 0 | AL155: 255970.9387 | AM155: 132151.7873 | AN155: 123819.1513 | AO155: 422.4150679 | AP155: 68601.51501 | AQ155: 0 | AR155: 0 | AT155: 13793.72364 | AU155: 9556.981051 | AV155: 450 | AW155: 0 | AX155: 22.5 | AZ155: 2016-10-14 | BA155: 331.9500049
A156: 0 | B156: 0 | C156: 0 | D156: 0 | E156: 520.16 | F156: 51.84122427 | G156: -39848.72149 | H156: 73126.47992 | I156: 0 | J156: 0 | K156: 0 | L156: 304.48 | M156: -11.11908179 | N156: 3320.726791 | O156: 264031.274 | P156: 129289.8264 | Q156: 134741.4475 | R156: 467.2368811 | T156: 0 | U156: 0 | V156: 11 | W156: 42656 | X156: 2016-10-13 | Y156: 337.49 | Z156: 337.49 | AA156: 333.71 | AB156: 335.62 | AD156: 250480.9966 | AE156: 137321.2306 | AF156: 113159.766 | AG156: 390.7340781 | AH156: 62973.60134 | AI156: 0 | AJ156: 0 | AL156: 254617.0261 | AM156: 132144.5182 | AN156: 122472.5079 | AO156: 422.4150679 | AP156: 68601.51501 | AQ156: 0 | AR156: 0 | AT156: 13550.27737 | AU156: 9414.247825 | AV156: 450 | AW156: 0 | AX156: 22.5 | AZ156: 2016-10-13 | BA156: 327.7219022
A157: 0 | B157: 0 | C157: 0 | D157: 0 | E157: 520.16 | F157: 51.84122427 | G157: -39848.72149 | H157: 73126.47992 | I157: 0 | J157: 0 | K157: 0 | L157: 304.48 | M157: -11.11908179 | N157: 3320.726791 | O157: 265035.5316 | P157: 129282.7147 | Q157: 135752.8168 | R157: 467.2368811 | T157: 0 | U157: 0 | V157: 10 | W157: 42655 | X157: 2016-10-12 | Y157: 340.38 | Z157: 340.89 | AA157: 338.49 | AB157: 338.56 | AD157: 251319.2164 | AE157: 137313.6772 | AF157: 114005.5392 | AG157: 390.7340781 | AH157: 62973.60134 | AI157: 0 | AJ157: 0 | AL157: 255524.1065 | AM157: 132137.2495 | AN157: 123386.857 | AO157: 422.4150679 | AP157: 68601.51501 | AQ157: 0 | AR157: 0 | AT157: 13716.3152 | AU157: 9511.425026 | AV157: 450 | AW157: 0 | AX157: 22.5 | AZ157: 2016-10-12 | BA157: 330.5927156
A158: 0 | B158: 0 | C158: 0 | D158: 0 | E158: 520.16 | F158: 51.84122427 | G158: -39848.72149 | H158: 73126.47992 | I158: 0 | J158: 0 | K158: 0 | L158: 304.48 | M158: -11.11908179 | N158: 3320.726791 | O158: 265582.2653 | P158: 129275.6034 | Q158: 136306.6619 | R158: 467.2368811 | T158: 0 | U158: 0 | V158: 9 | W158: 42654 | X158: 2016-10-11 | Y158: 341.61 | Z158: 343.01 | AA158: 339.89 | AB158: 340.17 | AD158: 251774.8248 | AE158: 137306.1241 | AF158: 114468.7007 | AG158: 390.7340781 | AH158: 62973.60134 | AI158: 0 | AJ158: 0 | AL158: 256017.5532 | AM158: 132129.9812 | AN158: 123887.572 | AO158: 422.4150679 | AP158: 68601.51501 | AQ158: 0 | AR158: 0 | AT158: 13807.4405 | AU158: 9564.712138 | AV158: 450 | AW158: 0 | AX158: 22.5 | AZ158: 2016-10-11 | BA158: 332.1648277
A159: 0 | B159: 0 | C159: 0 | D159: 0 | E159: 520.16 | F159: 51.84122427 | G159: -39848.72149 | H159: 73126.47992 | I159: 0 | J159: 0 | K159: 0 | L159: 304.48 | M159: -11.11908179 | N159: 3320.726791 | O159: 266197.8001 | P159: 129268.4925 | Q159: 136929.3076 | R159: 467.2368811 | T159: 0 | U159: 0 | V159: 8 | W159: 42653 | X159: 2016-10-10 | Y159: 339.21 | Z159: 342.3 | AA159: 337.68 | AB159: 341.98 | AD159: 252287.9693 | AE159: 137298.5715 | AF159: 114989.3978 | AG159: 390.7340781 | AH159: 62973.60134 | AI159: 0 | AJ159: 0 | AL159: 256573.2009 | AM159: 132122.7133 | AN159: 124450.4876 | AO159: 422.4150679 | AP159: 68601.51501 | AQ159: 0 | AR159: 0 | AT159: 13909.83082 | AU159: 9624.599254 | AV159: 450 | AW159: 0 | AX159: 22.5 | AZ159: 2016-10-10 | BA159: 333.9322332
A160: 0 | B160: 0 | C160: 0 | D160: 0 | E160: 520.16 | F160: 51.84122427 | G160: -39848.72149 | H160: 73126.47992 | I160: 0 | J160: 0 | K160: 0 | L160: 304.48 | M160: -11.11908179 | N160: 3320.726791 | O160: 265371.5024 | P160: 129247.1622 | Q160: 136124.3402 | R160: 467.2368811 | T160: 0 | U160: 0 | V160: 7 | W160: 42650 | X160: 2016-10-07 | Y160: 342.11 | Z160: 342.46 | AA160: 338.9 | AB160: 339.64 | AD160: 251592.1475 | AE160: 137275.9161 | AF160: 114316.2314 | AG160: 390.7340781 | AH160: 62973.60134 | AI160: 0 | AJ160: 0 | AL160: 255823.6523 | AM160: 132100.912 | AN160: 123722.7403 | AO160: 422.4150679 | AP160: 68601.51501 | AQ160: 0 | AR160: 0 | AT160: 13779.35491 | AU160: 9547.850084 | AV160: 450 | AW160: 0 | AX160: 22.5 | AZ160: 2016-10-07 | BA160: 331.6473001
A161: 0 | B161: 0 | C161: 0 | D161: 0 | E161: 520.16 | F161: 51.84122427 | G161: -39848.72149 | H161: 73126.47992 | I161: 0 | J161: 0 | K161: 0 | L161: 304.48 | M161: -11.11908179 | N161: 3320.726791 | O161: 266458.3231 | P161: 129240.0528 | Q161: 137218.2702 | R161: 467.2368811 | T161: 0 | U161: 0 | V161: 6 | W161: 42649 | X161: 2016-10-06 | Y161: 344.7 | Z161: 345.45 | AA161: 342.82 | AB161: 342.82 | AD161: 252499.4124 | AE161: 137268.3651 | AF161: 115231.0473 | AG161: 390.7340781 | AH161: 62973.60134 | AI161: 0 | AJ161: 0 | AL161: 256805.3758 | AM161: 132093.6456 | AN161: 124711.7302 | AO161: 422.4150679 | AP161: 68601.51501 | AQ161: 0 | AR161: 0 | AT161: 13958.91063 | AU161: 9652.947247 | AV161: 450 | AW161: 0 | AX161: 22.5 | AZ161: 2016-10-06 | BA161: 334.7524656
A162: 0 | B162: 0 | C162: 0 | D162: 0 | E162: 520.16 | F162: 51.84122427 | G162: -39848.72149 | H162: 73126.47992 | I162: 0 | J162: 0 | K162: 0 | L162: 304.48 | M162: -11.11908179 | N162: 3320.726791 | O162: 266925.9385 | P162: 129232.9439 | Q162: 137692.9946 | R162: 467.2368811 | T162: 0 | U162: 0 | V162: 5 | W162: 42648 | X162: 2016-10-05 | Y162: 344.17 | Z162: 344.81 | AA162: 342.03 | AB162: 344.2 | AD162: 252888.8575 | AE162: 137260.8146 | AF162: 115628.0429 | AG162: 390.7340781 | AH162: 62973.60134 | AI162: 0 | AJ162: 0 | AL162: 257227.2942 | AM162: 132086.3797 | AN162: 125140.9145 | AO162: 422.4150679 | AP162: 68601.51501 | AQ162: 0 | AR162: 0 | AT162: 14037.081 | AU162: 9698.644294 | AV162: 450 | AW162: 0 | AX162: 22.5 | AZ162: 2016-10-05 | BA162: 336.0999902
A163: 0 | B163: 0 | C163: 0 | D163: 0 | E163: 520.16 | F163: 51.84122427 | G163: -39848.72149 | H163: 73126.47992 | I163: 0 | J163: 0 | K163: 0 | L163: 304.48 | M163: -11.11908179 | N163: 3320.726791 | O163: 267572.4359 | P163: 129225.8353 | Q163: 138346.6006 | R163: 467.2368811 | T163: 0 | U163: 0 | V163: 4 | W163: 42647 | X163: 2016-10-04 | Y163: 343.36 | Z163: 347.29 | AA163: 343.29 | AB163: 346.1 | AD163: 253427.8955 | AE163: 137253.2644 | AF163: 116174.631 | AG163: 390.7340781 | AH163: 62973.60134 | AI163: 0 | AJ163: 0 | AL163: 257810.9345 | AM163: 132079.1142 | AN163: 125731.8203 | AO163: 422.4150679 | AP163: 68601.51501 | AQ163: 0 | AR163: 0 | AT163: 14144.54044 | AU163: 9761.501364 | AV163: 450 | AW163: 0 | AX163: 22.5 | AZ163: 2016-10-04 | BA163: 337.9552778
A164: 0 | B164: 0 | C164: 0 | D164: 0 | E164: 520.16 | F164: 51.84122427 | G164: -39848.72149 | H164: 73126.47992 | I164: 0 | J164: 0 | K164: 0 | L164: 304.48 | M164: -11.11908179 | N164: 3320.726791 | O164: 266578.0387 | P164: 129218.7271 | Q164: 137359.3115 | R164: 467.2368811 | T164: 0 | U164: 0 | V164: 3 | W164: 42646 | X164: 2016-10-03 | Y164: 342.18 | Z164: 343.78 | AA164: 341.98 | AB164: 343.23 | AD164: 252594.71 | AE164: 137245.7147 | AF164: 115348.9953 | AG164: 390.7340781 | AH164: 62973.60134 | AI164: 0 | AJ164: 0 | AL164: 256911.0905 | AM164: 132071.8491 | AN164: 124839.2415 | AO164: 422.4150679 | AP164: 68601.51501 | AQ164: 0 | AR164: 0 | AT164: 13983.3287 | AU164: 9666.948138 | AV164: 450 | AW164: 0 | AX164: 22.5 | AZ164: 2016-10-03 | BA164: 335.1528171
A165: =C165 - B165*(E165-$AB$7817)*KESt% -> 0 | B165: =C165/E165 -> 0 | C165: =D165 * ($O166*prozRK3%*(1-prozRK3%)*-dKverk%) -> 0 | D165: =IF($Z165>=E165, 1, 0) -> 0 | E165: =IF(OR($U165=1, D166=1), ROUND($AB166*(1+F165%), 2), E166) -> 520.16 | F165: =IF(OR($U165=1, D166=1), ((($O166 -$Q166 -$G165)*prozRK3%/(1-prozRK3%) -$G165) / $Q166 -1)*100, F166) -> 51.84122427 | G165: =IF(OR($U165=1, D166=1), O166*prozRK3%*(1-prozRK3%)*-dKfixVerk%, G166) -> -39848.72149 | H165: 73126.47992 | I165: =J165/L165 -> 0 | J165: =K165 * ($O166*prozRK3%*(1-prozRK3%)*-dKkauf%) -> 0 | K165: =IF($AA165<=L165, 1, 0) -> 0 | L165: =IF(OR($U165=1, K166=1), ROUND($AB166*(1+M165%), 2), L166) -> 304.48 | M165: =IF(OR($U165=1, K166=1), ((($O166 -$Q166 -$N165)*prozRK3%/(1-prozRK3%) -$N165) / $Q166 -1)*100, M166) -> -11.11908179 | N165: =IF(OR($U165=1, K166=1), O166*prozRK3%*(1-prozRK3%)*-dKfixKauf%, N166) -> 3320.726791 | O165: =P165+Q165 -> 266450.0755 | P165: =P166*(1+Zins%)^(DAYS360($X166,$X165)/360) +$T165 -J165 +-A165 +$U165*Q166*Dividende%/12 -> 129197.405 | Q165: =R165*AB165 - (R165*AB165-H165)*KESt% -> 137252.6706 | R165: =R166 + I165 + B165 -> 467.2368811 | T165: =U165 * Teinz*(1+Terhoehung%)^(DAYS360(DatumMin, $X165)/360) -> 0 | U165: =IF(V165=1, 1, 0) -> 0 | V165: =V166+1 +IF(V166=$V$14, -$V$14, 0) -> 2 | W165: 42643 | X165: 2016-09-30 | Y165: 341.27 | Z165: 343.54 | AA165: 336.74 | AB165: 342.92 | AD165: 252482.8831 | AE165: =AE166*(1+Zins%)^(DAYS360($X166,$X165)/360) +$T165*(1-prozRK3%) +$U165*AF166*Dividende%/12 -> 137223.068 | AF165: =$AB165*AG165 - ($AB165*AG165 -AH165)*KESt% -> 115259.8151 | AG165: 390.7340781 | AH165: =AH166 + $T165*prozRK3% -> 62973.60134 | AI165: =$T165*prozRK3% / $Y165 -> 0 | AJ165: 0 | AL165: =AM165+AN165 -> 256792.8866 | AM165: =AM166*(1+Zins%)^(DAYS360($X166,$X165)/360) + $T165 -AR165*$T165 +$U165*AN166*Dividende%/12 -> 132050.0561 | AN165: =AB165*AO165 - (AB165*AO165 -AP165)*KESt% -> 124742.8305 | AO165: 422.4150679 | AP165: 68601.51501 | AQ165: =T165 * AR165 / Y165 -> 0 | AR165: =$U165 * IF($AL166*prozRK3%>$AN166, 1, 0) -> 0 | AT165: =O165-AD165 -> 13967.19241 | AU165: =O165-AL165 -> 9657.188908 | AV165: =$AV$3-- $C165*$AV$5 -> 450 | AW165: =$AW$3 + $J165*$AW$5 -> 0 | AX165: 22.5 | AZ165: 2016-09-30 | BA165: 334.8501123
A166: 0 | B166: 0 | C166: 0 | D166: 0 | E166: 520.16 | F166: 51.84122427 | G166: -39848.72149 | H166: =H167 + J166 -> 73126.47992 | I166: 0 | J166: 0 | K166: 0 | L166: 304.48 | M166: -11.11908179 | N166: 3320.726791 | O166: 266374.1683 | P166: 129190.2984 | Q166: 137183.8699 | R166: 467.2368811 | T166: 404.9454128 | U166: 1 | V166: 1 | W166: =DATE(YEAR(X166),MONTH(X166),DAY(X166)) -> 42642 | X166: 2016-09-29 | Y166: 344.09 | Z166: 346.25 | AA166: 341.91 | AB166: 342.72 | AD166: =AE166+AF166 -> 252417.7995 | AE166: 137215.52 | AF166: 115202.2795 | AG166: =AG167 + AI166 -> 390.7340781 | AH166: 62973.60134 | AI166: 0.5884294993 | AJ166: =$U166 -> 1 | AL166: 256723.4225 | AM166: 132042.7926 | AN166: 124680.6299 | AO166: =AO167 + AQ166 -> 422.4150679 | AP166: =AP167 + AR166*T166 -> 68601.51501 | AQ166: 1.176858999 | AR166: 1 | AT166: 13956.36883 | AU166: 9650.745809 | AV166: 450 | AW166: 0 | AX166: =$AX$3 + AR166 * T166 * $AX$5 -> 31.61127179 | AZ166: =$X166 -> 2016-09-29 | BA166: =$AB166/$AB$6231 *100 -> 334.6548189
A167: 0 | B167: 0 | C167: 0 | D167: 0 | E167: 518.41 | F167: 50.37167264 | G167: -39832.84168 | H167: 73126.47992 | I167: 0 | J167: 0 | K167: 0 | L167: 302.62 | M167: -12.22124552 | N167: 3319.403473 | O167: 265658.1433 | P167: 128525.8738 | Q167: 137132.2695 | R167: 467.2368811 | T167: 0 | U167: 0 | V167: 21 | W167: 42641 | X167: 2016-09-28 | Y167: 340.97 | Z167: 344.31 | AA167: 340.97 | AB167: 342.57 | AD167: 251751.2427 | AE167: 136793.9291 | AF167: 114957.3136 | AG167: 390.1456486 | AH167: 62771.12863 | AI167: 0 | AJ167: 0 | AL167: 256037.2316 | AM167: 131806.8806 | AN167: 124230.351 | AO167: 421.2382089 | AP167: 68196.5696 | AQ167: 0 | AR167: 0 | AT167: 13906.90058 | AU167: 9620.911667 | AV167: 450 | AW167: 0 | AX167: 22.5 | AZ167: 2016-09-28 | BA167: 334.5083488
A168: 0 | B168: 0 | C168: 0 | D168: 0 | E168: 518.41 | F168: 50.37167264 | G168: -39832.84168 | H168: 73126.47992 | I168: 0 | J168: 0 | K168: 0 | L168: 302.62 | M168: -12.22124552 | N168: 3319.403473 | O168: 264832.3461 | P168: 128518.8042 | Q168: 136313.5419 | R168: 467.2368811 | T168: 0 | U168: 0 | V168: 20 | W168: 42640 | X168: 2016-09-27 | Y168: 340.94 | Z168: 342.21 | AA168: 337.61 | AB168: 340.19 | AD168: 251060.0758 | AE168: 136786.4046 | AF168: 114273.6712 | AG168: 390.1456486 | AH168: 62771.12863 | AI168: 0 | AJ168: 0 | AL168: 255291.8563 | AM168: 131799.6305 | AN168: 123492.2258 | AO168: 421.2382089 | AP168: 68196.5696 | AQ168: 0 | AR168: 0 | AT168: 13772.27033 | AU168: 9540.489818 | AV168: 450 | AW168: 0 | AX168: 22.5 | AZ168: 2016-09-27 | BA168: 332.184357
A169: 0 | B169: 0 | C169: 0 | D169: 0 | E169: 518.41 | F169: 50.37167264 | G169: -39832.84168 | H169: 73126.47992 | I169: 0 | J169: 0 | K169: 0 | L169: 302.62 | M169: -12.22124552 | N169: 3319.403473 | O169: 264759.9162 | P169: 128511.7349 | Q169: 136248.1814 | R169: 467.2368811 | T169: 0 | U169: 0 | V169: 19 | W169: 42639 | X169: 2016-09-26 | Y169: 344.27 | Z169: 344.27 | AA169: 339.68 | AB169: 340 | AD169: 250997.9752 | AE169: 136778.8806 | AF169: 114219.0947 | AG169: 390.1456486 | AH169: 62771.12863 | AI169: 0 | AJ169: 0 | AL169: 255225.6806 | AM169: 131792.3807 | AN169: 123433.2999 | AO169: 421.2382089 | AP169: 68196.5696 | AQ169: 0 | AR169: 0 | AT169: 13761.941 | AU169: 9534.235644 | AV169: 450 | AW169: 0 | AX169: 22.5 | AZ169: 2016-09-26 | BA169: 331.9988282
A170: 0 | B170: 0 | C170: 0 | D170: 0 | E170: 518.41 | F170: 50.37167264 | G170: -39832.84168 | H170: 73126.47992 | I170: 0 | J170: 0 | K170: 0 | L170: 302.62 | M170: -12.22124552 | N170: 3319.403473 | O170: 266575.6876 | P170: 128490.5294 | Q170: 138085.1582 | R170: 467.2368811 | T170: 0 | U170: 0 | V170: 18 | W170: 42636 | X170: 2016-09-23 | Y170: 347.33 | Z170: 347.33 | AA170: 344.75 | AB170: 345.34 | AD170: 252509.2925 | AE170: 136756.3109 | AF170: 115752.9815 | AG170: 390.1456486 | AH170: 62771.12863 | AI170: 0 | AJ170: 0 | AL170: 256860.0634 | AM170: 131770.6339 | AN170: 125089.4295 | AO170: 421.2382089 | AP170: 68196.5696 | AQ170: 0 | AR170: 0 | AT170: 14066.39511 | AU170: 9715.624207 | AV170: 450 | AW170: 0 | AX170: 22.5 | AZ170: 2016-09-23 | BA170: 337.2131628
A171: 0 | B171: 0 | C171: 0 | D171: 0 | E171: 518.41 | F171: 50.37167264 | G171: -39832.84168 | H171: 73126.47992 | I171: 0 | J171: 0 | K171: 0 | L171: 302.62 | M171: -12.22124552 | N171: 3319.403473 | O171: 267435.5078 | P171: 128483.4617 | Q171: 138952.0461 | R171: 467.2368811 | T171: 0 | U171: 0 | V171: 17 | W171: 42635 | X171: 2016-09-22 | Y171: 343.49 | Z171: 348.79 | AA171: 343.49 | AB171: 347.86 | AD171: 253225.6268 | AE171: 136748.7885 | AF171: 116476.8383 | AG171: 390.1456486 | AH171: 62771.12863 | AI171: 0 | AJ171: 0 | AL171: 257634.3595 | AM171: 131763.3857 | AN171: 125870.9738 | AO171: 421.2382089 | AP171: 68196.5696 | AQ171: 0 | AR171: 0 | AT171: 14209.88099 | AU171: 9801.148268 | AV171: 450 | AW171: 0 | AX171: 22.5 | AZ171: 2016-09-22 | BA171: 339.67386
A172: 0 | B172: 0 | C172: 0 | D172: 0 | E172: 518.41 | F172: 50.37167264 | G172: -39832.84168 | H172: 73126.47992 | I172: 0 | J172: 0 | K172: 0 | L172: 302.62 | M172: -12.22124552 | N172: 3319.403473 | O172: 265570.8234 | P172: 128476.3943 | Q172: 137094.4291 | R172: 467.2368811 | T172: 0 | U172: 0 | V172: 16 | W172: 42634 | X172: 2016-09-21 | Y172: 342.83 | Z172: 344.9 | AA172: 342.25 | AB172: 342.46 | AD172: 251666.9833 | AE172: 136741.2666 | AF172: 114925.7167 | AG172: 390.1456486 | AH172: 62771.12863 | AI172: 0 | AJ172: 0 | AL172: 255952.374 | AM172: 131756.138 | AN172: 124196.236 | AO172: 421.2382089 | AP172: 68196.5696 | AQ172: 0 | AR172: 0 | AT172: 13903.84016 | AU172: 9618.449462 | AV172: 450 | AW172: 0 | AX172: 22.5 | AZ172: 2016-09-21 | BA172: 334.4009374
A173: 0 | B173: 0 | C173: 0 | D173: 0 | E173: 518.41 | F173: 50.37167264 | G173: -39832.84168 | H173: 73126.47992 | I173: 0 | J173: 0 | K173: 0 | L173: 302.62 | M173: -12.22124552 | N173: 3319.403473 | O173: 265061.5119 | P173: 128469.3274 | Q173: 136592.1845 | R173: 467.2368811 | T173: 0 | U173: 0 | V173: 15 | W173: 42633 | X173: 2016-09-20 | Y173: 340.79 | Z173: 342.78 | AA173: 340.29 | AB173: 341 | AD173: 251240.0844 | AE173: 136733.745 | AF173: 114506.3394 | AG173: 390.1456486 | AH173: 62771.12863 | AI173: 0 | AJ173: 0 | AL173: 255492.3271 | AM173: 131748.8906 | AN173: 123743.4365 | AO173: 421.2382089 | AP173: 68196.5696 | AQ173: 0 | AR173: 0 | AT173: 13821.42748 | AU173: 9569.184744 | AV173: 450 | AW173: 0 | AX173: 22.5 | AZ173: 2016-09-20 | BA173: 332.9752954
A174: 0 | B174: 0 | C174: 0 | D174: 0 | E174: 518.41 | F174: 50.37167264 | G174: -39832.84168 | H174: 73126.47992 | I174: 0 | J174: 0 | K174: 0 | L174: 302.62 | M174: -12.22124552 | N174: 3319.403473 | O174: 265147.3262 | P174: 128462.2608 | Q174: 136685.0654 | R174: 467.2368811 | T174: 0 | U174: 0 | V174: 14 | W174: 42632 | X174: 2016-09-19 | Y174: 338.79 | Z174: 341.58 | AA174: 338.79 | AB174: 341.27 | AD174: 251310.1193 | AE174: 136726.2239 | AF174: 114583.8955 | AG174: 390.1456486 | AH174: 62771.12863 | AI174: 0 | AJ174: 0 | AL174: 255568.8171 | AM174: 131741.6437 | AN174: 123827.1734 | AO174: 421.2382089 | AP174: 68196.5696 | AQ174: 0 | AR174: 0 | AT174: 13837.20685 | AU174: 9578.5091 | AV174: 450 | AW174: 0 | AX174: 22.5 | AZ174: 2016-09-19 | BA174: 333.2389415
A175: 0 | B175: 0 | C175: 0 | D175: 0 | E175: 518.41 | F175: 50.37167264 | G175: -39832.84168 | H175: 73126.47992 | I175: 0 | J175: 0 | K175: 0 | L175: 302.62 | M175: -12.22124552 | N175: 3319.403473 | O175: 263939.318 | P175: 128441.0635 | Q175: 135498.2545 | R175: 467.2368811 | T175: 0 | U175: 0 | V175: 13 | W175: 42629 | X175: 2016-09-16 | Y175: 340.38 | Z175: 340.78 | AA175: 337.28 | AB175: 337.82 | AD175: 250296.564 | AE175: 136703.6629 | AF175: 113592.9011 | AG175: 390.1456486 | AH175: 62771.12863 | AI175: 0 | AJ175: 0 | AL175: 254477.1072 | AM175: 131719.9052 | AN175: 122757.202 | AO175: 421.2382089 | AP175: 68196.5696 | AQ175: 0 | AR175: 0 | AT175: 13642.75392 | AU175: 9462.210723 | AV175: 450 | AW175: 0 | AX175: 22.5 | AZ175: 2016-09-16 | BA175: 329.8701299
A176: 0 | B176: 0 | C176: 0 | D176: 0 | E176: 518.41 | F176: 50.37167264 | G176: -39832.84168 | H176: 73126.47992 | I176: 0 | J176: 0 | K176: 0 | L176: 302.62 | M176: -12.22124552 | N176: 3319.403473 | O176: 264799.1409 | P176: 128433.9985 | Q176: 136365.1424 | R176: 467.2368811 | T176: 0 | U176: 0 | V176: 12 | W176: 42628 | X176: 2016-09-15 | Y176: 338.3 | Z176: 340.64 | AA176: 337.85 | AB176: 340.34 | AD176: 251012.9013 | AE176: 136696.1434 | AF176: 114316.7579 | AG176: 390.1456486 | AH176: 62771.12863 | AI176: 0 | AJ176: 0 | AL176: 255251.4062 | AM176: 131712.6599 | AN176: 123538.7463 | AO176: 421.2382089 | AP176: 68196.5696 | AQ176: 0 | AR176: 0 | AT176: 13786.23963 | AU176: 9547.734715 | AV176: 450 | AW176: 0 | AX176: 22.5 | AZ176: 2016-09-15 | BA176: 332.3308271
A177: 0 | B177: 0 | C177: 0 | D177: 0 | E177: 518.41 | F177: 50.37167264 | G177: -39832.84168 | H177: 73126.47992 | I177: 0 | J177: 0 | K177: 0 | L177: 302.62 | M177: -12.22124552 | N177: 3319.403473 | O177: 264131.5902 | P177: 128426.9339 | Q177: 135704.6564 | R177: 467.2368811 | T177: 0 | U177: 0 | V177: 11 | W177: 42627 | X177: 2016-09-14 | Y177: 339.71 | Z177: 340.62 | AA177: 338.26 | AB177: 338.42 | AD177: 250453.8723 | AE177: 136688.6243 | AF177: 113765.248 | AG177: 390.1456486 | AH177: 62771.12863 | AI177: 0 | AJ177: 0 | AL177: 254648.6989 | AM177: 131705.4149 | AN177: 122943.284 | AO177: 421.2382089 | AP177: 68196.5696 | AQ177: 0 | AR177: 0 | AT177: 13677.71793 | AU177: 9482.891337 | AV177: 450 | AW177: 0 | AX177: 22.5 | AZ177: 2016-09-14 | BA177: 330.4560102
A178: 0 | B178: 0 | C178: 0 | D178: 0 | E178: 518.41 | F178: 50.37167264 | G178: -39832.84168 | H178: 73126.47992 | I178: 0 | J178: 0 | K178: 0 | L178: 302.62 | M178: -12.22124552 | N178: 3319.403473 | O178: 264227.727 | P178: 128419.8697 | Q178: 135807.8573 | R178: 467.2368811 | T178: 0 | U178: 0 | V178: 10 | W178: 42626 | X178: 2016-09-13 | Y178: 342.74 | Z178: 344.14 | AA178: 338.72 | AB178: 338.72 | AD178: 250532.5271 | AE178: 136681.1057 | AF178: 113851.4214 | AG178: 390.1456486 | AH178: 62771.12863 | AI178: 0 | AJ178: 0 | AL178: 254734.4953 | AM178: 131698.1703 | AN178: 123036.325 | AO178: 421.2382089 | AP178: 68196.5696 | AQ178: 0 | AR178: 0 | AT178: 13695.1999 | AU178: 9493.231629 | AV178: 450 | AW178: 0 | AX178: 22.5 | AZ178: 2016-09-13 | BA178: 330.7489503
A179: 0 | B179: 0 | C179: 0 | D179: 0 | E179: 518.41 | F179: 50.37167264 | G179: -39832.84168 | H179: 73126.47992 | I179: 0 | J179: 0 | K179: 0 | L179: 302.62 | M179: -12.22124552 | N179: 3319.403473 | O179: 265428.1142 | P179: 128412.8058 | Q179: 137015.3084 | R179: 467.2368811 | T179: 0 | U179: 0 | V179: 9 | W179: 42625 | X179: 2016-09-12 | Y179: 343.62 | Z179: 343.62 | AA179: 338.5 | AB179: 342.23 | AD179: 251533.2378 | AE179: 136673.5874 | AF179: 114859.6504 | AG179: 390.1456486 | AH179: 62771.12863 | AI179: 0 | AJ179: 0 | AL179: 255815.8308 | AM179: 131690.9262 | AN179: 124124.9046 | AO179: 421.2382089 | AP179: 68196.5696 | AQ179: 0 | AR179: 0 | AT179: 13894.87637 | AU179: 9612.283449 | AV179: 450 | AW179: 0 | AX179: 22.5 | AZ179: 2016-09-12 | BA179: 334.17635
A180: 0 | B180: 0 | C180: 0 | D180: 0 | E180: 518.41 | F180: 50.37167264 | G180: -39832.84168 | H180: 73126.47992 | I180: 0 | J180: 0 | K180: 0 | L180: 302.62 | M180: -12.22124552 | N180: 3319.403473 | O180: 266538.6954 | P180: 128391.6166 | Q180: 138147.0788 | R180: 467.2368811 | T180: 0 | U180: 0 | V180: 8 | W180: 42622 | X180: 2016-09-09 | Y180: 348.68 | Z180: 348.88 | AA180: 344.9 | AB180: 345.52 | AD180: 252455.7207 | AE180: 136651.0351 | AF180: 115804.6856 | AG180: 390.1456486 | AH180: 62771.12863 | AI180: 0 | AJ180: 0 | AL180: 256814.4502 | AM180: 131669.1961 | AN180: 125145.2541 | AO180: 421.2382089 | AP180: 68196.5696 | AQ180: 0 | AR180: 0 | AT180: 14082.97467 | AU180: 9724.245224 | AV180: 450 | AW180: 0 | AX180: 22.5 | AZ180: 2016-09-09 | BA180: 337.3889269
A181: 0 | B181: 0 | C181: 0 | D181: 0 | E181: 518.41 | F181: 50.37167264 | G181: -39832.84168 | H181: 73126.47992 | I181: 0 | J181: 0 | K181: 0 | L181: 302.62 | M181: -12.22124552 | N181: 3319.403473 | O181: 267838.8451 | P181: 128384.5544 | Q181: 139454.2907 | R181: 467.2368811 | T181: 0 | U181: 0 | V181: 7 | W181: 42621 | X181: 2016-09-08 | Y181: 350.15 | Z181: 351.52 | AA181: 346.34 | AB181: 349.32 | AD181: 253539.7341 | AE181: 136643.5185 | AF181: 116896.2156 | AG181: 390.1456486 | AH181: 62771.12863 | AI181: 0 | AJ181: 0 | AL181: 257985.7268 | AM181: 131661.9535 | AN181: 126323.7733 | AO181: 421.2382089 | AP181: 68196.5696 | AQ181: 0 | AR181: 0 | AT181: 14299.11098 | AU181: 9853.118295 | AV181: 450 | AW181: 0 | AX181: 22.5 | AZ181: 2016-09-08 | BA181: 341.099502
A182: 0 | B182: 0 | C182: 0 | D182: 0 | E182: 518.41 | F182: 50.37167264 | G182: -39832.84168 | H182: 73126.47992 | I182: 0 | J182: 0 | K182: 0 | L182: 302.62 | M182: -12.22124552 | N182: 3319.403473 | O182: 268223.9468 | P182: 128377.4925 | Q182: 139846.4543 | R182: 467.2368811 | T182: 0 | U182: 0 | V182: 6 | W182: 42620 | X182: 2016-09-07 | Y182: 349.56 | Z182: 351.01 | AA182: 348.51 | AB182: 350.46 | AD182: 253859.6769 | AE182: 136636.0024 | AF182: 117223.6746 | AG182: 390.1456486 | AH182: 62771.12863 | AI182: 0 | AJ182: 0 | AL182: 258332.0404 | AM182: 131654.7114 | AN182: 126677.329 | AO182: 421.2382089 | AP182: 68196.5696 | AQ182: 0 | AR182: 0 | AT182: 14364.26987 | AU182: 9891.906407 | AV182: 450 | AW182: 0 | AX182: 22.5 | AZ182: 2016-09-07 | BA182: 342.2126745
A183: 0 | B183: 0 | C183: 0 | D183: 0 | E183: 518.41 | F183: 50.37167264 | G183: -39832.84168 | H183: 73126.47992 | I183: 0 | J183: 0 | K183: 0 | L183: 302.62 | M183: -12.22124552 | N183: 3319.403473 | O183: 267872.8821 | P183: 128370.431 | Q183: 139502.4512 | R183: 467.2368811 | T183: 0 | U183: 0 | V183: 5 | W183: 42619 | X183: 2016-09-06 | Y183: 351.32 | Z183: 351.56 | AA183: 349.09 | AB183: 349.46 | AD183: 253564.9164 | AE183: 136628.4866 | AF183: 116936.4298 | AG183: 390.1456486 | AH183: 62771.12863 | AI183: 0 | AJ183: 0 | AL183: 258014.662 | AM183: 131647.4696 | AN183: 126367.1924 | AO183: 421.2382089 | AP183: 68196.5696 | AQ183: 0 | AR183: 0 | AT183: 14307.96571 | AU183: 9858.22015 | AV183: 450 | AW183: 0 | AX183: 22.5 | AZ183: 2016-09-06 | BA183: 341.2362074
A184: 0 | B184: 0 | C184: 0 | D184: 0 | E184: 518.41 | F184: 50.37167264 | G184: -39832.84168 | H184: 73126.47992 | I184: 0 | J184: 0 | K184: 0 | L184: 302.62 | M184: -12.22124552 | N184: 3319.403473 | O184: 268264.8647 | P184: 128363.3698 | Q184: 139901.4948 | R184: 467.2368811 | T184: 0 | U184: 0 | V184: 4 | W184: 42618 | X184: 2016-09-05 | Y184: 350.7 | Z184: 351.77 | AA184: 350.45 | AB184: 350.62 | AD184: 253890.605 | AE184: 136620.9712 | AF184: 117269.6337 | AG184: 390.1456486 | AH184: 62771.12863 | AI184: 0 | AJ184: 0 | AL184: 258367.1791 | AM184: 131640.2282 | AN184: 126726.9509 | AO184: 421.2382089 | AP184: 68196.5696 | AQ184: 0 | AR184: 0 | AT184: 14374.25972 | AU184: 9897.685573 | AV184: 450 | AW184: 0 | AX184: 22.5 | AZ184: 2016-09-05 | BA184: 342.3689093
A185: 0 | B185: 0 | C185: 0 | D185: 0 | E185: 518.41 | F185: 50.37167264 | G185: -39832.84168 | H185: 73126.47992 | I185: 0 | J185: 0 | K185: 0 | L185: 302.62 | M185: -12.22124552 | N185: 3319.403473 | O185: 268181.7631 | P185: 128342.1888 | Q185: 139839.5743 | R185: 467.2368811 | T185: 0 | U185: 0 | V185: 3 | W185: 42615 | X185: 2016-09-02 | Y185: 344.04 | Z185: 350.85 | AA185: 343.53 | AB185: 350.44 | AD185: 253816.3573 | AE185: 136598.4276 | AF185: 117217.9297 | AG185: 390.1456486 | AH185: 62771.12863 | AI185: 0 | AJ185: 0 | AL185: 258289.6328 | AM185: 131618.5065 | AN185: 126671.1263 | AO185: 421.2382089 | AP185: 68196.5696 | AQ185: 0 | AR185: 0 | AT185: 14365.40578 | AU185: 9892.130307 | AV185: 450 | AW185: 0 | AX185: 22.5 | AZ185: 2016-09-02 | BA185: 342.1931452
A186: 0 | B186: 0 | C186: 0 | D186: 0 | E186: 518.41 | F186: 50.37167264 | G186: -39832.84168 | H186: 73126.47992 | I186: 0 | J186: 0 | K186: 0 | L186: 302.62 | M186: -12.22124552 | N186: 3319.403473 | O186: 265842.3622 | P186: 128335.1293 | Q186: 137507.2329 | R186: 467.2368811 | T186: 0 | U186: 0 | V186: 2 | W186: 42614 | X186: 2016-09-01 | Y186: 344.21 | Z186: 346.9 | AA186: 342.72 | AB186: 343.66 | AD186: 251861.3243 | AE186: 136590.9139 | AF186: 115270.4104 | AG186: 390.1456486 | AH186: 62771.12863 | AI186: 0 | AJ186: 0 | AL186: 256179.6667 | AM186: 131611.2667 | AN186: 124568.3999 | AO186: 421.2382089 | AP186: 68196.5696 | AQ186: 0 | AR186: 0 | AT186: 13981.03783 | AU186: 9662.695502 | AV186: 450 | AW186: 0 | AX186: 22.5 | AZ186: 2016-09-01 | BA186: 335.572698
A187: 0 | B187: 0 | C187: 0 | D187: 0 | E187: 518.41 | F187: 50.37167264 | G187: -39832.84168 | H187: 73126.47992 | I187: 0 | J187: 0 | K187: 0 | L187: 302.62 | M187: -12.22124552 | N187: 3319.403473 | O187: 265790.5826 | P187: 128328.0701 | Q187: 137462.5125 | R187: 467.2368811 | T187: 404.1991315 | U187: 1 | V187: 1 | W187: 42613 | X187: 2016-08-31 | Y187: 344.54 | Z187: 346.03 | AA187: 343.42 | AB187: 343.53 | AD187: 251816.4692 | AE187: 136583.4006 | AF187: 115233.0686 | AG187: 390.1456486 | AH187: 62771.12863 | AI187: 0.5865779466 | AJ187: 1 | AL187: 256132.1095 | AM187: 131604.0273 | AN187: 124528.0822 | AO187: 421.2382089 | AP187: 68196.5696 | AQ187: 1.173155893 | AR187: 1 | AT187: 13974.11335 | AU187: 9658.47306 | AV187: 450 | AW187: 0 | AX187: 31.59448046 | AZ187: 2016-08-31 | BA187: 335.4457573
A188: 0 | B188: 0 | C188: 0 | D188: 0 | E188: 513.32 | F188: 51.03981089 | G188: -39451.87788 | H188: 73126.47992 | I188: 0 | J188: 0 | K188: 0 | L188: 300.03 | M188: -11.72014183 | N188: 3287.65649 | O188: 265552.2779 | P188: 127670.0815 | Q188: 137882.1963 | R188: 467.2368811 | T188: 0 | U188: 0 | V188: 21 | W188: 42612 | X188: 2016-08-30 | Y188: 343.48 | Z188: 345.86 | AA188: 343.48 | AB188: 344.75 | AD188: 251550.2442 | AE188: 136168.9273 | AF188: 115381.3169 | AG188: 389.5590706 | AH188: 62569.02907 | AI188: 0 | AJ188: 0 | AL188: 255876.9341 | AM188: 131374.8657 | AN188: 124502.0684 | AO188: 420.065053 | AP188: 67792.37047 | AQ188: 0 | AR188: 0 | AT188: 14002.03364 | AU188: 9675.343804 | AV188: 450 | AW188: 0 | AX188: 22.5 | AZ188: 2016-08-30 | BA188: 336.6370472
A189: 0 | B189: 0 | C189: 0 | D189: 0 | E189: 513.32 | F189: 51.03981089 | G189: -39451.87788 | H189: 73126.47992 | I189: 0 | J189: 0 | K189: 0 | L189: 300.03 | M189: -11.72014183 | N189: 3287.65649 | O189: 265012.0504 | P189: 127663.0589 | Q189: 137348.9914 | R189: 467.2368811 | T189: 0 | U189: 0 | V189: 20 | W189: 42611 | X189: 2016-08-29 | Y189: 343.24 | Z189: 343.47 | AA189: 341.37 | AB189: 343.2 | AD189: 251098.1942 | AE189: 136161.4373 | AF189: 114936.7569 | AG189: 389.5590706 | AH189: 62569.02907 | AI189: 0 | AJ189: 0 | AL189: 255390.3347 | AM189: 131367.6393 | AN189: 124022.6954 | AO189: 420.065053 | AP189: 67792.37047 | AQ189: 0 | AR189: 0 | AT189: 13913.85618 | AU189: 9621.715688 | AV189: 450 | AW189: 0 | AX189: 22.5 | AZ189: 2016-08-29 | BA189: 335.1235231
A190: 0 | B190: 0 | C190: 0 | D190: 0 | E190: 513.32 | F190: 51.03981089 | G190: -39451.87788 | H190: 73126.47992 | I190: 0 | J190: 0 | K190: 0 | L190: 300.03 | M190: -11.72014183 | N190: 3287.65649 | O190: 265169.8666 | P190: 127641.9935 | Q190: 137527.8731 | R190: 467.2368811 | T190: 0 | U190: 0 | V190: 19 | W190: 42608 | X190: 2016-08-26 | Y190: 341.92 | Z190: 344.29 | AA190: 340.95 | AB190: 343.72 | AD190: 251224.8691 | AE190: 136138.9695 | AF190: 115085.8996 | AG190: 389.5590706 | AH190: 62569.02907 | AI190: 0 | AJ190: 0 | AL190: 255529.4799 | AM190: 131345.9626 | AN190: 124183.5173 | AO190: 420.065053 | AP190: 67792.37047 | AQ190: 0 | AR190: 0 | AT190: 13944.99743 | AU190: 9640.386709 | AV190: 450 | AW190: 0 | AX190: 22.5 | AZ190: 2016-08-26 | BA190: 335.631286
A191: 0 | B191: 0 | C191: 0 | D191: 0 | E191: 513.32 | F191: 51.03981089 | G191: -39451.87788 | H191: 73126.47992 | I191: 0 | J191: 0 | K191: 0 | L191: 300.03 | M191: -11.72014183 | N191: 3287.65649 | O191: 264578.0402 | P191: 127634.9724 | Q191: 136943.0677 | R191: 467.2368811 | T191: 0 | U191: 0 | V191: 18 | W191: 42607 | X191: 2016-08-25 | Y191: 343.88 | Z191: 343.88 | AA191: 340.8 | AB191: 342.02 | AD191: 250729.7988 | AE191: 136131.4811 | AF191: 114598.3178 | AG191: 389.5590706 | AH191: 62569.02907 | AI191: 0 | AJ191: 0 | AL191: 254996.4911 | AM191: 131338.7378 | AN191: 123657.7534 | AO191: 420.065053 | AP191: 67792.37047 | AQ191: 0 | AR191: 0 | AT191: 13848.24132 | AU191: 9581.549009 | AV191: 450 | AW191: 0 | AX191: 22.5 | AZ191: 2016-08-25 | BA191: 333.9712919
A192: 0 | B192: 0 | C192: 0 | D192: 0 | E192: 513.32 | F192: 51.03981089 | G192: -39451.87788 | H192: 73126.47992 | I192: 0 | J192: 0 | K192: 0 | L192: 300.03 | M192: -11.72014183 | N192: 3287.65649 | O192: 265572.0687 | P192: 127627.9518 | Q192: 137944.1169 | R192: 467.2368811 | T192: 0 | U192: 0 | V192: 17 | W192: 42606 | X192: 2016-08-24 | Y192: 342.76 | Z192: 345.7 | AA192: 341.56 | AB192: 344.93 | AD192: 251556.9363 | AE192: 136123.9931 | AF192: 115432.9432 | AG192: 389.5590706 | AH192: 62569.02907 | AI192: 0 | AJ192: 0 | AL192: 255889.2509 | AM192: 131331.5134 | AN192: 124557.7375 | AO192: 420.065053 | AP192: 67792.37047 | AQ192: 0 | AR192: 0 | AT192: 14015.13242 | AU192: 9682.81779 | AV192: 450 | AW192: 0 | AX192: 22.5 | AZ192: 2016-08-24 | BA192: 336.8128112
A193: 0 | B193: 0 | C193: 0 | D193: 0 | E193: 513.32 | F193: 51.03981089 | G193: -39451.87788 | H193: 73126.47992 | I193: 0 | J193: 0 | K193: 0 | L193: 300.03 | M193: -11.72014183 | N193: 3287.65649 | O193: 265107.5242 | P193: 127620.9315 | Q193: 137486.5927 | R193: 467.2368811 | T193: 0 | U193: 0 | V193: 16 | W193: 42605 | X193: 2016-08-23 | Y193: 341.23 | Z193: 344.26 | AA193: 341.23 | AB193: 343.6 | AD193: 251167.9875 | AE193: 136116.5054 | AF193: 115051.4821 | AG193: 389.5590706 | AH193: 62569.02907 | AI193: 0 | AJ193: 0 | AL193: 255470.6939 | AM193: 131324.2894 | AN193: 124146.4045 | AO193: 420.065053 | AP193: 67792.37047 | AQ193: 0 | AR193: 0 | AT193: 13939.53667 | AU193: 9636.830263 | AV193: 450 | AW193: 0 | AX193: 22.5 | AZ193: 2016-08-23 | BA193: 335.51411
A194: 0 | B194: 0 | C194: 0 | D194: 0 | E194: 513.32 | F194: 51.03981089 | G194: -39451.87788 | H194: 73126.47992 | I194: 0 | J194: 0 | K194: 0 | L194: 300.03 | M194: -11.72014183 | N194: 3287.65649 | O194: 264010.0143 | P194: 127613.9116 | Q194: 136396.1027 | R194: 467.2368811 | T194: 0 | U194: 0 | V194: 15 | W194: 42604 | X194: 2016-08-22 | Y194: 340.34 | Z194: 343.27 | AA194: 339.16 | AB194: 340.43 | AD194: 250251.3036 | AE194: 136109.0183 | AF194: 114142.2853 | AG194: 389.5590706 | AH194: 62569.02907 | AI194: 0 | AJ194: 0 | AL194: 254483.0753 | AM194: 131317.0658 | AN194: 123166.0095 | AO194: 420.065053 | AP194: 67792.37047 | AQ194: 0 | AR194: 0 | AT194: 13758.71076 | AU194: 9526.93905 | AV194: 450 | AW194: 0 | AX194: 22.5 | AZ194: 2016-08-22 | BA194: 332.4187091
A195: 0 | B195: 0 | C195: 0 | D195: 0 | E195: 513.32 | F195: 51.03981089 | G195: -39451.87788 | H195: 73126.47992 | I195: 0 | J195: 0 | K195: 0 | L195: 300.03 | M195: -11.72014183 | N195: 3287.65649 | O195: 263889.196 | P195: 127592.8543 | Q195: 136296.3418 | R195: 467.2368811 | T195: 0 | U195: 0 | V195: 14 | W195: 42601 | X195: 2016-08-19 | Y195: 342.69 | Z195: 342.85 | AA195: 338.82 | AB195: 340.14 | AD195: 250145.6687 | AE195: 136086.5591 | AF195: 114059.1096 | AG195: 389.5590706 | AH195: 62569.02907 | AI195: 0 | AJ195: 0 | AL195: 254371.7177 | AM195: 131295.3974 | AN195: 123076.3203 | AO195: 420.065053 | AP195: 67792.37047 | AQ195: 0 | AR195: 0 | AT195: 13743.52734 | AU195: 9517.478326 | AV195: 450 | AW195: 0 | AX195: 22.5 | AZ195: 2016-08-19 | BA195: 332.1355336
A196: 0 | B196: 0 | C196: 0 | D196: 0 | E196: 513.32 | F196: 51.03981089 | G196: -39451.87788 | H196: 73126.47992 | I196: 0 | J196: 0 | K196: 0 | L196: 300.03 | M196: -11.72014183 | N196: 3287.65649 | O196: 264835.0664 | P196: 127585.8359 | Q196: 137249.2305 | R196: 467.2368811 | T196: 0 | U196: 0 | V196: 13 | W196: 42600 | X196: 2016-08-18 | Y196: 341.19 | Z196: 343.06 | AA196: 341.19 | AB196: 342.91 | AD196: 250932.6548 | AE196: 136079.0736 | AF196: 114853.5812 | AG196: 389.5590706 | AH196: 62569.02907 | AI196: 0 | AJ196: 0 | AL196: 255221.1816 | AM196: 131288.1754 | AN196: 123933.0062 | AO196: 420.065053 | AP196: 67792.37047 | AQ196: 0 | AR196: 0 | AT196: 13902.41164 | AU196: 9613.884804 | AV196: 450 | AW196: 0 | AX196: 22.5 | AZ196: 2016-08-18 | BA196: 334.8403476
A197: 0 | B197: 0 | C197: 0 | D197: 0 | E197: 513.32 | F197: 51.03981089 | G197: -39451.87788 | H197: 73126.47992 | I197: 0 | J197: 0 | K197: 0 | L197: 300.03 | M197: -11.72014183 | N197: 3287.65649 | O197: 263988.6808 | P197: 127578.818 | Q197: 136409.8628 | R197: 467.2368811 | T197: 0 | U197: 0 | V197: 12 | W197: 42599 | X197: 2016-08-17 | Y197: 344.18 | Z197: 344.69 | AA197: 340.21 | AB197: 340.47 | AD197: 250225.3463 | AE197: 136071.5885 | AF197: 114153.7578 | AG197: 389.5590706 | AH197: 62569.02907 | AI197: 0 | AJ197: 0 | AL197: 254459.3342 | AM197: 131280.9538 | AN197: 123178.3804 | AO197: 420.065053 | AP197: 67792.37047 | AQ197: 0 | AR197: 0 | AT197: 13763.33451 | AU197: 9529.346623 | AV197: 450 | AW197: 0 | AX197: 22.5 | AZ197: 2016-08-17 | BA197: 332.4577678
A198: 0 | B198: 0 | C198: 0 | D198: 0 | E198: 513.32 | F198: 51.03981089 | G198: -39451.87788 | H198: 73126.47992 | I198: 0 | J198: 0 | K198: 0 | L198: 300.03 | M198: -11.72014183 | N198: 3287.65649 | O198: 264962.0722 | P198: 127571.8004 | Q198: 137390.2718 | R198: 467.2368811 | T198: 0 | U198: 0 | V198: 11 | W198: 42598 | X198: 2016-08-16 | Y198: 345.11 | Z198: 345.83 | AA198: 343.3 | AB198: 343.32 | AD198: 251035.2782 | AE198: 136064.1037 | AF198: 114971.1745 | AG198: 389.5590706 | AH198: 62569.02907 | AI198: 0 | AJ198: 0 | AL198: 255333.5407 | AM198: 131273.7326 | AN198: 124059.8081 | AO198: 420.065053 | AP198: 67792.37047 | AQ198: 0 | AR198: 0 | AT198: 13926.79399 | AU198: 9628.531499 | AV198: 450 | AW198: 0 | AX198: 22.5 | AZ198: 2016-08-16 | BA198: 335.2406992
A199: 0 | B199: 0 | C199: 0 | D199: 0 | E199: 513.32 | F199: 51.03981089 | G199: -39451.87788 | H199: 73126.47992 | I199: 0 | J199: 0 | K199: 0 | L199: 300.03 | M199: -11.72014183 | N199: 3287.65649 | O199: 265894.1836 | P199: 127564.7832 | Q199: 138329.4004 | R199: 467.2368811 | T199: 0 | U199: 0 | V199: 10 | W199: 42597 | X199: 2016-08-15 | Y199: 346.23 | Z199: 347.54 | AA199: 345.69 | AB199: 346.05 | AD199: 251810.793 | AE199: 136056.6194 | AF199: 115754.1736 | AG199: 389.5590706 | AH199: 62569.02907 | AI199: 0 | AJ199: 0 | AL199: 256170.6349 | AM199: 131266.5118 | AN199: 124904.1231 | AO199: 420.065053 | AP199: 67792.37047 | AQ199: 0 | AR199: 0 | AT199: 14083.3906 | AU199: 9723.548732 | AV199: 450 | AW199: 0 | AX199: 22.5 | AZ199: 2016-08-15 | BA199: 337.9064544
A200: 0 | B200: 0 | C200: 0 | D200: 0 | E200: 513.32 | F200: 51.03981089 | G200: -39451.87788 | H200: 73126.47992 | I200: 0 | J200: 0 | K200: 0 | L200: 300.03 | M200: -11.72014183 | N200: 3287.65649 | O200: 265886.8945 | P200: 127543.7339 | Q200: 138343.1606 | R200: 467.2368811 | T200: 0 | U200: 0 | V200: 9 | W200: 42594 | X200: 2016-08-12 | Y200: 346.73 | Z200: 346.99 | AA200: 345.65 | AB200: 346.09 | AD200: 251799.8151 | AE200: 136034.1689 | AF200: 115765.6461 | AG200: 389.5590706 | AH200: 62569.02907 | AI200: 0 | AJ200: 0 | AL200: 256161.3457 | AM200: 131244.8517 | AN200: 124916.494 | AO200: 420.065053 | AP200: 67792.37047 | AQ200: 0 | AR200: 0 | AT200: 14087.07943 | AU200: 9725.548758 | AV200: 450 | AW200: 0 | AX200: 22.5 | AZ200: 2016-08-12 | BA200: 337.9455131
A201: 0 | B201: 0 | C201: 0 | D201: 0 | E201: 513.32 | F201: 51.03981089 | G201: -39451.87788 | H201: 73126.47992 | I201: 0 | J201: 0 | K201: 0 | L201: 300.03 | M201: -11.72014183 | N201: 3287.65649 | O201: 266075.9607 | P201: 127536.7183 | Q201: 138539.2424 | R201: 467.2368811 | T201: 0 | U201: 0 | V201: 8 | W201: 42593 | X201: 2016-08-11 | Y201: 344.21 | Z201: 346.66 | AA201: 343.16 | AB201: 346.66 | AD201: 251955.8157 | AE201: 136026.6863 | AF201: 115929.1295 | AG201: 389.5590706 | AH201: 62569.02907 | AI201: 0 | AJ201: 0 | AL201: 256330.4121 | AM201: 131237.6325 | AN201: 125092.7796 | AO201: 420.065053 | AP201: 67792.37047 | AQ201: 0 | AR201: 0 | AT201: 14120.14492 | AU201: 9745.548588 | AV201: 450 | AW201: 0 | AX201: 22.5 | AZ201: 2016-08-11 | BA201: 338.5020994
A202: 0 | B202: 0 | C202: 0 | D202: 0 | E202: 513.32 | F202: 51.03981089 | G202: -39451.87788 | H202: 73126.47992 | I202: 0 | J202: 0 | K202: 0 | L202: 300.03 | M202: -11.72014183 | N202: 3287.65649 | O202: 265147.017 | P202: 127529.703 | Q202: 137617.3139 | R202: 467.2368811 | T202: 0 | U202: 0 | V202: 7 | W202: 42592 | X202: 2016-08-10 | Y202: 344.2 | Z202: 344.88 | AA202: 343.26 | AB202: 343.98 | AD202: 251179.675 | AE202: 136019.204 | AF202: 115160.471 | AG202: 389.5590706 | AH202: 62569.02907 | AI202: 0 | AJ202: 0 | AL202: 255494.3419 | AM202: 131230.4137 | AN202: 124263.9282 | AO202: 420.065053 | AP202: 67792.37047 | AQ202: 0 | AR202: 0 | AT202: 13967.34194 | AU202: 9652.675067 | AV202: 450 | AW202: 0 | AX202: 22.5 | AZ202: 2016-08-10 | BA202: 335.8851675
A203: 0 | B203: 0 | C203: 0 | D203: 0 | E203: 513.32 | F203: 51.03981089 | G203: -39451.87788 | H203: 73126.47992 | I203: 0 | J203: 0 | K203: 0 | L203: 300.03 | M203: -11.72014183 | N203: 3287.65649 | O203: 265377.3643 | P203: 127522.6882 | Q203: 137854.6761 | R203: 467.2368811 | T203: 0 | U203: 0 | V203: 6 | W203: 42591 | X203: 2016-08-09 | Y203: 340.99 | Z203: 344.93 | AA203: 340.89 | AB203: 344.67 | AD203: 251370.094 | AE203: 136011.7222 | AF203: 115358.3719 | AG203: 389.5590706 | AH203: 62569.02907 | AI203: 0 | AJ203: 0 | AL203: 255700.5217 | AM203: 131223.1952 | AN203: 124477.3265 | AO203: 420.065053 | AP203: 67792.37047 | AQ203: 0 | AR203: 0 | AT203: 14007.27022 | AU203: 9676.842506 | AV203: 450 | AW203: 0 | AX203: 22.5 | AZ203: 2016-08-09 | BA203: 336.5589298
A204: 0 | B204: 0 | C204: 0 | D204: 0 | E204: 513.32 | F204: 51.03981089 | G204: -39451.87788 | H204: 73126.47992 | I204: 0 | J204: 0 | K204: 0 | L204: 300.03 | M204: -11.72014183 | N204: 3287.65649 | O204: 264290.1799 | P204: 127515.6737 | Q204: 136774.5062 | R204: 467.2368811 | T204: 0 | U204: 0 | V204: 5 | W204: 42590 | X204: 2016-08-08 | Y204: 341.37 | Z204: 343.05 | AA204: 340.98 | AB204: 341.53 | AD204: 250462.0202 | AE204: 136004.2407 | AF204: 114457.7795 | AG204: 389.5590706 | AH204: 62569.02907 | AI204: 0 | AJ204: 0 | AL204: 254722.1868 | AM204: 131215.9772 | AN204: 123506.2096 | AO204: 420.065053 | AP204: 67792.37047 | AQ204: 0 | AR204: 0 | AT204: 13828.15966 | AU204: 9567.993044 | AV204: 450 | AW204: 0 | AX204: 22.5 | AZ204: 2016-08-08 | BA204: 333.492823
A205: 0 | B205: 0 | C205: 0 | D205: 0 | E205: 513.32 | F205: 51.03981089 | G205: -39451.87788 | H205: 73126.47992 | I205: 0 | J205: 0 | K205: 0 | L205: 300.03 | M205: -11.72014183 | N205: 3287.65649 | O205: 264217.5383 | P205: 127494.6325 | Q205: 136722.9057 | R205: 467.2368811 | T205: 0 | U205: 0 | V205: 4 | W205: 42587 | X205: 2016-08-05 | Y205: 338 | Z205: 341.68 | AA205: 338 | AB205: 341.38 | AD205: 250396.5565 | AE205: 135981.7989 | AF205: 114414.7575 | AG205: 389.5590706 | AH205: 62569.02907 | AI205: 0 | AJ205: 0 | AL205: 254654.1442 | AM205: 131194.3255 | AN205: 123459.8187 | AO205: 420.065053 | AP205: 67792.37047 | AQ205: 0 | AR205: 0 | AT205: 13820.9818 | AU205: 9563.394086 | AV205: 450 | AW205: 0 | AX205: 22.5 | AZ205: 2016-08-05 | BA205: 333.3463529
A206: 0 | B206: 0 | C206: 0 | D206: 0 | E206: 513.32 | F206: 51.03981089 | G206: -39451.87788 | H206: 73126.47992 | I206: 0 | J206: 0 | K206: 0 | L206: 300.03 | M206: -11.72014183 | N206: 3287.65649 | O206: 262992.7541 | P206: 127487.6196 | Q206: 135505.1345 | R206: 467.2368811 | T206: 0 | U206: 0 | V206: 3 | W206: 42586 | X206: 2016-08-04 | Y206: 336.33 | Z206: 338.49 | AA206: 336.09 | AB206: 337.84 | AD206: 249373.7591 | AE206: 135974.3191 | AF206: 113399.44 | AG206: 389.5590706 | AH206: 62569.02907 | AI206: 0 | AJ206: 0 | AL206: 253552.1017 | AM206: 131187.109 | AN206: 122364.9927 | AO206: 420.065053 | AP206: 67792.37047 | AQ206: 0 | AR206: 0 | AT206: 13618.99502 | AU206: 9440.652475 | AV206: 450 | AW206: 0 | AX206: 22.5 | AZ206: 2016-08-04 | BA206: 329.8896592
A207: 0 | B207: 0 | C207: 0 | D207: 0 | E207: 513.32 | F207: 51.03981089 | G207: -39451.87788 | H207: 73126.47992 | I207: 0 | J207: 0 | K207: 0 | L207: 300.03 | M207: -11.72014183 | N207: 3287.65649 | O207: 262208.2945 | P207: 127480.607 | Q207: 134727.6874 | R207: 467.2368811 | T207: 0 | U207: 0 | V207: 2 | W207: 42585 | X207: 2016-08-03 | Y207: 336.3 | Z207: 336.72 | AA207: 334.2 | AB207: 335.58 | AD207: 248718.0827 | AE207: 135966.8398 | AF207: 112751.2429 | AG207: 389.5590706 | AH207: 62569.02907 | AI207: 0 | AJ207: 0 | AL207: 252845.9289 | AM207: 131179.893 | AN207: 121666.0359 | AO207: 420.065053 | AP207: 67792.37047 | AQ207: 0 | AR207: 0 | AT207: 13490.21179 | AU207: 9362.365585 | AV207: 450 | AW207: 0 | AX207: 22.5 | AZ207: 2016-08-03 | BA207: 327.6828435
A208: 0 | B208: 0 | C208: 0 | D208: 0 | E208: 513.32 | F208: 51.03981089 | G208: -39451.87788 | H208: 73126.47992 | I208: 0 | J208: 0 | K208: 0 | L208: 300.03 | M208: -11.72014183 | N208: 3287.65649 | O208: 262163.4419 | P208: 127473.5949 | Q208: 134689.8471 | R208: 467.2368811 | T208: 403.427647 | U208: 1 | V208: 1 | W208: 42584 | X208: 2016-08-02 | Y208: 339.46 | Z208: 339.46 | AA208: 335.07 | AB208: 335.47 | AD208: 248679.0543 | AE208: 135959.3608 | AF208: 112719.6935 | AG208: 389.5590706 | AH208: 62569.02907 | AI208: 0.5942197122 | AJ208: 1 | AL208: 252804.6932 | AM208: 131172.6773 | AN208: 121632.0159 | AO208: 420.065053 | AP208: 67792.37047 | AQ208: 1.188439424 | AR208: 1 | AT208: 13484.38765 | AU208: 9358.748738 | AV208: 450 | AW208: 0 | AX208: 31.57712206 | AZ208: 2016-08-02 | BA208: 327.5754321
A209: 0 | B209: 0 | C209: 0 | D209: 0 | E209: 506.93 | F209: 52.58048879 | G209: -38930.05108 | H209: 73126.47992 | I209: 0 | J209: 0 | K209: 0 | L209: 297.14 | M209: -10.5646334 | N209: 3244.170923 | O209: 263012.5192 | P209: 126812.4983 | Q209: 136200.0209 | R209: 467.2368811 | T209: 0 | U209: 0 | V209: 21 | W209: 42583 | X209: 2016-08-01 | Y209: 342.66 | Z209: 344.09 | AA209: 339.25 | AB209: 339.86 | AD209: 249317.6836 | AE209: 135540.7704 | AF209: 113776.9132 | AG209: 388.9648509 | AH209: 62367.31524 | AI209: 0 | AJ209: 0 | AL209: 253525.786 | AM209: 130939.8397 | AN209: 122585.9463 | AO209: 418.8766136 | AP209: 67388.94282 | AQ209: 0 | AR209: 0 | AT209: 13694.83561 | AU209: 9486.733202 | AV209: 450 | AW209: 0 | AX209: 22.5 | AZ209: 2016-08-01 | BA209: 331.8621228
A210: 0 | B210: 0 | C210: 0 | D210: 0 | E210: 506.93 | F210: 52.58048879 | G210: -38930.05108 | H210: 73126.47992 | I210: 0 | J210: 0 | K210: 0 | L210: 297.14 | M210: -10.5646334 | N210: 3244.170923 | O210: 263696.8951 | P210: 126798.5478 | Q210: 136898.3473 | R210: 467.2368811 | T210: 0 | U210: 0 | V210: 20 | W210: 42580 | X210: 2016-07-29 | Y210: 340.56 | Z210: 342.14 | AA210: 339.66 | AB210: 341.89 | AD210: 249884.1149 | AE210: 135525.8598 | AF210: 114358.2552 | AG210: 388.9648509 | AH210: 62367.31524 | AI210: 0 | AJ210: 0 | AL210: 254137.4292 | AM210: 130925.4352 | AN210: 123211.994 | AO210: 418.8766136 | AP210: 67388.94282 | AQ210: 0 | AR210: 0 | AT210: 13812.78019 | AU210: 9559.465897 | AV210: 450 | AW210: 0 | AX210: 22.5 | AZ210: 2016-07-29 | BA210: 333.8443511
A211: 0 | B211: 0 | C211: 0 | D211: 0 | E211: 506.93 | F211: 52.58048879 | G211: -38930.05108 | H211: 73126.47992 | I211: 0 | J211: 0 | K211: 0 | L211: 297.14 | M211: -10.5646334 | N211: 3244.170923 | O211: 262857.4328 | P211: 126791.5732 | Q211: 136065.8597 | R211: 467.2368811 | T211: 0 | U211: 0 | V211: 19 | W211: 42579 | X211: 2016-07-28 | Y211: 342.4 | Z211: 343.84 | AA211: 339.47 | AB211: 339.47 | AD211: 249183.6318 | AE211: 135518.4051 | AF211: 113665.2268 | AG211: 388.9648509 | AH211: 62367.31524 | AI211: 0 | AJ211: 0 | AL211: 253383.9046 | AM211: 130918.2336 | AN211: 122465.6711 | AO211: 418.8766136 | AP211: 67388.94282 | AQ211: 0 | AR211: 0 | AT211: 13673.80101 | AU211: 9473.528202 | AV211: 450 | AW211: 0 | AX211: 22.5 | AZ211: 2016-07-28 | BA211: 331.4813007
A212: 0 | B212: 0 | C212: 0 | D212: 0 | E212: 506.93 | F212: 52.58048879 | G212: -38930.05108 | H212: 73126.47992 | I212: 0 | J212: 0 | K212: 0 | L212: 297.14 | M212: -10.5646334 | N212: 3244.170923 | O212: 263975.3489 | P212: 126784.5989 | Q212: 137190.75 | R212: 467.2368811 | T212: 0 | U212: 0 | V212: 18 | W212: 42578 | X212: 2016-07-27 | Y212: 341.87 | Z212: 344.02 | AA212: 341.87 | AB212: 342.74 | AD212: 250112.625 | AE212: 135510.9508 | AF212: 114601.6742 | AG212: 388.9648509 | AH212: 62367.31524 | AI212: 0 | AJ212: 0 | AL212: 254385.1645 | AM212: 130911.0323 | AN212: 123474.1322 | AO212: 418.8766136 | AP212: 67388.94282 | AQ212: 0 | AR212: 0 | AT212: 13862.72389 | AU212: 9590.184349 | AV212: 450 | AW212: 0 | AX212: 22.5 | AZ212: 2016-07-27 | BA212: 334.6743482
A213: 0 | B213: 0 | C213: 0 | D213: 0 | E213: 506.93 | F213: 52.58048879 | G213: -38930.05108 | H213: 73126.47992 | I213: 0 | J213: 0 | K213: 0 | L213: 297.14 | M213: -10.5646334 | N213: 3244.170923 | O213: 263459.2503 | P213: 126777.625 | Q213: 136681.6253 | R213: 467.2368811 | T213: 0 | U213: 0 | V213: 17 | W213: 42577 | X213: 2016-07-26 | Y213: 340.42 | Z213: 342.19 | AA213: 338.92 | AB213: 341.26 | AD213: 249681.3356 | AE213: 135503.4969 | AF213: 114177.8387 | AG213: 388.9648509 | AH213: 62367.31524 | AI213: 0 | AJ213: 0 | AL213: 253921.5348 | AM213: 130903.8314 | AN213: 123017.7033 | AO213: 418.8766136 | AP213: 67388.94282 | AQ213: 0 | AR213: 0 | AT213: 13777.91477 | AU213: 9537.715562 | AV213: 450 | AW213: 0 | AX213: 22.5 | AZ213: 2016-07-26 | BA213: 333.2291768
A214: 0 | B214: 0 | C214: 0 | D214: 0 | E214: 506.93 | F214: 52.58048879 | G214: -38930.05108 | H214: 73126.47992 | I214: 0 | J214: 0 | K214: 0 | L214: 297.14 | M214: -10.5646334 | N214: 3244.170923 | O214: 263338.7558 | P214: 126770.6515 | Q214: 136568.1043 | R214: 467.2368811 | T214: 0 | U214: 0 | V214: 16 | W214: 42576 | X214: 2016-07-25 | Y214: 340.86 | Z214: 343.08 | AA214: 339.79 | AB214: 340.93 | AD214: 249579.3782 | AE214: 135496.0434 | AF214: 114083.3348 | AG214: 388.9648509 | AH214: 62367.31524 | AI214: 0 | AJ214: 0 | AL214: 253812.563 | AM214: 130896.631 | AN214: 122915.932 | AO214: 418.8766136 | AP214: 67388.94282 | AQ214: 0 | AR214: 0 | AT214: 13759.37757 | AU214: 9526.192795 | AV214: 450 | AW214: 0 | AX214: 22.5 | AZ214: 2016-07-25 | BA214: 332.9069427
A215: 0 | B215: 0 | C215: 0 | D215: 0 | E215: 506.93 | F215: 52.58048879 | G215: -38930.05108 | H215: 73126.47992 | I215: 0 | J215: 0 | K215: 0 | L215: 297.14 | M215: -10.5646334 | N215: 3244.170923 | O215: 263111.4357 | P215: 126749.7333 | Q215: 136361.7024 | R215: 467.2368811 | T215: 0 | U215: 0 | V215: 15 | W215: 42573 | X215: 2016-07-22 | Y215: 340.24 | Z215: 340.73 | AA215: 338.13 | AB215: 340.33 | AD215: 249385.195 | AE215: 135473.6854 | AF215: 113911.5096 | AG215: 388.9648509 | AH215: 62367.31524 | AI215: 0 | AJ215: 0 | AL215: 253605.9252 | AM215: 130875.0319 | AN215: 122730.8933 | AO215: 418.8766136 | AP215: 67388.94282 | AQ215: 0 | AR215: 0 | AT215: 13726.24067 | AU215: 9505.510468 | AV215: 450 | AW215: 0 | AX215: 22.5 | AZ215: 2016-07-22 | BA215: 332.3210624
A216: 0 | B216: 0 | C216: 0 | D216: 0 | E216: 506.93 | F216: 52.58048879 | G216: -38930.05108 | H216: 73126.47992 | I216: 0 | J216: 0 | K216: 0 | L216: 297.14 | M216: -10.5646334 | N216: 3244.170923 | O216: 263190.4645 | P216: 126742.7613 | Q216: 136447.7032 | R216: 467.2368811 | T216: 0 | U216: 0 | V216: 14 | W216: 42572 | X216: 2016-07-21 | Y216: 341.27 | Z216: 341.81 | AA216: 338.36 | AB216: 340.58 | AD216: 249449.337 | AE216: 135466.2336 | AF216: 113983.1034 | AG216: 388.9648509 | AH216: 62367.31524 | AI216: 0 | AJ216: 0 | AL216: 253675.8258 | AM216: 130867.833 | AN216: 122807.9928 | AO216: 418.8766136 | AP216: 67388.94282 | AQ216: 0 | AR216: 0 | AT216: 13741.12748 | AU216: 9514.638695 | AV216: 450 | AW216: 0 | AX216: 22.5 | AZ216: 2016-07-21 | BA216: 332.5651792
A217: 0 | B217: 0 | C217: 0 | D217: 0 | E217: 506.93 | F217: 52.58048879 | G217: -38930.05108 | H217: 73126.47992 | I217: 0 | J217: 0 | K217: 0 | L217: 297.14 | M217: -10.5646334 | N217: 3244.170923 | O217: 263262.6136 | P217: 126735.7897 | Q217: 136526.8239 | R217: 467.2368811 | T217: 0 | U217: 0 | V217: 13 | W217: 42571 | X217: 2016-07-20 | Y217: 337.93 | Z217: 340.85 | AA217: 337.62 | AB217: 340.81 | AD217: 249507.7519 | AE217: 135458.7822 | AF217: 114048.9698 | AG217: 388.9648509 | AH217: 62367.31524 | AI217: 0 | AJ217: 0 | AL217: 253739.5588 | AM217: 130860.6346 | AN217: 122878.9243 | AO217: 418.8766136 | AP217: 67388.94282 | AQ217: 0 | AR217: 0 | AT217: 13754.86171 | AU217: 9523.054804 | AV217: 450 | AW217: 0 | AX217: 22.5 | AZ217: 2016-07-20 | BA217: 332.7897666
A218: 0 | B218: 0 | C218: 0 | D218: 0 | E218: 506.93 | F218: 52.58048879 | G218: -38930.05108 | H218: 73126.47992 | I218: 0 | J218: 0 | K218: 0 | L218: 297.14 | M218: -10.5646334 | N218: 3244.170923 | O218: 262055.0714 | P218: 126728.8185 | Q218: 135326.2529 | R218: 467.2368811 | T218: 0 | U218: 0 | V218: 12 | W218: 42570 | X218: 2016-07-19 | Y218: 337.96 | Z218: 338.43 | AA218: 335.17 | AB218: 337.32 | AD218: 248500.8509 | AE218: 135451.3312 | AF218: 113049.5197 | AG218: 388.9648509 | AH218: 62367.31524 | AI218: 0 | AJ218: 0 | AL218: 252656.052 | AM218: 130853.4365 | AN218: 121802.6156 | AO218: 418.8766136 | AP218: 67388.94282 | AQ218: 0 | AR218: 0 | AT218: 13554.22057 | AU218: 9399.019383 | AV218: 450 | AW218: 0 | AX218: 22.5 | AZ218: 2016-07-19 | BA218: 329.3818963
A219: 0 | B219: 0 | C219: 0 | D219: 0 | E219: 506.93 | F219: 52.58048879 | G219: -38930.05108 | H219: 73126.47992 | I219: 0 | J219: 0 | K219: 0 | L219: 297.14 | M219: -10.5646334 | N219: 3244.170923 | O219: 262522.825 | P219: 126721.8477 | Q219: 135800.9773 | R219: 467.2368811 | T219: 0 | U219: 0 | V219: 11 | W219: 42569 | X219: 2016-07-18 | Y219: 338 | Z219: 340.61 | AA219: 337.24 | AB219: 338.7 | AD219: 248888.5983 | AE219: 135443.8805 | AF219: 113444.7177 | AG219: 388.9648509 | AH219: 62367.31524 | AI219: 0 | AJ219: 0 | AL219: 253074.4435 | AM219: 130846.2388 | AN219: 122228.2047 | AO219: 418.8766136 | AP219: 67388.94282 | AQ219: 0 | AR219: 0 | AT219: 13634.22669 | AU219: 9448.381502 | AV219: 450 | AW219: 0 | AX219: 22.5 | AZ219: 2016-07-18 | BA219: 330.729421
A220: 0 | B220: 0 | C220: 0 | D220: 0 | E220: 506.93 | F220: 52.58048879 | G220: -38930.05108 | H220: 73126.47992 | I220: 0 | J220: 0 | K220: 0 | L220: 297.14 | M220: -10.5646334 | N220: 3244.170923 | O220: 262233.5923 | P220: 126700.9376 | Q220: 135532.6548 | R220: 467.2368811 | T220: 0 | U220: 0 | V220: 10 | W220: 42566 | X220: 2016-07-15 | Y220: 338.23 | Z220: 338.84 | AA220: 336.19 | AB220: 337.92 | AD220: 248642.8761 | AE220: 135421.5312 | AF220: 113221.3449 | AG220: 388.9648509 | AH220: 62367.31524 | AI220: 0 | AJ220: 0 | AL220: 252812.3024 | AM220: 130824.6481 | AN220: 121987.6543 | AO220: 418.8766136 | AP220: 67388.94282 | AQ220: 0 | AR220: 0 | AT220: 13590.71623 | AU220: 9421.289968 | AV220: 450 | AW220: 0 | AX220: 22.5 | AZ220: 2016-07-15 | BA220: 329.9677766
A221: 0 | B221: 0 | C221: 0 | D221: 0 | E221: 506.93 | F221: 52.58048879 | G221: -38930.05108 | H221: 73126.47992 | I221: 0 | J221: 0 | K221: 0 | L221: 297.14 | M221: -10.5646334 | N221: 3244.170923 | O221: 262426.1449 | P221: 126693.9683 | Q221: 135732.1766 | R221: 467.2368811 | T221: 0 | U221: 0 | V221: 9 | W221: 42565 | X221: 2016-07-14 | Y221: 336.55 | Z221: 339.88 | AA221: 336.55 | AB221: 338.5 | AD221: 248801.5249 | AE221: 135414.0822 | AF221: 113387.4426 | AG221: 388.9648509 | AH221: 62367.31524 | AI221: 0 | AJ221: 0 | AL221: 252983.9771 | AM221: 130817.4519 | AN221: 122166.5251 | AO221: 418.8766136 | AP221: 67388.94282 | AQ221: 0 | AR221: 0 | AT221: 13624.62003 | AU221: 9442.167839 | AV221: 450 | AW221: 0 | AX221: 22.5 | AZ221: 2016-07-14 | BA221: 330.5341275
A222: 0 | B222: 0 | C222: 0 | D222: 0 | E222: 506.93 | F222: 52.58048879 | G222: -38930.05108 | H222: 73126.47992 | I222: 0 | J222: 0 | K222: 0 | L222: 297.14 | M222: -10.5646334 | N222: 3244.170923 | O222: 261500.6876 | P222: 126686.9994 | Q222: 134813.6882 | R222: 467.2368811 | T222: 0 | U222: 0 | V222: 8 | W222: 42564 | X222: 2016-07-13 | Y222: 336.89 | Z222: 338.11 | AA222: 335.83 | AB222: 335.83 | AD222: 248029.4541 | AE222: 135406.6337 | AF222: 112622.8204 | AG222: 388.9648509 | AH222: 62367.31524 | AI222: 0 | AJ222: 0 | AL222: 252153.3589 | AM222: 130810.2562 | AN222: 121343.1027 | AO222: 418.8766136 | AP222: 67388.94282 | AQ222: 0 | AR222: 0 | AT222: 13471.23351 | AU222: 9347.328645 | AV222: 450 | AW222: 0 | AX222: 22.5 | AZ222: 2016-07-13 | BA222: 327.9269603
A223: 0 | B223: 0 | C223: 0 | D223: 0 | E223: 506.93 | F223: 52.58048879 | G223: -38930.05108 | H223: 73126.47992 | I223: 0 | J223: 0 | K223: 0 | L223: 297.14 | M223: -10.5646334 | N223: 3244.170923 | O223: 261641.6404 | P223: 126680.0309 | Q223: 134961.6096 | R223: 467.2368811 | T223: 0 | U223: 0 | V223: 7 | W223: 42563 | X223: 2016-07-12 | Y223: 333.02 | Z223: 336.62 | AA223: 332.82 | AB223: 336.26 | AD223: 248145.1473 | AE223: 135399.1855 | AF223: 112745.9618 | AG223: 388.9648509 | AH223: 62367.31524 | AI223: 0 | AJ223: 0 | AL223: 252278.7747 | AM223: 130803.0609 | AN223: 121475.7138 | AO223: 418.8766136 | AP223: 67388.94282 | AQ223: 0 | AR223: 0 | AT223: 13496.49308 | AU223: 9362.865704 | AV223: 450 | AW223: 0 | AX223: 22.5 | AZ223: 2016-07-12 | BA223: 328.3468411
A224: 0 | B224: 0 | C224: 0 | D224: 0 | E224: 506.93 | F224: 52.58048879 | G224: -38930.05108 | H224: 73126.47992 | I224: 0 | J224: 0 | K224: 0 | L224: 297.14 | M224: -10.5646334 | N224: 3244.170923 | O224: 260416.9011 | P224: 126673.0627 | Q224: 133743.8384 | R224: 467.2368811 | T224: 0 | U224: 0 | V224: 6 | W224: 42562 | X224: 2016-07-11 | Y224: 328.44 | Z224: 333 | AA224: 327.65 | AB224: 332.72 | AD224: 247123.9308 | AE224: 135391.7378 | AF224: 111732.193 | AG224: 388.9648509 | AH224: 62367.31524 | AI224: 0 | AJ224: 0 | AL224: 251179.8512 | AM224: 130795.866 | AN224: 120383.9852 | AO224: 418.8766136 | AP224: 67388.94282 | AQ224: 0 | AR224: 0 | AT224: 13292.97034 | AU224: 9237.04992 | AV224: 450 | AW224: 0 | AX224: 22.5 | AZ224: 2016-07-11 | BA224: 324.8901474
A225: 0 | B225: 0 | C225: 0 | D225: 0 | E225: 506.93 | F225: 52.58048879 | G225: -38930.05108 | H225: 73126.47992 | I225: 0 | J225: 0 | K225: 0 | L225: 297.14 | M225: -10.5646334 | N225: 3244.170923 | O225: 258548.7021 | P225: 126652.1606 | Q225: 131896.5415 | R225: 467.2368811 | T225: 0 | U225: 0 | V225: 5 | W225: 42559 | X225: 2016-07-08 | Y225: 321.53 | Z225: 327.61 | AA225: 320.97 | AB225: 327.35 | AD225: 245563.7543 | AE225: 135369.397 | AF225: 110194.3573 | AG225: 388.9648509 | AH225: 62367.31524 | AI225: 0 | AJ225: 0 | AL225: 249502.172 | AM225: 130774.2836 | AN225: 118727.8884 | AO225: 418.8766136 | AP225: 67388.94282 | AQ225: 0 | AR225: 0 | AT225: 12984.9478 | AU225: 9046.530041 | AV225: 450 | AW225: 0 | AX225: 22.5 | AZ225: 2016-07-08 | BA225: 319.6465189
A226: 0 | B226: 0 | C226: 0 | D226: 0 | E226: 506.93 | F226: 52.58048879 | G226: -38930.05108 | H226: 73126.47992 | I226: 0 | J226: 0 | K226: 0 | L226: 297.14 | M226: -10.5646334 | N226: 3244.170923 | O226: 256742.599 | P226: 126645.194 | Q226: 130097.405 | R226: 467.2368811 | T226: 0 | U226: 0 | V226: 4 | W226: 42558 | X226: 2016-07-07 | Y226: 320.24 | Z226: 324.7 | AA226: 320.24 | AB226: 322.12 | AD226: 244058.565 | AE226: 135361.9509 | AF226: 108696.6141 | AG226: 388.9648509 | AH226: 62367.31524 | AI226: 0 | AJ226: 0 | AL226: 247882.0576 | AM226: 130767.0902 | AN226: 117114.9674 | AO226: 418.8766136 | AP226: 67388.94282 | AQ226: 0 | AR226: 0 | AT226: 12684.034 | AU226: 8860.541339 | AV226: 450 | AW226: 0 | AX226: 22.5 | AZ226: 2016-07-07 | BA226: 314.5395957
A227: 0 | B227: 0 | C227: 0 | D227: 0 | E227: 506.93 | F227: 52.58048879 | G227: -38930.05108 | H227: 73126.47992 | I227: 0 | J227: 0 | K227: 0 | L227: 297.14 | M227: -10.5646334 | N227: 3244.170923 | O227: 255579.7822 | P227: 126638.2278 | Q227: 128941.5544 | R227: 467.2368811 | T227: 0 | U227: 0 | V227: 3 | W227: 42557 | X227: 2016-07-06 | Y227: 322.84 | Z227: 324.23 | AA227: 317.24 | AB227: 318.76 | AD227: 243088.898 | AE227: 135354.5052 | AF227: 107734.3928 | AG227: 388.9648509 | AH227: 62367.31524 | AI227: 0 | AJ227: 0 | AL227: 246838.6477 | AM227: 130759.8973 | AN227: 116078.7504 | AO227: 418.8766136 | AP227: 67388.94282 | AQ227: 0 | AR227: 0 | AT227: 12490.88412 | AU227: 8741.134438 | AV227: 450 | AW227: 0 | AX227: 22.5 | AZ227: 2016-07-06 | BA227: 311.2586661
A228: 0 | B228: 0 | C228: 0 | D228: 0 | E228: 506.93 | F228: 52.58048879 | G228: -38930.05108 | H228: 73126.47992 | I228: 0 | J228: 0 | K228: 0 | L228: 297.14 | M228: -10.5646334 | N228: 3244.170923 | O228: 257433.8734 | P228: 126631.262 | Q228: 130802.6114 | R228: 467.2368811 | T228: 0 | U228: 0 | V228: 2 | W228: 42556 | X228: 2016-07-05 | Y228: 328.92 | Z228: 328.92 | AA228: 323.57 | AB228: 324.17 | AD228: 244630.7435 | AE228: 135347.0599 | AF228: 109283.6836 | AG228: 388.9648509 | AH228: 62367.31524 | AI228: 0 | AJ228: 0 | AL228: 248499.8878 | AM228: 130752.7047 | AN228: 117747.1831 | AO228: 418.8766136 | AP228: 67388.94282 | AQ228: 0 | AR228: 0 | AT228: 12803.12987 | AU228: 8933.98554 | AV228: 450 | AW228: 0 | AX228: 22.5 | AZ228: 2016-07-05 | BA228: 316.5413534
A229: =C229 - B229*(E229-$AB$7817)*KESt% -> 0 | B229: =C229/E229 -> 0 | C229: =D229 * ($O230*prozRK3%*(1-prozRK3%)*-dKverk%) -> 0 | D229: =IF($Z229>=E229, 1, 0) -> 0 | E229: =IF(OR($U229=1, D230=1), ROUND($AB230*(1+F229%), 2), E230) -> 506.93 | F229: =IF(OR($U229=1, D230=1), ((($O230 -$Q230 -$G229)*prozRK3%/(1-prozRK3%) -$G229) / $Q230 -1)*100, F230) -> 52.58048879 | G229: =IF(OR($U229=1, D230=1), O230*prozRK3%*(1-prozRK3%)*-dKfixVerk%, G230) -> -38930.05108 | H229: 73126.47992 | I229: =J229/L229 -> 0 | J229: =K229 * ($O230*prozRK3%*(1-prozRK3%)*-dKkauf%) -> 0 | K229: =IF($AA229<=L229, 1, 0) -> 0 | L229: =IF(OR($U229=1, K230=1), ROUND($AB230*(1+M229%), 2), L230) -> 297.14 | M229: =IF(OR($U229=1, K230=1), ((($O230 -$Q230 -$N229)*prozRK3%/(1-prozRK3%) -$N229) / $Q230 -1)*100, M230) -> -10.5646334 | N229: =IF(OR($U229=1, K230=1), O230*prozRK3%*(1-prozRK3%)*-dKfixKauf%, N230) -> 3244.170923 | O229: =P229+Q229 -> 259356.7656 | P229: =P230*(1+Zins%)^(DAYS360($X230,$X229)/360) +$T229 -J229 +-A229 +$U229*Q230*Dividende%/12 -> 126624.2965 | Q229: =R229*AB229 - (R229*AB229-H229)*KESt% -> 132732.4691 | R229: =R230 + I229 + B229 -> 467.2368811 | T229: =U229 * Teinz*(1+Terhoehung%)^(DAYS360(DatumMin, $X229)/360) -> 402.6841628 | U229: =IF(V229=1, 1, 0) -> 1 | V229: =V230+1 +IF(V230=$V$14, -$V$14, 0) -> 1 | W229: 42555 | X229: 2016-07-04 | Y229: 332.77 | Z229: 333.63 | AA229: 329.37 | AB229: 329.78 | AD229: 246229.8645 | AE229: =AE230*(1+Zins%)^(DAYS360($X230,$X229)/360) +$T229*(1-prozRK3%) +$U229*AF230*Dividende%/12 -> 135339.6151 | AF229: =$AB229*AG229 - ($AB229*AG229 -AH229)*KESt% -> 110890.2494 | AG229: 388.9648509 | AH229: =AH230 + $T229*prozRK3% -> 62367.31524 | AI229: =$T229*prozRK3% / $Y229 -> 0.6050487766 | AJ229: 1 | AL229: =AM229+AN229 -> 250222.8079 | AM229: =AM230*(1+Zins%)^(DAYS360($X230,$X229)/360) + $T229 -AR229*$T229 +$U229*AN230*Dividende%/12 -> 130745.5126 | AN229: =AB229*AO229 - (AB229*AO229 -AP229)*KESt% -> 119477.2954 | AO229: 418.8766136 | AP229: 67388.94282 | AQ229: =T229 * AR229 / Y229 -> 1.210097553 | AR229: =$U229 * IF($AL230*prozRK3%>$AN230, 1, 0) -> 1 | AT229: =O229-AD229 -> 13126.90115 | AU229: =O229-AL229 -> 9133.957678 | AV229: =$AV$3-- $C229*$AV$5 -> 450 | AW229: =$AW$3 + $J229*$AW$5 -> 0 | AX229: 31.56039366 | AZ229: 2016-07-04 | BA229: 322.019334
A230: 0 | B230: 0 | C230: 0 | D230: 0 | E230: 530.95 | F230: 54.18871402 | G230: -39390.32891 | H230: =H231 + J230 -> 73126.47992 | I230: 0 | J230: 0 | K230: 0 | L230: 294.34 | M230: -4.666581059 | N230: 3142.816613 | O230: 259533.6739 | P230: 125954.957 | Q230: 133578.7169 | R230: 467.2368811 | T230: 0 | U230: 0 | V230: 21 | W230: =DATE(YEAR(X230),MONTH(X230),DAY(X230)) -> 42552 | X230: 2016-07-01 | Y230: 330.51 | Z230: 333.05 | AA230: 328.73 | AB230: 332.24 | AD230: =AE230+AF230 -> 246304.6008 | AE230: 134910.974 | AF230: 111393.6268 | AG230: =AG231 + AI230 -> 388.3598022 | AH230: 62165.97316 | AI230: 0 | AJ230: =$U230 -> 0 | AL230: 250337.1482 | AM230: 130503.4059 | AN230: 119833.7422 | AO230: =AO231 + AQ230 -> 417.666516 | AP230: =AP231 + AR230*T230 -> 66986.25866 | AQ230: 0 | AR230: 0 | AT230: 13229.07302 | AU230: 9196.525702 | AV230: 450 | AW230: 0 | AX230: =$AX$3 + AR230 * T230 * $AX$5 -> 22.5 | AZ230: =$X230 -> 2016-07-01 | BA230: =$AB230/$AB$6231 *100 -> 324.4214432
A231: 0 | B231: 0 | C231: 0 | D231: 0 | E231: 530.95 | F231: 54.18871402 | G231: -39390.32891 | H231: 73126.47992 | I231: 0 | J231: 0 | K231: 0 | L231: 294.34 | M231: -4.666581059 | N231: 3142.816613 | O231: 258714.8982 | P231: 125948.0287 | Q231: 132766.8694 | R231: 467.2368811 | T231: 0 | U231: 0 | V231: 20 | W231: 42551 | X231: 2016-06-30 | Y231: 325.62 | Z231: 329.88 | AA231: 323.41 | AB231: 329.88 | AD231: 245622.3854 | AE231: 134903.5531 | AF231: 110718.8323 | AG231: 388.3598022 | AH231: 62165.97316 | AI231: 0 | AJ231: 0 | AL231: 249604.2533 | AM231: 130496.2275 | AN231: 119108.0258 | AO231: 417.666516 | AP231: 66986.25866 | AQ231: 0 | AR231: 0 | AT231: 13092.51279 | AU231: 9110.644905 | AV231: 450 | AW231: 0 | AX231: 22.5 | AZ231: 2016-06-30 | BA231: 322.1169808
A232: 0 | B232: 0 | C232: 0 | D232: 0 | E232: 530.95 | F232: 54.18871402 | G232: -39390.32891 | H232: 73126.47992 | I232: 0 | J232: 0 | K232: 0 | L232: 294.34 | M232: -4.666581059 | N232: 3142.816613 | O232: 257541.7996 | P232: 125941.1009 | Q232: 131600.6987 | R232: 467.2368811 | T232: 0 | U232: 0 | V232: 19 | W232: 42550 | X232: 2016-06-29 | Y232: 317.6 | Z232: 326.49 | AA232: 317.6 | AB232: 326.49 | AD232: 244645.6625 | AE232: 134896.1326 | AF232: 109749.5299 | AG232: 388.3598022 | AH232: 62165.97316 | AI232: 0 | AJ232: 0 | AL232: 248554.6266 | AM232: 130489.0494 | AN232: 118065.5772 | AO232: 417.666516 | AP232: 66986.25866 | AQ232: 0 | AR232: 0 | AT232: 12896.13708 | AU232: 8987.173028 | AV232: 450 | AW232: 0 | AX232: 22.5 | AZ232: 2016-06-29 | BA232: 318.8067572
A233: 0 | B233: 0 | C233: 0 | D233: 0 | E233: 530.95 | F233: 54.18871402 | G233: -39390.32891 | H233: 73126.47992 | I233: 0 | J233: 0 | K233: 0 | L233: 294.34 | M233: -4.666581059 | N233: 3142.816613 | O233: 254167.0812 | P233: 125934.1734 | Q233: 128232.9079 | R233: 467.2368811 | T233: 0 | U233: 0 | V233: 18 | W233: 42549 | X233: 2016-06-28 | Y233: 311.45 | Z233: 319.29 | AA233: 311.45 | AB233: 316.7 | AD233: 241838.9887 | AE233: 134888.7126 | AF233: 106950.2761 | AG233: 388.3598022 | AH233: 62165.97316 | AI233: 0 | AJ233: 0 | AL233: 245536.9557 | AM233: 130481.8718 | AN233: 115055.0839 | AO233: 417.666516 | AP233: 66986.25866 | AQ233: 0 | AR233: 0 | AT233: 12328.09254 | AU233: 8630.125577 | AV233: 450 | AW233: 0 | AX233: 22.5 | AZ233: 2016-06-28 | BA233: 309.2471438
A234: 0 | B234: 0 | C234: 0 | D234: 0 | E234: 530.95 | F234: 54.18871402 | G234: -39390.32891 | H234: 73126.47992 | I234: 10.24769286 | J234: 3198.509895 | K234: 1 | L234: 312.12 | M234: -9.358464481 | N234: 3282.527409 | O234: 251425.3291 | P234: 125927.2463 | Q234: 125498.0828 | R234: 467.2368811 | T234: 0 | U234: 0 | V234: 17 | W234: 42548 | X234: 2016-06-27 | Y234: 319.17 | Z234: 320.28 | AA234: 307.81 | AB234: 308.75 | AD234: 239558.4263 | AE234: 134881.2929 | AF234: 104677.1334 | AG234: 388.3598022 | AH234: 62165.97316 | AI234: 0 | AJ234: 0 | AL234: 243085.098 | AM234: 130474.6945 | AN234: 112610.4035 | AO234: 417.666516 | AP234: 66986.25866 | AQ234: 0 | AR234: 0 | AT234: 11866.90276 | AU234: 8340.231085 | AV234: 450 | AW234: 71.96647264 | AX234: 22.5 | AZ234: 2016-06-27 | BA234: 301.4842301
A235: 0 | B235: 0 | C235: 0 | D235: 0 | E235: 530.95 | F235: 54.18871402 | G235: -39390.32891 | H235: 69927.97002 | I235: 0 | J235: 0 | K235: 0 | L235: 312.12 | M235: -9.358464481 | N235: 3282.527409 | O235: 255880.7916 | P235: 129104.4493 | Q235: 126776.3423 | R235: 456.9891883 | T235: 0 | U235: 0 | V235: 16 | W235: 42545 | X235: 2016-06-24 | Y235: 339.04 | Z235: 339.04 | AA235: 315.36 | AB235: 321.98 | AD235: 243319.0224 | AE235: 134859.0364 | AF235: 108459.986 | AG235: 388.3598022 | AH235: 62165.97316 | AI235: 0 | AJ235: 0 | AL235: 247131.8858 | AM235: 130453.1651 | AN235: 116678.7207 | AO235: 417.666516 | AP235: 66986.25866 | AQ235: 0 | AR235: 0 | AT235: 12561.76921 | AU235: 8748.905792 | AV235: 450 | AW235: 0 | AX235: 22.5 | AZ235: 2016-06-24 | BA235: 314.4028903
A236: 0 | B236: 0 | C236: 0 | D236: 0 | E236: 530.95 | F236: 54.18871402 | G236: -39390.32891 | H236: 69927.97002 | I236: 0 | J236: 0 | K236: 0 | L236: 312.12 | M236: -9.358464481 | N236: 3282.527409 | O236: 264069.8141 | P236: 129097.3478 | Q236: 134972.4662 | R236: 456.9891883 | T236: 0 | U236: 0 | V236: 15 | W236: 42544 | X236: 2016-06-23 | Y236: 341.8 | Z236: 348.16 | AA236: 341.78 | AB236: 346.34 | AD236: 250276.8568 | AE236: 134851.6184 | AF236: 115425.2385 | AG236: 388.3598022 | AH236: 62165.97316 | AI236: 0 | AJ236: 0 | AL236: 254615.58 | AM236: 130445.9894 | AN236: 124169.5906 | AO236: 417.666516 | AP236: 66986.25866 | AQ236: 0 | AR236: 0 | AT236: 13792.95721 | AU236: 9454.234072 | AV236: 450 | AW236: 0 | AX236: 22.5 | AZ236: 2016-06-23 | BA236: 338.1896299
A237: 0 | B237: 0 | C237: 0 | D237: 0 | E237: 530.95 | F237: 54.18871402 | G237: -39390.32891 | H237: 69927.97002 | I237: 0 | J237: 0 | K237: 0 | L237: 312.12 | M237: -9.358464481 | N237: 3282.527409 | O237: 262373.6923 | P237: 129090.2467 | Q237: 133283.4456 | R237: 456.9891883 | T237: 0 | U237: 0 | V237: 14 | W237: 42543 | X237: 2016-06-22 | Y237: 340.93 | Z237: 343.57 | AA237: 339.25 | AB237: 341.32 | AD237: 248834.0711 | AE237: 134844.2007 | AF237: 113989.8704 | AG237: 388.3598022 | AH237: 62165.97316 | AI237: 0 | AJ237: 0 | AL237: 253064.7197 | AM237: 130438.8141 | AN237: 122625.9056 | AO237: 417.666516 | AP237: 66986.25866 | AQ237: 0 | AR237: 0 | AT237: 13539.62124 | AU237: 9308.972641 | AV237: 450 | AW237: 0 | AX237: 22.5 | AZ237: 2016-06-22 | BA237: 333.2877649
A238: 0 | B238: 0 | C238: 0 | D238: 0 | E238: 530.95 | F238: 54.18871402 | G238: -39390.32891 | H238: 69927.97002 | I238: 0 | J238: 0 | K238: 0 | L238: 312.12 | M238: -9.358464481 | N238: 3282.527409 | O238: 261935.925 | P238: 129083.146 | Q238: 132852.779 | R238: 456.9891883 | T238: 0 | U238: 0 | V238: 13 | W238: 42542 | X238: 2016-06-21 | Y238: 337.7 | Z238: 340.98 | AA238: 336.19 | AB238: 340.04 | AD238: 248460.6636 | AE238: 134836.7835 | AF238: 113623.8801 | AG238: 388.3598022 | AH238: 62165.97316 | AI238: 0 | AJ238: 0 | AL238: 252663.9359 | AM238: 130431.6393 | AN238: 122232.2966 | AO238: 417.666516 | AP238: 66986.25866 | AQ238: 0 | AR238: 0 | AT238: 13475.2614 | AU238: 9271.989134 | AV238: 450 | AW238: 0 | AX238: 22.5 | AZ238: 2016-06-21 | BA238: 332.0378869
A239: 0 | B239: 0 | C239: 0 | D239: 0 | E239: 530.95 | F239: 54.18871402 | G239: -39390.32891 | H239: 69927.97002 | I239: 0 | J239: 0 | K239: 0 | L239: 312.12 | M239: -9.358464481 | N239: 3282.527409 | O239: 261131.4185 | P239: 129076.0457 | Q239: 132055.3728 | R239: 456.9891883 | T239: 0 | U239: 0 | V239: 12 | W239: 42541 | X239: 2016-06-20 | Y239: 328.84 | Z239: 338.38 | AA239: 328.84 | AB239: 337.67 | AD239: 247775.5929 | AE239: 134829.3667 | AF239: 112946.2262 | AG239: 388.3598022 | AH239: 62165.97316 | AI239: 0 | AJ239: 0 | AL239: 251927.9699 | AM239: 130424.4648 | AN239: 121503.5051 | AO239: 417.666516 | AP239: 66986.25866 | AQ239: 0 | AR239: 0 | AT239: 13355.82561 | AU239: 9203.448687 | AV239: 450 | AW239: 0 | AX239: 22.5 | AZ239: 2016-06-20 | BA239: 329.7236598
A240: 0 | B240: 0 | C240: 0 | D240: 0 | E240: 530.95 | F240: 54.18871402 | G240: -39390.32891 | H240: 69927.97002 | I240: 0 | J240: 0 | K240: 0 | L240: 312.12 | M240: -9.358464481 | N240: 3282.527409 | O240: 257109.6309 | P240: 129054.7471 | Q240: 128054.8838 | R240: 456.9891883 | T240: 0 | U240: 0 | V240: 11 | W240: 42538 | X240: 2016-06-17 | Y240: 322.63 | Z240: 326.98 | AA240: 322.63 | AB240: 325.78 | AD240: 244353.6384 | AE240: 134807.1188 | AF240: 109546.5197 | AG240: 388.3598022 | AH240: 62165.97316 | AI240: 0 | AJ240: 0 | AL240: 248250.1908 | AM240: 130402.9436 | AN240: 117847.2472 | AO240: 417.666516 | AP240: 66986.25866 | AQ240: 0 | AR240: 0 | AT240: 12755.99245 | AU240: 8859.440023 | AV240: 450 | AW240: 0 | AX240: 22.5 | AZ240: 2016-06-17 | BA240: 318.1134655
A241: 0 | B241: 0 | C241: 0 | D241: 0 | E241: 530.95 | F241: 54.18871402 | G241: -39390.32891 | H241: 69927.97002 | I241: 0 | J241: 0 | K241: 0 | L241: 312.12 | M241: -9.358464481 | N241: 3282.527409 | O241: 255591.8344 | P241: 129047.6483 | Q241: 126544.186 | R241: 456.9891883 | T241: 0 | U241: 0 | V241: 10 | W241: 42537 | X241: 2016-06-16 | Y241: 321.27 | Z241: 321.94 | AA241: 318.51 | AB241: 321.29 | AD241: 243062.398 | AE241: 134799.7036 | AF241: 108262.6944 | AG241: 388.3598022 | AH241: 62165.97316 | AI241: 0 | AJ241: 0 | AL241: 246862.3116 | AM241: 130395.7707 | AN241: 116466.5409 | AO241: 417.666516 | AP241: 66986.25866 | AQ241: 0 | AR241: 0 | AT241: 12529.43642 | AU241: 8729.522766 | AV241: 450 | AW241: 0 | AX241: 22.5 | AZ241: 2016-06-16 | BA241: 313.729128
A242: 0 | B242: 0 | C242: 0 | D242: 0 | E242: 530.95 | F242: 54.18871402 | G242: -39390.32891 | H242: 69927.97002 | I242: 0 | J242: 0 | K242: 0 | L242: 312.12 | M242: -9.358464481 | N242: 3282.527409 | O242: 256372.0484 | P242: 129040.55 | Q242: 127331.4984 | R242: 456.9891883 | T242: 0 | U242: 0 | V242: 9 | W242: 42536 | X242: 2016-06-15 | Y242: 321.35 | Z242: 325.47 | AA242: 321.35 | AB242: 323.63 | AD242: 243724.0592 | AE242: 134792.2888 | AF242: 108931.7704 | AG242: 388.3598022 | AH242: 62165.97316 | AI242: 0 | AJ242: 0 | AL242: 247574.7054 | AM242: 130388.5982 | AN242: 117186.1072 | AO242: 417.666516 | AP242: 66986.25866 | AQ242: 0 | AR242: 0 | AT242: 12647.98924 | AU242: 8797.343003 | AV242: 450 | AW242: 0 | AX242: 22.5 | AZ242: 2016-06-15 | BA242: 316.0140611
A243: 0 | B243: 0 | C243: 0 | D243: 0 | E243: 530.95 | F243: 54.18871402 | G243: -39390.32891 | H243: 69927.97002 | I243: 0 | J243: 0 | K243: 0 | L243: 312.12 | M243: -9.358464481 | N243: 3282.527409 | O243: 255321.9297 | P243: 129033.452 | Q243: 126288.4777 | R243: 456.9891883 | T243: 0 | U243: 0 | V243: 8 | W243: 42535 | X243: 2016-06-14 | Y243: 325.26 | Z243: 325.26 | AA243: 320.53 | AB243: 320.53 | AD243: 242830.2621 | AE243: 134784.8745 | AF243: 108045.3877 | AG243: 388.3598022 | AH243: 62165.97316 | AI243: 0 | AJ243: 0 | AL243: 246614.2617 | AM243: 130381.4261 | AN243: 116232.8356 | AO243: 417.666516 | AP243: 66986.25866 | AQ243: 0 | AR243: 0 | AT243: 12491.66762 | AU243: 8707.66807 | AV243: 450 | AW243: 0 | AX243: 22.5 | AZ243: 2016-06-14 | BA243: 312.987013
A244: 0 | B244: 0 | C244: 0 | D244: 0 | E244: 530.95 | F244: 54.18871402 | G244: -39390.32891 | H244: 69927.97002 | I244: 0 | J244: 0 | K244: 0 | L244: 312.12 | M244: -9.358464481 | N244: 3282.527409 | O244: 257424.4256 | P244: 129026.3544 | Q244: 128398.0712 | R244: 456.9891883 | T244: 0 | U244: 0 | V244: 7 | W244: 42534 | X244: 2016-06-13 | Y244: 331.09 | Z244: 331.09 | AA244: 326.69 | AB244: 326.8 | AD244: 244615.6287 | AE244: 134777.4605 | AF244: 109838.1682 | AG244: 388.3598022 | AH244: 62165.97316 | AI244: 0 | AJ244: 0 | AL244: 248535.1587 | AM244: 130374.2543 | AN244: 118160.9043 | AO244: 417.666516 | AP244: 66986.25866 | AQ244: 0 | AR244: 0 | AT244: 12808.79696 | AU244: 8889.266976 | AV244: 450 | AW244: 0 | AX244: 22.5 | AZ244: 2016-06-13 | BA244: 319.109462
A245: 0 | B245: 0 | C245: 0 | D245: 0 | E245: 530.95 | F245: 54.18871402 | G245: -39390.32891 | H245: 69927.97002 | I245: 0 | J245: 0 | K245: 0 | L245: 312.12 | M245: -9.358464481 | N245: 3282.527409 | O245: 259462.26 | P245: 129005.064 | Q245: 130457.196 | R245: 456.9891883 | T245: 0 | U245: 0 | V245: 6 | W245: 42531 | X245: 2016-06-10 | Y245: 340.77 | Z245: 340.77 | AA245: 332.7 | AB245: 332.92 | AD245: 246343.2803 | AE245: 134755.2211 | AF245: 111588.0592 | AG245: 388.3598022 | AH245: 62165.97316 | AI245: 0 | AJ245: 0 | AL245: 250395.5885 | AM245: 130352.7415 | AN245: 120042.847 | AO245: 417.666516 | AP245: 66986.25866 | AQ245: 0 | AR245: 0 | AT245: 13118.97966 | AU245: 9066.671454 | AV245: 450 | AW245: 0 | AX245: 22.5 | AZ245: 2016-06-10 | BA245: 325.0854409
A246: 0 | B246: 0 | C246: 0 | D246: 0 | E246: 530.95 | F246: 54.18871402 | G246: -39390.32891 | H246: 69927.97002 | I246: 0 | J246: 0 | K246: 0 | L246: 312.12 | M246: -9.358464481 | N246: 3282.527409 | O246: 262257.8615 | P246: 128997.968 | Q246: 133259.8935 | R246: 456.9891883 | T246: 0 | U246: 0 | V246: 5 | W246: 42530 | X246: 2016-06-09 | Y246: 343.76 | Z246: 343.76 | AA246: 340.47 | AB246: 341.25 | AD246: 248717.6641 | AE246: 134747.8088 | AF246: 113969.8553 | AG246: 388.3598022 | AH246: 62165.97316 | AI246: 0 | AJ246: 0 | AL246: 252949.9514 | AM246: 130345.5714 | AN246: 122604.3801 | AO246: 417.666516 | AP246: 66986.25866 | AQ246: 0 | AR246: 0 | AT246: 13540.1974 | AU246: 9307.910058 | AV246: 450 | AW246: 0 | AX246: 22.5 | AZ246: 2016-06-09 | BA246: 333.2194122
A247: 0 | B247: 0 | C247: 0 | D247: 0 | E247: 530.95 | F247: 54.18871402 | G247: -39390.32891 | H247: 69927.97002 | I247: 0 | J247: 0 | K247: 0 | L247: 312.12 | M247: -9.358464481 | N247: 3282.527409 | O247: 263364.4428 | P247: 128990.8723 | Q247: 134373.5705 | R247: 456.9891883 | T247: 0 | U247: 0 | V247: 4 | W247: 42529 | X247: 2016-06-08 | Y247: 345.69 | Z247: 345.69 | AA247: 343.46 | AB247: 344.56 | AD247: 249656.6802 | AE247: 134740.3969 | AF247: 114916.2833 | AG247: 388.3598022 | AH247: 62165.97316 | AI247: 0 | AJ247: 0 | AL247: 253960.6297 | AM247: 130338.4016 | AN247: 123622.2281 | AO247: 417.666516 | AP247: 66986.25866 | AQ247: 0 | AR247: 0 | AT247: 13707.76263 | AU247: 9403.813045 | AV247: 450 | AW247: 0 | AX247: 22.5 | AZ247: 2016-06-08 | BA247: 336.4515184
A248: 0 | B248: 0 | C248: 0 | D248: 0 | E248: 530.95 | F248: 54.18871402 | G248: -39390.32891 | H248: 69927.97002 | I248: 0 | J248: 0 | K248: 0 | L248: 312.12 | M248: -9.358464481 | N248: 3282.527409 | O248: 263929.3266 | P248: 128983.7771 | Q248: 134945.5495 | R248: 456.9891883 | T248: 0 | U248: 0 | V248: 3 | W248: 42528 | X248: 2016-06-07 | Y248: 343.73 | Z248: 347.29 | AA248: 343.73 | AB248: 346.26 | AD248: 250135.3495 | AE248: 134732.9854 | AF248: 115402.3641 | AG248: 388.3598022 | AH248: 62165.97316 | AI248: 0 | AJ248: 0 | AL248: 254476.2222 | AM248: 130331.2322 | AN248: 124144.99 | AO248: 417.666516 | AP248: 66986.25866 | AQ248: 0 | AR248: 0 | AT248: 13793.97714 | AU248: 9453.104406 | AV248: 450 | AW248: 0 | AX248: 22.5 | AZ248: 2016-06-07 | BA248: 338.1115125
A249: 0 | B249: 0 | C249: 0 | D249: 0 | E249: 530.95 | F249: 54.18871402 | G249: -39390.32891 | H249: 69927.97002 | I249: 0 | J249: 0 | K249: 0 | L249: 312.12 | M249: -9.358464481 | N249: 3282.527409 | O249: 262626.8674 | P249: 128976.6822 | Q249: 133650.1851 | R249: 456.9891883 | T249: 0 | U249: 0 | V249: 2 | W249: 42527 | X249: 2016-06-06 | Y249: 340.18 | Z249: 343.2 | AA249: 340.18 | AB249: 342.41 | AD249: 249027.1083 | AE249: 134725.5743 | AF249: 114301.534 | AG249: 388.3598022 | AH249: 62165.97316 | AI249: 0 | AJ249: 0 | AL249: 253285.1514 | AM249: 130324.0633 | AN249: 122961.0882 | AO249: 417.666516 | AP249: 66986.25866 | AQ249: 0 | AR249: 0 | AT249: 13599.7591 | AU249: 9341.715952 | AV249: 450 | AW249: 0 | AX249: 22.5 | AZ249: 2016-06-06 | BA249: 334.3521141
A250: 0 | B250: 0 | C250: 0 | D250: 0 | E250: 530.95 | F250: 54.18871402 | G250: -39390.32891 | H250: 69927.97002 | I250: 0 | J250: 0 | K250: 0 | L250: 312.12 | M250: -9.358464481 | N250: 3282.527409 | O250: 262228.7519 | P250: 128955.4 | Q250: 133273.3518 | R250: 456.9891883 | T250: 401.8626176 | U250: 1 | V250: 1 | W250: 42524 | X250: 2016-06-03 | Y250: 344.75 | Z250: 346.76 | AA250: 339.45 | AB250: 341.29 | AD250: 248684.6359 | AE250: 134703.3435 | AF250: 113981.2925 | AG250: 388.3598022 | AH250: 62165.97316 | AI250: 0.5828319327 | AJ250: 1 | AL250: 252919.2391 | AM250: 130302.5587 | AN250: 122616.6803 | AO250: 417.666516 | AP250: 66986.25866 | AQ250: 1.165663865 | AR250: 1 | AT250: 13544.11592 | AU250: 9309.512805 | AV250: 450 | AW250: 0 | AX250: 31.5419089 | AZ250: 2016-06-03 | BA250: 333.2584709
A251: 0 | B251: 0 | C251: 0 | D251: 0 | E251: 522.2 | F251: 57.38256291 | G251: -38631.25053 | H251: 69927.97002 | I251: 0 | J251: 0 | K251: 0 | L251: 308.7 | M251: -6.96307782 | N251: 3219.270878 | O251: 262602.1927 | P251: 128299.2785 | Q251: 134302.9142 | R251: 456.9891883 | T251: 0 | U251: 0 | V251: 21 | W251: 42523 | X251: 2016-06-02 | Y251: 343.88 | Z251: 345.08 | AA251: 343.14 | AB251: 344.35 | AD251: 248939.4659 | AE251: 134283.9876 | AF251: 114655.4783 | AG251: 387.7769702 | AH251: 61965.04185 | AI251: 0 | AJ251: 0 | AL251: 253224.8519 | AM251: 130068.7195 | AN251: 123156.1323 | AO251: 416.5008522 | AP251: 66584.39604 | AQ251: 0 | AR251: 0 | AT251: 13662.72679 | AU251: 9377.340838 | AV251: 450 | AW251: 0 | AX251: 22.5 | AZ251: 2016-06-02 | BA251: 336.2464603
A252: 0 | B252: 0 | C252: 0 | D252: 0 | E252: 522.2 | F252: 57.38256291 | G252: -38631.25053 | H252: 69927.97002 | I252: 0 | J252: 0 | K252: 0 | L252: 308.7 | M252: -6.96307782 | N252: 3219.270878 | O252: 262517.7501 | P252: 128292.2213 | Q252: 134225.5288 | R252: 456.9891883 | T252: 0 | U252: 0 | V252: 20 | W252: 42522 | X252: 2016-06-01 | Y252: 346.92 | Z252: 346.92 | AA252: 342.73 | AB252: 344.12 | AD252: 248866.4144 | AE252: 134276.6012 | AF252: 114589.8131 | AG252: 387.7769702 | AH252: 61965.04185 | AI252: 0 | AJ252: 0 | AL252: 253147.1681 | AM252: 130061.565 | AN252: 123085.6031 | AO252: 416.5008522 | AP252: 66584.39604 | AQ252: 0 | AR252: 0 | AT252: 13651.33576 | AU252: 9370.581974 | AV252: 450 | AW252: 0 | AX252: 22.5 | AZ252: 2016-06-01 | BA252: 336.0218729
A253: 0 | B253: 0 | C253: 0 | D253: 0 | E253: 522.2 | F253: 57.38256291 | G253: -38631.25053 | H253: 69927.97002 | I253: 0 | J253: 0 | K253: 0 | L253: 308.7 | M253: -6.96307782 | N253: 3219.270878 | O253: 263631.0994 | P253: 128285.1645 | Q253: 135345.9349 | R253: 456.9891883 | T253: 0 | U253: 0 | V253: 19 | W253: 42521 | X253: 2016-05-31 | Y253: 350.46 | Z253: 351.14 | AA253: 346.98 | AB253: 347.45 | AD253: 249809.746 | AE253: 134269.2152 | AF253: 115540.5308 | AG253: 387.7769702 | AH253: 61965.04185 | AI253: 0 | AJ253: 0 | AL253: 254161.1543 | AM253: 130054.4109 | AN253: 124106.7435 | AO253: 416.5008522 | AP253: 66584.39604 | AQ253: 0 | AR253: 0 | AT253: 13821.35339 | AU253: 9469.945058 | AV253: 450 | AW253: 0 | AX253: 22.5 | AZ253: 2016-05-31 | BA253: 339.2735084
A254: 0 | B254: 0 | C254: 0 | D254: 0 | E254: 522.2 | F254: 57.38256291 | G254: -38631.25053 | H254: 69927.97002 | I254: 0 | J254: 0 | K254: 0 | L254: 308.7 | M254: -6.96307782 | N254: 3219.270878 | O254: 264536.1722 | P254: 128285.1645 | Q254: 136251.0077 | R254: 456.9891883 | T254: 0 | U254: 0 | V254: 18 | W254: 42520 | X254: 2016-05-30 | Y254: 349.66 | Z254: 350.36 | AA254: 349.14 | AB254: 350.14 | AD254: 250577.7431 | AE254: 134269.2152 | AF254: 116308.5279 | AG254: 387.7769702 | AH254: 61965.04185 | AI254: 0 | AJ254: 0 | AL254: 254986.0395 | AM254: 130054.4109 | AN254: 124931.6286 | AO254: 416.5008522 | AP254: 66584.39604 | AQ254: 0 | AR254: 0 | AT254: 13958.42906 | AU254: 9550.132714 | AV254: 450 | AW254: 0 | AX254: 22.5 | AZ254: 2016-05-30 | BA254: 341.9002051
A255: 0 | B255: 0 | C255: 0 | D255: 0 | E255: 522.2 | F255: 57.38256291 | G255: -38631.25053 | H255: 69927.97002 | I255: 0 | J255: 0 | K255: 0 | L255: 308.7 | M255: -6.96307782 | N255: 3219.270878 | O255: 264346.7749 | P255: 128263.9964 | Q255: 136082.7786 | R255: 456.9891883 | T255: 0 | U255: 0 | V255: 17 | W255: 42517 | X255: 2016-05-27 | Y255: 348.43 | Z255: 349.67 | AA255: 348.06 | AB255: 349.64 | AD255: 250412.8372 | AE255: 134247.0597 | AF255: 116165.7775 | AG255: 387.7769702 | AH255: 61965.04185 | AI255: 0 | AJ255: 0 | AL255: 254811.2551 | AM255: 130032.9508 | AN255: 124778.3043 | AO255: 416.5008522 | AP255: 66584.39604 | AQ255: 0 | AR255: 0 | AT255: 13933.93773 | AU255: 9535.519885 | AV255: 450 | AW255: 0 | AX255: 22.5 | AZ255: 2016-05-27 | BA255: 341.4119715
A256: 0 | B256: 0 | C256: 0 | D256: 0 | E256: 522.2 | F256: 57.38256291 | G256: -38631.25053 | H256: 69927.97002 | I256: 0 | J256: 0 | K256: 0 | L256: 308.7 | M256: -6.96307782 | N256: 3219.270878 | O256: 264094.1051 | P256: 128256.9411 | Q256: 135837.164 | R256: 456.9891883 | T256: 0 | U256: 0 | V256: 16 | W256: 42516 | X256: 2016-05-26 | Y256: 347.88 | Z256: 349.23 | AA256: 347.38 | AB256: 348.91 | AD256: 250197.0373 | AE256: 134239.6753 | AF256: 115957.3619 | AG256: 387.7769702 | AH256: 61965.04185 | AI256: 0 | AJ256: 0 | AL256: 254580.2489 | AM256: 130025.7982 | AN256: 124554.4507 | AO256: 416.5008522 | AP256: 66584.39604 | AQ256: 0 | AR256: 0 | AT256: 13897.06786 | AU256: 9513.856226 | AV256: 450 | AW256: 0 | AX256: 22.5 | AZ256: 2016-05-26 | BA256: 340.6991505
A257: 0 | B257: 0 | C257: 0 | D257: 0 | E257: 522.2 | F257: 57.38256291 | G257: -38631.25053 | H257: 69927.97002 | I257: 0 | J257: 0 | K257: 0 | L257: 308.7 | M257: -6.96307782 | N257: 3219.270878 | O257: 263969.2899 | P257: 128249.8862 | Q257: 135719.4036 | R257: 456.9891883 | T257: 0 | U257: 0 | V257: 15 | W257: 42515 | X257: 2016-05-25 | Y257: 345.27 | Z257: 349.27 | AA257: 345.27 | AB257: 348.56 | AD257: 250089.728 | AE257: 134232.2914 | AF257: 115857.4367 | AG257: 387.7769702 | AH257: 61965.04185 | AI257: 0 | AJ257: 0 | AL257: 254465.7697 | AM257: 130018.6461 | AN257: 124447.1236 | AO257: 416.5008522 | AP257: 66584.39604 | AQ257: 0 | AR257: 0 | AT257: 13879.56182 | AU257: 9503.520185 | AV257: 450 | AW257: 0 | AX257: 22.5 | AZ257: 2016-05-25 | BA257: 340.357387
A258: 0 | B258: 0 | C258: 0 | D258: 0 | E258: 522.2 | F258: 57.38256291 | G258: -38631.25053 | H258: 69927.97002 | I258: 0 | J258: 0 | K258: 0 | L258: 308.7 | M258: -6.96307782 | N258: 3219.270878 | O258: 262468.3606 | P258: 128242.8318 | Q258: 134225.5288 | R258: 456.9891883 | T258: 0 | U258: 0 | V258: 14 | W258: 42514 | X258: 2016-05-24 | Y258: 336.39 | Z258: 344.87 | AA258: 335 | AB258: 344.12 | AD258: 248814.721 | AE258: 134224.9078 | AF258: 114589.8131 | AG258: 387.7769702 | AH258: 61965.04185 | AI258: 0 | AJ258: 0 | AL258: 253097.0974 | AM258: 130011.4943 | AN258: 123085.6031 | AO258: 416.5008522 | AP258: 66584.39604 | AQ258: 0 | AR258: 0 | AT258: 13653.63961 | AU258: 9371.263131 | AV258: 450 | AW258: 0 | AX258: 22.5 | AZ258: 2016-05-24 | BA258: 336.0218729
A259: 0 | B259: 0 | C259: 0 | D259: 0 | E259: 522.2 | F259: 57.38256291 | G259: -38631.25053 | H259: 69927.97002 | I259: 0 | J259: 0 | K259: 0 | L259: 308.7 | M259: -6.96307782 | N259: 3219.270878 | O259: 259961.4214 | P259: 128235.7777 | Q259: 131725.6437 | R259: 456.9891883 | T259: 0 | U259: 0 | V259: 13 | W259: 42513 | X259: 2016-05-23 | Y259: 337.89 | Z259: 339.39 | AA259: 335.22 | AB259: 336.69 | AD259: 246686.0669 | AE259: 134217.5247 | AF259: 112468.5422 | AG259: 387.7769702 | AH259: 61965.04185 | AI259: 0 | AJ259: 0 | AL259: 250811.5458 | AM259: 130004.3429 | AN259: 120807.2029 | AO259: 416.5008522 | AP259: 66584.39604 | AQ259: 0 | AR259: 0 | AT259: 13275.35446 | AU259: 9149.875554 | AV259: 450 | AW259: 0 | AX259: 22.5 | AZ259: 2016-05-23 | BA259: 328.766722
A260: 0 | B260: 0 | C260: 0 | D260: 0 | E260: 522.2 | F260: 57.38256291 | G260: -38631.25053 | H260: 69927.97002 | I260: 0 | J260: 0 | K260: 0 | L260: 308.7 | M260: -6.96307782 | N260: 3219.270878 | O260: 260384.3863 | P260: 128214.6177 | Q260: 132169.7687 | R260: 456.9891883 | T260: 0 | U260: 0 | V260: 12 | W260: 42510 | X260: 2016-05-20 | Y260: 334.73 | Z260: 338.18 | AA260: 334.73 | AB260: 338.01 | AD260: 247040.7809 | AE260: 134195.3777 | AF260: 112845.4033 | AG260: 387.7769702 | AH260: 61965.04185 | AI260: 0 | AJ260: 0 | AL260: 251194.8704 | AM260: 129982.8911 | AN260: 121211.9793 | AO260: 416.5008522 | AP260: 66584.39604 | AQ260: 0 | AR260: 0 | AT260: 13343.6054 | AU260: 9189.515971 | AV260: 450 | AW260: 0 | AX260: 22.5 | AZ260: 2016-05-20 | BA260: 330.0556586
A261: 0 | B261: 0 | C261: 0 | D261: 0 | E261: 522.2 | F261: 57.38256291 | G261: -38631.25053 | H261: 69927.97002 | I261: 0 | J261: 0 | K261: 0 | L261: 308.7 | M261: -6.96307782 | N261: 3219.270878 | O261: 258997.8548 | P261: 128207.5651 | Q261: 130790.2897 | R261: 456.9891883 | T261: 0 | U261: 0 | V261: 11 | W261: 42509 | X261: 2016-05-19 | Y261: 337.03 | Z261: 337.08 | AA261: 333.9 | AB261: 333.91 | AD261: 245862.8462 | AE261: 134187.9961 | AF261: 111674.85 | AG261: 387.7769702 | AH261: 61965.04185 | AI261: 0 | AJ261: 0 | AL261: 249930.4607 | AM261: 129975.7413 | AN261: 119954.7194 | AO261: 416.5008522 | AP261: 66584.39604 | AQ261: 0 | AR261: 0 | AT261: 13135.00864 | AU261: 9067.394133 | AV261: 450 | AW261: 0 | AX261: 22.5 | AZ261: 2016-05-19 | BA261: 326.0521433
A262: 0 | B262: 0 | C262: 0 | D262: 0 | E262: 522.2 | F262: 57.38256291 | G262: -38631.25053 | H262: 69927.97002 | I262: 0 | J262: 0 | K262: 0 | L262: 308.7 | M262: -6.96307782 | N262: 3219.270878 | O262: 260225.6046 | P262: 128200.513 | Q262: 132025.0916 | R262: 456.9891883 | T262: 0 | U262: 0 | V262: 10 | W262: 42508 | X262: 2016-05-18 | Y262: 334.12 | Z262: 337.58 | AA262: 333.01 | AB262: 337.58 | AD262: 246903.253 | AE262: 134180.615 | AF262: 112722.6379 | AG262: 387.7769702 | AH262: 61965.04185 | AI262: 0 | AJ262: 0 | AL262: 251048.7122 | AM262: 129968.5919 | AN262: 121080.1203 | AO262: 416.5008522 | AP262: 66584.39604 | AQ262: 0 | AR262: 0 | AT262: 13322.35161 | AU262: 9176.892396 | AV262: 450 | AW262: 0 | AX262: 22.5 | AZ262: 2016-05-18 | BA262: 329.6357778
A263: 0 | B263: 0 | C263: 0 | D263: 0 | E263: 522.2 | F263: 57.38256291 | G263: -38631.25053 | H263: 69927.97002 | I263: 0 | J263: 0 | K263: 0 | L263: 308.7 | M263: -6.96307782 | N263: 3219.270878 | O263: 259256.2821 | P263: 128193.4612 | Q263: 131062.8209 | R263: 456.9891883 | T263: 0 | U263: 0 | V263: 9 | W263: 42507 | X263: 2016-05-17 | Y263: 336.04 | Z263: 338.73 | AA263: 333.3 | AB263: 334.72 | AD263: 246079.34 | AE263: 134173.2343 | AF263: 111906.1057 | AG263: 387.7769702 | AH263: 61965.04185 | AI263: 0 | AJ263: 0 | AL263: 250164.5477 | AM263: 129961.4429 | AN263: 120203.1049 | AO263: 416.5008522 | AP263: 66584.39604 | AQ263: 0 | AR263: 0 | AT263: 13176.94211 | AU263: 9091.734373 | AV263: 450 | AW263: 0 | AX263: 22.5 | AZ263: 2016-05-17 | BA263: 326.8430817
A264: 0 | B264: 0 | C264: 0 | D264: 0 | E264: 522.2 | F264: 57.38256291 | G264: -38631.25053 | H264: 69927.97002 | I264: 0 | J264: 0 | K264: 0 | L264: 308.7 | M264: -6.96307782 | N264: 3219.270878 | O264: 259252.5953 | P264: 128186.4098 | Q264: 131066.1855 | R264: 456.9891883 | T264: 0 | U264: 0 | V264: 8 | W264: 42506 | X264: 2016-05-16 | Y264: 333.99 | Z264: 334.96 | AA264: 332.51 | AB264: 334.73 | AD264: 246074.8147 | AE264: 134165.854 | AF264: 111908.9607 | AG264: 387.7769702 | AH264: 61965.04185 | AI264: 0 | AJ264: 0 | AL264: 250160.4656 | AM264: 129954.2942 | AN264: 120206.1714 | AO264: 416.5008522 | AP264: 66584.39604 | AQ264: 0 | AR264: 0 | AT264: 13177.78061 | AU264: 9092.129718 | AV264: 450 | AW264: 0 | AX264: 22.5 | AZ264: 2016-05-16 | BA264: 326.8528464
A265: 0 | B265: 0 | C265: 0 | D265: 0 | E265: 522.2 | F265: 57.38256291 | G265: -38631.25053 | H265: 69927.97002 | I265: 0 | J265: 0 | K265: 0 | L265: 308.7 | M265: -6.96307782 | N265: 3219.270878 | O265: 259214.6206 | P265: 128165.258 | Q265: 131049.3625 | R265: 456.9891883 | T265: 0 | U265: 0 | V265: 7 | W265: 42503 | X265: 2016-05-13 | Y265: 332.16 | Z265: 335.05 | AA265: 330.44 | AB265: 334.68 | AD265: 246038.4012 | AE265: 134143.7155 | AF265: 111894.6856 | AG265: 387.7769702 | AH265: 61965.04185 | AI265: 0 | AJ265: 0 | AL265: 250123.6896 | AM265: 129932.8507 | AN265: 120190.8389 | AO265: 416.5008522 | AP265: 66584.39604 | AQ265: 0 | AR265: 0 | AT265: 13176.21939 | AU265: 9090.930956 | AV265: 450 | AW265: 0 | AX265: 22.5 | AZ265: 2016-05-13 | BA265: 326.804023
A266: 0 | B266: 0 | C266: 0 | D266: 0 | E266: 522.2 | F266: 57.38256291 | G266: -38631.25053 | H266: 69927.97002 | I266: 0 | J266: 0 | K266: 0 | L266: 308.7 | M266: -6.96307782 | N266: 3219.270878 | O266: 258679.3312 | P266: 128158.2082 | Q266: 130521.123 | R266: 456.9891883 | T266: 0 | U266: 0 | V266: 6 | W266: 42502 | X266: 2016-05-12 | Y266: 334.05 | Z266: 337.56 | AA266: 331.4 | AB266: 333.11 | AD266: 245582.7862 | AE266: 134136.3369 | AF266: 111446.4494 | AG266: 387.7769702 | AH266: 61965.04185 | AI266: 0 | AJ266: 0 | AL266: 249635.104 | AM266: 129925.7036 | AN266: 119709.4004 | AO266: 416.5008522 | AP266: 66584.39604 | AQ266: 0 | AR266: 0 | AT266: 13096.54497 | AU266: 9044.22721 | AV266: 450 | AW266: 0 | AX266: 22.5 | AZ266: 2016-05-12 | BA266: 325.2709696
A267: 0 | B267: 0 | C267: 0 | D267: 0 | E267: 522.2 | F267: 57.38256291 | G267: -38631.25053 | H267: 69927.97002 | I267: 0 | J267: 0 | K267: 0 | L267: 308.7 | M267: -6.96307782 | N267: 3219.270878 | O267: 259220.7088 | P267: 128151.1587 | Q267: 131069.55 | R267: 456.9891883 | T267: 0 | U267: 0 | V267: 5 | W267: 42501 | X267: 2016-05-11 | Y267: 336.04 | Z267: 336.39 | AA267: 333.3 | AB267: 334.74 | AD267: 246040.7743 | AE267: 134128.9586 | AF267: 111911.8157 | AG267: 387.7769702 | AH267: 61965.04185 | AI267: 0 | AJ267: 0 | AL267: 250127.7948 | AM267: 129918.557 | AN267: 120209.2378 | AO267: 416.5008522 | AP267: 66584.39604 | AQ267: 0 | AR267: 0 | AT267: 13179.93452 | AU267: 9092.913979 | AV267: 450 | AW267: 0 | AX267: 22.5 | AZ267: 2016-05-11 | BA267: 326.8626111
A268: 0 | B268: 0 | C268: 0 | D268: 0 | E268: 522.2 | F268: 57.38256291 | G268: -38631.25053 | H268: 69927.97002 | I268: 0 | J268: 0 | K268: 0 | L268: 308.7 | M268: -6.96307782 | N268: 3219.270878 | O268: 259718.3472 | P268: 128144.1097 | Q268: 131574.2375 | R268: 456.9891883 | T268: 0 | U268: 0 | V268: 4 | W268: 42500 | X268: 2016-05-10 | Y268: 334.38 | Z268: 337.89 | AA268: 334.38 | AB268: 336.24 | AD268: 246461.6476 | AE268: 134121.5807 | AF268: 112340.0669 | AG268: 387.7769702 | AH268: 61965.04185 | AI268: 0 | AJ268: 0 | AL268: 250580.6217 | AM268: 129911.4107 | AN268: 120669.211 | AO268: 416.5008522 | AP268: 66584.39604 | AQ268: 0 | AR268: 0 | AT268: 13256.69958 | AU268: 9137.725502 | AV268: 450 | AW268: 0 | AX268: 22.5 | AZ268: 2016-05-10 | BA268: 328.3273118
A269: 0 | B269: 0 | C269: 0 | D269: 0 | E269: 522.2 | F269: 57.38256291 | G269: -38631.25053 | H269: 69927.97002 | I269: 0 | J269: 0 | K269: 0 | L269: 308.7 | M269: -6.96307782 | N269: 3219.270878 | O269: 258695.1945 | P269: 128137.061 | Q269: 130558.1334 | R269: 456.9891883 | T269: 0 | U269: 0 | V269: 3 | W269: 42499 | X269: 2016-05-09 | Y269: 332.72 | Z269: 336.37 | AA269: 332.26 | AB269: 333.22 | AD269: 245592.0577 | AE269: 134114.2033 | AF269: 111477.8545 | AG269: 387.7769702 | AH269: 61965.04185 | AI269: 0 | AJ269: 0 | AL269: 249647.3966 | AM269: 129904.2648 | AN269: 119743.1317 | AO269: 416.5008522 | AP269: 66584.39604 | AQ269: 0 | AR269: 0 | AT269: 13103.13674 | AU269: 9047.797911 | AV269: 450 | AW269: 0 | AX269: 22.5 | AZ269: 2016-05-09 | BA269: 325.378381
A270: 0 | B270: 0 | C270: 0 | D270: 0 | E270: 522.2 | F270: 57.38256291 | G270: -38631.25053 | H270: 69927.97002 | I270: 0 | J270: 0 | K270: 0 | L270: 308.7 | M270: -6.96307782 | N270: 3219.270878 | O270: 258152.5404 | P270: 128115.9173 | Q270: 130036.6231 | R270: 456.9891883 | T270: 0 | U270: 0 | V270: 2 | W270: 42496 | X270: 2016-05-06 | Y270: 332.18 | Z270: 332.69 | AA270: 328.64 | AB270: 331.67 | AD270: 245127.4015 | AE270: 134092.0733 | AF270: 111035.3282 | AG270: 387.7769702 | AH270: 61965.04185 | AI270: 0 | AJ270: 0 | AL270: 249150.6557 | AM270: 129882.8295 | AN270: 119267.8262 | AO270: 416.5008522 | AP270: 66584.39604 | AQ270: 0 | AR270: 0 | AT270: 13025.1389 | AU270: 9001.884731 | AV270: 450 | AW270: 0 | AX270: 22.5 | AZ270: 2016-05-06 | BA270: 323.8648569
A271: 0 | B271: 0 | C271: 0 | D271: 0 | E271: 522.2 | F271: 57.38256291 | G271: -38631.25053 | H271: 69927.97002 | I271: 0 | J271: 0 | K271: 0 | L271: 308.7 | M271: -6.96307782 | N271: 3219.270878 | O271: 258545.8787 | P271: 128108.8702 | Q271: 130437.0085 | R271: 456.9891883 | T271: 401.1220176 | U271: 1 | V271: 1 | W271: 42495 | X271: 2016-05-05 | Y271: 332.35 | Z271: 334.19 | AA271: 331.85 | AB271: 332.86 | AD271: 245459.7716 | AE271: 134084.6975 | AF271: 111375.0742 | AG271: 387.7769702 | AH271: 61965.04185 | AI271: 0.6034632429 | AJ271: 1 | AL271: 249508.4234 | AM271: 129875.6852 | AN271: 119632.7382 | AO271: 416.5008522 | AP271: 66584.39604 | AQ271: 1.206926486 | AR271: 1 | AT271: 13086.10704 | AU271: 9037.455271 | AV271: 450 | AW271: 0 | AX271: 31.5252454 | AZ271: 2016-05-05 | BA271: 325.0268528
